Workbook

Sheet Oversigt Ændringer
B1: Selskabsnavn | C1: Fredensborg Vand
B2: Selskabs ID | C2: V054
B3: Afskrivning referenceår | C3: 2026
B6: Denne fane viser, hvilke ændringer der er foretaget i henholdsvis Produktionsanlæg, Distributionsanlæg og Fællesfunktionsanlæg. Kolonne G viser værdien før ændringen, og kolonne H viser værdien efter ændringen. Det er vigtigt, at I skriver en begrundelse i kolonne I (”Begrundelse”), hvis I har foretaget en ændring. I begrundelsen skal der tydeligt fremgå, hvilken dokumentation I har vedlagt i Vanddata for den givne ændring. Når I er færdige med at ændre i POLKA og har skrevet begrundelser for alle ændringerne, skal I klikke på knappen ”Gem revisorversion”, som skaber et nyt dokument, som jeres revisor skal godkende. Det er vigtigt, at I både uploader den fil, hvor I har foretaget ændringer samt den nye fil til revisor. Hvis I fortryder en ændring, skal I blot nulstille til den oprindelige værdi ved at bruge nulstil-knappen, der vises, når I står i kolonne H.
F8: ="Afskrivning i alt ("&Afskrivning_Referenceår&") →" -> Afskrivning i alt (2026) → | G8: 4430605.08
G9: ↓ Værdi ↓
A11: Nøgle | B11: Anlægstype | C11: Navn anlæg | D11: Anlæg | E11: Komponent | F11: År | G11: Før | H11: Efter | I11: Begrundelse | J11: OK | K11: Celle | L11: Række

Sheet Produktionsanlæg
A1: Produktionsanlæg | B1: Enhed | C1: Standard-levetid | D1: Mængde | E1: Mængde | F1: Mængde | G1: Mængde | H1: Mængde | I1: Mængde | J1: Mængde | K1: Mængde | L1: Mængde | M1: Mængde | N1: Mængde | O1: Mængde | P1: Mængde | Q1: Mængde | R1: Mængde | S1: Mængde | T1: Mængde | U1: Mængde | V1: Mængde | W1: Mængde | X1: Mængde | Y1: Mængde | Z1: Beregnet enhedspris | AA1: Nedskrevet genanskaffelsesværdi pr. år | AW1: Nedskrevet genanskaffelsesværdi i alt | AX1: Nedskrevet anskaffelsesværdi pr. år | BT1: Nedskrevet anskaffelsesværdi i alt | BU1: Nedskrevet standardværdi pr. år | CQ1: Nedskrevet standardværdi i alt
D2: Før 1910 | E2: 1910-1919 | F2: 1920-1929 | G2: 1930-1939 | H2: 1940-1949 | I2: 1950-1959 | J2: 1960-1969 | K2: 1970-1979 | L2: 1980-1984 | M2: 1985-1989 | N2: 1990-1994 | O2: 1995-1999 | P2: 2000 | Q2: =+P2+1 -> 2001 | R2: =+Q2+1 -> 2002 | S2: 2003 | T2: 2004 | U2: 2005 | V2: 2006 | W2: 2007 | X2: 2008 | Y2: 2009 | AA2: Før 1910 | AB2: 1910-1919 | AC2: 1920-1929 | AD2: 1930-1939 | AE2: 1940-1949 | AF2: 1950-1959 | AG2: 1960-1969 | AH2: 1970-1979 | AI2: 1980-1984 | AJ2: 1985-1989 | AK2: 1990-1994 | AL2: 1995-1999 | AM2: 2000 | AN2: =+AM2+1 -> 2001 | AO2: =+AN2+1 -> 2002 | AP2: 2003 | AQ2: 2004 | AR2: 2005 | AS2: 2006 | AT2: 2007 | AU2: 2008 | AV2: 2009 | AX2: Før 1910 | AY2: 1910-1919 | AZ2: 1920-1929 | BA2: 1930-1939 | BB2: 1940-1949 | BC2: 1950-1959 | BD2: 1960-1969 | BE2: 1970-1979 | BF2: 1980-1984 | BG2: 1985-1989 | BH2: 1990-1994 | BI2: 1995-1999 | BJ2: 2000 | BK2: =+BJ2+1 -> 2001 | BL2: =+BK2+1 -> 2002 | BM2: 2003 | BN2: 2004 | BO2: 2005 | BP2: 2006 | BQ2: 2007 | BR2: 2008 | BS2: 2009 | BU2: Før 1910 | BV2: 1910-1919 | BW2: 1920-1929 | BX2: 1930-1939 | BY2: 1940-1949 | BZ2: 1950-1959 | CA2: 1960-1969 | CB2: 1970-1979 | CC2: 1980-1984 | CD2: 1985-1989 | CE2: 1990-1994 | CF2: 1995-1999 | CG2: 2000 | CH2: =+CG2+1 -> 2001 | CI2: =+CH2+1 -> 2002 | CJ2: 2003 | CK2: 2004 | CL2: 2005 | CM2: 2006 | CN2: 2007 | CO2: 2008 | CP2: 2009 | CR2: Mængde
A3: Indeksår | D3: 1905 | E3: =+D3+10 -> 1915 | F3: =+E3+10 -> 1925 | G3: 1935 | H3: 1945 | I3: 1955 | J3: 1965 | K3: 1975 | L3: 1982 | M3: 1987 | N3: =+L3+10 -> 1992 | O3: 1997 | P3: =+P2 -> 2000 | Q3: =+Q2 -> 2001 | R3: 2002 | S3: 2003 | T3: 2004 | U3: 2005 | V3: 2006 | W3: 2007 | X3: 2008 | Y3: 2009 | AA3: 1905 | AB3: =+AA3+10 -> 1915 | AC3: =+AB3+10 -> 1925 | AD3: 1935 | AE3: 1945 | AF3: 1955 | AG3: 1965 | AH3: 1975 | AI3: 1982 | AJ3: 1987 | AK3: =+AI3+10 -> 1992 | AL3: 1997 | AM3: =+AM2 -> 2000 | AN3: 2001 | AO3: 2002 | AP3: 2003 | AQ3: 2004 | AR3: 2005 | AS3: 2006 | AT3: 2007 | AU3: 2008 | AV3: 2009 | AX3: 1905 | AY3: =+AX3+10 -> 1915 | AZ3: =+AY3+10 -> 1925 | BA3: 1935 | BB3: 1945 | BC3: 1955 | BD3: 1965 | BE3: 1975 | BF3: 1982 | BG3: 1987 | BH3: =+BF3+10 -> 1992 | BI3: 1997 | BJ3: =+BJ2 -> 2000 | BK3: 2001 | BL3: 2002 | BM3: 2003 | BN3: 2004 | BO3: 2005 | BP3: 2006 | BQ3: 2007 | BR3: 2008 | BS3: 2009 | BU3: 1905 | BV3: =+BU3+10 -> 1915 | BW3: =+BV3+10 -> 1925 | BX3: 1935 | BY3: 1945 | BZ3: 1955 | CA3: 1965 | CB3: 1975 | CC3: 1982 | CD3: 1987 | CE3: =+CC3+10 -> 1992 | CF3: 1997 | CG3: =+CG2 -> 2000 | CH3: 2001 | CI3: 2002 | CJ3: 2003 | CK3: 2004 | CL3: 2005 | CM3: 2006 | CN3: 2007 | CO3: 2008 | CP3: 2009
A4: Boringer | AW4: =SUM(AW5) -> 734074.2 | BT4: =SUM(BT5) -> 518102.8149 | CQ4: =SUM(CQ5) -> 626088.5074
A5: Boring (inkl. etablering, forerør, filter og prøvepumpning) | B5: dybdemeter | C5: =Genanskaffelsespriser!E5 -> 30 | D5: 0 | E5: 0 | F5: 0 | G5: 0 | H5: 0 | I5: 0 | J5: 0 | K5: 0 | L5: =76 -> 76 | M5: =76+85.5 -> 161.5 | N5: =29+77+77.5+74+66+77.5 -> 401 | O5: 108 | P5: 0 | Q5: 0 | R5: 0 | S5: 0 | T5: 0 | U5: 0 | V5: 0 | W5: 0 | X5: 0 | Y5: 0 | AA5: =IF((D5*Genanskaffelsespriser!$D5-(2009-D$3)/($C5+D6)*Genanskaffelsespriser!$D5*D5)<0,0,(D5*Genanskaffelsespriser!$D5-(2009-D$3)/($C5+D6)*Genanskaffelsespriser!$D5*D5)) -> 0 | AB5: =IF((E5*Genanskaffelsespriser!$D5-(2009-E$3)/($C5+E6)*Genanskaffelsespriser!$D5*E5)<0,0,(E5*Genanskaffelsespriser!$D5-(2009-E$3)/($C5+E6)*Genanskaffelsespriser!$D5*E5)) -> 0 | AC5: =IF((F5*Genanskaffelsespriser!$D5-(2009-F$3)/($C5+F6)*Genanskaffelsespriser!$D5*F5)<0,0,(F5*Genanskaffelsespriser!$D5-(2009-F$3)/($C5+F6)*Genanskaffelsespriser!$D5*F5)) -> 0 | AD5: =IF((G5*Genanskaffelsespriser!$D5-(2009-G$3)/($C5+G6)*Genanskaffelsespriser!$D5*G5)<0,0,(G5*Genanskaffelsespriser!$D5-(2009-G$3)/($C5+G6)*Genanskaffelsespriser!$D5*G5)) -> 0 | AE5: =IF((H5*Genanskaffelsespriser!$D5-(2009-H$3)/($C5+H6)*Genanskaffelsespriser!$D5*H5)<0,0,(H5*Genanskaffelsespriser!$D5-(2009-H$3)/($C5+H6)*Genanskaffelsespriser!$D5*H5)) -> 0 | AF5: =IF((I5*Genanskaffelsespriser!$D5-(2009-I$3)/($C5+I6)*Genanskaffelsespriser!$D5*I5)<0,0,(I5*Genanskaffelsespriser!$D5-(2009-I$3)/($C5+I6)*Genanskaffelsespriser!$D5*I5)) -> 0 | AG5: =IF((J5*Genanskaffelsespriser!$D5-(2009-J$3)/($C5+J6)*Genanskaffelsespriser!$D5*J5)<0,0,(J5*Genanskaffelsespriser!$D5-(2009-J$3)/($C5+J6)*Genanskaffelsespriser!$D5*J5)) -> 0 | AH5: =IF((K5*Genanskaffelsespriser!$D5-(2009-K$3)/($C5+K6)*Genanskaffelsespriser!$D5*K5)<0,0,(K5*Genanskaffelsespriser!$D5-(2009-K$3)/($C5+K6)*Genanskaffelsespriser!$D5*K5)) -> 0 | AI5: =IF((L5*Genanskaffelsespriser!$D5-(2009-L$3)/($C5+L6)*Genanskaffelsespriser!$D5*L5)<0,0,(L5*Genanskaffelsespriser!$D5-(2009-L$3)/($C5+L6)*Genanskaffelsespriser!$D5*L5)) -> 19288.8 | AJ5: =IF((M5*Genanskaffelsespriser!$D5-(2009-M$3)/($C5+M6)*Genanskaffelsespriser!$D5*M5)<0,0,(M5*Genanskaffelsespriser!$D5-(2009-M$3)/($C5+M6)*Genanskaffelsespriser!$D5*M5)) -> 109303.2 | AK5: =IF((N5*Genanskaffelsespriser!$D5-(2009-N$3)/($C5+N6)*Genanskaffelsespriser!$D5*N5)<0,0,(N5*Genanskaffelsespriser!$D5-(2009-N$3)/($C5+N6)*Genanskaffelsespriser!$D5*N5)) -> 441019.8 | AL5: =IF((O5*Genanskaffelsespriser!$D5-(2009-O$3)/($C5+O6)*Genanskaffelsespriser!$D5*O5)<0,0,(O5*Genanskaffelsespriser!$D5-(2009-O$3)/($C5+O6)*Genanskaffelsespriser!$D5*O5)) -> 164462.4 | AM5: =IF((P5*Genanskaffelsespriser!$D5-(2009-P$3)/($C5+P6)*Genanskaffelsespriser!$D5*P5)<0,0,(P5*Genanskaffelsespriser!$D5-(2009-P$3)/($C5+P6)*Genanskaffelsespriser!$D5*P5)) -> 0 | AN5: =IF((Q5*Genanskaffelsespriser!$D5-(2009-Q$3)/($C5+Q6)*Genanskaffelsespriser!$D5*Q5)<0,0,(Q5*Genanskaffelsespriser!$D5-(2009-Q$3)/($C5+Q6)*Genanskaffelsespriser!$D5*Q5)) -> 0 | AO5: =IF((R5*Genanskaffelsespriser!$D5-(2009-R$3)/($C5+R6)*Genanskaffelsespriser!$D5*R5)<0,0,(R5*Genanskaffelsespriser!$D5-(2009-R$3)/($C5+R6)*Genanskaffelsespriser!$D5*R5)) -> 0 | AP5: =IF((S5*Genanskaffelsespriser!$D5-(2009-S$3)/($C5+S6)*Genanskaffelsespriser!$D5*S5)<0,0,(S5*Genanskaffelsespriser!$D5-(2009-S$3)/($C5+S6)*Genanskaffelsespriser!$D5*S5)) -> 0 | AQ5: =IF((T5*Genanskaffelsespriser!$D5-(2009-T$3)/($C5+T6)*Genanskaffelsespriser!$D5*T5)<0,0,(T5*Genanskaffelsespriser!$D5-(2009-T$3)/($C5+T6)*Genanskaffelsespriser!$D5*T5)) -> 0 | AR5: =IF((U5*Genanskaffelsespriser!$D5-(2009-U$3)/($C5+U6)*Genanskaffelsespriser!$D5*U5)<0,0,(U5*Genanskaffelsespriser!$D5-(2009-U$3)/($C5+U6)*Genanskaffelsespriser!$D5*U5)) -> 0 | AS5: =IF((V5*Genanskaffelsespriser!$D5-(2009-V$3)/($C5+V6)*Genanskaffelsespriser!$D5*V5)<0,0,(V5*Genanskaffelsespriser!$D5-(2009-V$3)/($C5+V6)*Genanskaffelsespriser!$D5*V5)) -> 0 | AT5: =IF((W5*Genanskaffelsespriser!$D5-(2009-W$3)/($C5+W6)*Genanskaffelsespriser!$D5*W5)<0,0,(W5*Genanskaffelsespriser!$D5-(2009-W$3)/($C5+W6)*Genanskaffelsespriser!$D5*W5)) -> 0 | AU5: =IF((X5*Genanskaffelsespriser!$D5-(2009-X$3)/($C5+X6)*Genanskaffelsespriser!$D5*X5)<0,0,(X5*Genanskaffelsespriser!$D5-(2009-X$3)/($C5+X6)*Genanskaffelsespriser!$D5*X5)) -> 0 | AV5: =IF((Y5*Genanskaffelsespriser!$D5-(2009-Y$3)/($C5+Y6)*Genanskaffelsespriser!$D5*Y5)<0,0,(Y5*Genanskaffelsespriser!$D5-(2009-Y$3)/($C5+Y6)*Genanskaffelsespriser!$D5*Y5)) -> 0 | AW5: =+SUM(AA5:AV5) -> 734074.2 | AX5: =VLOOKUP(D$3,Prisindeks!$A$1:$B$111,2,FALSE)/100*AA5 -> 0 | AY5: =VLOOKUP(E$3,Prisindeks!$A$1:$B$111,2,FALSE)/100*AB5 -> 0 | AZ5: =VLOOKUP(F$3,Prisindeks!$A$1:$B$111,2,FALSE)/100*AC5 -> 0 | BA5: =VLOOKUP(G$3,Prisindeks!$A$1:$B$111,2,FALSE)/100*AD5 -> 0 | BB5: =VLOOKUP(H$3,Prisindeks!$A$1:$B$111,2,FALSE)/100*AE5 -> 0 | BC5: =VLOOKUP(I$3,Prisindeks!$A$1:$B$111,2,FALSE)/100*AF5 -> 0 | BD5: =VLOOKUP(J$3,Prisindeks!$A$1:$B$111,2,FALSE)/100*AG5 -> 0 | BE5: =VLOOKUP(K$3,Prisindeks!$A$1:$B$111,2,FALSE)/100*AH5 -> 0 | BF5: =VLOOKUP(L$3,Prisindeks!$A$1:$B$111,2,FALSE)/100*AI5 -> 9090.243131 | BG5: =VLOOKUP(M$3,Prisindeks!$A$1:$B$111,2,FALSE)/100*AJ5 -> 64945.1056 | BH5: =VLOOKUP(N$3,Prisindeks!$A$1:$B$111,2,FALSE)/100*AK5 -> 311353.7502 | BI5: =VLOOKUP(O$3,Prisindeks!$A$1:$B$111,2,FALSE)/100*AL5 -> 132713.7159 | BJ5: =VLOOKUP(P$3,Prisindeks!$A$1:$B$111,2,FALSE)/100*AM5 -> 0 | BK5: =VLOOKUP(Q$3,Prisindeks!$A$1:$B$111,2,FALSE)/100*AN5 -> 0 | BL5: =VLOOKUP(R$3,Prisindeks!$A$1:$B$111,2,FALSE)/100*AO5 -> 0 | BM5: =VLOOKUP(S$3,Prisindeks!$A$1:$B$111,2,FALSE)/100*AP5 -> 0 | BN5: =VLOOKUP(T$3,Prisindeks!$A$1:$B$111,2,FALSE)/100*AQ5 -> 0 | BO5: =VLOOKUP(U$3,Prisindeks!$A$1:$B$111,2,FALSE)/100*AR5 -> 0 | BP5: =VLOOKUP(V$3,Prisindeks!$A$1:$B$111,2,FALSE)/100*AS5 -> 0 | BQ5: =VLOOKUP(W$3,Prisindeks!$A$1:$B$111,2,FALSE)/100*AT5 -> 0 | BR5: =VLOOKUP(X$3,Prisindeks!$A$1:$B$111,2,FALSE)/100*AU5 -> 0 | BS5: =VLOOKUP(Y$3,Prisindeks!$A$1:$B$111,2,FALSE)/100*AV5 -> 0 | BT5: =+SUM(AX5:BS5) -> 518102.8149 | BU5: =(AA5+AX5)/2 -> 0 | BV5: =(AB5+AY5)/2 -> 0 | BW5: 0 | BX5: 0 | BY5: 0 | BZ5: 0 | CA5: 0 | CB5: 0 | CC5: 14189.52157 | CD5: 87124.1528 | CE5: 376186.7751 | CF5: 148588.058 | CG5: 0 | CH5: 0 | CI5: 0 | CJ5: 0 | CK5: 0 | CL5: 0 | CM5: 0 | CN5: 0 | CO5: 0 | CP5: 0 | CQ5: =AVERAGE(AW5,BT5) -> 626088.5074 | CR5: =SUM(D5:Y5) -> 746.5
A6: Levetidsforlængelse | B6: år | C6: - | D6: 0 | E6: 0 | F6: 0 | G6: 0 | H6: 0 | I6: 0 | J6: 0 | K6: 0 | L6: 0 | M6: 0 | N6: 0 | O6: 0 | P6: 0 | Q6: 0 | R6: 0 | S6: 0 | T6: 0 | U6: 0 | V6: 0 | W6: 0 | X6: 0 | Y6: 0
A7: Råvandsstationer | AW7: =SUM(AW8:AW23) -> 365935.9709 | BT7: =SUM(BT8:BT23) -> 261429.1171 | CQ7: =SUM(CQ8:CQ23) -> 313682.544
A8: Råvandsstation komplet montering og boringshus/tørbrønd | B8: stk. | C8: =Genanskaffelsespriser!E7 -> 30 | D8: 0 | E8: 0 | F8: 0 | G8: 0 | H8: 0 | I8: 0 | J8: 0 | K8: 0 | L8: 1 | M8: 3 | N8: 5 | O8: 1 | P8: 0 | Q8: 0 | R8: 0 | S8: 0 | T8: 0 | U8: 0 | V8: 0 | W8: 0 | X8: 0 | Y8: 0 | AA8: =IF((D8*Genanskaffelsespriser!$D7-(2009-D$3)/$C8*Genanskaffelsespriser!$D7*D8)<0,0,(D8*Genanskaffelsespriser!$D7-(2009-D$3)/$C8*Genanskaffelsespriser!$D7*D8)) -> 0 | AB8: =IF((E8*Genanskaffelsespriser!$D7-(2009-E$3)/$C8*Genanskaffelsespriser!$D7*E8)<0,0,(E8*Genanskaffelsespriser!$D7-(2009-E$3)/$C8*Genanskaffelsespriser!$D7*E8)) -> 0 | AC8: =IF((F8*Genanskaffelsespriser!$D7-(2009-F$3)/$C8*Genanskaffelsespriser!$D7*F8)<0,0,(F8*Genanskaffelsespriser!$D7-(2009-F$3)/$C8*Genanskaffelsespriser!$D7*F8)) -> 0 | AD8: =IF((G8*Genanskaffelsespriser!$D7-(2009-G$3)/$C8*Genanskaffelsespriser!$D7*G8)<0,0,(G8*Genanskaffelsespriser!$D7-(2009-G$3)/$C8*Genanskaffelsespriser!$D7*G8)) -> 0 | AE8: =IF((H8*Genanskaffelsespriser!$D7-(2009-H$3)/$C8*Genanskaffelsespriser!$D7*H8)<0,0,(H8*Genanskaffelsespriser!$D7-(2009-H$3)/$C8*Genanskaffelsespriser!$D7*H8)) -> 0 | AF8: =IF((I8*Genanskaffelsespriser!$D7-(2009-I$3)/$C8*Genanskaffelsespriser!$D7*I8)<0,0,(I8*Genanskaffelsespriser!$D7-(2009-I$3)/$C8*Genanskaffelsespriser!$D7*I8)) -> 0 | AG8: =IF((J8*Genanskaffelsespriser!$D7-(2009-J$3)/$C8*Genanskaffelsespriser!$D7*J8)<0,0,(J8*Genanskaffelsespriser!$D7-(2009-J$3)/$C8*Genanskaffelsespriser!$D7*J8)) -> 0 | AH8: =IF((K8*Genanskaffelsespriser!$D7-(2009-K$3)/$C8*Genanskaffelsespriser!$D7*K8)<0,0,(K8*Genanskaffelsespriser!$D7-(2009-K$3)/$C8*Genanskaffelsespriser!$D7*K8)) -> 0 | AI8: =IF((L8*Genanskaffelsespriser!$D7-(2009-L$3)/$C8*Genanskaffelsespriser!$D7*L8)<0,0,(L8*Genanskaffelsespriser!$D7-(2009-L$3)/$C8*Genanskaffelsespriser!$D7*L8)) -> 5994.897 | AJ8: =IF((M8*Genanskaffelsespriser!$D7-(2009-M$3)/$C8*Genanskaffelsespriser!$D7*M8)<0,0,(M8*Genanskaffelsespriser!$D7-(2009-M$3)/$C8*Genanskaffelsespriser!$D7*M8)) -> 47959.176 | AK8: =IF((N8*Genanskaffelsespriser!$D7-(2009-N$3)/$C8*Genanskaffelsespriser!$D7*N8)<0,0,(N8*Genanskaffelsespriser!$D7-(2009-N$3)/$C8*Genanskaffelsespriser!$D7*N8)) -> 129889.435 | AL8: =IF((O8*Genanskaffelsespriser!$D7-(2009-O$3)/$C8*Genanskaffelsespriser!$D7*O8)<0,0,(O8*Genanskaffelsespriser!$D7-(2009-O$3)/$C8*Genanskaffelsespriser!$D7*O8)) -> 35969.382 | AM8: =IF((P8*Genanskaffelsespriser!$D7-(2009-P$3)/$C8*Genanskaffelsespriser!$D7*P8)<0,0,(P8*Genanskaffelsespriser!$D7-(2009-P$3)/$C8*Genanskaffelsespriser!$D7*P8)) -> 0 | AN8: =IF((Q8*Genanskaffelsespriser!$D7-(2009-Q$3)/$C8*Genanskaffelsespriser!$D7*Q8)<0,0,(Q8*Genanskaffelsespriser!$D7-(2009-Q$3)/$C8*Genanskaffelsespriser!$D7*Q8)) -> 0 | AO8: =IF((R8*Genanskaffelsespriser!$D7-(2009-R$3)/$C8*Genanskaffelsespriser!$D7*R8)<0,0,(R8*Genanskaffelsespriser!$D7-(2009-R$3)/$C8*Genanskaffelsespriser!$D7*R8)) -> 0 | AP8: =IF((S8*Genanskaffelsespriser!$D7-(2009-S$3)/$C8*Genanskaffelsespriser!$D7*S8)<0,0,(S8*Genanskaffelsespriser!$D7-(2009-S$3)/$C8*Genanskaffelsespriser!$D7*S8)) -> 0 | AQ8: =IF((T8*Genanskaffelsespriser!$D7-(2009-T$3)/$C8*Genanskaffelsespriser!$D7*T8)<0,0,(T8*Genanskaffelsespriser!$D7-(2009-T$3)/$C8*Genanskaffelsespriser!$D7*T8)) -> 0 | AR8: =IF((U8*Genanskaffelsespriser!$D7-(2009-U$3)/$C8*Genanskaffelsespriser!$D7*U8)<0,0,(U8*Genanskaffelsespriser!$D7-(2009-U$3)/$C8*Genanskaffelsespriser!$D7*U8)) -> 0 | AS8: =IF((V8*Genanskaffelsespriser!$D7-(2009-V$3)/$C8*Genanskaffelsespriser!$D7*V8)<0,0,(V8*Genanskaffelsespriser!$D7-(2009-V$3)/$C8*Genanskaffelsespriser!$D7*V8)) -> 0 | AT8: =IF((W8*Genanskaffelsespriser!$D7-(2009-W$3)/$C8*Genanskaffelsespriser!$D7*W8)<0,0,(W8*Genanskaffelsespriser!$D7-(2009-W$3)/$C8*Genanskaffelsespriser!$D7*W8)) -> 0 | AU8: =IF((X8*Genanskaffelsespriser!$D7-(2009-X$3)/$C8*Genanskaffelsespriser!$D7*X8)<0,0,(X8*Genanskaffelsespriser!$D7-(2009-X$3)/$C8*Genanskaffelsespriser!$D7*X8)) -> 0 | AV8: =IF((Y8*Genanskaffelsespriser!$D7-(2009-Y$3)/$C8*Genanskaffelsespriser!$D7*Y8)<0,0,(Y8*Genanskaffelsespriser!$D7-(2009-Y$3)/$C8*Genanskaffelsespriser!$D7*Y8)) -> 0 | AW8: =+SUM(AA8:AV8) -> 219812.89 | AX8: =VLOOKUP(D$3,Prisindeks!$A$1:$B$111,2,FALSE)/100*AA8 -> 0 | AY8: =VLOOKUP(E$3,Prisindeks!$A$1:$B$111,2,FALSE)/100*AB8 -> 0 | AZ8: =VLOOKUP(F$3,Prisindeks!$A$1:$B$111,2,FALSE)/100*AC8 -> 0 | BA8: =VLOOKUP(G$3,Prisindeks!$A$1:$B$111,2,FALSE)/100*AD8 -> 0 | BB8: =VLOOKUP(H$3,Prisindeks!$A$1:$B$111,2,FALSE)/100*AE8 -> 0 | BC8: =VLOOKUP(I$3,Prisindeks!$A$1:$B$111,2,FALSE)/100*AF8 -> 0 | BD8: =VLOOKUP(J$3,Prisindeks!$A$1:$B$111,2,FALSE)/100*AG8 -> 0 | BE8: =VLOOKUP(K$3,Prisindeks!$A$1:$B$111,2,FALSE)/100*AH8 -> 0 | BF8: =VLOOKUP(L$3,Prisindeks!$A$1:$B$111,2,FALSE)/100*AI8 -> 2825.218327 | BG8: =VLOOKUP(M$3,Prisindeks!$A$1:$B$111,2,FALSE)/100*AJ8 -> 28496.08932 | BH8: =VLOOKUP(N$3,Prisindeks!$A$1:$B$111,2,FALSE)/100*AK8 -> 91700.10667 | BI8: =VLOOKUP(O$3,Prisindeks!$A$1:$B$111,2,FALSE)/100*AL8 -> 29025.66388 | BJ8: =VLOOKUP(P$3,Prisindeks!$A$1:$B$111,2,FALSE)/100*AM8 -> 0 | BK8: =VLOOKUP(Q$3,Prisindeks!$A$1:$B$111,2,FALSE)/100*AN8 -> 0 | BL8: =VLOOKUP(R$3,Prisindeks!$A$1:$B$111,2,FALSE)/100*AO8 -> 0 | BM8: =VLOOKUP(S$3,Prisindeks!$A$1:$B$111,2,FALSE)/100*AP8 -> 0 | BN8: =VLOOKUP(T$3,Prisindeks!$A$1:$B$111,2,FALSE)/100*AQ8 -> 0 | BO8: =VLOOKUP(U$3,Prisindeks!$A$1:$B$111,2,FALSE)/100*AR8 -> 0 | BP8: =VLOOKUP(V$3,Prisindeks!$A$1:$B$111,2,FALSE)/100*AS8 -> 0 | BQ8: =VLOOKUP(W$3,Prisindeks!$A$1:$B$111,2,FALSE)/100*AT8 -> 0 | BR8: =VLOOKUP(X$3,Prisindeks!$A$1:$B$111,2,FALSE)/100*AU8 -> 0 | BS8: =VLOOKUP(Y$3,Prisindeks!$A$1:$B$111,2,FALSE)/100*AV8 -> 0 | BT8: =+SUM(AX8:BS8) -> 152047.0782 | BU8: =(AA8+AX8)/2 -> 0 | BV8: 0 | BW8: 0 | BX8: 0 | BY8: 0 | BZ8: 0 | CA8: 0 | CB8: 0 | CC8: 4410.057664 | CD8: 38227.63266 | CE8: =(AK8+BH8)/2 -> 110794.7708 | CF8: 32497.52294 | CG8: 0 | CH8: 0 | CI8: 0 | CJ8: 0 | CK8: 0 | CL8: 0 | CM8: 0 | CN8: 0 | CO8: =(AU8+BR8)/2 -> 0 | CP8: 0 | CQ8: =+AVERAGE(AW8,BT8) -> 185929.9841 | CR8: =SUM(D8:Y8) -> 10
A9: Instrumenter (flowmåler+tryk transducer+alarmer) | B9: stk. | C9: =Genanskaffelsespriser!E8 -> 10 | D9: 0 | E9: 0 | F9: 0 | G9: 0 | H9: 0 | I9: 0 | J9: 0 | K9: 0 | L9: 1 | M9: 3 | N9: 5 | O9: 1 | P9: 0 | Q9: 0 | R9: 0 | S9: 0 | T9: 0 | U9: 0 | V9: 0 | W9: 0 | X9: 0 | Y9: 0 | AA9: =IF((D9*Genanskaffelsespriser!$D8-(2009-D$3)/$C9*Genanskaffelsespriser!$D8*D9)<0,0,(D9*Genanskaffelsespriser!$D8-(2009-D$3)/$C9*Genanskaffelsespriser!$D8*D9)) -> 0 | AB9: =IF((E9*Genanskaffelsespriser!$D8-(2009-E$3)/$C9*Genanskaffelsespriser!$D8*E9)<0,0,(E9*Genanskaffelsespriser!$D8-(2009-E$3)/$C9*Genanskaffelsespriser!$D8*E9)) -> 0 | AC9: =IF((F9*Genanskaffelsespriser!$D8-(2009-F$3)/$C9*Genanskaffelsespriser!$D8*F9)<0,0,(F9*Genanskaffelsespriser!$D8-(2009-F$3)/$C9*Genanskaffelsespriser!$D8*F9)) -> 0 | AD9: =IF((G9*Genanskaffelsespriser!$D8-(2009-G$3)/$C9*Genanskaffelsespriser!$D8*G9)<0,0,(G9*Genanskaffelsespriser!$D8-(2009-G$3)/$C9*Genanskaffelsespriser!$D8*G9)) -> 0 | AE9: =IF((H9*Genanskaffelsespriser!$D8-(2009-H$3)/$C9*Genanskaffelsespriser!$D8*H9)<0,0,(H9*Genanskaffelsespriser!$D8-(2009-H$3)/$C9*Genanskaffelsespriser!$D8*H9)) -> 0 | AF9: =IF((I9*Genanskaffelsespriser!$D8-(2009-I$3)/$C9*Genanskaffelsespriser!$D8*I9)<0,0,(I9*Genanskaffelsespriser!$D8-(2009-I$3)/$C9*Genanskaffelsespriser!$D8*I9)) -> 0 | AG9: =IF((J9*Genanskaffelsespriser!$D8-(2009-J$3)/$C9*Genanskaffelsespriser!$D8*J9)<0,0,(J9*Genanskaffelsespriser!$D8-(2009-J$3)/$C9*Genanskaffelsespriser!$D8*J9)) -> 0 | AH9: =IF((K9*Genanskaffelsespriser!$D8-(2009-K$3)/$C9*Genanskaffelsespriser!$D8*K9)<0,0,(K9*Genanskaffelsespriser!$D8-(2009-K$3)/$C9*Genanskaffelsespriser!$D8*K9)) -> 0 | AI9: =IF((L9*Genanskaffelsespriser!$D8-(2009-L$3)/$C9*Genanskaffelsespriser!$D8*L9)<0,0,(L9*Genanskaffelsespriser!$D8-(2009-L$3)/$C9*Genanskaffelsespriser!$D8*L9)) -> 0 | AJ9: =IF((M9*Genanskaffelsespriser!$D8-(2009-M$3)/$C9*Genanskaffelsespriser!$D8*M9)<0,0,(M9*Genanskaffelsespriser!$D8-(2009-M$3)/$C9*Genanskaffelsespriser!$D8*M9)) -> 0 | AK9: =IF((N9*Genanskaffelsespriser!$D8-(2009-N$3)/$C9*Genanskaffelsespriser!$D8*N9)<0,0,(N9*Genanskaffelsespriser!$D8-(2009-N$3)/$C9*Genanskaffelsespriser!$D8*N9)) -> 0 | AL9: =IF((O9*Genanskaffelsespriser!$D8-(2009-O$3)/$C9*Genanskaffelsespriser!$D8*O9)<0,0,(O9*Genanskaffelsespriser!$D8-(2009-O$3)/$C9*Genanskaffelsespriser!$D8*O9)) -> 0 | AM9: =IF((P9*Genanskaffelsespriser!$D8-(2009-P$3)/$C9*Genanskaffelsespriser!$D8*P9)<0,0,(P9*Genanskaffelsespriser!$D8-(2009-P$3)/$C9*Genanskaffelsespriser!$D8*P9)) -> 0 | AN9: =IF((Q9*Genanskaffelsespriser!$D8-(2009-Q$3)/$C9*Genanskaffelsespriser!$D8*Q9)<0,0,(Q9*Genanskaffelsespriser!$D8-(2009-Q$3)/$C9*Genanskaffelsespriser!$D8*Q9)) -> 0 | AO9: =IF((R9*Genanskaffelsespriser!$D8-(2009-R$3)/$C9*Genanskaffelsespriser!$D8*R9)<0,0,(R9*Genanskaffelsespriser!$D8-(2009-R$3)/$C9*Genanskaffelsespriser!$D8*R9)) -> 0 | AP9: =IF((S9*Genanskaffelsespriser!$D8-(2009-S$3)/$C9*Genanskaffelsespriser!$D8*S9)<0,0,(S9*Genanskaffelsespriser!$D8-(2009-S$3)/$C9*Genanskaffelsespriser!$D8*S9)) -> 0 | AQ9: =IF((T9*Genanskaffelsespriser!$D8-(2009-T$3)/$C9*Genanskaffelsespriser!$D8*T9)<0,0,(T9*Genanskaffelsespriser!$D8-(2009-T$3)/$C9*Genanskaffelsespriser!$D8*T9)) -> 0 | AR9: =IF((U9*Genanskaffelsespriser!$D8-(2009-U$3)/$C9*Genanskaffelsespriser!$D8*U9)<0,0,(U9*Genanskaffelsespriser!$D8-(2009-U$3)/$C9*Genanskaffelsespriser!$D8*U9)) -> 0 | AS9: =IF((V9*Genanskaffelsespriser!$D8-(2009-V$3)/$C9*Genanskaffelsespriser!$D8*V9)<0,0,(V9*Genanskaffelsespriser!$D8-(2009-V$3)/$C9*Genanskaffelsespriser!$D8*V9)) -> 0 | AT9: =IF((W9*Genanskaffelsespriser!$D8-(2009-W$3)/$C9*Genanskaffelsespriser!$D8*W9)<0,0,(W9*Genanskaffelsespriser!$D8-(2009-W$3)/$C9*Genanskaffelsespriser!$D8*W9)) -> 0 | AU9: =IF((X9*Genanskaffelsespriser!$D8-(2009-X$3)/$C9*Genanskaffelsespriser!$D8*X9)<0,0,(X9*Genanskaffelsespriser!$D8-(2009-X$3)/$C9*Genanskaffelsespriser!$D8*X9)) -> 0 | AV9: =IF((Y9*Genanskaffelsespriser!$D8-(2009-Y$3)/$C9*Genanskaffelsespriser!$D8*Y9)<0,0,(Y9*Genanskaffelsespriser!$D8-(2009-Y$3)/$C9*Genanskaffelsespriser!$D8*Y9)) -> 0 | AW9: =+SUM(AA9:AV9) -> 0 | AX9: =VLOOKUP(D$3,Prisindeks!$A$1:$B$111,2,FALSE)/100*AA9 -> 0 | AY9: =VLOOKUP(E$3,Prisindeks!$A$1:$B$111,2,FALSE)/100*AB9 -> 0 | AZ9: =VLOOKUP(F$3,Prisindeks!$A$1:$B$111,2,FALSE)/100*AC9 -> 0 | BA9: =VLOOKUP(G$3,Prisindeks!$A$1:$B$111,2,FALSE)/100*AD9 -> 0 | BB9: =VLOOKUP(H$3,Prisindeks!$A$1:$B$111,2,FALSE)/100*AE9 -> 0 | BC9: =VLOOKUP(I$3,Prisindeks!$A$1:$B$111,2,FALSE)/100*AF9 -> 0 | BD9: =VLOOKUP(J$3,Prisindeks!$A$1:$B$111,2,FALSE)/100*AG9 -> 0 | BE9: =VLOOKUP(K$3,Prisindeks!$A$1:$B$111,2,FALSE)/100*AH9 -> 0 | BF9: =VLOOKUP(L$3,Prisindeks!$A$1:$B$111,2,FALSE)/100*AI9 -> 0 | BG9: =VLOOKUP(M$3,Prisindeks!$A$1:$B$111,2,FALSE)/100*AJ9 -> 0 | BH9: =VLOOKUP(N$3,Prisindeks!$A$1:$B$111,2,FALSE)/100*AK9 -> 0 | BI9: =VLOOKUP(O$3,Prisindeks!$A$1:$B$111,2,FALSE)/100*AL9 -> 0 | BJ9: =VLOOKUP(P$3,Prisindeks!$A$1:$B$111,2,FALSE)/100*AM9 -> 0 | BK9: =VLOOKUP(Q$3,Prisindeks!$A$1:$B$111,2,FALSE)/100*AN9 -> 0 | BL9: =VLOOKUP(R$3,Prisindeks!$A$1:$B$111,2,FALSE)/100*AO9 -> 0 | BM9: =VLOOKUP(S$3,Prisindeks!$A$1:$B$111,2,FALSE)/100*AP9 -> 0 | BN9: =VLOOKUP(T$3,Prisindeks!$A$1:$B$111,2,FALSE)/100*AQ9 -> 0 | BO9: =VLOOKUP(U$3,Prisindeks!$A$1:$B$111,2,FALSE)/100*AR9 -> 0 | BP9: =VLOOKUP(V$3,Prisindeks!$A$1:$B$111,2,FALSE)/100*AS9 -> 0 | BQ9: =VLOOKUP(W$3,Prisindeks!$A$1:$B$111,2,FALSE)/100*AT9 -> 0 | BR9: =VLOOKUP(X$3,Prisindeks!$A$1:$B$111,2,FALSE)/100*AU9 -> 0 | BS9: =VLOOKUP(Y$3,Prisindeks!$A$1:$B$111,2,FALSE)/100*AV9 -> 0 | BT9: =+SUM(AX9:BS9) -> 0 | BU9: 0 | BV9: 0 | BW9: 0 | BX9: 0 | BY9: 0 | BZ9: 0 | CA9: 0 | CB9: 0 | CC9: 0 | CD9: 0 | CE9: 0 | CF9: 0 | CG9: 0 | CH9: 0 | CI9: 0 | CJ9: 0 | CK9: 0 | CL9: 0 | CM9: 0 | CN9: 0 | CO9: 0 | CP9: 0 | CQ9: 0 | CR9: 10
A10: Pumpe inkl. stigrør og forerørsforsejlinger mv. - 1 | B10: m³/h | C10: =Genanskaffelsespriser!E9 -> 15 | D10: 0 | E10: 0 | F10: 0 | G10: 0 | H10: 0 | I10: 0 | J10: 0 | K10: 0 | L10: 36 | M10: 0 | N10: 0 | O10: 0 | P10: 0 | Q10: 0 | R10: 0 | S10: 0 | T10: 0 | U10: 0 | V10: 0 | W10: 0 | X10: 0 | Y10: 0 | Z10: =IF(COUNTIF(D10:Y10,"<>0")<=1,IF((SUM(D10:Y10))=0,0,(+HLOOKUP((SUM(D10:Y10)),Priser!$E$54:$J$56,2)+((SUM(D10:Y10))-HLOOKUP((SUM(D10:Y10)),Priser!$E$54:$J$56,1))*HLOOKUP((SUM(D10:Y10)),Priser!$E$54:$J$56,3))/(SUM(D10:Y10)))*(1+Genanskaffelsespriser!$D$196),$A$1359) -> 2373.311246 | AA10: =IF((D10*$Z10-(2009-D$3)/$C10*$Z10*D10)<0,0,(D10*$Z10-(2009-D$3)/$C10*$Z10*D10)) -> 0 | AB10: =IF((E10*$Z10-(2009-E$3)/$C10*$Z10*E10)<0,0,(E10*$Z10-(2009-E$3)/$C10*$Z10*E10)) -> 0 | AC10: 0 | AD10: 0 | AE10: 0 | AF10: 0 | AG10: 0 | AH10: 0 | AI10: 0 | AJ10: 0 | AK10: 0 | AL10: 0 | AM10: 0 | AN10: 0 | AO10: 0 | AP10: 0 | AQ10: 0 | AR10: 0 | AS10: 0 | AT10: 0 | AU10: 0 | AV10: 0 | AW10: =+SUM(AA10:AV10) -> 0 | AX10: =VLOOKUP(D$3,Prisindeks!$A$1:$B$111,2,FALSE)/100*AA10 -> 0 | AY10: =VLOOKUP(E$3,Prisindeks!$A$1:$B$111,2,FALSE)/100*AB10 -> 0 | AZ10: =VLOOKUP(F$3,Prisindeks!$A$1:$B$111,2,FALSE)/100*AC10 -> 0 | BA10: =VLOOKUP(G$3,Prisindeks!$A$1:$B$111,2,FALSE)/100*AD10 -> 0 | BB10: =VLOOKUP(H$3,Prisindeks!$A$1:$B$111,2,FALSE)/100*AE10 -> 0 | BC10: =VLOOKUP(I$3,Prisindeks!$A$1:$B$111,2,FALSE)/100*AF10 -> 0 | BD10: =VLOOKUP(J$3,Prisindeks!$A$1:$B$111,2,FALSE)/100*AG10 -> 0 | BE10: =VLOOKUP(K$3,Prisindeks!$A$1:$B$111,2,FALSE)/100*AH10 -> 0 | BF10: =VLOOKUP(L$3,Prisindeks!$A$1:$B$111,2,FALSE)/100*AI10 -> 0 | BG10: =VLOOKUP(M$3,Prisindeks!$A$1:$B$111,2,FALSE)/100*AJ10 -> 0 | BH10: =VLOOKUP(N$3,Prisindeks!$A$1:$B$111,2,FALSE)/100*AK10 -> 0 | BI10: =VLOOKUP(O$3,Prisindeks!$A$1:$B$111,2,FALSE)/100*AL10 -> 0 | BJ10: =VLOOKUP(P$3,Prisindeks!$A$1:$B$111,2,FALSE)/100*AM10 -> 0 | BK10: =VLOOKUP(Q$3,Prisindeks!$A$1:$B$111,2,FALSE)/100*AN10 -> 0 | BL10: =VLOOKUP(R$3,Prisindeks!$A$1:$B$111,2,FALSE)/100*AO10 -> 0 | BM10: =VLOOKUP(S$3,Prisindeks!$A$1:$B$111,2,FALSE)/100*AP10 -> 0 | BN10: =VLOOKUP(T$3,Prisindeks!$A$1:$B$111,2,FALSE)/100*AQ10 -> 0 | BO10: =VLOOKUP(U$3,Prisindeks!$A$1:$B$111,2,FALSE)/100*AR10 -> 0 | BP10: =VLOOKUP(V$3,Prisindeks!$A$1:$B$111,2,FALSE)/100*AS10 -> 0 | BQ10: =VLOOKUP(W$3,Prisindeks!$A$1:$B$111,2,FALSE)/100*AT10 -> 0 | BR10: =VLOOKUP(X$3,Prisindeks!$A$1:$B$111,2,FALSE)/100*AU10 -> 0 | BS10: =VLOOKUP(Y$3,Prisindeks!$A$1:$B$111,2,FALSE)/100*AV10 -> 0 | BT10: =+SUM(AX10:BS10) -> 0 | BU10: 0 | BV10: 0 | BW10: 0 | BX10: 0 | BY10: 0 | BZ10: 0 | CA10: 0 | CB10: 0 | CC10: 0 | CD10: 0 | CE10: 0 | CF10: 0 | CG10: 0 | CH10: 0 | CI10: 0 | CJ10: 0 | CK10: 0 | CL10: 0 | CM10: 0 | CN10: 0 | CO10: 0 | CP10: 0 | CQ10: 0 | CR10: 36
A11: Pumpe inkl. stigrør og forerørsforsejlinger mv. - 2 | B11: m³/h | C11: =Genanskaffelsespriser!E9 -> 15 | D11: 0 | E11: 0 | F11: 0 | G11: 0 | H11: 0 | I11: 0 | J11: 0 | K11: 0 | L11: 0 | M11: 18 | N11: 0 | O11: 0 | P11: 0 | Q11: 0 | R11: 0 | S11: 0 | T11: 0 | U11: 0 | V11: 0 | W11: 0 | X11: 0 | Y11: 0 | Z11: =IF(COUNTIF(D11:Y11,"<>0")<=1,IF((SUM(D11:Y11))=0,0,(+HLOOKUP((SUM(D11:Y11)),Priser!$E$54:$J$56,2)+((SUM(D11:Y11))-HLOOKUP((SUM(D11:Y11)),Priser!$E$54:$J$56,1))*HLOOKUP((SUM(D11:Y11)),Priser!$E$54:$J$56,3))/(SUM(D11:Y11)))*(1+Genanskaffelsespriser!$D$196),$A$1359) -> 3410.381347 | AA11: =IF((D11*$Z11-(2009-D$3)/$C11*$Z11*D11)<0,0,(D11*$Z11-(2009-D$3)/$C11*$Z11*D11)) -> 0 | AB11: =IF((E11*$Z11-(2009-E$3)/$C11*$Z11*E11)<0,0,(E11*$Z11-(2009-E$3)/$C11*$Z11*E11)) -> 0 | AC11: =IF((F11*$Z11-(2009-F$3)/$C11*$Z11*F11)<0,0,(F11*$Z11-(2009-F$3)/$C11*$Z11*F11)) -> 0 | AD11: =IF((G11*$Z11-(2009-G$3)/$C11*$Z11*G11)<0,0,(G11*$Z11-(2009-G$3)/$C11*$Z11*G11)) -> 0 | AE11: =IF((H11*$Z11-(2009-H$3)/$C11*$Z11*H11)<0,0,(H11*$Z11-(2009-H$3)/$C11*$Z11*H11)) -> 0 | AF11: =IF((I11*$Z11-(2009-I$3)/$C11*$Z11*I11)<0,0,(I11*$Z11-(2009-I$3)/$C11*$Z11*I11)) -> 0 | AG11: =IF((J11*$Z11-(2009-J$3)/$C11*$Z11*J11)<0,0,(J11*$Z11-(2009-J$3)/$C11*$Z11*J11)) -> 0 | AH11: =IF((K11*$Z11-(2009-K$3)/$C11*$Z11*K11)<0,0,(K11*$Z11-(2009-K$3)/$C11*$Z11*K11)) -> 0 | AI11: =IF((L11*$Z11-(2009-L$3)/$C11*$Z11*L11)<0,0,(L11*$Z11-(2009-L$3)/$C11*$Z11*L11)) -> 0 | AJ11: =IF((M11*$Z11-(2009-M$3)/$C11*$Z11*M11)<0,0,(M11*$Z11-(2009-M$3)/$C11*$Z11*M11)) -> 0 | AK11: =IF((N11*$Z11-(2009-N$3)/$C11*$Z11*N11)<0,0,(N11*$Z11-(2009-N$3)/$C11*$Z11*N11)) -> 0 | AL11: =IF((O11*$Z11-(2009-O$3)/$C11*$Z11*O11)<0,0,(O11*$Z11-(2009-O$3)/$C11*$Z11*O11)) -> 0 | AM11: =IF((P11*$Z11-(2009-P$3)/$C11*$Z11*P11)<0,0,(P11*$Z11-(2009-P$3)/$C11*$Z11*P11)) -> 0 | AN11: =IF((Q11*$Z11-(2009-Q$3)/$C11*$Z11*Q11)<0,0,(Q11*$Z11-(2009-Q$3)/$C11*$Z11*Q11)) -> 0 | AO11: =IF((R11*$Z11-(2009-R$3)/$C11*$Z11*R11)<0,0,(R11*$Z11-(2009-R$3)/$C11*$Z11*R11)) -> 0 | AP11: =IF((S11*$Z11-(2009-S$3)/$C11*$Z11*S11)<0,0,(S11*$Z11-(2009-S$3)/$C11*$Z11*S11)) -> 0 | AQ11: =IF((T11*$Z11-(2009-T$3)/$C11*$Z11*T11)<0,0,(T11*$Z11-(2009-T$3)/$C11*$Z11*T11)) -> 0 | AR11: =IF((U11*$Z11-(2009-U$3)/$C11*$Z11*U11)<0,0,(U11*$Z11-(2009-U$3)/$C11*$Z11*U11)) -> 0 | AS11: =IF((V11*$Z11-(2009-V$3)/$C11*$Z11*V11)<0,0,(V11*$Z11-(2009-V$3)/$C11*$Z11*V11)) -> 0 | AT11: =IF((W11*$Z11-(2009-W$3)/$C11*$Z11*W11)<0,0,(W11*$Z11-(2009-W$3)/$C11*$Z11*W11)) -> 0 | AU11: =IF((X11*$Z11-(2009-X$3)/$C11*$Z11*X11)<0,0,(X11*$Z11-(2009-X$3)/$C11*$Z11*X11)) -> 0 | AV11: =IF((Y11*$Z11-(2009-Y$3)/$C11*$Z11*Y11)<0,0,(Y11*$Z11-(2009-Y$3)/$C11*$Z11*Y11)) -> 0 | AW11: =+SUM(AA11:AV11) -> 0 | AX11: =VLOOKUP(D$3,Prisindeks!$A$1:$B$111,2,FALSE)/100*AA11 -> 0 | AY11: =VLOOKUP(E$3,Prisindeks!$A$1:$B$111,2,FALSE)/100*AB11 -> 0 | AZ11: =VLOOKUP(F$3,Prisindeks!$A$1:$B$111,2,FALSE)/100*AC11 -> 0 | BA11: =VLOOKUP(G$3,Prisindeks!$A$1:$B$111,2,FALSE)/100*AD11 -> 0 | BB11: =VLOOKUP(H$3,Prisindeks!$A$1:$B$111,2,FALSE)/100*AE11 -> 0 | BC11: =VLOOKUP(I$3,Prisindeks!$A$1:$B$111,2,FALSE)/100*AF11 -> 0 | BD11: =VLOOKUP(J$3,Prisindeks!$A$1:$B$111,2,FALSE)/100*AG11 -> 0 | BE11: =VLOOKUP(K$3,Prisindeks!$A$1:$B$111,2,FALSE)/100*AH11 -> 0 | BF11: =VLOOKUP(L$3,Prisindeks!$A$1:$B$111,2,FALSE)/100*AI11 -> 0 | BG11: =VLOOKUP(M$3,Prisindeks!$A$1:$B$111,2,FALSE)/100*AJ11 -> 0 | BH11: =VLOOKUP(N$3,Prisindeks!$A$1:$B$111,2,FALSE)/100*AK11 -> 0 | BI11: =VLOOKUP(O$3,Prisindeks!$A$1:$B$111,2,FALSE)/100*AL11 -> 0 | BJ11: =VLOOKUP(P$3,Prisindeks!$A$1:$B$111,2,FALSE)/100*AM11 -> 0 | BK11: =VLOOKUP(Q$3,Prisindeks!$A$1:$B$111,2,FALSE)/100*AN11 -> 0 | BL11: =VLOOKUP(R$3,Prisindeks!$A$1:$B$111,2,FALSE)/100*AO11 -> 0 | BM11: =VLOOKUP(S$3,Prisindeks!$A$1:$B$111,2,FALSE)/100*AP11 -> 0 | BN11: =VLOOKUP(T$3,Prisindeks!$A$1:$B$111,2,FALSE)/100*AQ11 -> 0 | BO11: =VLOOKUP(U$3,Prisindeks!$A$1:$B$111,2,FALSE)/100*AR11 -> 0 | BP11: =VLOOKUP(V$3,Prisindeks!$A$1:$B$111,2,FALSE)/100*AS11 -> 0 | BQ11: =VLOOKUP(W$3,Prisindeks!$A$1:$B$111,2,FALSE)/100*AT11 -> 0 | BR11: =VLOOKUP(X$3,Prisindeks!$A$1:$B$111,2,FALSE)/100*AU11 -> 0 | BS11: =VLOOKUP(Y$3,Prisindeks!$A$1:$B$111,2,FALSE)/100*AV11 -> 0 | BT11: =+SUM(AX11:BS11) -> 0 | BU11: 0 | BV11: 0 | BW11: 0 | BX11: 0 | BY11: 0 | BZ11: 0 | CA11: 0 | CB11: 0 | CC11: 0 | CD11: 0 | CE11: 0 | CF11: 0 | CG11: 0 | CH11: 0 | CI11: 0 | CJ11: 0 | CK11: 0 | CL11: 0 | CM11: 0 | CN11: 0 | CO11: 0 | CP11: 0 | CQ11: =+AVERAGE(AW11,BT11) -> 0 | CR11: 18
A12: Pumpe inkl. stigrør og forerørsforsejlinger mv. - 3 | B12: m³/h | C12: =Genanskaffelsespriser!E9 -> 15 | D12: 0 | E12: 0 | F12: 0 | G12: 0 | H12: 0 | I12: 0 | J12: 0 | K12: 0 | L12: 0 | M12: 39 | N12: 0 | O12: 0 | P12: 0 | Q12: 0 | R12: 0 | S12: 0 | T12: 0 | U12: 0 | V12: 0 | W12: 0 | X12: 0 | Y12: 0 | Z12: =IF(COUNTIF(D12:Y12,"<>0")<=1,IF((SUM(D12:Y12))=0,0,(+HLOOKUP((SUM(D12:Y12)),Priser!$E$54:$J$56,2)+((SUM(D12:Y12))-HLOOKUP((SUM(D12:Y12)),Priser!$E$54:$J$56,1))*HLOOKUP((SUM(D12:Y12)),Priser!$E$54:$J$56,3))/(SUM(D12:Y12)))*(1+Genanskaffelsespriser!$D$196),$A$1359) -> 2260.449537 | AA12: 0 | AB12: 0 | AC12: 0 | AD12: 0 | AE12: 0 | AF12: 0 | AG12: 0 | AH12: 0 | AI12: 0 | AJ12: 0 | AK12: 0 | AL12: 0 | AM12: 0 | AN12: 0 | AO12: 0 | AP12: 0 | AQ12: 0 | AR12: 0 | AS12: 0 | AT12: 0 | AU12: 0 | AV12: 0 | AW12: =+SUM(AA12:AV12) -> 0 | AX12: =VLOOKUP(D$3,Prisindeks!$A$1:$B$111,2,FALSE)/100*AA12 -> 0 | AY12: =VLOOKUP(E$3,Prisindeks!$A$1:$B$111,2,FALSE)/100*AB12 -> 0 | AZ12: =VLOOKUP(F$3,Prisindeks!$A$1:$B$111,2,FALSE)/100*AC12 -> 0 | BA12: =VLOOKUP(G$3,Prisindeks!$A$1:$B$111,2,FALSE)/100*AD12 -> 0 | BB12: =VLOOKUP(H$3,Prisindeks!$A$1:$B$111,2,FALSE)/100*AE12 -> 0 | BC12: =VLOOKUP(I$3,Prisindeks!$A$1:$B$111,2,FALSE)/100*AF12 -> 0 | BD12: =VLOOKUP(J$3,Prisindeks!$A$1:$B$111,2,FALSE)/100*AG12 -> 0 | BE12: =VLOOKUP(K$3,Prisindeks!$A$1:$B$111,2,FALSE)/100*AH12 -> 0 | BF12: =VLOOKUP(L$3,Prisindeks!$A$1:$B$111,2,FALSE)/100*AI12 -> 0 | BG12: =VLOOKUP(M$3,Prisindeks!$A$1:$B$111,2,FALSE)/100*AJ12 -> 0 | BH12: =VLOOKUP(N$3,Prisindeks!$A$1:$B$111,2,FALSE)/100*AK12 -> 0 | BI12: =VLOOKUP(O$3,Prisindeks!$A$1:$B$111,2,FALSE)/100*AL12 -> 0 | BJ12: =VLOOKUP(P$3,Prisindeks!$A$1:$B$111,2,FALSE)/100*AM12 -> 0 | BK12: =VLOOKUP(Q$3,Prisindeks!$A$1:$B$111,2,FALSE)/100*AN12 -> 0 | BL12: =VLOOKUP(R$3,Prisindeks!$A$1:$B$111,2,FALSE)/100*AO12 -> 0 | BM12: =VLOOKUP(S$3,Prisindeks!$A$1:$B$111,2,FALSE)/100*AP12 -> 0 | BN12: =VLOOKUP(T$3,Prisindeks!$A$1:$B$111,2,FALSE)/100*AQ12 -> 0 | BO12: =VLOOKUP(U$3,Prisindeks!$A$1:$B$111,2,FALSE)/100*AR12 -> 0 | BP12: =VLOOKUP(V$3,Prisindeks!$A$1:$B$111,2,FALSE)/100*AS12 -> 0 | BQ12: =VLOOKUP(W$3,Prisindeks!$A$1:$B$111,2,FALSE)/100*AT12 -> 0 | BR12: =VLOOKUP(X$3,Prisindeks!$A$1:$B$111,2,FALSE)/100*AU12 -> 0 | BS12: =VLOOKUP(Y$3,Prisindeks!$A$1:$B$111,2,FALSE)/100*AV12 -> 0 | BT12: =+SUM(AX12:BS12) -> 0 | BU12: =(AA12+AX12)/2 -> 0 | BV12: =(AB12+AY12)/2 -> 0 | BW12: =(AC12+AZ12)/2 -> 0 | BX12: =(AD12+BA12)/2 -> 0 | BY12: =(AE12+BB12)/2 -> 0 | BZ12: =(AF12+BC12)/2 -> 0 | CA12: =(AG12+BD12)/2 -> 0 | CB12: =(AH12+BE12)/2 -> 0 | CC12: =(AI12+BF12)/2 -> 0 | CD12: =(AJ12+BG12)/2 -> 0 | CE12: =(AK12+BH12)/2 -> 0 | CF12: =(AL12+BI12)/2 -> 0 | CG12: =(AM12+BJ12)/2 -> 0 | CH12: =(AN12+BK12)/2 -> 0 | CI12: =(AO12+BL12)/2 -> 0 | CJ12: =(AP12+BM12)/2 -> 0 | CK12: =(AQ12+BN12)/2 -> 0 | CL12: =(AR12+BO12)/2 -> 0 | CM12: =(AS12+BP12)/2 -> 0 | CN12: =(AT12+BQ12)/2 -> 0 | CO12: =(AU12+BR12)/2 -> 0 | CP12: =(AV12+BS12)/2 -> 0 | CQ12: =+AVERAGE(AW12,BT12) -> 0 | CR12: 39
A13: Pumpe inkl. stigrør og forerørsforsejlinger mv. - 4 | B13: m³/h | C13: =Genanskaffelsespriser!E9 -> 15 | D13: 0 | E13: 0 | F13: 0 | G13: 0 | H13: 0 | I13: 0 | J13: 0 | K13: 0 | L13: 0 | M13: 0 | N13: 39 | O13: 0 | P13: 0 | Q13: 0 | R13: 0 | S13: 0 | T13: 0 | U13: 0 | V13: 0 | W13: 0 | X13: 0 | Y13: 0 | Z13: =IF(COUNTIF(D13:Y13,"<>0")<=1,IF((SUM(D13:Y13))=0,0,(+HLOOKUP((SUM(D13:Y13)),Priser!$E$54:$J$56,2)+((SUM(D13:Y13))-HLOOKUP((SUM(D13:Y13)),Priser!$E$54:$J$56,1))*HLOOKUP((SUM(D13:Y13)),Priser!$E$54:$J$56,3))/(SUM(D13:Y13)))*(1+Genanskaffelsespriser!$D$196),$A$1359) -> 2260.449537 | AA13: 0 | AB13: 0 | AC13: 0 | AD13: 0 | AE13: 0 | AF13: 0 | AG13: 0 | AH13: 0 | AI13: 0 | AJ13: 0 | AK13: 0 | AL13: 0 | AM13: 0 | AN13: 0 | AO13: 0 | AP13: 0 | AQ13: 0 | AR13: 0 | AS13: 0 | AT13: 0 | AU13: 0 | AV13: 0 | AW13: 0 | AX13: =VLOOKUP(D$3,Prisindeks!$A$1:$B$111,2,FALSE)/100*AA13 -> 0 | AY13: =VLOOKUP(E$3,Prisindeks!$A$1:$B$111,2,FALSE)/100*AB13 -> 0 | AZ13: =VLOOKUP(F$3,Prisindeks!$A$1:$B$111,2,FALSE)/100*AC13 -> 0 | BA13: =VLOOKUP(G$3,Prisindeks!$A$1:$B$111,2,FALSE)/100*AD13 -> 0 | BB13: =VLOOKUP(H$3,Prisindeks!$A$1:$B$111,2,FALSE)/100*AE13 -> 0 | BC13: =VLOOKUP(I$3,Prisindeks!$A$1:$B$111,2,FALSE)/100*AF13 -> 0 | BD13: =VLOOKUP(J$3,Prisindeks!$A$1:$B$111,2,FALSE)/100*AG13 -> 0 | BE13: =VLOOKUP(K$3,Prisindeks!$A$1:$B$111,2,FALSE)/100*AH13 -> 0 | BF13: =VLOOKUP(L$3,Prisindeks!$A$1:$B$111,2,FALSE)/100*AI13 -> 0 | BG13: =VLOOKUP(M$3,Prisindeks!$A$1:$B$111,2,FALSE)/100*AJ13 -> 0 | BH13: =VLOOKUP(N$3,Prisindeks!$A$1:$B$111,2,FALSE)/100*AK13 -> 0 | BI13: =VLOOKUP(O$3,Prisindeks!$A$1:$B$111,2,FALSE)/100*AL13 -> 0 | BJ13: =VLOOKUP(P$3,Prisindeks!$A$1:$B$111,2,FALSE)/100*AM13 -> 0 | BK13: =VLOOKUP(Q$3,Prisindeks!$A$1:$B$111,2,FALSE)/100*AN13 -> 0 | BL13: =VLOOKUP(R$3,Prisindeks!$A$1:$B$111,2,FALSE)/100*AO13 -> 0 | BM13: =VLOOKUP(S$3,Prisindeks!$A$1:$B$111,2,FALSE)/100*AP13 -> 0 | BN13: =VLOOKUP(T$3,Prisindeks!$A$1:$B$111,2,FALSE)/100*AQ13 -> 0 | BO13: =VLOOKUP(U$3,Prisindeks!$A$1:$B$111,2,FALSE)/100*AR13 -> 0 | BP13: =VLOOKUP(V$3,Prisindeks!$A$1:$B$111,2,FALSE)/100*AS13 -> 0 | BQ13: =VLOOKUP(W$3,Prisindeks!$A$1:$B$111,2,FALSE)/100*AT13 -> 0 | BR13: =VLOOKUP(X$3,Prisindeks!$A$1:$B$111,2,FALSE)/100*AU13 -> 0 | BS13: =VLOOKUP(Y$3,Prisindeks!$A$1:$B$111,2,FALSE)/100*AV13 -> 0 | BT13: 0 | BU13: 0 | BV13: 0 | BW13: 0 | BX13: 0 | BY13: 0 | BZ13: 0 | CA13: 0 | CB13: 0 | CC13: 0 | CD13: 0 | CE13: 0 | CF13: 0 | CG13: 0 | CH13: 0 | CI13: 0 | CJ13: 0 | CK13: 0 | CL13: 0 | CM13: 0 | CN13: 0 | CO13: 0 | CP13: 0 | CQ13: 0 | CR13: 39
A14: Pumpe inkl. stigrør og forerørsforsejlinger mv. - 5 | B14: m³/h | C14: =Genanskaffelsespriser!E9 -> 15 | D14: 0 | E14: 0 | F14: 0 | G14: 0 | H14: 0 | I14: 0 | J14: 0 | K14: 0 | L14: 0 | M14: 0 | N14: 47 | O14: 0 | P14: 0 | Q14: 0 | R14: 0 | S14: 0 | T14: 0 | U14: 0 | V14: 0 | W14: 0 | X14: 0 | Y14: 0 | Z14: =IF(COUNTIF(D14:Y14,"<>0")<=1,IF((SUM(D14:Y14))=0,0,(+HLOOKUP((SUM(D14:Y14)),Priser!$E$54:$J$56,2)+((SUM(D14:Y14))-HLOOKUP((SUM(D14:Y14)),Priser!$E$54:$J$56,1))*HLOOKUP((SUM(D14:Y14)),Priser!$E$54:$J$56,3))/(SUM(D14:Y14)))*(1+Genanskaffelsespriser!$D$196),$A$1359) -> 2026.374512 | AA14: 0 | AB14: 0 | AC14: 0 | AD14: 0 | AE14: 0 | AF14: 0 | AG14: 0 | AH14: 0 | AI14: 0 | AJ14: 0 | AK14: 0 | AL14: 0 | AM14: 0 | AN14: 0 | AO14: 0 | AP14: 0 | AQ14: 0 | AR14: 0 | AS14: 0 | AT14: 0 | AU14: 0 | AV14: 0 | AW14: 0 | AX14: =VLOOKUP(D$3,Prisindeks!$A$1:$B$111,2,FALSE)/100*AA14 -> 0 | AY14: =VLOOKUP(E$3,Prisindeks!$A$1:$B$111,2,FALSE)/100*AB14 -> 0 | AZ14: =VLOOKUP(F$3,Prisindeks!$A$1:$B$111,2,FALSE)/100*AC14 -> 0 | BA14: =VLOOKUP(G$3,Prisindeks!$A$1:$B$111,2,FALSE)/100*AD14 -> 0 | BB14: =VLOOKUP(H$3,Prisindeks!$A$1:$B$111,2,FALSE)/100*AE14 -> 0 | BC14: =VLOOKUP(I$3,Prisindeks!$A$1:$B$111,2,FALSE)/100*AF14 -> 0 | BD14: =VLOOKUP(J$3,Prisindeks!$A$1:$B$111,2,FALSE)/100*AG14 -> 0 | BE14: =VLOOKUP(K$3,Prisindeks!$A$1:$B$111,2,FALSE)/100*AH14 -> 0 | BF14: =VLOOKUP(L$3,Prisindeks!$A$1:$B$111,2,FALSE)/100*AI14 -> 0 | BG14: =VLOOKUP(M$3,Prisindeks!$A$1:$B$111,2,FALSE)/100*AJ14 -> 0 | BH14: =VLOOKUP(N$3,Prisindeks!$A$1:$B$111,2,FALSE)/100*AK14 -> 0 | BI14: =VLOOKUP(O$3,Prisindeks!$A$1:$B$111,2,FALSE)/100*AL14 -> 0 | BJ14: =VLOOKUP(P$3,Prisindeks!$A$1:$B$111,2,FALSE)/100*AM14 -> 0 | BK14: =VLOOKUP(Q$3,Prisindeks!$A$1:$B$111,2,FALSE)/100*AN14 -> 0 | BL14: =VLOOKUP(R$3,Prisindeks!$A$1:$B$111,2,FALSE)/100*AO14 -> 0 | BM14: =VLOOKUP(S$3,Prisindeks!$A$1:$B$111,2,FALSE)/100*AP14 -> 0 | BN14: =VLOOKUP(T$3,Prisindeks!$A$1:$B$111,2,FALSE)/100*AQ14 -> 0 | BO14: =VLOOKUP(U$3,Prisindeks!$A$1:$B$111,2,FALSE)/100*AR14 -> 0 | BP14: =VLOOKUP(V$3,Prisindeks!$A$1:$B$111,2,FALSE)/100*AS14 -> 0 | BQ14: =VLOOKUP(W$3,Prisindeks!$A$1:$B$111,2,FALSE)/100*AT14 -> 0 | BR14: =VLOOKUP(X$3,Prisindeks!$A$1:$B$111,2,FALSE)/100*AU14 -> 0 | BS14: =VLOOKUP(Y$3,Prisindeks!$A$1:$B$111,2,FALSE)/100*AV14 -> 0 | BT14: 0 | BU14: 0 | BV14: 0 | BW14: 0 | BX14: 0 | BY14: 0 | BZ14: 0 | CA14: 0 | CB14: 0 | CC14: 0 | CD14: 0 | CE14: 0 | CF14: 0 | CG14: 0 | CH14: 0 | CI14: 0 | CJ14: 0 | CK14: 0 | CL14: 0 | CM14: 0 | CN14: 0 | CO14: 0 | CP14: 0 | CQ14: 0 | CR14: 47
A15: Pumpe inkl. stigrør og forerørsforsejlinger mv. - 6 | B15: m³/h | C15: =Genanskaffelsespriser!E9 -> 15 | D15: 0 | E15: 0 | F15: 0 | G15: 0 | H15: 0 | I15: 0 | J15: 0 | K15: 0 | L15: 0 | M15: 0 | N15: 42 | O15: 0 | P15: 0 | Q15: 0 | R15: 0 | S15: 0 | T15: 0 | U15: 0 | V15: 0 | W15: 0 | X15: 0 | Y15: 0 | Z15: =IF(COUNTIF(D15:Y15,"<>0")<=1,IF((SUM(D15:Y15))=0,0,(+HLOOKUP((SUM(D15:Y15)),Priser!$E$54:$J$56,2)+((SUM(D15:Y15))-HLOOKUP((SUM(D15:Y15)),Priser!$E$54:$J$56,1))*HLOOKUP((SUM(D15:Y15)),Priser!$E$54:$J$56,3))/(SUM(D15:Y15)))*(1+Genanskaffelsespriser!$D$196),$A$1359) -> 2163.710929 | AA15: 0 | AB15: 0 | AC15: 0 | AD15: 0 | AE15: 0 | AF15: 0 | AG15: 0 | AH15: 0 | AI15: 0 | AJ15: 0 | AK15: 0 | AL15: 0 | AM15: 0 | AN15: 0 | AO15: 0 | AP15: 0 | AQ15: 0 | AR15: 0 | AS15: 0 | AT15: 0 | AU15: 0 | AV15: 0 | AW15: 0 | AX15: =VLOOKUP(D$3,Prisindeks!$A$1:$B$111,2,FALSE)/100*AA15 -> 0 | AY15: =VLOOKUP(E$3,Prisindeks!$A$1:$B$111,2,FALSE)/100*AB15 -> 0 | AZ15: =VLOOKUP(F$3,Prisindeks!$A$1:$B$111,2,FALSE)/100*AC15 -> 0 | BA15: =VLOOKUP(G$3,Prisindeks!$A$1:$B$111,2,FALSE)/100*AD15 -> 0 | BB15: =VLOOKUP(H$3,Prisindeks!$A$1:$B$111,2,FALSE)/100*AE15 -> 0 | BC15: =VLOOKUP(I$3,Prisindeks!$A$1:$B$111,2,FALSE)/100*AF15 -> 0 | BD15: =VLOOKUP(J$3,Prisindeks!$A$1:$B$111,2,FALSE)/100*AG15 -> 0 | BE15: =VLOOKUP(K$3,Prisindeks!$A$1:$B$111,2,FALSE)/100*AH15 -> 0 | BF15: =VLOOKUP(L$3,Prisindeks!$A$1:$B$111,2,FALSE)/100*AI15 -> 0 | BG15: =VLOOKUP(M$3,Prisindeks!$A$1:$B$111,2,FALSE)/100*AJ15 -> 0 | BH15: =VLOOKUP(N$3,Prisindeks!$A$1:$B$111,2,FALSE)/100*AK15 -> 0 | BI15: =VLOOKUP(O$3,Prisindeks!$A$1:$B$111,2,FALSE)/100*AL15 -> 0 | BJ15: =VLOOKUP(P$3,Prisindeks!$A$1:$B$111,2,FALSE)/100*AM15 -> 0 | BK15: =VLOOKUP(Q$3,Prisindeks!$A$1:$B$111,2,FALSE)/100*AN15 -> 0 | BL15: =VLOOKUP(R$3,Prisindeks!$A$1:$B$111,2,FALSE)/100*AO15 -> 0 | BM15: =VLOOKUP(S$3,Prisindeks!$A$1:$B$111,2,FALSE)/100*AP15 -> 0 | BN15: =VLOOKUP(T$3,Prisindeks!$A$1:$B$111,2,FALSE)/100*AQ15 -> 0 | BO15: =VLOOKUP(U$3,Prisindeks!$A$1:$B$111,2,FALSE)/100*AR15 -> 0 | BP15: =VLOOKUP(V$3,Prisindeks!$A$1:$B$111,2,FALSE)/100*AS15 -> 0 | BQ15: =VLOOKUP(W$3,Prisindeks!$A$1:$B$111,2,FALSE)/100*AT15 -> 0 | BR15: =VLOOKUP(X$3,Prisindeks!$A$1:$B$111,2,FALSE)/100*AU15 -> 0 | BS15: =VLOOKUP(Y$3,Prisindeks!$A$1:$B$111,2,FALSE)/100*AV15 -> 0 | BT15: 0 | BU15: 0 | BV15: 0 | BW15: 0 | BX15: 0 | BY15: 0 | BZ15: 0 | CA15: 0 | CB15: 0 | CC15: 0 | CD15: 0 | CE15: 0 | CF15: 0 | CG15: 0 | CH15: 0 | CI15: 0 | CJ15: 0 | CK15: 0 | CL15: 0 | CM15: 0 | CN15: 0 | CO15: 0 | CP15: 0 | CQ15: 0 | CR15: 42
A16: Pumpe inkl. stigrør og forerørsforsejlinger mv. - 7 | B16: m³/h | C16: =Genanskaffelsespriser!E9 -> 15 | D16: 0 | E16: 0 | F16: 0 | G16: 0 | H16: 0 | I16: 0 | J16: 0 | K16: 0 | L16: 0 | M16: 0 | N16: 0 | O16: 33 | P16: 0 | Q16: 0 | R16: 0 | S16: 0 | T16: 0 | U16: 0 | V16: 0 | W16: 0 | X16: 0 | Y16: 0 | Z16: =IF(COUNTIF(D16:Y16,"<>0")<=1,IF((SUM(D16:Y16))=0,0,(+HLOOKUP((SUM(D16:Y16)),Priser!$E$54:$J$56,2)+((SUM(D16:Y16))-HLOOKUP((SUM(D16:Y16)),Priser!$E$54:$J$56,1))*HLOOKUP((SUM(D16:Y16)),Priser!$E$54:$J$56,3))/(SUM(D16:Y16)))*(1+Genanskaffelsespriser!$D$196),$A$1359) -> 2506.693265 | AA16: 0 | AB16: 0 | AC16: 0 | AD16: 0 | AE16: 0 | AF16: 0 | AG16: 0 | AH16: 0 | AI16: 0 | AJ16: 0 | AK16: 0 | AL16: 16544.17555 | AM16: 0 | AN16: 0 | AO16: 0 | AP16: 0 | AQ16: 0 | AR16: 0 | AS16: 0 | AT16: 0 | AU16: 0 | AV16: 0 | AW16: 16544.17555 | AX16: =VLOOKUP(D$3,Prisindeks!$A$1:$B$111,2,FALSE)/100*AA16 -> 0 | AY16: =VLOOKUP(E$3,Prisindeks!$A$1:$B$111,2,FALSE)/100*AB16 -> 0 | AZ16: =VLOOKUP(F$3,Prisindeks!$A$1:$B$111,2,FALSE)/100*AC16 -> 0 | BA16: =VLOOKUP(G$3,Prisindeks!$A$1:$B$111,2,FALSE)/100*AD16 -> 0 | BB16: =VLOOKUP(H$3,Prisindeks!$A$1:$B$111,2,FALSE)/100*AE16 -> 0 | BC16: =VLOOKUP(I$3,Prisindeks!$A$1:$B$111,2,FALSE)/100*AF16 -> 0 | BD16: =VLOOKUP(J$3,Prisindeks!$A$1:$B$111,2,FALSE)/100*AG16 -> 0 | BE16: =VLOOKUP(K$3,Prisindeks!$A$1:$B$111,2,FALSE)/100*AH16 -> 0 | BF16: =VLOOKUP(L$3,Prisindeks!$A$1:$B$111,2,FALSE)/100*AI16 -> 0 | BG16: =VLOOKUP(M$3,Prisindeks!$A$1:$B$111,2,FALSE)/100*AJ16 -> 0 | BH16: =VLOOKUP(N$3,Prisindeks!$A$1:$B$111,2,FALSE)/100*AK16 -> 0 | BI16: =VLOOKUP(O$3,Prisindeks!$A$1:$B$111,2,FALSE)/100*AL16 -> 13350.40115 | BJ16: =VLOOKUP(P$3,Prisindeks!$A$1:$B$111,2,FALSE)/100*AM16 -> 0 | BK16: =VLOOKUP(Q$3,Prisindeks!$A$1:$B$111,2,FALSE)/100*AN16 -> 0 | BL16: =VLOOKUP(R$3,Prisindeks!$A$1:$B$111,2,FALSE)/100*AO16 -> 0 | BM16: =VLOOKUP(S$3,Prisindeks!$A$1:$B$111,2,FALSE)/100*AP16 -> 0 | BN16: =VLOOKUP(T$3,Prisindeks!$A$1:$B$111,2,FALSE)/100*AQ16 -> 0 | BO16: =VLOOKUP(U$3,Prisindeks!$A$1:$B$111,2,FALSE)/100*AR16 -> 0 | BP16: =VLOOKUP(V$3,Prisindeks!$A$1:$B$111,2,FALSE)/100*AS16 -> 0 | BQ16: =VLOOKUP(W$3,Prisindeks!$A$1:$B$111,2,FALSE)/100*AT16 -> 0 | BR16: =VLOOKUP(X$3,Prisindeks!$A$1:$B$111,2,FALSE)/100*AU16 -> 0 | BS16: =VLOOKUP(Y$3,Prisindeks!$A$1:$B$111,2,FALSE)/100*AV16 -> 0 | BT16: 13350.40115 | BU16: 0 | BV16: 0 | BW16: 0 | BX16: 0 | BY16: 0 | BZ16: 0 | CA16: 0 | CB16: 0 | CC16: 0 | CD16: 0 | CE16: 0 | CF16: 14947.28835 | CG16: 0 | CH16: 0 | CI16: 0 | CJ16: 0 | CK16: 0 | CL16: 0 | CM16: 0 | CN16: 0 | CO16: 0 | CP16: 0 | CQ16: 14947.28835 | CR16: 33
A17: Pumpe inkl. stigrør og forerørsforsejlinger mv. - 8 | B17: m³/h | C17: =Genanskaffelsespriser!E9 -> 15 | D17: 0 | E17: 0 | F17: 0 | G17: 0 | H17: 0 | I17: 0 | J17: 0 | K17: 0 | L17: 0 | M17: 34 | N17: 0 | O17: 0 | P17: 0 | Q17: 0 | R17: 0 | S17: 0 | T17: 0 | U17: 0 | V17: 0 | W17: 0 | X17: 0 | Y17: 0 | Z17: =IF(COUNTIF(D17:Y17,"<>0")<=1,IF((SUM(D17:Y17))=0,0,(+HLOOKUP((SUM(D17:Y17)),Priser!$E$54:$J$56,2)+((SUM(D17:Y17))-HLOOKUP((SUM(D17:Y17)),Priser!$E$54:$J$56,1))*HLOOKUP((SUM(D17:Y17)),Priser!$E$54:$J$56,3))/(SUM(D17:Y17)))*(1+Genanskaffelsespriser!$D$196),$A$1359) -> 2459.617258 | AA17: 0 | AB17: 0 | AC17: 0 | AD17: 0 | AE17: 0 | AF17: 0 | AG17: 0 | AH17: 0 | AI17: 0 | AJ17: 0 | AK17: 0 | AL17: 0 | AM17: 0 | AN17: 0 | AO17: 0 | AP17: 0 | AQ17: 0 | AR17: 0 | AS17: 0 | AT17: 0 | AU17: 0 | AV17: 0 | AW17: 0 | AX17: =VLOOKUP(D$3,Prisindeks!$A$1:$B$111,2,FALSE)/100*AA17 -> 0 | AY17: =VLOOKUP(E$3,Prisindeks!$A$1:$B$111,2,FALSE)/100*AB17 -> 0 | AZ17: =VLOOKUP(F$3,Prisindeks!$A$1:$B$111,2,FALSE)/100*AC17 -> 0 | BA17: =VLOOKUP(G$3,Prisindeks!$A$1:$B$111,2,FALSE)/100*AD17 -> 0 | BB17: =VLOOKUP(H$3,Prisindeks!$A$1:$B$111,2,FALSE)/100*AE17 -> 0 | BC17: =VLOOKUP(I$3,Prisindeks!$A$1:$B$111,2,FALSE)/100*AF17 -> 0 | BD17: =VLOOKUP(J$3,Prisindeks!$A$1:$B$111,2,FALSE)/100*AG17 -> 0 | BE17: =VLOOKUP(K$3,Prisindeks!$A$1:$B$111,2,FALSE)/100*AH17 -> 0 | BF17: =VLOOKUP(L$3,Prisindeks!$A$1:$B$111,2,FALSE)/100*AI17 -> 0 | BG17: =VLOOKUP(M$3,Prisindeks!$A$1:$B$111,2,FALSE)/100*AJ17 -> 0 | BH17: =VLOOKUP(N$3,Prisindeks!$A$1:$B$111,2,FALSE)/100*AK17 -> 0 | BI17: =VLOOKUP(O$3,Prisindeks!$A$1:$B$111,2,FALSE)/100*AL17 -> 0 | BJ17: =VLOOKUP(P$3,Prisindeks!$A$1:$B$111,2,FALSE)/100*AM17 -> 0 | BK17: =VLOOKUP(Q$3,Prisindeks!$A$1:$B$111,2,FALSE)/100*AN17 -> 0 | BL17: =VLOOKUP(R$3,Prisindeks!$A$1:$B$111,2,FALSE)/100*AO17 -> 0 | BM17: =VLOOKUP(S$3,Prisindeks!$A$1:$B$111,2,FALSE)/100*AP17 -> 0 | BN17: =VLOOKUP(T$3,Prisindeks!$A$1:$B$111,2,FALSE)/100*AQ17 -> 0 | BO17: =VLOOKUP(U$3,Prisindeks!$A$1:$B$111,2,FALSE)/100*AR17 -> 0 | BP17: =VLOOKUP(V$3,Prisindeks!$A$1:$B$111,2,FALSE)/100*AS17 -> 0 | BQ17: =VLOOKUP(W$3,Prisindeks!$A$1:$B$111,2,FALSE)/100*AT17 -> 0 | BR17: =VLOOKUP(X$3,Prisindeks!$A$1:$B$111,2,FALSE)/100*AU17 -> 0 | BS17: =VLOOKUP(Y$3,Prisindeks!$A$1:$B$111,2,FALSE)/100*AV17 -> 0 | BT17: 0 | BU17: 0 | BV17: 0 | BW17: 0 | BX17: 0 | BY17: 0 | BZ17: 0 | CA17: 0 | CB17: 0 | CC17: 0 | CD17: 0 | CE17: 0 | CF17: 0 | CG17: 0 | CH17: 0 | CI17: 0 | CJ17: 0 | CK17: 0 | CL17: 0 | CM17: 0 | CN17: 0 | CO17: 0 | CP17: 0 | CQ17: 0 | CR17: 34
A18: Pumpe inkl. stigrør og forerørsforsejlinger mv. - 9 | B18: m³/h | C18: =Genanskaffelsespriser!E9 -> 15 | D18: 0 | E18: 0 | F18: 0 | G18: 0 | H18: 0 | I18: 0 | J18: 0 | K18: 0 | L18: 0 | M18: 0 | N18: 36 | O18: 0 | P18: 0 | Q18: 0 | R18: 0 | S18: 0 | T18: 0 | U18: 0 | V18: 0 | W18: 0 | X18: 0 | Y18: 0 | Z18: =IF(COUNTIF(D18:Y18,"<>0")<=1,IF((SUM(D18:Y18))=0,0,(+HLOOKUP((SUM(D18:Y18)),Priser!$E$54:$J$56,2)+((SUM(D18:Y18))-HLOOKUP((SUM(D18:Y18)),Priser!$E$54:$J$56,1))*HLOOKUP((SUM(D18:Y18)),Priser!$E$54:$J$56,3))/(SUM(D18:Y18)))*(1+Genanskaffelsespriser!$D$196),$A$1359) -> 2373.311246 | AA18: 0 | AB18: 0 | AC18: 0 | AD18: 0 | AE18: 0 | AF18: 0 | AG18: 0 | AH18: 0 | AI18: 0 | AJ18: 0 | AK18: 0 | AL18: 0 | AM18: 0 | AN18: 0 | AO18: 0 | AP18: 0 | AQ18: 0 | AR18: 0 | AS18: 0 | AT18: 0 | AU18: 0 | AV18: 0 | AW18: 0 | AX18: =VLOOKUP(D$3,Prisindeks!$A$1:$B$111,2,FALSE)/100*AA18 -> 0 | AY18: =VLOOKUP(E$3,Prisindeks!$A$1:$B$111,2,FALSE)/100*AB18 -> 0 | AZ18: =VLOOKUP(F$3,Prisindeks!$A$1:$B$111,2,FALSE)/100*AC18 -> 0 | BA18: =VLOOKUP(G$3,Prisindeks!$A$1:$B$111,2,FALSE)/100*AD18 -> 0 | BB18: =VLOOKUP(H$3,Prisindeks!$A$1:$B$111,2,FALSE)/100*AE18 -> 0 | BC18: =VLOOKUP(I$3,Prisindeks!$A$1:$B$111,2,FALSE)/100*AF18 -> 0 | BD18: =VLOOKUP(J$3,Prisindeks!$A$1:$B$111,2,FALSE)/100*AG18 -> 0 | BE18: =VLOOKUP(K$3,Prisindeks!$A$1:$B$111,2,FALSE)/100*AH18 -> 0 | BF18: =VLOOKUP(L$3,Prisindeks!$A$1:$B$111,2,FALSE)/100*AI18 -> 0 | BG18: =VLOOKUP(M$3,Prisindeks!$A$1:$B$111,2,FALSE)/100*AJ18 -> 0 | BH18: =VLOOKUP(N$3,Prisindeks!$A$1:$B$111,2,FALSE)/100*AK18 -> 0 | BI18: =VLOOKUP(O$3,Prisindeks!$A$1:$B$111,2,FALSE)/100*AL18 -> 0 | BJ18: =VLOOKUP(P$3,Prisindeks!$A$1:$B$111,2,FALSE)/100*AM18 -> 0 | BK18: =VLOOKUP(Q$3,Prisindeks!$A$1:$B$111,2,FALSE)/100*AN18 -> 0 | BL18: =VLOOKUP(R$3,Prisindeks!$A$1:$B$111,2,FALSE)/100*AO18 -> 0 | BM18: =VLOOKUP(S$3,Prisindeks!$A$1:$B$111,2,FALSE)/100*AP18 -> 0 | BN18: =VLOOKUP(T$3,Prisindeks!$A$1:$B$111,2,FALSE)/100*AQ18 -> 0 | BO18: =VLOOKUP(U$3,Prisindeks!$A$1:$B$111,2,FALSE)/100*AR18 -> 0 | BP18: =VLOOKUP(V$3,Prisindeks!$A$1:$B$111,2,FALSE)/100*AS18 -> 0 | BQ18: =VLOOKUP(W$3,Prisindeks!$A$1:$B$111,2,FALSE)/100*AT18 -> 0 | BR18: =VLOOKUP(X$3,Prisindeks!$A$1:$B$111,2,FALSE)/100*AU18 -> 0 | BS18: =VLOOKUP(Y$3,Prisindeks!$A$1:$B$111,2,FALSE)/100*AV18 -> 0 | BT18: 0 | BU18: 0 | BV18: 0 | BW18: 0 | BX18: 0 | BY18: 0 | BZ18: 0 | CA18: 0 | CB18: 0 | CC18: 0 | CD18: 0 | CE18: 0 | CF18: 0 | CG18: 0 | CH18: 0 | CI18: 0 | CJ18: 0 | CK18: 0 | CL18: 0 | CM18: 0 | CN18: 0 | CO18: 0 | CP18: 0 | CQ18: 0 | CR18: 36
A19: Pumpe inkl. stigrør og forerørsforsejlinger mv. - 10 | B19: m³/h | C19: =Genanskaffelsespriser!E9 -> 15 | D19: 0 | E19: 0 | F19: 0 | G19: 0 | H19: 0 | I19: 0 | J19: 0 | K19: 0 | L19: 0 | M19: 0 | N19: 35 | O19: 0 | P19: 0 | Q19: 0 | R19: 0 | S19: 0 | T19: 0 | U19: 0 | V19: 0 | W19: 0 | X19: 0 | Y19: 0 | Z19: =IF(COUNTIF(D19:Y19,"<>0")<=1,IF((SUM(D19:Y19))=0,0,(+HLOOKUP((SUM(D19:Y19)),Priser!$E$54:$J$56,2)+((SUM(D19:Y19))-HLOOKUP((SUM(D19:Y19)),Priser!$E$54:$J$56,1))*HLOOKUP((SUM(D19:Y19)),Priser!$E$54:$J$56,3))/(SUM(D19:Y19)))*(1+Genanskaffelsespriser!$D$196),$A$1359) -> 2415.231309 | AA19: 0 | AB19: 0 | AC19: 0 | AD19: 0 | AE19: 0 | AF19: 0 | AG19: 0 | AH19: 0 | AI19: 0 | AJ19: 0 | AK19: 0 | AL19: 0 | AM19: 0 | AN19: 0 | AO19: 0 | AP19: 0 | AQ19: 0 | AR19: 0 | AS19: 0 | AT19: 0 | AU19: 0 | AV19: 0 | AW19: 0 | AX19: =VLOOKUP(D$3,Prisindeks!$A$1:$B$111,2,FALSE)/100*AA19 -> 0 | AY19: =VLOOKUP(E$3,Prisindeks!$A$1:$B$111,2,FALSE)/100*AB19 -> 0 | AZ19: =VLOOKUP(F$3,Prisindeks!$A$1:$B$111,2,FALSE)/100*AC19 -> 0 | BA19: =VLOOKUP(G$3,Prisindeks!$A$1:$B$111,2,FALSE)/100*AD19 -> 0 | BB19: =VLOOKUP(H$3,Prisindeks!$A$1:$B$111,2,FALSE)/100*AE19 -> 0 | BC19: =VLOOKUP(I$3,Prisindeks!$A$1:$B$111,2,FALSE)/100*AF19 -> 0 | BD19: =VLOOKUP(J$3,Prisindeks!$A$1:$B$111,2,FALSE)/100*AG19 -> 0 | BE19: =VLOOKUP(K$3,Prisindeks!$A$1:$B$111,2,FALSE)/100*AH19 -> 0 | BF19: =VLOOKUP(L$3,Prisindeks!$A$1:$B$111,2,FALSE)/100*AI19 -> 0 | BG19: =VLOOKUP(M$3,Prisindeks!$A$1:$B$111,2,FALSE)/100*AJ19 -> 0 | BH19: =VLOOKUP(N$3,Prisindeks!$A$1:$B$111,2,FALSE)/100*AK19 -> 0 | BI19: =VLOOKUP(O$3,Prisindeks!$A$1:$B$111,2,FALSE)/100*AL19 -> 0 | BJ19: =VLOOKUP(P$3,Prisindeks!$A$1:$B$111,2,FALSE)/100*AM19 -> 0 | BK19: =VLOOKUP(Q$3,Prisindeks!$A$1:$B$111,2,FALSE)/100*AN19 -> 0 | BL19: =VLOOKUP(R$3,Prisindeks!$A$1:$B$111,2,FALSE)/100*AO19 -> 0 | BM19: =VLOOKUP(S$3,Prisindeks!$A$1:$B$111,2,FALSE)/100*AP19 -> 0 | BN19: =VLOOKUP(T$3,Prisindeks!$A$1:$B$111,2,FALSE)/100*AQ19 -> 0 | BO19: =VLOOKUP(U$3,Prisindeks!$A$1:$B$111,2,FALSE)/100*AR19 -> 0 | BP19: =VLOOKUP(V$3,Prisindeks!$A$1:$B$111,2,FALSE)/100*AS19 -> 0 | BQ19: =VLOOKUP(W$3,Prisindeks!$A$1:$B$111,2,FALSE)/100*AT19 -> 0 | BR19: =VLOOKUP(X$3,Prisindeks!$A$1:$B$111,2,FALSE)/100*AU19 -> 0 | BS19: =VLOOKUP(Y$3,Prisindeks!$A$1:$B$111,2,FALSE)/100*AV19 -> 0 | BT19: 0 | BU19: 0 | BV19: 0 | BW19: 0 | BX19: 0 | BY19: 0 | BZ19: 0 | CA19: 0 | CB19: 0 | CC19: 0 | CD19: 0 | CE19: 0 | CF19: 0 | CG19: 0 | CH19: 0 | CI19: 0 | CJ19: 0 | CK19: 0 | CL19: 0 | CM19: 0 | CN19: 0 | CO19: 0 | CP19: 0 | CQ19: 0 | CR19: 35
A20: Erstatninger (OBS ingen øst-tillæg eller øvrige tillæg) | B20: stk. | C20: =Genanskaffelsespriser!E10 -> 30 | D20: 0 | E20: 0 | F20: 0 | G20: 0 | H20: 0 | I20: 0 | J20: 0 | K20: 0 | L20: 0 | M20: 0 | N20: 0 | O20: 0 | P20: 0 | Q20: 0 | R20: 0 | S20: 0 | T20: 0 | U20: 0 | V20: 0 | W20: 0 | X20: 0 | Y20: 0 | AA20: =IF((D20*Genanskaffelsespriser!$D10-(2009-D$3)/$C20*Genanskaffelsespriser!$D10*D20)<0,0,(D20*Genanskaffelsespriser!$D10-(2009-D$3)/$C20*Genanskaffelsespriser!$D10*D20)) -> 0 | AB20: =IF((E20*Genanskaffelsespriser!$D10-(2009-E$3)/$C20*Genanskaffelsespriser!$D10*E20)<0,0,(E20*Genanskaffelsespriser!$D10-(2009-E$3)/$C20*Genanskaffelsespriser!$D10*E20)) -> 0 | AC20: =IF((F20*Genanskaffelsespriser!$D10-(2009-F$3)/$C20*Genanskaffelsespriser!$D10*F20)<0,0,(F20*Genanskaffelsespriser!$D10-(2009-F$3)/$C20*Genanskaffelsespriser!$D10*F20)) -> 0 | AD20: =IF((G20*Genanskaffelsespriser!$D10-(2009-G$3)/$C20*Genanskaffelsespriser!$D10*G20)<0,0,(G20*Genanskaffelsespriser!$D10-(2009-G$3)/$C20*Genanskaffelsespriser!$D10*G20)) -> 0 | AE20: =IF((H20*Genanskaffelsespriser!$D10-(2009-H$3)/$C20*Genanskaffelsespriser!$D10*H20)<0,0,(H20*Genanskaffelsespriser!$D10-(2009-H$3)/$C20*Genanskaffelsespriser!$D10*H20)) -> 0 | AF20: =IF((I20*Genanskaffelsespriser!$D10-(2009-I$3)/$C20*Genanskaffelsespriser!$D10*I20)<0,0,(I20*Genanskaffelsespriser!$D10-(2009-I$3)/$C20*Genanskaffelsespriser!$D10*I20)) -> 0 | AG20: =IF((J20*Genanskaffelsespriser!$D10-(2009-J$3)/$C20*Genanskaffelsespriser!$D10*J20)<0,0,(J20*Genanskaffelsespriser!$D10-(2009-J$3)/$C20*Genanskaffelsespriser!$D10*J20)) -> 0 | AH20: =IF((K20*Genanskaffelsespriser!$D10-(2009-K$3)/$C20*Genanskaffelsespriser!$D10*K20)<0,0,(K20*Genanskaffelsespriser!$D10-(2009-K$3)/$C20*Genanskaffelsespriser!$D10*K20)) -> 0 | AI20: =IF((L20*Genanskaffelsespriser!$D10-(2009-L$3)/$C20*Genanskaffelsespriser!$D10*L20)<0,0,(L20*Genanskaffelsespriser!$D10-(2009-L$3)/$C20*Genanskaffelsespriser!$D10*L20)) -> 0 | AJ20: =IF((M20*Genanskaffelsespriser!$D10-(2009-M$3)/$C20*Genanskaffelsespriser!$D10*M20)<0,0,(M20*Genanskaffelsespriser!$D10-(2009-M$3)/$C20*Genanskaffelsespriser!$D10*M20)) -> 0 | AK20: =IF((N20*Genanskaffelsespriser!$D10-(2009-N$3)/$C20*Genanskaffelsespriser!$D10*N20)<0,0,(N20*Genanskaffelsespriser!$D10-(2009-N$3)/$C20*Genanskaffelsespriser!$D10*N20)) -> 0 | AL20: =IF((O20*Genanskaffelsespriser!$D10-(2009-O$3)/$C20*Genanskaffelsespriser!$D10*O20)<0,0,(O20*Genanskaffelsespriser!$D10-(2009-O$3)/$C20*Genanskaffelsespriser!$D10*O20)) -> 0 | AM20: =IF((P20*Genanskaffelsespriser!$D10-(2009-P$3)/$C20*Genanskaffelsespriser!$D10*P20)<0,0,(P20*Genanskaffelsespriser!$D10-(2009-P$3)/$C20*Genanskaffelsespriser!$D10*P20)) -> 0 | AN20: =IF((Q20*Genanskaffelsespriser!$D10-(2009-Q$3)/$C20*Genanskaffelsespriser!$D10*Q20)<0,0,(Q20*Genanskaffelsespriser!$D10-(2009-Q$3)/$C20*Genanskaffelsespriser!$D10*Q20)) -> 0 | AO20: =IF((R20*Genanskaffelsespriser!$D10-(2009-R$3)/$C20*Genanskaffelsespriser!$D10*R20)<0,0,(R20*Genanskaffelsespriser!$D10-(2009-R$3)/$C20*Genanskaffelsespriser!$D10*R20)) -> 0 | AP20: =IF((S20*Genanskaffelsespriser!$D10-(2009-S$3)/$C20*Genanskaffelsespriser!$D10*S20)<0,0,(S20*Genanskaffelsespriser!$D10-(2009-S$3)/$C20*Genanskaffelsespriser!$D10*S20)) -> 0 | AQ20: =IF((T20*Genanskaffelsespriser!$D10-(2009-T$3)/$C20*Genanskaffelsespriser!$D10*T20)<0,0,(T20*Genanskaffelsespriser!$D10-(2009-T$3)/$C20*Genanskaffelsespriser!$D10*T20)) -> 0 | AR20: =IF((U20*Genanskaffelsespriser!$D10-(2009-U$3)/$C20*Genanskaffelsespriser!$D10*U20)<0,0,(U20*Genanskaffelsespriser!$D10-(2009-U$3)/$C20*Genanskaffelsespriser!$D10*U20)) -> 0 | AS20: =IF((V20*Genanskaffelsespriser!$D10-(2009-V$3)/$C20*Genanskaffelsespriser!$D10*V20)<0,0,(V20*Genanskaffelsespriser!$D10-(2009-V$3)/$C20*Genanskaffelsespriser!$D10*V20)) -> 0 | AT20: =IF((W20*Genanskaffelsespriser!$D10-(2009-W$3)/$C20*Genanskaffelsespriser!$D10*W20)<0,0,(W20*Genanskaffelsespriser!$D10-(2009-W$3)/$C20*Genanskaffelsespriser!$D10*W20)) -> 0 | AU20: =IF((X20*Genanskaffelsespriser!$D10-(2009-X$3)/$C20*Genanskaffelsespriser!$D10*X20)<0,0,(X20*Genanskaffelsespriser!$D10-(2009-X$3)/$C20*Genanskaffelsespriser!$D10*X20)) -> 0 | AV20: =IF((Y20*Genanskaffelsespriser!$D10-(2009-Y$3)/$C20*Genanskaffelsespriser!$D10*Y20)<0,0,(Y20*Genanskaffelsespriser!$D10-(2009-Y$3)/$C20*Genanskaffelsespriser!$D10*Y20)) -> 0 | AW20: =+SUM(AA20:AV20) -> 0 | AX20: =VLOOKUP(D$3,Prisindeks!$A$1:$B$111,2,FALSE)/100*AA20 -> 0 | AY20: =VLOOKUP(E$3,Prisindeks!$A$1:$B$111,2,FALSE)/100*AB20 -> 0 | AZ20: =VLOOKUP(F$3,Prisindeks!$A$1:$B$111,2,FALSE)/100*AC20 -> 0 | BA20: =VLOOKUP(G$3,Prisindeks!$A$1:$B$111,2,FALSE)/100*AD20 -> 0 | BB20: =VLOOKUP(H$3,Prisindeks!$A$1:$B$111,2,FALSE)/100*AE20 -> 0 | BC20: =VLOOKUP(I$3,Prisindeks!$A$1:$B$111,2,FALSE)/100*AF20 -> 0 | BD20: =VLOOKUP(J$3,Prisindeks!$A$1:$B$111,2,FALSE)/100*AG20 -> 0 | BE20: =VLOOKUP(K$3,Prisindeks!$A$1:$B$111,2,FALSE)/100*AH20 -> 0 | BF20: =VLOOKUP(L$3,Prisindeks!$A$1:$B$111,2,FALSE)/100*AI20 -> 0 | BG20: =VLOOKUP(M$3,Prisindeks!$A$1:$B$111,2,FALSE)/100*AJ20 -> 0 | BH20: =VLOOKUP(N$3,Prisindeks!$A$1:$B$111,2,FALSE)/100*AK20 -> 0 | BI20: =VLOOKUP(O$3,Prisindeks!$A$1:$B$111,2,FALSE)/100*AL20 -> 0 | BJ20: =VLOOKUP(P$3,Prisindeks!$A$1:$B$111,2,FALSE)/100*AM20 -> 0 | BK20: =VLOOKUP(Q$3,Prisindeks!$A$1:$B$111,2,FALSE)/100*AN20 -> 0 | BL20: =VLOOKUP(R$3,Prisindeks!$A$1:$B$111,2,FALSE)/100*AO20 -> 0 | BM20: =VLOOKUP(S$3,Prisindeks!$A$1:$B$111,2,FALSE)/100*AP20 -> 0 | BN20: =VLOOKUP(T$3,Prisindeks!$A$1:$B$111,2,FALSE)/100*AQ20 -> 0 | BO20: =VLOOKUP(U$3,Prisindeks!$A$1:$B$111,2,FALSE)/100*AR20 -> 0 | BP20: =VLOOKUP(V$3,Prisindeks!$A$1:$B$111,2,FALSE)/100*AS20 -> 0 | BQ20: =VLOOKUP(W$3,Prisindeks!$A$1:$B$111,2,FALSE)/100*AT20 -> 0 | BR20: =VLOOKUP(X$3,Prisindeks!$A$1:$B$111,2,FALSE)/100*AU20 -> 0 | BS20: =VLOOKUP(Y$3,Prisindeks!$A$1:$B$111,2,FALSE)/100*AV20 -> 0 | BT20: =+SUM(AX20:BS20) -> 0 | BU20: =(AA20+AX20)/2 -> 0 | BV20: 0 | BW20: 0 | BX20: 0 | BY20: 0 | BZ20: 0 | CA20: 0 | CB20: 0 | CC20: 0 | CD20: 0 | CE20: =(AK20+BH20)/2 -> 0 | CF20: 0 | CG20: 0 | CH20: 0 | CI20: 0 | CJ20: 0 | CK20: 0 | CL20: 0 | CM20: 0 | CN20: 0 | CO20: =(AU20+BR20)/2 -> 0 | CP20: 0 | CQ20: 0 | CR20: 0
A21: Hegn | B21: stk. | C21: =Genanskaffelsespriser!E11 -> 15 | D21: 0 | E21: 0 | F21: 0 | G21: 0 | H21: 0 | I21: 0 | J21: 0 | K21: 0 | L21: 0 | M21: 0 | N21: 0 | O21: 0 | P21: 0 | Q21: 0 | R21: 0 | S21: 0 | T21: 0 | U21: 0 | V21: 0 | W21: 0 | X21: 0 | Y21: 0 | AA21: =IF((D21*Genanskaffelsespriser!$D11-(2009-D$3)/$C21*Genanskaffelsespriser!$D11*D21)<0,0,(D21*Genanskaffelsespriser!$D11-(2009-D$3)/$C21*Genanskaffelsespriser!$D11*D21)) -> 0 | AB21: =IF((E21*Genanskaffelsespriser!$D11-(2009-E$3)/$C21*Genanskaffelsespriser!$D11*E21)<0,0,(E21*Genanskaffelsespriser!$D11-(2009-E$3)/$C21*Genanskaffelsespriser!$D11*E21)) -> 0 | AC21: =IF((F21*Genanskaffelsespriser!$D11-(2009-F$3)/$C21*Genanskaffelsespriser!$D11*F21)<0,0,(F21*Genanskaffelsespriser!$D11-(2009-F$3)/$C21*Genanskaffelsespriser!$D11*F21)) -> 0 | AD21: =IF((G21*Genanskaffelsespriser!$D11-(2009-G$3)/$C21*Genanskaffelsespriser!$D11*G21)<0,0,(G21*Genanskaffelsespriser!$D11-(2009-G$3)/$C21*Genanskaffelsespriser!$D11*G21)) -> 0 | AE21: =IF((H21*Genanskaffelsespriser!$D11-(2009-H$3)/$C21*Genanskaffelsespriser!$D11*H21)<0,0,(H21*Genanskaffelsespriser!$D11-(2009-H$3)/$C21*Genanskaffelsespriser!$D11*H21)) -> 0 | AF21: =IF((I21*Genanskaffelsespriser!$D11-(2009-I$3)/$C21*Genanskaffelsespriser!$D11*I21)<0,0,(I21*Genanskaffelsespriser!$D11-(2009-I$3)/$C21*Genanskaffelsespriser!$D11*I21)) -> 0 | AG21: =IF((J21*Genanskaffelsespriser!$D11-(2009-J$3)/$C21*Genanskaffelsespriser!$D11*J21)<0,0,(J21*Genanskaffelsespriser!$D11-(2009-J$3)/$C21*Genanskaffelsespriser!$D11*J21)) -> 0 | AH21: =IF((K21*Genanskaffelsespriser!$D11-(2009-K$3)/$C21*Genanskaffelsespriser!$D11*K21)<0,0,(K21*Genanskaffelsespriser!$D11-(2009-K$3)/$C21*Genanskaffelsespriser!$D11*K21)) -> 0 | AI21: =IF((L21*Genanskaffelsespriser!$D11-(2009-L$3)/$C21*Genanskaffelsespriser!$D11*L21)<0,0,(L21*Genanskaffelsespriser!$D11-(2009-L$3)/$C21*Genanskaffelsespriser!$D11*L21)) -> 0 | AJ21: =IF((M21*Genanskaffelsespriser!$D11-(2009-M$3)/$C21*Genanskaffelsespriser!$D11*M21)<0,0,(M21*Genanskaffelsespriser!$D11-(2009-M$3)/$C21*Genanskaffelsespriser!$D11*M21)) -> 0 | AK21: =IF((N21*Genanskaffelsespriser!$D11-(2009-N$3)/$C21*Genanskaffelsespriser!$D11*N21)<0,0,(N21*Genanskaffelsespriser!$D11-(2009-N$3)/$C21*Genanskaffelsespriser!$D11*N21)) -> 0 | AL21: =IF((O21*Genanskaffelsespriser!$D11-(2009-O$3)/$C21*Genanskaffelsespriser!$D11*O21)<0,0,(O21*Genanskaffelsespriser!$D11-(2009-O$3)/$C21*Genanskaffelsespriser!$D11*O21)) -> 0 | AM21: =IF((P21*Genanskaffelsespriser!$D11-(2009-P$3)/$C21*Genanskaffelsespriser!$D11*P21)<0,0,(P21*Genanskaffelsespriser!$D11-(2009-P$3)/$C21*Genanskaffelsespriser!$D11*P21)) -> 0 | AN21: =IF((Q21*Genanskaffelsespriser!$D11-(2009-Q$3)/$C21*Genanskaffelsespriser!$D11*Q21)<0,0,(Q21*Genanskaffelsespriser!$D11-(2009-Q$3)/$C21*Genanskaffelsespriser!$D11*Q21)) -> 0 | AO21: =IF((R21*Genanskaffelsespriser!$D11-(2009-R$3)/$C21*Genanskaffelsespriser!$D11*R21)<0,0,(R21*Genanskaffelsespriser!$D11-(2009-R$3)/$C21*Genanskaffelsespriser!$D11*R21)) -> 0 | AP21: =IF((S21*Genanskaffelsespriser!$D11-(2009-S$3)/$C21*Genanskaffelsespriser!$D11*S21)<0,0,(S21*Genanskaffelsespriser!$D11-(2009-S$3)/$C21*Genanskaffelsespriser!$D11*S21)) -> 0 | AQ21: =IF((T21*Genanskaffelsespriser!$D11-(2009-T$3)/$C21*Genanskaffelsespriser!$D11*T21)<0,0,(T21*Genanskaffelsespriser!$D11-(2009-T$3)/$C21*Genanskaffelsespriser!$D11*T21)) -> 0 | AR21: =IF((U21*Genanskaffelsespriser!$D11-(2009-U$3)/$C21*Genanskaffelsespriser!$D11*U21)<0,0,(U21*Genanskaffelsespriser!$D11-(2009-U$3)/$C21*Genanskaffelsespriser!$D11*U21)) -> 0 | AS21: =IF((V21*Genanskaffelsespriser!$D11-(2009-V$3)/$C21*Genanskaffelsespriser!$D11*V21)<0,0,(V21*Genanskaffelsespriser!$D11-(2009-V$3)/$C21*Genanskaffelsespriser!$D11*V21)) -> 0 | AT21: =IF((W21*Genanskaffelsespriser!$D11-(2009-W$3)/$C21*Genanskaffelsespriser!$D11*W21)<0,0,(W21*Genanskaffelsespriser!$D11-(2009-W$3)/$C21*Genanskaffelsespriser!$D11*W21)) -> 0 | AU21: =IF((X21*Genanskaffelsespriser!$D11-(2009-X$3)/$C21*Genanskaffelsespriser!$D11*X21)<0,0,(X21*Genanskaffelsespriser!$D11-(2009-X$3)/$C21*Genanskaffelsespriser!$D11*X21)) -> 0 | AV21: =IF((Y21*Genanskaffelsespriser!$D11-(2009-Y$3)/$C21*Genanskaffelsespriser!$D11*Y21)<0,0,(Y21*Genanskaffelsespriser!$D11-(2009-Y$3)/$C21*Genanskaffelsespriser!$D11*Y21)) -> 0 | AW21: =+SUM(AA21:AV21) -> 0 | AX21: =VLOOKUP(D$3,Prisindeks!$A$1:$B$111,2,FALSE)/100*AA21 -> 0 | AY21: =VLOOKUP(E$3,Prisindeks!$A$1:$B$111,2,FALSE)/100*AB21 -> 0 | AZ21: =VLOOKUP(F$3,Prisindeks!$A$1:$B$111,2,FALSE)/100*AC21 -> 0 | BA21: =VLOOKUP(G$3,Prisindeks!$A$1:$B$111,2,FALSE)/100*AD21 -> 0 | BB21: =VLOOKUP(H$3,Prisindeks!$A$1:$B$111,2,FALSE)/100*AE21 -> 0 | BC21: =VLOOKUP(I$3,Prisindeks!$A$1:$B$111,2,FALSE)/100*AF21 -> 0 | BD21: =VLOOKUP(J$3,Prisindeks!$A$1:$B$111,2,FALSE)/100*AG21 -> 0 | BE21: =VLOOKUP(K$3,Prisindeks!$A$1:$B$111,2,FALSE)/100*AH21 -> 0 | BF21: =VLOOKUP(L$3,Prisindeks!$A$1:$B$111,2,FALSE)/100*AI21 -> 0 | BG21: =VLOOKUP(M$3,Prisindeks!$A$1:$B$111,2,FALSE)/100*AJ21 -> 0 | BH21: =VLOOKUP(N$3,Prisindeks!$A$1:$B$111,2,FALSE)/100*AK21 -> 0 | BI21: =VLOOKUP(O$3,Prisindeks!$A$1:$B$111,2,FALSE)/100*AL21 -> 0 | BJ21: =VLOOKUP(P$3,Prisindeks!$A$1:$B$111,2,FALSE)/100*AM21 -> 0 | BK21: =VLOOKUP(Q$3,Prisindeks!$A$1:$B$111,2,FALSE)/100*AN21 -> 0 | BL21: =VLOOKUP(R$3,Prisindeks!$A$1:$B$111,2,FALSE)/100*AO21 -> 0 | BM21: =VLOOKUP(S$3,Prisindeks!$A$1:$B$111,2,FALSE)/100*AP21 -> 0 | BN21: =VLOOKUP(T$3,Prisindeks!$A$1:$B$111,2,FALSE)/100*AQ21 -> 0 | BO21: =VLOOKUP(U$3,Prisindeks!$A$1:$B$111,2,FALSE)/100*AR21 -> 0 | BP21: =VLOOKUP(V$3,Prisindeks!$A$1:$B$111,2,FALSE)/100*AS21 -> 0 | BQ21: =VLOOKUP(W$3,Prisindeks!$A$1:$B$111,2,FALSE)/100*AT21 -> 0 | BR21: =VLOOKUP(X$3,Prisindeks!$A$1:$B$111,2,FALSE)/100*AU21 -> 0 | BS21: =VLOOKUP(Y$3,Prisindeks!$A$1:$B$111,2,FALSE)/100*AV21 -> 0 | BT21: =+SUM(AX21:BS21) -> 0 | BU21: 0 | BV21: 0 | BW21: 0 | BX21: 0 | BY21: 0 | BZ21: 0 | CA21: 0 | CB21: 0 | CC21: 0 | CD21: 0 | CE21: 0 | CF21: 0 | CG21: 0 | CH21: 0 | CI21: 0 | CJ21: 0 | CK21: 0 | CL21: 0 | CM21: 0 | CN21: 0 | CO21: 0 | CP21: 0 | CQ21: 0 | CR21: 0
A22: Elanlæg | B22: boring | C22: =Genanskaffelsespriser!E12 -> 20 | D22: 0 | E22: 0 | F22: 0 | G22: 0 | H22: 0 | I22: 0 | J22: 0 | K22: 0 | L22: 1 | M22: 3 | N22: 5 | O22: 1 | P22: 0 | Q22: 0 | R22: 0 | S22: 0 | T22: 0 | U22: 0 | V22: 0 | W22: 0 | X22: 0 | Y22: 0 | AA22: =IF((D22*Genanskaffelsespriser!$D12-(2009-D$3)/$C22*Genanskaffelsespriser!$D12*D22)<0,0,(D22*Genanskaffelsespriser!$D12-(2009-D$3)/$C22*Genanskaffelsespriser!$D12*D22)) -> 0 | AB22: =IF((E22*Genanskaffelsespriser!$D12-(2009-E$3)/$C22*Genanskaffelsespriser!$D12*E22)<0,0,(E22*Genanskaffelsespriser!$D12-(2009-E$3)/$C22*Genanskaffelsespriser!$D12*E22)) -> 0 | AC22: =IF((F22*Genanskaffelsespriser!$D12-(2009-F$3)/$C22*Genanskaffelsespriser!$D12*F22)<0,0,(F22*Genanskaffelsespriser!$D12-(2009-F$3)/$C22*Genanskaffelsespriser!$D12*F22)) -> 0 | AD22: =IF((G22*Genanskaffelsespriser!$D12-(2009-G$3)/$C22*Genanskaffelsespriser!$D12*G22)<0,0,(G22*Genanskaffelsespriser!$D12-(2009-G$3)/$C22*Genanskaffelsespriser!$D12*G22)) -> 0 | AE22: =IF((H22*Genanskaffelsespriser!$D12-(2009-H$3)/$C22*Genanskaffelsespriser!$D12*H22)<0,0,(H22*Genanskaffelsespriser!$D12-(2009-H$3)/$C22*Genanskaffelsespriser!$D12*H22)) -> 0 | AF22: =IF((I22*Genanskaffelsespriser!$D12-(2009-I$3)/$C22*Genanskaffelsespriser!$D12*I22)<0,0,(I22*Genanskaffelsespriser!$D12-(2009-I$3)/$C22*Genanskaffelsespriser!$D12*I22)) -> 0 | AG22: =IF((J22*Genanskaffelsespriser!$D12-(2009-J$3)/$C22*Genanskaffelsespriser!$D12*J22)<0,0,(J22*Genanskaffelsespriser!$D12-(2009-J$3)/$C22*Genanskaffelsespriser!$D12*J22)) -> 0 | AH22: =IF((K22*Genanskaffelsespriser!$D12-(2009-K$3)/$C22*Genanskaffelsespriser!$D12*K22)<0,0,(K22*Genanskaffelsespriser!$D12-(2009-K$3)/$C22*Genanskaffelsespriser!$D12*K22)) -> 0 | AI22: =IF((L22*Genanskaffelsespriser!$D12-(2009-L$3)/$C22*Genanskaffelsespriser!$D12*L22)<0,0,(L22*Genanskaffelsespriser!$D12-(2009-L$3)/$C22*Genanskaffelsespriser!$D12*L22)) -> 0 | AJ22: =IF((M22*Genanskaffelsespriser!$D12-(2009-M$3)/$C22*Genanskaffelsespriser!$D12*M22)<0,0,(M22*Genanskaffelsespriser!$D12-(2009-M$3)/$C22*Genanskaffelsespriser!$D12*M22)) -> 0 | AK22: =IF((N22*Genanskaffelsespriser!$D12-(2009-N$3)/$C22*Genanskaffelsespriser!$D12*N22)<0,0,(N22*Genanskaffelsespriser!$D12-(2009-N$3)/$C22*Genanskaffelsespriser!$D12*N22)) -> 84507.98175 | AL22: =IF((O22*Genanskaffelsespriser!$D12-(2009-O$3)/$C22*Genanskaffelsespriser!$D12*O22)<0,0,(O22*Genanskaffelsespriser!$D12-(2009-O$3)/$C22*Genanskaffelsespriser!$D12*O22)) -> 45070.9236 | AM22: =IF((P22*Genanskaffelsespriser!$D12-(2009-P$3)/$C22*Genanskaffelsespriser!$D12*P22)<0,0,(P22*Genanskaffelsespriser!$D12-(2009-P$3)/$C22*Genanskaffelsespriser!$D12*P22)) -> 0 | AN22: =IF((Q22*Genanskaffelsespriser!$D12-(2009-Q$3)/$C22*Genanskaffelsespriser!$D12*Q22)<0,0,(Q22*Genanskaffelsespriser!$D12-(2009-Q$3)/$C22*Genanskaffelsespriser!$D12*Q22)) -> 0 | AO22: =IF((R22*Genanskaffelsespriser!$D12-(2009-R$3)/$C22*Genanskaffelsespriser!$D12*R22)<0,0,(R22*Genanskaffelsespriser!$D12-(2009-R$3)/$C22*Genanskaffelsespriser!$D12*R22)) -> 0 | AP22: =IF((S22*Genanskaffelsespriser!$D12-(2009-S$3)/$C22*Genanskaffelsespriser!$D12*S22)<0,0,(S22*Genanskaffelsespriser!$D12-(2009-S$3)/$C22*Genanskaffelsespriser!$D12*S22)) -> 0 | AQ22: =IF((T22*Genanskaffelsespriser!$D12-(2009-T$3)/$C22*Genanskaffelsespriser!$D12*T22)<0,0,(T22*Genanskaffelsespriser!$D12-(2009-T$3)/$C22*Genanskaffelsespriser!$D12*T22)) -> 0 | AR22: =IF((U22*Genanskaffelsespriser!$D12-(2009-U$3)/$C22*Genanskaffelsespriser!$D12*U22)<0,0,(U22*Genanskaffelsespriser!$D12-(2009-U$3)/$C22*Genanskaffelsespriser!$D12*U22)) -> 0 | AS22: =IF((V22*Genanskaffelsespriser!$D12-(2009-V$3)/$C22*Genanskaffelsespriser!$D12*V22)<0,0,(V22*Genanskaffelsespriser!$D12-(2009-V$3)/$C22*Genanskaffelsespriser!$D12*V22)) -> 0 | AT22: =IF((W22*Genanskaffelsespriser!$D12-(2009-W$3)/$C22*Genanskaffelsespriser!$D12*W22)<0,0,(W22*Genanskaffelsespriser!$D12-(2009-W$3)/$C22*Genanskaffelsespriser!$D12*W22)) -> 0 | AU22: =IF((X22*Genanskaffelsespriser!$D12-(2009-X$3)/$C22*Genanskaffelsespriser!$D12*X22)<0,0,(X22*Genanskaffelsespriser!$D12-(2009-X$3)/$C22*Genanskaffelsespriser!$D12*X22)) -> 0 | AV22: =IF((Y22*Genanskaffelsespriser!$D12-(2009-Y$3)/$C22*Genanskaffelsespriser!$D12*Y22)<0,0,(Y22*Genanskaffelsespriser!$D12-(2009-Y$3)/$C22*Genanskaffelsespriser!$D12*Y22)) -> 0 | AW22: =+SUM(AA22:AV22) -> 129578.9053 | AX22: =VLOOKUP(D$3,Prisindeks!$A$1:$B$111,2,FALSE)/100*AA22 -> 0 | AY22: =VLOOKUP(E$3,Prisindeks!$A$1:$B$111,2,FALSE)/100*AB22 -> 0 | AZ22: =VLOOKUP(F$3,Prisindeks!$A$1:$B$111,2,FALSE)/100*AC22 -> 0 | BA22: =VLOOKUP(G$3,Prisindeks!$A$1:$B$111,2,FALSE)/100*AD22 -> 0 | BB22: =VLOOKUP(H$3,Prisindeks!$A$1:$B$111,2,FALSE)/100*AE22 -> 0 | BC22: =VLOOKUP(I$3,Prisindeks!$A$1:$B$111,2,FALSE)/100*AF22 -> 0 | BD22: =VLOOKUP(J$3,Prisindeks!$A$1:$B$111,2,FALSE)/100*AG22 -> 0 | BE22: =VLOOKUP(K$3,Prisindeks!$A$1:$B$111,2,FALSE)/100*AH22 -> 0 | BF22: =VLOOKUP(L$3,Prisindeks!$A$1:$B$111,2,FALSE)/100*AI22 -> 0 | BG22: =VLOOKUP(M$3,Prisindeks!$A$1:$B$111,2,FALSE)/100*AJ22 -> 0 | BH22: =VLOOKUP(N$3,Prisindeks!$A$1:$B$111,2,FALSE)/100*AK22 -> 59661.4416 | BI22: =VLOOKUP(O$3,Prisindeks!$A$1:$B$111,2,FALSE)/100*AL22 -> 36370.19617 | BJ22: =VLOOKUP(P$3,Prisindeks!$A$1:$B$111,2,FALSE)/100*AM22 -> 0 | BK22: =VLOOKUP(Q$3,Prisindeks!$A$1:$B$111,2,FALSE)/100*AN22 -> 0 | BL22: =VLOOKUP(R$3,Prisindeks!$A$1:$B$111,2,FALSE)/100*AO22 -> 0 | BM22: =VLOOKUP(S$3,Prisindeks!$A$1:$B$111,2,FALSE)/100*AP22 -> 0 | BN22: =VLOOKUP(T$3,Prisindeks!$A$1:$B$111,2,FALSE)/100*AQ22 -> 0 | BO22: =VLOOKUP(U$3,Prisindeks!$A$1:$B$111,2,FALSE)/100*AR22 -> 0 | BP22: =VLOOKUP(V$3,Prisindeks!$A$1:$B$111,2,FALSE)/100*AS22 -> 0 | BQ22: =VLOOKUP(W$3,Prisindeks!$A$1:$B$111,2,FALSE)/100*AT22 -> 0 | BR22: =VLOOKUP(X$3,Prisindeks!$A$1:$B$111,2,FALSE)/100*AU22 -> 0 | BS22: =VLOOKUP(Y$3,Prisindeks!$A$1:$B$111,2,FALSE)/100*AV22 -> 0 | BT22: =+SUM(AX22:BS22) -> 96031.63777 | BU22: 0 | BV22: 0 | BW22: 0 | BX22: 0 | BY22: 0 | BZ22: 0 | CA22: 0 | CB22: 0 | CC22: 0 | CD22: 0 | CE22: 72084.71168 | CF22: 40720.55988 | CG22: 0 | CH22: 0 | CI22: 0 | CJ22: 0 | CK22: 0 | CL22: 0 | CM22: 0 | CN22: 0 | CO22: 0 | CP22: 0 | CQ22: 112805.2716 | CR22: 10
A23: SRO anlæg | B23: boring | C23: =Genanskaffelsespriser!E13 -> 10 | D23: 0 | E23: 0 | F23: 0 | G23: 0 | H23: 0 | I23: 0 | J23: 0 | K23: 0 | L23: 1 | M23: 3 | N23: 5 | O23: 1 | P23: 0 | Q23: 0 | R23: 0 | S23: 0 | T23: 0 | U23: 0 | V23: 0 | W23: 0 | X23: 0 | Y23: 0 | AA23: =IF((D23*Genanskaffelsespriser!$D13-(2009-D$3)/$C23*Genanskaffelsespriser!$D13*D23)<0,0,(D23*Genanskaffelsespriser!$D13-(2009-D$3)/$C23*Genanskaffelsespriser!$D13*D23)) -> 0 | AB23: =IF((E23*Genanskaffelsespriser!$D13-(2009-E$3)/$C23*Genanskaffelsespriser!$D13*E23)<0,0,(E23*Genanskaffelsespriser!$D13-(2009-E$3)/$C23*Genanskaffelsespriser!$D13*E23)) -> 0 | AC23: =IF((F23*Genanskaffelsespriser!$D13-(2009-F$3)/$C23*Genanskaffelsespriser!$D13*F23)<0,0,(F23*Genanskaffelsespriser!$D13-(2009-F$3)/$C23*Genanskaffelsespriser!$D13*F23)) -> 0 | AD23: =IF((G23*Genanskaffelsespriser!$D13-(2009-G$3)/$C23*Genanskaffelsespriser!$D13*G23)<0,0,(G23*Genanskaffelsespriser!$D13-(2009-G$3)/$C23*Genanskaffelsespriser!$D13*G23)) -> 0 | AE23: =IF((H23*Genanskaffelsespriser!$D13-(2009-H$3)/$C23*Genanskaffelsespriser!$D13*H23)<0,0,(H23*Genanskaffelsespriser!$D13-(2009-H$3)/$C23*Genanskaffelsespriser!$D13*H23)) -> 0 | AF23: =IF((I23*Genanskaffelsespriser!$D13-(2009-I$3)/$C23*Genanskaffelsespriser!$D13*I23)<0,0,(I23*Genanskaffelsespriser!$D13-(2009-I$3)/$C23*Genanskaffelsespriser!$D13*I23)) -> 0 | AG23: =IF((J23*Genanskaffelsespriser!$D13-(2009-J$3)/$C23*Genanskaffelsespriser!$D13*J23)<0,0,(J23*Genanskaffelsespriser!$D13-(2009-J$3)/$C23*Genanskaffelsespriser!$D13*J23)) -> 0 | AH23: =IF((K23*Genanskaffelsespriser!$D13-(2009-K$3)/$C23*Genanskaffelsespriser!$D13*K23)<0,0,(K23*Genanskaffelsespriser!$D13-(2009-K$3)/$C23*Genanskaffelsespriser!$D13*K23)) -> 0 | AI23: =IF((L23*Genanskaffelsespriser!$D13-(2009-L$3)/$C23*Genanskaffelsespriser!$D13*L23)<0,0,(L23*Genanskaffelsespriser!$D13-(2009-L$3)/$C23*Genanskaffelsespriser!$D13*L23)) -> 0 | AJ23: =IF((M23*Genanskaffelsespriser!$D13-(2009-M$3)/$C23*Genanskaffelsespriser!$D13*M23)<0,0,(M23*Genanskaffelsespriser!$D13-(2009-M$3)/$C23*Genanskaffelsespriser!$D13*M23)) -> 0 | AK23: =IF((N23*Genanskaffelsespriser!$D13-(2009-N$3)/$C23*Genanskaffelsespriser!$D13*N23)<0,0,(N23*Genanskaffelsespriser!$D13-(2009-N$3)/$C23*Genanskaffelsespriser!$D13*N23)) -> 0 | AL23: =IF((O23*Genanskaffelsespriser!$D13-(2009-O$3)/$C23*Genanskaffelsespriser!$D13*O23)<0,0,(O23*Genanskaffelsespriser!$D13-(2009-O$3)/$C23*Genanskaffelsespriser!$D13*O23)) -> 0 | AM23: =IF((P23*Genanskaffelsespriser!$D13-(2009-P$3)/$C23*Genanskaffelsespriser!$D13*P23)<0,0,(P23*Genanskaffelsespriser!$D13-(2009-P$3)/$C23*Genanskaffelsespriser!$D13*P23)) -> 0 | AN23: =IF((Q23*Genanskaffelsespriser!$D13-(2009-Q$3)/$C23*Genanskaffelsespriser!$D13*Q23)<0,0,(Q23*Genanskaffelsespriser!$D13-(2009-Q$3)/$C23*Genanskaffelsespriser!$D13*Q23)) -> 0 | AO23: =IF((R23*Genanskaffelsespriser!$D13-(2009-R$3)/$C23*Genanskaffelsespriser!$D13*R23)<0,0,(R23*Genanskaffelsespriser!$D13-(2009-R$3)/$C23*Genanskaffelsespriser!$D13*R23)) -> 0 | AP23: =IF((S23*Genanskaffelsespriser!$D13-(2009-S$3)/$C23*Genanskaffelsespriser!$D13*S23)<0,0,(S23*Genanskaffelsespriser!$D13-(2009-S$3)/$C23*Genanskaffelsespriser!$D13*S23)) -> 0 | AQ23: =IF((T23*Genanskaffelsespriser!$D13-(2009-T$3)/$C23*Genanskaffelsespriser!$D13*T23)<0,0,(T23*Genanskaffelsespriser!$D13-(2009-T$3)/$C23*Genanskaffelsespriser!$D13*T23)) -> 0 | AR23: =IF((U23*Genanskaffelsespriser!$D13-(2009-U$3)/$C23*Genanskaffelsespriser!$D13*U23)<0,0,(U23*Genanskaffelsespriser!$D13-(2009-U$3)/$C23*Genanskaffelsespriser!$D13*U23)) -> 0 | AS23: =IF((V23*Genanskaffelsespriser!$D13-(2009-V$3)/$C23*Genanskaffelsespriser!$D13*V23)<0,0,(V23*Genanskaffelsespriser!$D13-(2009-V$3)/$C23*Genanskaffelsespriser!$D13*V23)) -> 0 | AT23: =IF((W23*Genanskaffelsespriser!$D13-(2009-W$3)/$C23*Genanskaffelsespriser!$D13*W23)<0,0,(W23*Genanskaffelsespriser!$D13-(2009-W$3)/$C23*Genanskaffelsespriser!$D13*W23)) -> 0 | AU23: =IF((X23*Genanskaffelsespriser!$D13-(2009-X$3)/$C23*Genanskaffelsespriser!$D13*X23)<0,0,(X23*Genanskaffelsespriser!$D13-(2009-X$3)/$C23*Genanskaffelsespriser!$D13*X23)) -> 0 | AV23: =IF((Y23*Genanskaffelsespriser!$D13-(2009-Y$3)/$C23*Genanskaffelsespriser!$D13*Y23)<0,0,(Y23*Genanskaffelsespriser!$D13-(2009-Y$3)/$C23*Genanskaffelsespriser!$D13*Y23)) -> 0 | AW23: =+SUM(AA23:AV23) -> 0 | AX23: =VLOOKUP(D$3,Prisindeks!$A$1:$B$111,2,FALSE)/100*AA23 -> 0 | AY23: =VLOOKUP(E$3,Prisindeks!$A$1:$B$111,2,FALSE)/100*AB23 -> 0 | AZ23: =VLOOKUP(F$3,Prisindeks!$A$1:$B$111,2,FALSE)/100*AC23 -> 0 | BA23: =VLOOKUP(G$3,Prisindeks!$A$1:$B$111,2,FALSE)/100*AD23 -> 0 | BB23: =VLOOKUP(H$3,Prisindeks!$A$1:$B$111,2,FALSE)/100*AE23 -> 0 | BC23: =VLOOKUP(I$3,Prisindeks!$A$1:$B$111,2,FALSE)/100*AF23 -> 0 | BD23: =VLOOKUP(J$3,Prisindeks!$A$1:$B$111,2,FALSE)/100*AG23 -> 0 | BE23: =VLOOKUP(K$3,Prisindeks!$A$1:$B$111,2,FALSE)/100*AH23 -> 0 | BF23: =VLOOKUP(L$3,Prisindeks!$A$1:$B$111,2,FALSE)/100*AI23 -> 0 | BG23: =VLOOKUP(M$3,Prisindeks!$A$1:$B$111,2,FALSE)/100*AJ23 -> 0 | BH23: =VLOOKUP(N$3,Prisindeks!$A$1:$B$111,2,FALSE)/100*AK23 -> 0 | BI23: =VLOOKUP(O$3,Prisindeks!$A$1:$B$111,2,FALSE)/100*AL23 -> 0 | BJ23: =VLOOKUP(P$3,Prisindeks!$A$1:$B$111,2,FALSE)/100*AM23 -> 0 | BK23: =VLOOKUP(Q$3,Prisindeks!$A$1:$B$111,2,FALSE)/100*AN23 -> 0 | BL23: =VLOOKUP(R$3,Prisindeks!$A$1:$B$111,2,FALSE)/100*AO23 -> 0 | BM23: =VLOOKUP(S$3,Prisindeks!$A$1:$B$111,2,FALSE)/100*AP23 -> 0 | BN23: =VLOOKUP(T$3,Prisindeks!$A$1:$B$111,2,FALSE)/100*AQ23 -> 0 | BO23: =VLOOKUP(U$3,Prisindeks!$A$1:$B$111,2,FALSE)/100*AR23 -> 0 | BP23: =VLOOKUP(V$3,Prisindeks!$A$1:$B$111,2,FALSE)/100*AS23 -> 0 | BQ23: =VLOOKUP(W$3,Prisindeks!$A$1:$B$111,2,FALSE)/100*AT23 -> 0 | BR23: =VLOOKUP(X$3,Prisindeks!$A$1:$B$111,2,FALSE)/100*AU23 -> 0 | BS23: =VLOOKUP(Y$3,Prisindeks!$A$1:$B$111,2,FALSE)/100*AV23 -> 0 | BT23: =+SUM(AX23:BS23) -> 0 | BU23: 0 | BV23: 0 | BW23: 0 | BX23: 0 | BY23: 0 | BZ23: 0 | CA23: 0 | CB23: 0 | CC23: 0 | CD23: 0 | CE23: 0 | CF23: 0 | CG23: 0 | CH23: 0 | CI23: 0 | CJ23: 0 | CK23: 0 | CL23: 0 | CM23: 0 | CN23: 0 | CO23: 0 | CP23: 0 | CQ23: 0 | CR23: 10
A24: Råvandsledninger - Land | AW24: =SUM(AW25:AW28) -> 2615824.82 | BT24: =SUM(BT25:BT28) -> 669945.7247 | CQ24: =SUM(CQ25:CQ28) -> 1642885.272
A25: Ø 50mm < Ledningsnet ≤ Ø110 mm | B25: meter | C25: =Genanskaffelsespriser!E15 -> 75 | D25: 0 | E25: 0 | F25: 0 | G25: 0 | H25: 0 | I25: 0 | J25: 0 | K25: 143.87 | L25: 0 | M25: 0 | N25: 0 | O25: 0 | P25: 0 | Q25: 0 | R25: 0 | S25: 0 | T25: 0 | U25: 0 | V25: 0 | W25: 0 | X25: 0 | Y25: 351.21 | AA25: =IF((D25*Genanskaffelsespriser!$D15-(2009-D$3)/$C25*Genanskaffelsespriser!$D15*D25)<0,0,(D25*Genanskaffelsespriser!$D15-(2009-D$3)/$C25*Genanskaffelsespriser!$D15*D25)) -> 0 | AB25: =IF((E25*Genanskaffelsespriser!$D15-(2009-E$3)/$C25*Genanskaffelsespriser!$D15*E25)<0,0,(E25*Genanskaffelsespriser!$D15-(2009-E$3)/$C25*Genanskaffelsespriser!$D15*E25)) -> 0 | AC25: =IF((F25*Genanskaffelsespriser!$D15-(2009-F$3)/$C25*Genanskaffelsespriser!$D15*F25)<0,0,(F25*Genanskaffelsespriser!$D15-(2009-F$3)/$C25*Genanskaffelsespriser!$D15*F25)) -> 0 | AD25: =IF((G25*Genanskaffelsespriser!$D15-(2009-G$3)/$C25*Genanskaffelsespriser!$D15*G25)<0,0,(G25*Genanskaffelsespriser!$D15-(2009-G$3)/$C25*Genanskaffelsespriser!$D15*G25)) -> 0 | AE25: =IF((H25*Genanskaffelsespriser!$D15-(2009-H$3)/$C25*Genanskaffelsespriser!$D15*H25)<0,0,(H25*Genanskaffelsespriser!$D15-(2009-H$3)/$C25*Genanskaffelsespriser!$D15*H25)) -> 0 | AF25: =IF((I25*Genanskaffelsespriser!$D15-(2009-I$3)/$C25*Genanskaffelsespriser!$D15*I25)<0,0,(I25*Genanskaffelsespriser!$D15-(2009-I$3)/$C25*Genanskaffelsespriser!$D15*I25)) -> 0 | AG25: =IF((J25*Genanskaffelsespriser!$D15-(2009-J$3)/$C25*Genanskaffelsespriser!$D15*J25)<0,0,(J25*Genanskaffelsespriser!$D15-(2009-J$3)/$C25*Genanskaffelsespriser!$D15*J25)) -> 0 | AH25: =IF((K25*Genanskaffelsespriser!$D15-(2009-K$3)/$C25*Genanskaffelsespriser!$D15*K25)<0,0,(K25*Genanskaffelsespriser!$D15-(2009-K$3)/$C25*Genanskaffelsespriser!$D15*K25)) -> 28871.86613 | AI25: =IF((L25*Genanskaffelsespriser!$D15-(2009-L$3)/$C25*Genanskaffelsespriser!$D15*L25)<0,0,(L25*Genanskaffelsespriser!$D15-(2009-L$3)/$C25*Genanskaffelsespriser!$D15*L25)) -> 0 | AJ25: =IF((M25*Genanskaffelsespriser!$D15-(2009-M$3)/$C25*Genanskaffelsespriser!$D15*M25)<0,0,(M25*Genanskaffelsespriser!$D15-(2009-M$3)/$C25*Genanskaffelsespriser!$D15*M25)) -> 0 | AK25: =IF((N25*Genanskaffelsespriser!$D15-(2009-N$3)/$C25*Genanskaffelsespriser!$D15*N25)<0,0,(N25*Genanskaffelsespriser!$D15-(2009-N$3)/$C25*Genanskaffelsespriser!$D15*N25)) -> 0 | AL25: =IF((O25*Genanskaffelsespriser!$D15-(2009-O$3)/$C25*Genanskaffelsespriser!$D15*O25)<0,0,(O25*Genanskaffelsespriser!$D15-(2009-O$3)/$C25*Genanskaffelsespriser!$D15*O25)) -> 0 | AM25: =IF((P25*Genanskaffelsespriser!$D15-(2009-P$3)/$C25*Genanskaffelsespriser!$D15*P25)<0,0,(P25*Genanskaffelsespriser!$D15-(2009-P$3)/$C25*Genanskaffelsespriser!$D15*P25)) -> 0 | AN25: =IF((Q25*Genanskaffelsespriser!$D15-(2009-Q$3)/$C25*Genanskaffelsespriser!$D15*Q25)<0,0,(Q25*Genanskaffelsespriser!$D15-(2009-Q$3)/$C25*Genanskaffelsespriser!$D15*Q25)) -> 0 | AO25: =IF((R25*Genanskaffelsespriser!$D15-(2009-R$3)/$C25*Genanskaffelsespriser!$D15*R25)<0,0,(R25*Genanskaffelsespriser!$D15-(2009-R$3)/$C25*Genanskaffelsespriser!$D15*R25)) -> 0 | AP25: =IF((S25*Genanskaffelsespriser!$D15-(2009-S$3)/$C25*Genanskaffelsespriser!$D15*S25)<0,0,(S25*Genanskaffelsespriser!$D15-(2009-S$3)/$C25*Genanskaffelsespriser!$D15*S25)) -> 0 | AQ25: =IF((T25*Genanskaffelsespriser!$D15-(2009-T$3)/$C25*Genanskaffelsespriser!$D15*T25)<0,0,(T25*Genanskaffelsespriser!$D15-(2009-T$3)/$C25*Genanskaffelsespriser!$D15*T25)) -> 0 | AR25: =IF((U25*Genanskaffelsespriser!$D15-(2009-U$3)/$C25*Genanskaffelsespriser!$D15*U25)<0,0,(U25*Genanskaffelsespriser!$D15-(2009-U$3)/$C25*Genanskaffelsespriser!$D15*U25)) -> 0 | AS25: =IF((V25*Genanskaffelsespriser!$D15-(2009-V$3)/$C25*Genanskaffelsespriser!$D15*V25)<0,0,(V25*Genanskaffelsespriser!$D15-(2009-V$3)/$C25*Genanskaffelsespriser!$D15*V25)) -> 0 | AT25: =IF((W25*Genanskaffelsespriser!$D15-(2009-W$3)/$C25*Genanskaffelsespriser!$D15*W25)<0,0,(W25*Genanskaffelsespriser!$D15-(2009-W$3)/$C25*Genanskaffelsespriser!$D15*W25)) -> 0 | AU25: =IF((X25*Genanskaffelsespriser!$D15-(2009-X$3)/$C25*Genanskaffelsespriser!$D15*X25)<0,0,(X25*Genanskaffelsespriser!$D15-(2009-X$3)/$C25*Genanskaffelsespriser!$D15*X25)) -> 0 | AV25: =IF((Y25*Genanskaffelsespriser!$D15-(2009-Y$3)/$C25*Genanskaffelsespriser!$D15*Y25)<0,0,(Y25*Genanskaffelsespriser!$D15-(2009-Y$3)/$C25*Genanskaffelsespriser!$D15*Y25)) -> 128928.4886 | AW25: =+SUM(AA25:AV25) -> 157800.3547 | AX25: =VLOOKUP(D$3,Prisindeks!$A$1:$B$111,2,FALSE)/100*AA25 -> 0 | AY25: =VLOOKUP(E$3,Prisindeks!$A$1:$B$111,2,FALSE)/100*AB25 -> 0 | AZ25: =VLOOKUP(F$3,Prisindeks!$A$1:$B$111,2,FALSE)/100*AC25 -> 0 | BA25: =VLOOKUP(G$3,Prisindeks!$A$1:$B$111,2,FALSE)/100*AD25 -> 0 | BB25: =VLOOKUP(H$3,Prisindeks!$A$1:$B$111,2,FALSE)/100*AE25 -> 0 | BC25: =VLOOKUP(I$3,Prisindeks!$A$1:$B$111,2,FALSE)/100*AF25 -> 0 | BD25: =VLOOKUP(J$3,Prisindeks!$A$1:$B$111,2,FALSE)/100*AG25 -> 0 | BE25: =VLOOKUP(K$3,Prisindeks!$A$1:$B$111,2,FALSE)/100*AH25 -> 6280.992504 | BF25: =VLOOKUP(L$3,Prisindeks!$A$1:$B$111,2,FALSE)/100*AI25 -> 0 | BG25: =VLOOKUP(M$3,Prisindeks!$A$1:$B$111,2,FALSE)/100*AJ25 -> 0 | BH25: =VLOOKUP(N$3,Prisindeks!$A$1:$B$111,2,FALSE)/100*AK25 -> 0 | BI25: =VLOOKUP(O$3,Prisindeks!$A$1:$B$111,2,FALSE)/100*AL25 -> 0 | BJ25: =VLOOKUP(P$3,Prisindeks!$A$1:$B$111,2,FALSE)/100*AM25 -> 0 | BK25: =VLOOKUP(Q$3,Prisindeks!$A$1:$B$111,2,FALSE)/100*AN25 -> 0 | BL25: =VLOOKUP(R$3,Prisindeks!$A$1:$B$111,2,FALSE)/100*AO25 -> 0 | BM25: =VLOOKUP(S$3,Prisindeks!$A$1:$B$111,2,FALSE)/100*AP25 -> 0 | BN25: =VLOOKUP(T$3,Prisindeks!$A$1:$B$111,2,FALSE)/100*AQ25 -> 0 | BO25: =VLOOKUP(U$3,Prisindeks!$A$1:$B$111,2,FALSE)/100*AR25 -> 0 | BP25: =VLOOKUP(V$3,Prisindeks!$A$1:$B$111,2,FALSE)/100*AS25 -> 0 | BQ25: =VLOOKUP(W$3,Prisindeks!$A$1:$B$111,2,FALSE)/100*AT25 -> 0 | BR25: =VLOOKUP(X$3,Prisindeks!$A$1:$B$111,2,FALSE)/100*AU25 -> 0 | BS25: =VLOOKUP(Y$3,Prisindeks!$A$1:$B$111,2,FALSE)/100*AV25 -> 128928.4886 | BT25: =+SUM(AX25:BS25) -> 135209.4811 | BU25: =(AA25+AX25)/2 -> 0 | BV25: 0 | BW25: 0 | BX25: 0 | BY25: 0 | BZ25: 0 | CA25: 0 | CB25: 17576.42932 | CC25: 0 | CD25: 0 | CE25: =(AK25+BH25)/2 -> 0 | CF25: 0 | CG25: 0 | CH25: 0 | CI25: 0 | CJ25: 0 | CK25: 0 | CL25: 0 | CM25: 0 | CN25: 0 | CO25: =(AU25+BR25)/2 -> 0 | CP25: 128928.4886 | CQ25: 146504.9179 | CR25: 495.08
A26: Ø110 mm < Ledningsnet ≤ Ø 250 mm | B26: meter | C26: =Genanskaffelsespriser!E16 -> 75 | D26: 0 | E26: 0 | F26: 0 | G26: 0 | H26: 0 | I26: 0 | J26: 0 | K26: 3517.8 | L26: 0 | M26: 0 | N26: 0 | O26: 0 | P26: 0 | Q26: 0 | R26: 0 | S26: 0 | T26: 0 | U26: 0 | V26: 0 | W26: 0 | X26: 0 | Y26: 0 | AA26: =IF((D26*Genanskaffelsespriser!$D16-(2009-D$3)/$C26*Genanskaffelsespriser!$D16*D26)<0,0,(D26*Genanskaffelsespriser!$D16-(2009-D$3)/$C26*Genanskaffelsespriser!$D16*D26)) -> 0 | AB26: =IF((E26*Genanskaffelsespriser!$D16-(2009-E$3)/$C26*Genanskaffelsespriser!$D16*E26)<0,0,(E26*Genanskaffelsespriser!$D16-(2009-E$3)/$C26*Genanskaffelsespriser!$D16*E26)) -> 0 | AC26: =IF((F26*Genanskaffelsespriser!$D16-(2009-F$3)/$C26*Genanskaffelsespriser!$D16*F26)<0,0,(F26*Genanskaffelsespriser!$D16-(2009-F$3)/$C26*Genanskaffelsespriser!$D16*F26)) -> 0 | AD26: =IF((G26*Genanskaffelsespriser!$D16-(2009-G$3)/$C26*Genanskaffelsespriser!$D16*G26)<0,0,(G26*Genanskaffelsespriser!$D16-(2009-G$3)/$C26*Genanskaffelsespriser!$D16*G26)) -> 0 | AE26: =IF((H26*Genanskaffelsespriser!$D16-(2009-H$3)/$C26*Genanskaffelsespriser!$D16*H26)<0,0,(H26*Genanskaffelsespriser!$D16-(2009-H$3)/$C26*Genanskaffelsespriser!$D16*H26)) -> 0 | AF26: =IF((I26*Genanskaffelsespriser!$D16-(2009-I$3)/$C26*Genanskaffelsespriser!$D16*I26)<0,0,(I26*Genanskaffelsespriser!$D16-(2009-I$3)/$C26*Genanskaffelsespriser!$D16*I26)) -> 0 | AG26: =IF((J26*Genanskaffelsespriser!$D16-(2009-J$3)/$C26*Genanskaffelsespriser!$D16*J26)<0,0,(J26*Genanskaffelsespriser!$D16-(2009-J$3)/$C26*Genanskaffelsespriser!$D16*J26)) -> 0 | AH26: =IF((K26*Genanskaffelsespriser!$D16-(2009-K$3)/$C26*Genanskaffelsespriser!$D16*K26)<0,0,(K26*Genanskaffelsespriser!$D16-(2009-K$3)/$C26*Genanskaffelsespriser!$D16*K26)) -> 2030113.281 | AI26: =IF((L26*Genanskaffelsespriser!$D16-(2009-L$3)/$C26*Genanskaffelsespriser!$D16*L26)<0,0,(L26*Genanskaffelsespriser!$D16-(2009-L$3)/$C26*Genanskaffelsespriser!$D16*L26)) -> 0 | AJ26: =IF((M26*Genanskaffelsespriser!$D16-(2009-M$3)/$C26*Genanskaffelsespriser!$D16*M26)<0,0,(M26*Genanskaffelsespriser!$D16-(2009-M$3)/$C26*Genanskaffelsespriser!$D16*M26)) -> 0 | AK26: =IF((N26*Genanskaffelsespriser!$D16-(2009-N$3)/$C26*Genanskaffelsespriser!$D16*N26)<0,0,(N26*Genanskaffelsespriser!$D16-(2009-N$3)/$C26*Genanskaffelsespriser!$D16*N26)) -> 0 | AL26: =IF((O26*Genanskaffelsespriser!$D16-(2009-O$3)/$C26*Genanskaffelsespriser!$D16*O26)<0,0,(O26*Genanskaffelsespriser!$D16-(2009-O$3)/$C26*Genanskaffelsespriser!$D16*O26)) -> 0 | AM26: =IF((P26*Genanskaffelsespriser!$D16-(2009-P$3)/$C26*Genanskaffelsespriser!$D16*P26)<0,0,(P26*Genanskaffelsespriser!$D16-(2009-P$3)/$C26*Genanskaffelsespriser!$D16*P26)) -> 0 | AN26: =IF((Q26*Genanskaffelsespriser!$D16-(2009-Q$3)/$C26*Genanskaffelsespriser!$D16*Q26)<0,0,(Q26*Genanskaffelsespriser!$D16-(2009-Q$3)/$C26*Genanskaffelsespriser!$D16*Q26)) -> 0 | AO26: =IF((R26*Genanskaffelsespriser!$D16-(2009-R$3)/$C26*Genanskaffelsespriser!$D16*R26)<0,0,(R26*Genanskaffelsespriser!$D16-(2009-R$3)/$C26*Genanskaffelsespriser!$D16*R26)) -> 0 | AP26: =IF((S26*Genanskaffelsespriser!$D16-(2009-S$3)/$C26*Genanskaffelsespriser!$D16*S26)<0,0,(S26*Genanskaffelsespriser!$D16-(2009-S$3)/$C26*Genanskaffelsespriser!$D16*S26)) -> 0 | AQ26: =IF((T26*Genanskaffelsespriser!$D16-(2009-T$3)/$C26*Genanskaffelsespriser!$D16*T26)<0,0,(T26*Genanskaffelsespriser!$D16-(2009-T$3)/$C26*Genanskaffelsespriser!$D16*T26)) -> 0 | AR26: =IF((U26*Genanskaffelsespriser!$D16-(2009-U$3)/$C26*Genanskaffelsespriser!$D16*U26)<0,0,(U26*Genanskaffelsespriser!$D16-(2009-U$3)/$C26*Genanskaffelsespriser!$D16*U26)) -> 0 | AS26: =IF((V26*Genanskaffelsespriser!$D16-(2009-V$3)/$C26*Genanskaffelsespriser!$D16*V26)<0,0,(V26*Genanskaffelsespriser!$D16-(2009-V$3)/$C26*Genanskaffelsespriser!$D16*V26)) -> 0 | AT26: =IF((W26*Genanskaffelsespriser!$D16-(2009-W$3)/$C26*Genanskaffelsespriser!$D16*W26)<0,0,(W26*Genanskaffelsespriser!$D16-(2009-W$3)/$C26*Genanskaffelsespriser!$D16*W26)) -> 0 | AU26: =IF((X26*Genanskaffelsespriser!$D16-(2009-X$3)/$C26*Genanskaffelsespriser!$D16*X26)<0,0,(X26*Genanskaffelsespriser!$D16-(2009-X$3)/$C26*Genanskaffelsespriser!$D16*X26)) -> 0 | AV26: =IF((Y26*Genanskaffelsespriser!$D16-(2009-Y$3)/$C26*Genanskaffelsespriser!$D16*Y26)<0,0,(Y26*Genanskaffelsespriser!$D16-(2009-Y$3)/$C26*Genanskaffelsespriser!$D16*Y26)) -> 0 | AW26: =+SUM(AA26:AV26) -> 2030113.281 | AX26: =VLOOKUP(D$3,Prisindeks!$A$1:$B$111,2,FALSE)/100*AA26 -> 0 | AY26: =VLOOKUP(E$3,Prisindeks!$A$1:$B$111,2,FALSE)/100*AB26 -> 0 | AZ26: =VLOOKUP(F$3,Prisindeks!$A$1:$B$111,2,FALSE)/100*AC26 -> 0 | BA26: =VLOOKUP(G$3,Prisindeks!$A$1:$B$111,2,FALSE)/100*AD26 -> 0 | BB26: =VLOOKUP(H$3,Prisindeks!$A$1:$B$111,2,FALSE)/100*AE26 -> 0 | BC26: =VLOOKUP(I$3,Prisindeks!$A$1:$B$111,2,FALSE)/100*AF26 -> 0 | BD26: =VLOOKUP(J$3,Prisindeks!$A$1:$B$111,2,FALSE)/100*AG26 -> 0 | BE26: =VLOOKUP(K$3,Prisindeks!$A$1:$B$111,2,FALSE)/100*AH26 -> 441645.3803 | BF26: =VLOOKUP(L$3,Prisindeks!$A$1:$B$111,2,FALSE)/100*AI26 -> 0 | BG26: =VLOOKUP(M$3,Prisindeks!$A$1:$B$111,2,FALSE)/100*AJ26 -> 0 | BH26: =VLOOKUP(N$3,Prisindeks!$A$1:$B$111,2,FALSE)/100*AK26 -> 0 | BI26: =VLOOKUP(O$3,Prisindeks!$A$1:$B$111,2,FALSE)/100*AL26 -> 0 | BJ26: =VLOOKUP(P$3,Prisindeks!$A$1:$B$111,2,FALSE)/100*AM26 -> 0 | BK26: =VLOOKUP(Q$3,Prisindeks!$A$1:$B$111,2,FALSE)/100*AN26 -> 0 | BL26: =VLOOKUP(R$3,Prisindeks!$A$1:$B$111,2,FALSE)/100*AO26 -> 0 | BM26: =VLOOKUP(S$3,Prisindeks!$A$1:$B$111,2,FALSE)/100*AP26 -> 0 | BN26: =VLOOKUP(T$3,Prisindeks!$A$1:$B$111,2,FALSE)/100*AQ26 -> 0 | BO26: =VLOOKUP(U$3,Prisindeks!$A$1:$B$111,2,FALSE)/100*AR26 -> 0 | BP26: =VLOOKUP(V$3,Prisindeks!$A$1:$B$111,2,FALSE)/100*AS26 -> 0 | BQ26: =VLOOKUP(W$3,Prisindeks!$A$1:$B$111,2,FALSE)/100*AT26 -> 0 | BR26: =VLOOKUP(X$3,Prisindeks!$A$1:$B$111,2,FALSE)/100*AU26 -> 0 | BS26: =VLOOKUP(Y$3,Prisindeks!$A$1:$B$111,2,FALSE)/100*AV26 -> 0 | BT26: =+SUM(AX26:BS26) -> 441645.3803 | BU26: 0 | BV26: 0 | BW26: 0 | BX26: 0 | BY26: 0 | BZ26: 0 | CA26: 0 | CB26: 1235879.33 | CC26: 0 | CD26: 0 | CE26: 0 | CF26: 0 | CG26: 0 | CH26: 0 | CI26: 0 | CJ26: 0 | CK26: 0 | CL26: 0 | CM26: 0 | CN26: 0 | CO26: 0 | CP26: 0 | CQ26: 1235879.33 | CR26: 3517.8
A27: Ø 250 mm < Ledningsnet ≤ Ø 500mm | B27: meter | C27: =Genanskaffelsespriser!E17 -> 75 | D27: 0 | E27: 0 | F27: 0 | G27: 0 | H27: 0 | I27: 0 | J27: 0 | K27: 323.27 | L27: 0 | M27: 0 | N27: 0 | O27: 0 | P27: 0 | Q27: 0 | R27: 0 | S27: 0 | T27: 0 | U27: 0 | V27: 0 | W27: 0 | X27: 0 | Y27: 0 | AA27: =IF((D27*Genanskaffelsespriser!$D17-(2009-D$3)/$C27*Genanskaffelsespriser!$D17*D27)<0,0,(D27*Genanskaffelsespriser!$D17-(2009-D$3)/$C27*Genanskaffelsespriser!$D17*D27)) -> 0 | AB27: =IF((E27*Genanskaffelsespriser!$D17-(2009-E$3)/$C27*Genanskaffelsespriser!$D17*E27)<0,0,(E27*Genanskaffelsespriser!$D17-(2009-E$3)/$C27*Genanskaffelsespriser!$D17*E27)) -> 0 | AC27: =IF((F27*Genanskaffelsespriser!$D17-(2009-F$3)/$C27*Genanskaffelsespriser!$D17*F27)<0,0,(F27*Genanskaffelsespriser!$D17-(2009-F$3)/$C27*Genanskaffelsespriser!$D17*F27)) -> 0 | AD27: =IF((G27*Genanskaffelsespriser!$D17-(2009-G$3)/$C27*Genanskaffelsespriser!$D17*G27)<0,0,(G27*Genanskaffelsespriser!$D17-(2009-G$3)/$C27*Genanskaffelsespriser!$D17*G27)) -> 0 | AE27: =IF((H27*Genanskaffelsespriser!$D17-(2009-H$3)/$C27*Genanskaffelsespriser!$D17*H27)<0,0,(H27*Genanskaffelsespriser!$D17-(2009-H$3)/$C27*Genanskaffelsespriser!$D17*H27)) -> 0 | AF27: =IF((I27*Genanskaffelsespriser!$D17-(2009-I$3)/$C27*Genanskaffelsespriser!$D17*I27)<0,0,(I27*Genanskaffelsespriser!$D17-(2009-I$3)/$C27*Genanskaffelsespriser!$D17*I27)) -> 0 | AG27: =IF((J27*Genanskaffelsespriser!$D17-(2009-J$3)/$C27*Genanskaffelsespriser!$D17*J27)<0,0,(J27*Genanskaffelsespriser!$D17-(2009-J$3)/$C27*Genanskaffelsespriser!$D17*J27)) -> 0 | AH27: =IF((K27*Genanskaffelsespriser!$D17-(2009-K$3)/$C27*Genanskaffelsespriser!$D17*K27)<0,0,(K27*Genanskaffelsespriser!$D17-(2009-K$3)/$C27*Genanskaffelsespriser!$D17*K27)) -> 427911.1844 | AI27: =IF((L27*Genanskaffelsespriser!$D17-(2009-L$3)/$C27*Genanskaffelsespriser!$D17*L27)<0,0,(L27*Genanskaffelsespriser!$D17-(2009-L$3)/$C27*Genanskaffelsespriser!$D17*L27)) -> 0 | AJ27: =IF((M27*Genanskaffelsespriser!$D17-(2009-M$3)/$C27*Genanskaffelsespriser!$D17*M27)<0,0,(M27*Genanskaffelsespriser!$D17-(2009-M$3)/$C27*Genanskaffelsespriser!$D17*M27)) -> 0 | AK27: =IF((N27*Genanskaffelsespriser!$D17-(2009-N$3)/$C27*Genanskaffelsespriser!$D17*N27)<0,0,(N27*Genanskaffelsespriser!$D17-(2009-N$3)/$C27*Genanskaffelsespriser!$D17*N27)) -> 0 | AL27: =IF((O27*Genanskaffelsespriser!$D17-(2009-O$3)/$C27*Genanskaffelsespriser!$D17*O27)<0,0,(O27*Genanskaffelsespriser!$D17-(2009-O$3)/$C27*Genanskaffelsespriser!$D17*O27)) -> 0 | AM27: =IF((P27*Genanskaffelsespriser!$D17-(2009-P$3)/$C27*Genanskaffelsespriser!$D17*P27)<0,0,(P27*Genanskaffelsespriser!$D17-(2009-P$3)/$C27*Genanskaffelsespriser!$D17*P27)) -> 0 | AN27: =IF((Q27*Genanskaffelsespriser!$D17-(2009-Q$3)/$C27*Genanskaffelsespriser!$D17*Q27)<0,0,(Q27*Genanskaffelsespriser!$D17-(2009-Q$3)/$C27*Genanskaffelsespriser!$D17*Q27)) -> 0 | AO27: =IF((R27*Genanskaffelsespriser!$D17-(2009-R$3)/$C27*Genanskaffelsespriser!$D17*R27)<0,0,(R27*Genanskaffelsespriser!$D17-(2009-R$3)/$C27*Genanskaffelsespriser!$D17*R27)) -> 0 | AP27: =IF((S27*Genanskaffelsespriser!$D17-(2009-S$3)/$C27*Genanskaffelsespriser!$D17*S27)<0,0,(S27*Genanskaffelsespriser!$D17-(2009-S$3)/$C27*Genanskaffelsespriser!$D17*S27)) -> 0 | AQ27: =IF((T27*Genanskaffelsespriser!$D17-(2009-T$3)/$C27*Genanskaffelsespriser!$D17*T27)<0,0,(T27*Genanskaffelsespriser!$D17-(2009-T$3)/$C27*Genanskaffelsespriser!$D17*T27)) -> 0 | AR27: =IF((U27*Genanskaffelsespriser!$D17-(2009-U$3)/$C27*Genanskaffelsespriser!$D17*U27)<0,0,(U27*Genanskaffelsespriser!$D17-(2009-U$3)/$C27*Genanskaffelsespriser!$D17*U27)) -> 0 | AS27: =IF((V27*Genanskaffelsespriser!$D17-(2009-V$3)/$C27*Genanskaffelsespriser!$D17*V27)<0,0,(V27*Genanskaffelsespriser!$D17-(2009-V$3)/$C27*Genanskaffelsespriser!$D17*V27)) -> 0 | AT27: =IF((W27*Genanskaffelsespriser!$D17-(2009-W$3)/$C27*Genanskaffelsespriser!$D17*W27)<0,0,(W27*Genanskaffelsespriser!$D17-(2009-W$3)/$C27*Genanskaffelsespriser!$D17*W27)) -> 0 | AU27: =IF((X27*Genanskaffelsespriser!$D17-(2009-X$3)/$C27*Genanskaffelsespriser!$D17*X27)<0,0,(X27*Genanskaffelsespriser!$D17-(2009-X$3)/$C27*Genanskaffelsespriser!$D17*X27)) -> 0 | AV27: =IF((Y27*Genanskaffelsespriser!$D17-(2009-Y$3)/$C27*Genanskaffelsespriser!$D17*Y27)<0,0,(Y27*Genanskaffelsespriser!$D17-(2009-Y$3)/$C27*Genanskaffelsespriser!$D17*Y27)) -> 0 | AW27: =+SUM(AA27:AV27) -> 427911.1844 | AX27: =VLOOKUP(D$3,Prisindeks!$A$1:$B$111,2,FALSE)/100*AA27 -> 0 | AY27: =VLOOKUP(E$3,Prisindeks!$A$1:$B$111,2,FALSE)/100*AB27 -> 0 | AZ27: =VLOOKUP(F$3,Prisindeks!$A$1:$B$111,2,FALSE)/100*AC27 -> 0 | BA27: =VLOOKUP(G$3,Prisindeks!$A$1:$B$111,2,FALSE)/100*AD27 -> 0 | BB27: =VLOOKUP(H$3,Prisindeks!$A$1:$B$111,2,FALSE)/100*AE27 -> 0 | BC27: =VLOOKUP(I$3,Prisindeks!$A$1:$B$111,2,FALSE)/100*AF27 -> 0 | BD27: =VLOOKUP(J$3,Prisindeks!$A$1:$B$111,2,FALSE)/100*AG27 -> 0 | BE27: =VLOOKUP(K$3,Prisindeks!$A$1:$B$111,2,FALSE)/100*AH27 -> 93090.86324 | BF27: =VLOOKUP(L$3,Prisindeks!$A$1:$B$111,2,FALSE)/100*AI27 -> 0 | BG27: =VLOOKUP(M$3,Prisindeks!$A$1:$B$111,2,FALSE)/100*AJ27 -> 0 | BH27: =VLOOKUP(N$3,Prisindeks!$A$1:$B$111,2,FALSE)/100*AK27 -> 0 | BI27: =VLOOKUP(O$3,Prisindeks!$A$1:$B$111,2,FALSE)/100*AL27 -> 0 | BJ27: =VLOOKUP(P$3,Prisindeks!$A$1:$B$111,2,FALSE)/100*AM27 -> 0 | BK27: =VLOOKUP(Q$3,Prisindeks!$A$1:$B$111,2,FALSE)/100*AN27 -> 0 | BL27: =VLOOKUP(R$3,Prisindeks!$A$1:$B$111,2,FALSE)/100*AO27 -> 0 | BM27: =VLOOKUP(S$3,Prisindeks!$A$1:$B$111,2,FALSE)/100*AP27 -> 0 | BN27: =VLOOKUP(T$3,Prisindeks!$A$1:$B$111,2,FALSE)/100*AQ27 -> 0 | BO27: =VLOOKUP(U$3,Prisindeks!$A$1:$B$111,2,FALSE)/100*AR27 -> 0 | BP27: =VLOOKUP(V$3,Prisindeks!$A$1:$B$111,2,FALSE)/100*AS27 -> 0 | BQ27: =VLOOKUP(W$3,Prisindeks!$A$1:$B$111,2,FALSE)/100*AT27 -> 0 | BR27: =VLOOKUP(X$3,Prisindeks!$A$1:$B$111,2,FALSE)/100*AU27 -> 0 | BS27: =VLOOKUP(Y$3,Prisindeks!$A$1:$B$111,2,FALSE)/100*AV27 -> 0 | BT27: =+SUM(AX27:BS27) -> 93090.86324 | BU27: 0 | BV27: 0 | BW27: 0 | BX27: 0 | BY27: 0 | BZ27: 0 | CA27: 0 | CB27: 260501.0238 | CC27: 0 | CD27: 0 | CE27: 0 | CF27: 0 | CG27: 0 | CH27: 0 | CI27: 0 | CJ27: 0 | CK27: 0 | CL27: 0 | CM27: 0 | CN27: 0 | CO27: 0 | CP27: 0 | CQ27: 260501.0238 | CR27: 323.27
A28: Ledningsnet > Ø 500 mm | B28: meter | C28: =Genanskaffelsespriser!E18 -> 75 | D28: 0 | E28: 0 | F28: 0 | G28: 0 | H28: 0 | I28: 0 | J28: 0 | K28: 0 | L28: 0 | M28: 0 | N28: 0 | O28: 0 | P28: 0 | Q28: 0 | R28: 0 | S28: 0 | T28: 0 | U28: 0 | V28: 0 | W28: 0 | X28: 0 | Y28: 0 | AA28: =IF((D28*Genanskaffelsespriser!$D18-(2009-D$3)/$C28*Genanskaffelsespriser!$D18*D28)<0,0,(D28*Genanskaffelsespriser!$D18-(2009-D$3)/$C28*Genanskaffelsespriser!$D18*D28)) -> 0 | AB28: =IF((E28*Genanskaffelsespriser!$D18-(2009-E$3)/$C28*Genanskaffelsespriser!$D18*E28)<0,0,(E28*Genanskaffelsespriser!$D18-(2009-E$3)/$C28*Genanskaffelsespriser!$D18*E28)) -> 0 | AC28: =IF((F28*Genanskaffelsespriser!$D18-(2009-F$3)/$C28*Genanskaffelsespriser!$D18*F28)<0,0,(F28*Genanskaffelsespriser!$D18-(2009-F$3)/$C28*Genanskaffelsespriser!$D18*F28)) -> 0 | AD28: =IF((G28*Genanskaffelsespriser!$D18-(2009-G$3)/$C28*Genanskaffelsespriser!$D18*G28)<0,0,(G28*Genanskaffelsespriser!$D18-(2009-G$3)/$C28*Genanskaffelsespriser!$D18*G28)) -> 0 | AE28: =IF((H28*Genanskaffelsespriser!$D18-(2009-H$3)/$C28*Genanskaffelsespriser!$D18*H28)<0,0,(H28*Genanskaffelsespriser!$D18-(2009-H$3)/$C28*Genanskaffelsespriser!$D18*H28)) -> 0 | AF28: =IF((I28*Genanskaffelsespriser!$D18-(2009-I$3)/$C28*Genanskaffelsespriser!$D18*I28)<0,0,(I28*Genanskaffelsespriser!$D18-(2009-I$3)/$C28*Genanskaffelsespriser!$D18*I28)) -> 0 | AG28: =IF((J28*Genanskaffelsespriser!$D18-(2009-J$3)/$C28*Genanskaffelsespriser!$D18*J28)<0,0,(J28*Genanskaffelsespriser!$D18-(2009-J$3)/$C28*Genanskaffelsespriser!$D18*J28)) -> 0 | AH28: =IF((K28*Genanskaffelsespriser!$D18-(2009-K$3)/$C28*Genanskaffelsespriser!$D18*K28)<0,0,(K28*Genanskaffelsespriser!$D18-(2009-K$3)/$C28*Genanskaffelsespriser!$D18*K28)) -> 0 | AI28: =IF((L28*Genanskaffelsespriser!$D18-(2009-L$3)/$C28*Genanskaffelsespriser!$D18*L28)<0,0,(L28*Genanskaffelsespriser!$D18-(2009-L$3)/$C28*Genanskaffelsespriser!$D18*L28)) -> 0 | AJ28: =IF((M28*Genanskaffelsespriser!$D18-(2009-M$3)/$C28*Genanskaffelsespriser!$D18*M28)<0,0,(M28*Genanskaffelsespriser!$D18-(2009-M$3)/$C28*Genanskaffelsespriser!$D18*M28)) -> 0 | AK28: =IF((N28*Genanskaffelsespriser!$D18-(2009-N$3)/$C28*Genanskaffelsespriser!$D18*N28)<0,0,(N28*Genanskaffelsespriser!$D18-(2009-N$3)/$C28*Genanskaffelsespriser!$D18*N28)) -> 0 | AL28: =IF((O28*Genanskaffelsespriser!$D18-(2009-O$3)/$C28*Genanskaffelsespriser!$D18*O28)<0,0,(O28*Genanskaffelsespriser!$D18-(2009-O$3)/$C28*Genanskaffelsespriser!$D18*O28)) -> 0 | AM28: =IF((P28*Genanskaffelsespriser!$D18-(2009-P$3)/$C28*Genanskaffelsespriser!$D18*P28)<0,0,(P28*Genanskaffelsespriser!$D18-(2009-P$3)/$C28*Genanskaffelsespriser!$D18*P28)) -> 0 | AN28: =IF((Q28*Genanskaffelsespriser!$D18-(2009-Q$3)/$C28*Genanskaffelsespriser!$D18*Q28)<0,0,(Q28*Genanskaffelsespriser!$D18-(2009-Q$3)/$C28*Genanskaffelsespriser!$D18*Q28)) -> 0 | AO28: =IF((R28*Genanskaffelsespriser!$D18-(2009-R$3)/$C28*Genanskaffelsespriser!$D18*R28)<0,0,(R28*Genanskaffelsespriser!$D18-(2009-R$3)/$C28*Genanskaffelsespriser!$D18*R28)) -> 0 | AP28: =IF((S28*Genanskaffelsespriser!$D18-(2009-S$3)/$C28*Genanskaffelsespriser!$D18*S28)<0,0,(S28*Genanskaffelsespriser!$D18-(2009-S$3)/$C28*Genanskaffelsespriser!$D18*S28)) -> 0 | AQ28: =IF((T28*Genanskaffelsespriser!$D18-(2009-T$3)/$C28*Genanskaffelsespriser!$D18*T28)<0,0,(T28*Genanskaffelsespriser!$D18-(2009-T$3)/$C28*Genanskaffelsespriser!$D18*T28)) -> 0 | AR28: =IF((U28*Genanskaffelsespriser!$D18-(2009-U$3)/$C28*Genanskaffelsespriser!$D18*U28)<0,0,(U28*Genanskaffelsespriser!$D18-(2009-U$3)/$C28*Genanskaffelsespriser!$D18*U28)) -> 0 | AS28: =IF((V28*Genanskaffelsespriser!$D18-(2009-V$3)/$C28*Genanskaffelsespriser!$D18*V28)<0,0,(V28*Genanskaffelsespriser!$D18-(2009-V$3)/$C28*Genanskaffelsespriser!$D18*V28)) -> 0 | AT28: =IF((W28*Genanskaffelsespriser!$D18-(2009-W$3)/$C28*Genanskaffelsespriser!$D18*W28)<0,0,(W28*Genanskaffelsespriser!$D18-(2009-W$3)/$C28*Genanskaffelsespriser!$D18*W28)) -> 0 | AU28: =IF((X28*Genanskaffelsespriser!$D18-(2009-X$3)/$C28*Genanskaffelsespriser!$D18*X28)<0,0,(X28*Genanskaffelsespriser!$D18-(2009-X$3)/$C28*Genanskaffelsespriser!$D18*X28)) -> 0 | AV28: =IF((Y28*Genanskaffelsespriser!$D18-(2009-Y$3)/$C28*Genanskaffelsespriser!$D18*Y28)<0,0,(Y28*Genanskaffelsespriser!$D18-(2009-Y$3)/$C28*Genanskaffelsespriser!$D18*Y28)) -> 0 | AW28: =+SUM(AA28:AV28) -> 0 | AX28: =VLOOKUP(D$3,Prisindeks!$A$1:$B$111,2,FALSE)/100*AA28 -> 0 | AY28: =VLOOKUP(E$3,Prisindeks!$A$1:$B$111,2,FALSE)/100*AB28 -> 0 | AZ28: =VLOOKUP(F$3,Prisindeks!$A$1:$B$111,2,FALSE)/100*AC28 -> 0 | BA28: =VLOOKUP(G$3,Prisindeks!$A$1:$B$111,2,FALSE)/100*AD28 -> 0 | BB28: =VLOOKUP(H$3,Prisindeks!$A$1:$B$111,2,FALSE)/100*AE28 -> 0 | BC28: =VLOOKUP(I$3,Prisindeks!$A$1:$B$111,2,FALSE)/100*AF28 -> 0 | BD28: =VLOOKUP(J$3,Prisindeks!$A$1:$B$111,2,FALSE)/100*AG28 -> 0 | BE28: =VLOOKUP(K$3,Prisindeks!$A$1:$B$111,2,FALSE)/100*AH28 -> 0 | BF28: =VLOOKUP(L$3,Prisindeks!$A$1:$B$111,2,FALSE)/100*AI28 -> 0 | BG28: =VLOOKUP(M$3,Prisindeks!$A$1:$B$111,2,FALSE)/100*AJ28 -> 0 | BH28: =VLOOKUP(N$3,Prisindeks!$A$1:$B$111,2,FALSE)/100*AK28 -> 0 | BI28: =VLOOKUP(O$3,Prisindeks!$A$1:$B$111,2,FALSE)/100*AL28 -> 0 | BJ28: =VLOOKUP(P$3,Prisindeks!$A$1:$B$111,2,FALSE)/100*AM28 -> 0 | BK28: =VLOOKUP(Q$3,Prisindeks!$A$1:$B$111,2,FALSE)/100*AN28 -> 0 | BL28: =VLOOKUP(R$3,Prisindeks!$A$1:$B$111,2,FALSE)/100*AO28 -> 0 | BM28: =VLOOKUP(S$3,Prisindeks!$A$1:$B$111,2,FALSE)/100*AP28 -> 0 | BN28: =VLOOKUP(T$3,Prisindeks!$A$1:$B$111,2,FALSE)/100*AQ28 -> 0 | BO28: =VLOOKUP(U$3,Prisindeks!$A$1:$B$111,2,FALSE)/100*AR28 -> 0 | BP28: =VLOOKUP(V$3,Prisindeks!$A$1:$B$111,2,FALSE)/100*AS28 -> 0 | BQ28: =VLOOKUP(W$3,Prisindeks!$A$1:$B$111,2,FALSE)/100*AT28 -> 0 | BR28: =VLOOKUP(X$3,Prisindeks!$A$1:$B$111,2,FALSE)/100*AU28 -> 0 | BS28: =VLOOKUP(Y$3,Prisindeks!$A$1:$B$111,2,FALSE)/100*AV28 -> 0 | BT28: =+SUM(AX28:BS28) -> 0 | BU28: 0 | BV28: 0 | BW28: 0 | BX28: 0 | BY28: 0 | BZ28: 0 | CA28: 0 | CB28: 0 | CC28: 0 | CD28: 0 | CE28: 0 | CF28: 0 | CG28: 0 | CH28: 0 | CI28: 0 | CJ28: 0 | CK28: 0 | CL28: 0 | CM28: 0 | CN28: 0 | CO28: 0 | CP28: 0 | CQ28: 0 | CR28: 0
A29: Råvandsledninger - By | AW29: =SUM(AW30:AW33) -> 956717.219 | BT29: =SUM(BT30:BT33) -> 471586.1174 | CQ29: =SUM(CQ30:CQ33) -> 714151.6682
A30: Ø 50mm < Ledningsnet ≤ Ø110 mm | B30: meter | C30: =Genanskaffelsespriser!E20 -> 75 | D30: 0 | E30: 0 | F30: 0 | G30: 0 | H30: 0 | I30: 0 | J30: 0 | K30: 21.87 | L30: 0 | M30: 455.38 | N30: 165.07 | O30: 0 | P30: 0 | Q30: 0 | R30: 0 | S30: 0 | T30: 0 | U30: 0 | V30: 0 | W30: 0 | X30: 0 | Y30: 0 | AA30: =IF((D30*Genanskaffelsespriser!$D20-(2009-D$3)/$C30*Genanskaffelsespriser!$D20*D30)<0,0,(D30*Genanskaffelsespriser!$D20-(2009-D$3)/$C30*Genanskaffelsespriser!$D20*D30)) -> 0 | AB30: =IF((E30*Genanskaffelsespriser!$D20-(2009-E$3)/$C30*Genanskaffelsespriser!$D20*E30)<0,0,(E30*Genanskaffelsespriser!$D20-(2009-E$3)/$C30*Genanskaffelsespriser!$D20*E30)) -> 0 | AC30: =IF((F30*Genanskaffelsespriser!$D20-(2009-F$3)/$C30*Genanskaffelsespriser!$D20*F30)<0,0,(F30*Genanskaffelsespriser!$D20-(2009-F$3)/$C30*Genanskaffelsespriser!$D20*F30)) -> 0 | AD30: =IF((G30*Genanskaffelsespriser!$D20-(2009-G$3)/$C30*Genanskaffelsespriser!$D20*G30)<0,0,(G30*Genanskaffelsespriser!$D20-(2009-G$3)/$C30*Genanskaffelsespriser!$D20*G30)) -> 0 | AE30: =IF((H30*Genanskaffelsespriser!$D20-(2009-H$3)/$C30*Genanskaffelsespriser!$D20*H30)<0,0,(H30*Genanskaffelsespriser!$D20-(2009-H$3)/$C30*Genanskaffelsespriser!$D20*H30)) -> 0 | AF30: =IF((I30*Genanskaffelsespriser!$D20-(2009-I$3)/$C30*Genanskaffelsespriser!$D20*I30)<0,0,(I30*Genanskaffelsespriser!$D20-(2009-I$3)/$C30*Genanskaffelsespriser!$D20*I30)) -> 0 | AG30: =IF((J30*Genanskaffelsespriser!$D20-(2009-J$3)/$C30*Genanskaffelsespriser!$D20*J30)<0,0,(J30*Genanskaffelsespriser!$D20-(2009-J$3)/$C30*Genanskaffelsespriser!$D20*J30)) -> 0 | AH30: =IF((K30*Genanskaffelsespriser!$D20-(2009-K$3)/$C30*Genanskaffelsespriser!$D20*K30)<0,0,(K30*Genanskaffelsespriser!$D20-(2009-K$3)/$C30*Genanskaffelsespriser!$D20*K30)) -> 11877.243 | AI30: =IF((L30*Genanskaffelsespriser!$D20-(2009-L$3)/$C30*Genanskaffelsespriser!$D20*L30)<0,0,(L30*Genanskaffelsespriser!$D20-(2009-L$3)/$C30*Genanskaffelsespriser!$D20*L30)) -> 0 | AJ30: =IF((M30*Genanskaffelsespriser!$D20-(2009-M$3)/$C30*Genanskaffelsespriser!$D20*M30)<0,0,(M30*Genanskaffelsespriser!$D20-(2009-M$3)/$C30*Genanskaffelsespriser!$D20*M30)) -> 319692.7772 | AK30: =IF((N30*Genanskaffelsespriser!$D20-(2009-N$3)/$C30*Genanskaffelsespriser!$D20*N30)<0,0,(N30*Genanskaffelsespriser!$D20-(2009-N$3)/$C30*Genanskaffelsespriser!$D20*N30)) -> 126817.4881 | AL30: =IF((O30*Genanskaffelsespriser!$D20-(2009-O$3)/$C30*Genanskaffelsespriser!$D20*O30)<0,0,(O30*Genanskaffelsespriser!$D20-(2009-O$3)/$C30*Genanskaffelsespriser!$D20*O30)) -> 0 | AM30: =IF((P30*Genanskaffelsespriser!$D20-(2009-P$3)/$C30*Genanskaffelsespriser!$D20*P30)<0,0,(P30*Genanskaffelsespriser!$D20-(2009-P$3)/$C30*Genanskaffelsespriser!$D20*P30)) -> 0 | AN30: =IF((Q30*Genanskaffelsespriser!$D20-(2009-Q$3)/$C30*Genanskaffelsespriser!$D20*Q30)<0,0,(Q30*Genanskaffelsespriser!$D20-(2009-Q$3)/$C30*Genanskaffelsespriser!$D20*Q30)) -> 0 | AO30: =IF((R30*Genanskaffelsespriser!$D20-(2009-R$3)/$C30*Genanskaffelsespriser!$D20*R30)<0,0,(R30*Genanskaffelsespriser!$D20-(2009-R$3)/$C30*Genanskaffelsespriser!$D20*R30)) -> 0 | AP30: =IF((S30*Genanskaffelsespriser!$D20-(2009-S$3)/$C30*Genanskaffelsespriser!$D20*S30)<0,0,(S30*Genanskaffelsespriser!$D20-(2009-S$3)/$C30*Genanskaffelsespriser!$D20*S30)) -> 0 | AQ30: =IF((T30*Genanskaffelsespriser!$D20-(2009-T$3)/$C30*Genanskaffelsespriser!$D20*T30)<0,0,(T30*Genanskaffelsespriser!$D20-(2009-T$3)/$C30*Genanskaffelsespriser!$D20*T30)) -> 0 | AR30: =IF((U30*Genanskaffelsespriser!$D20-(2009-U$3)/$C30*Genanskaffelsespriser!$D20*U30)<0,0,(U30*Genanskaffelsespriser!$D20-(2009-U$3)/$C30*Genanskaffelsespriser!$D20*U30)) -> 0 | AS30: =IF((V30*Genanskaffelsespriser!$D20-(2009-V$3)/$C30*Genanskaffelsespriser!$D20*V30)<0,0,(V30*Genanskaffelsespriser!$D20-(2009-V$3)/$C30*Genanskaffelsespriser!$D20*V30)) -> 0 | AT30: =IF((W30*Genanskaffelsespriser!$D20-(2009-W$3)/$C30*Genanskaffelsespriser!$D20*W30)<0,0,(W30*Genanskaffelsespriser!$D20-(2009-W$3)/$C30*Genanskaffelsespriser!$D20*W30)) -> 0 | AU30: =IF((X30*Genanskaffelsespriser!$D20-(2009-X$3)/$C30*Genanskaffelsespriser!$D20*X30)<0,0,(X30*Genanskaffelsespriser!$D20-(2009-X$3)/$C30*Genanskaffelsespriser!$D20*X30)) -> 0 | AV30: =IF((Y30*Genanskaffelsespriser!$D20-(2009-Y$3)/$C30*Genanskaffelsespriser!$D20*Y30)<0,0,(Y30*Genanskaffelsespriser!$D20-(2009-Y$3)/$C30*Genanskaffelsespriser!$D20*Y30)) -> 0 | AW30: =+SUM(AA30:AV30) -> 458387.5084 | AX30: =VLOOKUP(D$3,Prisindeks!$A$1:$B$111,2,FALSE)/100*AA30 -> 0 | AY30: =VLOOKUP(E$3,Prisindeks!$A$1:$B$111,2,FALSE)/100*AB30 -> 0 | AZ30: =VLOOKUP(F$3,Prisindeks!$A$1:$B$111,2,FALSE)/100*AC30 -> 0 | BA30: =VLOOKUP(G$3,Prisindeks!$A$1:$B$111,2,FALSE)/100*AD30 -> 0 | BB30: =VLOOKUP(H$3,Prisindeks!$A$1:$B$111,2,FALSE)/100*AE30 -> 0 | BC30: =VLOOKUP(I$3,Prisindeks!$A$1:$B$111,2,FALSE)/100*AF30 -> 0 | BD30: =VLOOKUP(J$3,Prisindeks!$A$1:$B$111,2,FALSE)/100*AG30 -> 0 | BE30: =VLOOKUP(K$3,Prisindeks!$A$1:$B$111,2,FALSE)/100*AH30 -> 2583.860492 | BF30: =VLOOKUP(L$3,Prisindeks!$A$1:$B$111,2,FALSE)/100*AI30 -> 0 | BG30: =VLOOKUP(M$3,Prisindeks!$A$1:$B$111,2,FALSE)/100*AJ30 -> 189953.0954 | BH30: =VLOOKUP(N$3,Prisindeks!$A$1:$B$111,2,FALSE)/100*AK30 -> 89531.35558 | BI30: =VLOOKUP(O$3,Prisindeks!$A$1:$B$111,2,FALSE)/100*AL30 -> 0 | BJ30: =VLOOKUP(P$3,Prisindeks!$A$1:$B$111,2,FALSE)/100*AM30 -> 0 | BK30: =VLOOKUP(Q$3,Prisindeks!$A$1:$B$111,2,FALSE)/100*AN30 -> 0 | BL30: =VLOOKUP(R$3,Prisindeks!$A$1:$B$111,2,FALSE)/100*AO30 -> 0 | BM30: =VLOOKUP(S$3,Prisindeks!$A$1:$B$111,2,FALSE)/100*AP30 -> 0 | BN30: =VLOOKUP(T$3,Prisindeks!$A$1:$B$111,2,FALSE)/100*AQ30 -> 0 | BO30: =VLOOKUP(U$3,Prisindeks!$A$1:$B$111,2,FALSE)/100*AR30 -> 0 | BP30: =VLOOKUP(V$3,Prisindeks!$A$1:$B$111,2,FALSE)/100*AS30 -> 0 | BQ30: =VLOOKUP(W$3,Prisindeks!$A$1:$B$111,2,FALSE)/100*AT30 -> 0 | BR30: =VLOOKUP(X$3,Prisindeks!$A$1:$B$111,2,FALSE)/100*AU30 -> 0 | BS30: =VLOOKUP(Y$3,Prisindeks!$A$1:$B$111,2,FALSE)/100*AV30 -> 0 | BT30: =+SUM(AX30:BS30) -> 282068.3115 | BU30: =(AA30+AX30)/2 -> 0 | BV30: 0 | BW30: 0 | BX30: 0 | BY30: 0 | BZ30: 0 | CA30: 0 | CB30: 7230.551745 | CC30: 0 | CD30: 254822.9363 | CE30: =(AK30+BH30)/2 -> 108174.4219 | CF30: 0 | CG30: 0 | CH30: 0 | CI30: 0 | CJ30: 0 | CK30: 0 | CL30: 0 | CM30: 0 | CN30: 0 | CO30: =(AU30+BR30)/2 -> 0 | CP30: 0 | CQ30: 370227.9099 | CR30: 642.32
A31: Ø110 mm < Ledningsnet ≤ Ø 250 mm | B31: meter | C31: =Genanskaffelsespriser!E21 -> 75 | D31: 0 | E31: 0 | F31: 0 | G31: 0 | H31: 0 | I31: 0 | J31: 0 | K31: 348.06 | L31: 0 | M31: 0 | N31: 122.96 | O31: 0 | P31: 0 | Q31: 0 | R31: 0 | S31: 0 | T31: 0 | U31: 0 | V31: 0 | W31: 0 | X31: 0 | Y31: 0 | AA31: =IF((D31*Genanskaffelsespriser!$D21-(2009-D$3)/$C31*Genanskaffelsespriser!$D21*D31)<0,0,(D31*Genanskaffelsespriser!$D21-(2009-D$3)/$C31*Genanskaffelsespriser!$D21*D31)) -> 0 | AB31: =IF((E31*Genanskaffelsespriser!$D21-(2009-E$3)/$C31*Genanskaffelsespriser!$D21*E31)<0,0,(E31*Genanskaffelsespriser!$D21-(2009-E$3)/$C31*Genanskaffelsespriser!$D21*E31)) -> 0 | AC31: =IF((F31*Genanskaffelsespriser!$D21-(2009-F$3)/$C31*Genanskaffelsespriser!$D21*F31)<0,0,(F31*Genanskaffelsespriser!$D21-(2009-F$3)/$C31*Genanskaffelsespriser!$D21*F31)) -> 0 | AD31: =IF((G31*Genanskaffelsespriser!$D21-(2009-G$3)/$C31*Genanskaffelsespriser!$D21*G31)<0,0,(G31*Genanskaffelsespriser!$D21-(2009-G$3)/$C31*Genanskaffelsespriser!$D21*G31)) -> 0 | AE31: =IF((H31*Genanskaffelsespriser!$D21-(2009-H$3)/$C31*Genanskaffelsespriser!$D21*H31)<0,0,(H31*Genanskaffelsespriser!$D21-(2009-H$3)/$C31*Genanskaffelsespriser!$D21*H31)) -> 0 | AF31: =IF((I31*Genanskaffelsespriser!$D21-(2009-I$3)/$C31*Genanskaffelsespriser!$D21*I31)<0,0,(I31*Genanskaffelsespriser!$D21-(2009-I$3)/$C31*Genanskaffelsespriser!$D21*I31)) -> 0 | AG31: =IF((J31*Genanskaffelsespriser!$D21-(2009-J$3)/$C31*Genanskaffelsespriser!$D21*J31)<0,0,(J31*Genanskaffelsespriser!$D21-(2009-J$3)/$C31*Genanskaffelsespriser!$D21*J31)) -> 0 | AH31: =IF((K31*Genanskaffelsespriser!$D21-(2009-K$3)/$C31*Genanskaffelsespriser!$D21*K31)<0,0,(K31*Genanskaffelsespriser!$D21-(2009-K$3)/$C31*Genanskaffelsespriser!$D21*K31)) -> 332274.9128 | AI31: =IF((L31*Genanskaffelsespriser!$D21-(2009-L$3)/$C31*Genanskaffelsespriser!$D21*L31)<0,0,(L31*Genanskaffelsespriser!$D21-(2009-L$3)/$C31*Genanskaffelsespriser!$D21*L31)) -> 0 | AJ31: =IF((M31*Genanskaffelsespriser!$D21-(2009-M$3)/$C31*Genanskaffelsespriser!$D21*M31)<0,0,(M31*Genanskaffelsespriser!$D21-(2009-M$3)/$C31*Genanskaffelsespriser!$D21*M31)) -> 0 | AK31: =IF((N31*Genanskaffelsespriser!$D21-(2009-N$3)/$C31*Genanskaffelsespriser!$D21*N31)<0,0,(N31*Genanskaffelsespriser!$D21-(2009-N$3)/$C31*Genanskaffelsespriser!$D21*N31)) -> 166054.7978 | AL31: =IF((O31*Genanskaffelsespriser!$D21-(2009-O$3)/$C31*Genanskaffelsespriser!$D21*O31)<0,0,(O31*Genanskaffelsespriser!$D21-(2009-O$3)/$C31*Genanskaffelsespriser!$D21*O31)) -> 0 | AM31: =IF((P31*Genanskaffelsespriser!$D21-(2009-P$3)/$C31*Genanskaffelsespriser!$D21*P31)<0,0,(P31*Genanskaffelsespriser!$D21-(2009-P$3)/$C31*Genanskaffelsespriser!$D21*P31)) -> 0 | AN31: =IF((Q31*Genanskaffelsespriser!$D21-(2009-Q$3)/$C31*Genanskaffelsespriser!$D21*Q31)<0,0,(Q31*Genanskaffelsespriser!$D21-(2009-Q$3)/$C31*Genanskaffelsespriser!$D21*Q31)) -> 0 | AO31: =IF((R31*Genanskaffelsespriser!$D21-(2009-R$3)/$C31*Genanskaffelsespriser!$D21*R31)<0,0,(R31*Genanskaffelsespriser!$D21-(2009-R$3)/$C31*Genanskaffelsespriser!$D21*R31)) -> 0 | AP31: =IF((S31*Genanskaffelsespriser!$D21-(2009-S$3)/$C31*Genanskaffelsespriser!$D21*S31)<0,0,(S31*Genanskaffelsespriser!$D21-(2009-S$3)/$C31*Genanskaffelsespriser!$D21*S31)) -> 0 | AQ31: =IF((T31*Genanskaffelsespriser!$D21-(2009-T$3)/$C31*Genanskaffelsespriser!$D21*T31)<0,0,(T31*Genanskaffelsespriser!$D21-(2009-T$3)/$C31*Genanskaffelsespriser!$D21*T31)) -> 0 | AR31: =IF((U31*Genanskaffelsespriser!$D21-(2009-U$3)/$C31*Genanskaffelsespriser!$D21*U31)<0,0,(U31*Genanskaffelsespriser!$D21-(2009-U$3)/$C31*Genanskaffelsespriser!$D21*U31)) -> 0 | AS31: =IF((V31*Genanskaffelsespriser!$D21-(2009-V$3)/$C31*Genanskaffelsespriser!$D21*V31)<0,0,(V31*Genanskaffelsespriser!$D21-(2009-V$3)/$C31*Genanskaffelsespriser!$D21*V31)) -> 0 | AT31: =IF((W31*Genanskaffelsespriser!$D21-(2009-W$3)/$C31*Genanskaffelsespriser!$D21*W31)<0,0,(W31*Genanskaffelsespriser!$D21-(2009-W$3)/$C31*Genanskaffelsespriser!$D21*W31)) -> 0 | AU31: =IF((X31*Genanskaffelsespriser!$D21-(2009-X$3)/$C31*Genanskaffelsespriser!$D21*X31)<0,0,(X31*Genanskaffelsespriser!$D21-(2009-X$3)/$C31*Genanskaffelsespriser!$D21*X31)) -> 0 | AV31: =IF((Y31*Genanskaffelsespriser!$D21-(2009-Y$3)/$C31*Genanskaffelsespriser!$D21*Y31)<0,0,(Y31*Genanskaffelsespriser!$D21-(2009-Y$3)/$C31*Genanskaffelsespriser!$D21*Y31)) -> 0 | AW31: =+SUM(AA31:AV31) -> 498329.7107 | AX31: =VLOOKUP(D$3,Prisindeks!$A$1:$B$111,2,FALSE)/100*AA31 -> 0 | AY31: =VLOOKUP(E$3,Prisindeks!$A$1:$B$111,2,FALSE)/100*AB31 -> 0 | AZ31: =VLOOKUP(F$3,Prisindeks!$A$1:$B$111,2,FALSE)/100*AC31 -> 0 | BA31: =VLOOKUP(G$3,Prisindeks!$A$1:$B$111,2,FALSE)/100*AD31 -> 0 | BB31: =VLOOKUP(H$3,Prisindeks!$A$1:$B$111,2,FALSE)/100*AE31 -> 0 | BC31: =VLOOKUP(I$3,Prisindeks!$A$1:$B$111,2,FALSE)/100*AF31 -> 0 | BD31: =VLOOKUP(J$3,Prisindeks!$A$1:$B$111,2,FALSE)/100*AG31 -> 0 | BE31: =VLOOKUP(K$3,Prisindeks!$A$1:$B$111,2,FALSE)/100*AH31 -> 72285.4639 | BF31: =VLOOKUP(L$3,Prisindeks!$A$1:$B$111,2,FALSE)/100*AI31 -> 0 | BG31: =VLOOKUP(M$3,Prisindeks!$A$1:$B$111,2,FALSE)/100*AJ31 -> 0 | BH31: =VLOOKUP(N$3,Prisindeks!$A$1:$B$111,2,FALSE)/100*AK31 -> 117232.3421 | BI31: =VLOOKUP(O$3,Prisindeks!$A$1:$B$111,2,FALSE)/100*AL31 -> 0 | BJ31: =VLOOKUP(P$3,Prisindeks!$A$1:$B$111,2,FALSE)/100*AM31 -> 0 | BK31: =VLOOKUP(Q$3,Prisindeks!$A$1:$B$111,2,FALSE)/100*AN31 -> 0 | BL31: =VLOOKUP(R$3,Prisindeks!$A$1:$B$111,2,FALSE)/100*AO31 -> 0 | BM31: =VLOOKUP(S$3,Prisindeks!$A$1:$B$111,2,FALSE)/100*AP31 -> 0 | BN31: =VLOOKUP(T$3,Prisindeks!$A$1:$B$111,2,FALSE)/100*AQ31 -> 0 | BO31: =VLOOKUP(U$3,Prisindeks!$A$1:$B$111,2,FALSE)/100*AR31 -> 0 | BP31: =VLOOKUP(V$3,Prisindeks!$A$1:$B$111,2,FALSE)/100*AS31 -> 0 | BQ31: =VLOOKUP(W$3,Prisindeks!$A$1:$B$111,2,FALSE)/100*AT31 -> 0 | BR31: =VLOOKUP(X$3,Prisindeks!$A$1:$B$111,2,FALSE)/100*AU31 -> 0 | BS31: =VLOOKUP(Y$3,Prisindeks!$A$1:$B$111,2,FALSE)/100*AV31 -> 0 | BT31: =+SUM(AX31:BS31) -> 189517.806 | BU31: 0 | BV31: 0 | BW31: 0 | BX31: 0 | BY31: 0 | BZ31: 0 | CA31: 0 | CB31: 202280.1884 | CC31: 0 | CD31: 0 | CE31: 141643.5699 | CF31: 0 | CG31: 0 | CH31: 0 | CI31: 0 | CJ31: 0 | CK31: 0 | CL31: 0 | CM31: 0 | CN31: 0 | CO31: 0 | CP31: 0 | CQ31: 343923.7583 | CR31: 471.02
A32: Ø 250 mm < Ledningsnet ≤ Ø 500mm | B32: meter | C32: =Genanskaffelsespriser!E22 -> 75 | D32: 0 | E32: 0 | F32: 0 | G32: 0 | H32: 0 | I32: 0 | J32: 0 | K32: 0 | L32: 0 | M32: 0 | N32: 0 | O32: 0 | P32: 0 | Q32: 0 | R32: 0 | S32: 0 | T32: 0 | U32: 0 | V32: 0 | W32: 0 | X32: 0 | Y32: 0 | AA32: =IF((D32*Genanskaffelsespriser!$D22-(2009-D$3)/$C32*Genanskaffelsespriser!$D22*D32)<0,0,(D32*Genanskaffelsespriser!$D22-(2009-D$3)/$C32*Genanskaffelsespriser!$D22*D32)) -> 0 | AB32: =IF((E32*Genanskaffelsespriser!$D22-(2009-E$3)/$C32*Genanskaffelsespriser!$D22*E32)<0,0,(E32*Genanskaffelsespriser!$D22-(2009-E$3)/$C32*Genanskaffelsespriser!$D22*E32)) -> 0 | AC32: =IF((F32*Genanskaffelsespriser!$D22-(2009-F$3)/$C32*Genanskaffelsespriser!$D22*F32)<0,0,(F32*Genanskaffelsespriser!$D22-(2009-F$3)/$C32*Genanskaffelsespriser!$D22*F32)) -> 0 | AD32: =IF((G32*Genanskaffelsespriser!$D22-(2009-G$3)/$C32*Genanskaffelsespriser!$D22*G32)<0,0,(G32*Genanskaffelsespriser!$D22-(2009-G$3)/$C32*Genanskaffelsespriser!$D22*G32)) -> 0 | AE32: =IF((H32*Genanskaffelsespriser!$D22-(2009-H$3)/$C32*Genanskaffelsespriser!$D22*H32)<0,0,(H32*Genanskaffelsespriser!$D22-(2009-H$3)/$C32*Genanskaffelsespriser!$D22*H32)) -> 0 | AF32: =IF((I32*Genanskaffelsespriser!$D22-(2009-I$3)/$C32*Genanskaffelsespriser!$D22*I32)<0,0,(I32*Genanskaffelsespriser!$D22-(2009-I$3)/$C32*Genanskaffelsespriser!$D22*I32)) -> 0 | AG32: =IF((J32*Genanskaffelsespriser!$D22-(2009-J$3)/$C32*Genanskaffelsespriser!$D22*J32)<0,0,(J32*Genanskaffelsespriser!$D22-(2009-J$3)/$C32*Genanskaffelsespriser!$D22*J32)) -> 0 | AH32: =IF((K32*Genanskaffelsespriser!$D22-(2009-K$3)/$C32*Genanskaffelsespriser!$D22*K32)<0,0,(K32*Genanskaffelsespriser!$D22-(2009-K$3)/$C32*Genanskaffelsespriser!$D22*K32)) -> 0 | AI32: =IF((L32*Genanskaffelsespriser!$D22-(2009-L$3)/$C32*Genanskaffelsespriser!$D22*L32)<0,0,(L32*Genanskaffelsespriser!$D22-(2009-L$3)/$C32*Genanskaffelsespriser!$D22*L32)) -> 0 | AJ32: =IF((M32*Genanskaffelsespriser!$D22-(2009-M$3)/$C32*Genanskaffelsespriser!$D22*M32)<0,0,(M32*Genanskaffelsespriser!$D22-(2009-M$3)/$C32*Genanskaffelsespriser!$D22*M32)) -> 0 | AK32: =IF((N32*Genanskaffelsespriser!$D22-(2009-N$3)/$C32*Genanskaffelsespriser!$D22*N32)<0,0,(N32*Genanskaffelsespriser!$D22-(2009-N$3)/$C32*Genanskaffelsespriser!$D22*N32)) -> 0 | AL32: =IF((O32*Genanskaffelsespriser!$D22-(2009-O$3)/$C32*Genanskaffelsespriser!$D22*O32)<0,0,(O32*Genanskaffelsespriser!$D22-(2009-O$3)/$C32*Genanskaffelsespriser!$D22*O32)) -> 0 | AM32: =IF((P32*Genanskaffelsespriser!$D22-(2009-P$3)/$C32*Genanskaffelsespriser!$D22*P32)<0,0,(P32*Genanskaffelsespriser!$D22-(2009-P$3)/$C32*Genanskaffelsespriser!$D22*P32)) -> 0 | AN32: =IF((Q32*Genanskaffelsespriser!$D22-(2009-Q$3)/$C32*Genanskaffelsespriser!$D22*Q32)<0,0,(Q32*Genanskaffelsespriser!$D22-(2009-Q$3)/$C32*Genanskaffelsespriser!$D22*Q32)) -> 0 | AO32: =IF((R32*Genanskaffelsespriser!$D22-(2009-R$3)/$C32*Genanskaffelsespriser!$D22*R32)<0,0,(R32*Genanskaffelsespriser!$D22-(2009-R$3)/$C32*Genanskaffelsespriser!$D22*R32)) -> 0 | AP32: =IF((S32*Genanskaffelsespriser!$D22-(2009-S$3)/$C32*Genanskaffelsespriser!$D22*S32)<0,0,(S32*Genanskaffelsespriser!$D22-(2009-S$3)/$C32*Genanskaffelsespriser!$D22*S32)) -> 0 | AQ32: =IF((T32*Genanskaffelsespriser!$D22-(2009-T$3)/$C32*Genanskaffelsespriser!$D22*T32)<0,0,(T32*Genanskaffelsespriser!$D22-(2009-T$3)/$C32*Genanskaffelsespriser!$D22*T32)) -> 0 | AR32: =IF((U32*Genanskaffelsespriser!$D22-(2009-U$3)/$C32*Genanskaffelsespriser!$D22*U32)<0,0,(U32*Genanskaffelsespriser!$D22-(2009-U$3)/$C32*Genanskaffelsespriser!$D22*U32)) -> 0 | AS32: =IF((V32*Genanskaffelsespriser!$D22-(2009-V$3)/$C32*Genanskaffelsespriser!$D22*V32)<0,0,(V32*Genanskaffelsespriser!$D22-(2009-V$3)/$C32*Genanskaffelsespriser!$D22*V32)) -> 0 | AT32: =IF((W32*Genanskaffelsespriser!$D22-(2009-W$3)/$C32*Genanskaffelsespriser!$D22*W32)<0,0,(W32*Genanskaffelsespriser!$D22-(2009-W$3)/$C32*Genanskaffelsespriser!$D22*W32)) -> 0 | AU32: =IF((X32*Genanskaffelsespriser!$D22-(2009-X$3)/$C32*Genanskaffelsespriser!$D22*X32)<0,0,(X32*Genanskaffelsespriser!$D22-(2009-X$3)/$C32*Genanskaffelsespriser!$D22*X32)) -> 0 | AV32: =IF((Y32*Genanskaffelsespriser!$D22-(2009-Y$3)/$C32*Genanskaffelsespriser!$D22*Y32)<0,0,(Y32*Genanskaffelsespriser!$D22-(2009-Y$3)/$C32*Genanskaffelsespriser!$D22*Y32)) -> 0 | AW32: =+SUM(AA32:AV32) -> 0 | AX32: =VLOOKUP(D$3,Prisindeks!$A$1:$B$111,2,FALSE)/100*AA32 -> 0 | AY32: =VLOOKUP(E$3,Prisindeks!$A$1:$B$111,2,FALSE)/100*AB32 -> 0 | AZ32: =VLOOKUP(F$3,Prisindeks!$A$1:$B$111,2,FALSE)/100*AC32 -> 0 | BA32: =VLOOKUP(G$3,Prisindeks!$A$1:$B$111,2,FALSE)/100*AD32 -> 0 | BB32: =VLOOKUP(H$3,Prisindeks!$A$1:$B$111,2,FALSE)/100*AE32 -> 0 | BC32: =VLOOKUP(I$3,Prisindeks!$A$1:$B$111,2,FALSE)/100*AF32 -> 0 | BD32: =VLOOKUP(J$3,Prisindeks!$A$1:$B$111,2,FALSE)/100*AG32 -> 0 | BE32: =VLOOKUP(K$3,Prisindeks!$A$1:$B$111,2,FALSE)/100*AH32 -> 0 | BF32: =VLOOKUP(L$3,Prisindeks!$A$1:$B$111,2,FALSE)/100*AI32 -> 0 | BG32: =VLOOKUP(M$3,Prisindeks!$A$1:$B$111,2,FALSE)/100*AJ32 -> 0 | BH32: =VLOOKUP(N$3,Prisindeks!$A$1:$B$111,2,FALSE)/100*AK32 -> 0 | BI32: =VLOOKUP(O$3,Prisindeks!$A$1:$B$111,2,FALSE)/100*AL32 -> 0 | BJ32: =VLOOKUP(P$3,Prisindeks!$A$1:$B$111,2,FALSE)/100*AM32 -> 0 | BK32: =VLOOKUP(Q$3,Prisindeks!$A$1:$B$111,2,FALSE)/100*AN32 -> 0 | BL32: =VLOOKUP(R$3,Prisindeks!$A$1:$B$111,2,FALSE)/100*AO32 -> 0 | BM32: =VLOOKUP(S$3,Prisindeks!$A$1:$B$111,2,FALSE)/100*AP32 -> 0 | BN32: =VLOOKUP(T$3,Prisindeks!$A$1:$B$111,2,FALSE)/100*AQ32 -> 0 | BO32: =VLOOKUP(U$3,Prisindeks!$A$1:$B$111,2,FALSE)/100*AR32 -> 0 | BP32: =VLOOKUP(V$3,Prisindeks!$A$1:$B$111,2,FALSE)/100*AS32 -> 0 | BQ32: =VLOOKUP(W$3,Prisindeks!$A$1:$B$111,2,FALSE)/100*AT32 -> 0 | BR32: =VLOOKUP(X$3,Prisindeks!$A$1:$B$111,2,FALSE)/100*AU32 -> 0 | BS32: =VLOOKUP(Y$3,Prisindeks!$A$1:$B$111,2,FALSE)/100*AV32 -> 0 | BT32: =+SUM(AX32:BS32) -> 0 | BU32: 0 | BV32: 0 | BW32: 0 | BX32: 0 | BY32: 0 | BZ32: 0 | CA32: 0 | CB32: 0 | CC32: 0 | CD32: 0 | CE32: 0 | CF32: 0 | CG32: 0 | CH32: 0 | CI32: 0 | CJ32: 0 | CK32: 0 | CL32: 0 | CM32: 0 | CN32: 0 | CO32: 0 | CP32: 0 | CQ32: 0 | CR32: 0
A33: Ledningsnet > Ø 500 mm | B33: meter | C33: =Genanskaffelsespriser!E23 -> 75 | D33: 0 | E33: 0 | F33: 0 | G33: 0 | H33: 0 | I33: 0 | J33: 0 | K33: 0 | L33: 0 | M33: 0 | N33: 0 | O33: 0 | P33: 0 | Q33: 0 | R33: 0 | S33: 0 | T33: 0 | U33: 0 | V33: 0 | W33: 0 | X33: 0 | Y33: 0 | AA33: =IF((D33*Genanskaffelsespriser!$D23-(2009-D$3)/$C33*Genanskaffelsespriser!$D23*D33)<0,0,(D33*Genanskaffelsespriser!$D23-(2009-D$3)/$C33*Genanskaffelsespriser!$D23*D33)) -> 0 | AB33: =IF((E33*Genanskaffelsespriser!$D23-(2009-E$3)/$C33*Genanskaffelsespriser!$D23*E33)<0,0,(E33*Genanskaffelsespriser!$D23-(2009-E$3)/$C33*Genanskaffelsespriser!$D23*E33)) -> 0 | AC33: =IF((F33*Genanskaffelsespriser!$D23-(2009-F$3)/$C33*Genanskaffelsespriser!$D23*F33)<0,0,(F33*Genanskaffelsespriser!$D23-(2009-F$3)/$C33*Genanskaffelsespriser!$D23*F33)) -> 0 | AD33: =IF((G33*Genanskaffelsespriser!$D23-(2009-G$3)/$C33*Genanskaffelsespriser!$D23*G33)<0,0,(G33*Genanskaffelsespriser!$D23-(2009-G$3)/$C33*Genanskaffelsespriser!$D23*G33)) -> 0 | AE33: =IF((H33*Genanskaffelsespriser!$D23-(2009-H$3)/$C33*Genanskaffelsespriser!$D23*H33)<0,0,(H33*Genanskaffelsespriser!$D23-(2009-H$3)/$C33*Genanskaffelsespriser!$D23*H33)) -> 0 | AF33: =IF((I33*Genanskaffelsespriser!$D23-(2009-I$3)/$C33*Genanskaffelsespriser!$D23*I33)<0,0,(I33*Genanskaffelsespriser!$D23-(2009-I$3)/$C33*Genanskaffelsespriser!$D23*I33)) -> 0 | AG33: =IF((J33*Genanskaffelsespriser!$D23-(2009-J$3)/$C33*Genanskaffelsespriser!$D23*J33)<0,0,(J33*Genanskaffelsespriser!$D23-(2009-J$3)/$C33*Genanskaffelsespriser!$D23*J33)) -> 0 | AH33: =IF((K33*Genanskaffelsespriser!$D23-(2009-K$3)/$C33*Genanskaffelsespriser!$D23*K33)<0,0,(K33*Genanskaffelsespriser!$D23-(2009-K$3)/$C33*Genanskaffelsespriser!$D23*K33)) -> 0 | AI33: =IF((L33*Genanskaffelsespriser!$D23-(2009-L$3)/$C33*Genanskaffelsespriser!$D23*L33)<0,0,(L33*Genanskaffelsespriser!$D23-(2009-L$3)/$C33*Genanskaffelsespriser!$D23*L33)) -> 0 | AJ33: =IF((M33*Genanskaffelsespriser!$D23-(2009-M$3)/$C33*Genanskaffelsespriser!$D23*M33)<0,0,(M33*Genanskaffelsespriser!$D23-(2009-M$3)/$C33*Genanskaffelsespriser!$D23*M33)) -> 0 | AK33: =IF((N33*Genanskaffelsespriser!$D23-(2009-N$3)/$C33*Genanskaffelsespriser!$D23*N33)<0,0,(N33*Genanskaffelsespriser!$D23-(2009-N$3)/$C33*Genanskaffelsespriser!$D23*N33)) -> 0 | AL33: =IF((O33*Genanskaffelsespriser!$D23-(2009-O$3)/$C33*Genanskaffelsespriser!$D23*O33)<0,0,(O33*Genanskaffelsespriser!$D23-(2009-O$3)/$C33*Genanskaffelsespriser!$D23*O33)) -> 0 | AM33: =IF((P33*Genanskaffelsespriser!$D23-(2009-P$3)/$C33*Genanskaffelsespriser!$D23*P33)<0,0,(P33*Genanskaffelsespriser!$D23-(2009-P$3)/$C33*Genanskaffelsespriser!$D23*P33)) -> 0 | AN33: =IF((Q33*Genanskaffelsespriser!$D23-(2009-Q$3)/$C33*Genanskaffelsespriser!$D23*Q33)<0,0,(Q33*Genanskaffelsespriser!$D23-(2009-Q$3)/$C33*Genanskaffelsespriser!$D23*Q33)) -> 0 | AO33: =IF((R33*Genanskaffelsespriser!$D23-(2009-R$3)/$C33*Genanskaffelsespriser!$D23*R33)<0,0,(R33*Genanskaffelsespriser!$D23-(2009-R$3)/$C33*Genanskaffelsespriser!$D23*R33)) -> 0 | AP33: =IF((S33*Genanskaffelsespriser!$D23-(2009-S$3)/$C33*Genanskaffelsespriser!$D23*S33)<0,0,(S33*Genanskaffelsespriser!$D23-(2009-S$3)/$C33*Genanskaffelsespriser!$D23*S33)) -> 0 | AQ33: =IF((T33*Genanskaffelsespriser!$D23-(2009-T$3)/$C33*Genanskaffelsespriser!$D23*T33)<0,0,(T33*Genanskaffelsespriser!$D23-(2009-T$3)/$C33*Genanskaffelsespriser!$D23*T33)) -> 0 | AR33: =IF((U33*Genanskaffelsespriser!$D23-(2009-U$3)/$C33*Genanskaffelsespriser!$D23*U33)<0,0,(U33*Genanskaffelsespriser!$D23-(2009-U$3)/$C33*Genanskaffelsespriser!$D23*U33)) -> 0 | AS33: =IF((V33*Genanskaffelsespriser!$D23-(2009-V$3)/$C33*Genanskaffelsespriser!$D23*V33)<0,0,(V33*Genanskaffelsespriser!$D23-(2009-V$3)/$C33*Genanskaffelsespriser!$D23*V33)) -> 0 | AT33: =IF((W33*Genanskaffelsespriser!$D23-(2009-W$3)/$C33*Genanskaffelsespriser!$D23*W33)<0,0,(W33*Genanskaffelsespriser!$D23-(2009-W$3)/$C33*Genanskaffelsespriser!$D23*W33)) -> 0 | AU33: =IF((X33*Genanskaffelsespriser!$D23-(2009-X$3)/$C33*Genanskaffelsespriser!$D23*X33)<0,0,(X33*Genanskaffelsespriser!$D23-(2009-X$3)/$C33*Genanskaffelsespriser!$D23*X33)) -> 0 | AV33: =IF((Y33*Genanskaffelsespriser!$D23-(2009-Y$3)/$C33*Genanskaffelsespriser!$D23*Y33)<0,0,(Y33*Genanskaffelsespriser!$D23-(2009-Y$3)/$C33*Genanskaffelsespriser!$D23*Y33)) -> 0 | AW33: =+SUM(AA33:AV33) -> 0 | AX33: =VLOOKUP(D$3,Prisindeks!$A$1:$B$111,2,FALSE)/100*AA33 -> 0 | AY33: =VLOOKUP(E$3,Prisindeks!$A$1:$B$111,2,FALSE)/100*AB33 -> 0 | AZ33: =VLOOKUP(F$3,Prisindeks!$A$1:$B$111,2,FALSE)/100*AC33 -> 0 | BA33: =VLOOKUP(G$3,Prisindeks!$A$1:$B$111,2,FALSE)/100*AD33 -> 0 | BB33: =VLOOKUP(H$3,Prisindeks!$A$1:$B$111,2,FALSE)/100*AE33 -> 0 | BC33: =VLOOKUP(I$3,Prisindeks!$A$1:$B$111,2,FALSE)/100*AF33 -> 0 | BD33: =VLOOKUP(J$3,Prisindeks!$A$1:$B$111,2,FALSE)/100*AG33 -> 0 | BE33: =VLOOKUP(K$3,Prisindeks!$A$1:$B$111,2,FALSE)/100*AH33 -> 0 | BF33: =VLOOKUP(L$3,Prisindeks!$A$1:$B$111,2,FALSE)/100*AI33 -> 0 | BG33: =VLOOKUP(M$3,Prisindeks!$A$1:$B$111,2,FALSE)/100*AJ33 -> 0 | BH33: =VLOOKUP(N$3,Prisindeks!$A$1:$B$111,2,FALSE)/100*AK33 -> 0 | BI33: =VLOOKUP(O$3,Prisindeks!$A$1:$B$111,2,FALSE)/100*AL33 -> 0 | BJ33: =VLOOKUP(P$3,Prisindeks!$A$1:$B$111,2,FALSE)/100*AM33 -> 0 | BK33: =VLOOKUP(Q$3,Prisindeks!$A$1:$B$111,2,FALSE)/100*AN33 -> 0 | BL33: =VLOOKUP(R$3,Prisindeks!$A$1:$B$111,2,FALSE)/100*AO33 -> 0 | BM33: =VLOOKUP(S$3,Prisindeks!$A$1:$B$111,2,FALSE)/100*AP33 -> 0 | BN33: =VLOOKUP(T$3,Prisindeks!$A$1:$B$111,2,FALSE)/100*AQ33 -> 0 | BO33: =VLOOKUP(U$3,Prisindeks!$A$1:$B$111,2,FALSE)/100*AR33 -> 0 | BP33: =VLOOKUP(V$3,Prisindeks!$A$1:$B$111,2,FALSE)/100*AS33 -> 0 | BQ33: =VLOOKUP(W$3,Prisindeks!$A$1:$B$111,2,FALSE)/100*AT33 -> 0 | BR33: =VLOOKUP(X$3,Prisindeks!$A$1:$B$111,2,FALSE)/100*AU33 -> 0 | BS33: =VLOOKUP(Y$3,Prisindeks!$A$1:$B$111,2,FALSE)/100*AV33 -> 0 | BT33: =+SUM(AX33:BS33) -> 0 | BU33: 0 | BV33: 0 | BW33: 0 | BX33: 0 | BY33: 0 | BZ33: 0 | CA33: 0 | CB33: 0 | CC33: 0 | CD33: 0 | CE33: 0 | CF33: 0 | CG33: 0 | CH33: 0 | CI33: 0 | CJ33: 0 | CK33: 0 | CL33: 0 | CM33: 0 | CN33: 0 | CO33: 0 | CP33: 0 | CQ33: 0 | CR33: 0
A34: Råvandsledninger - City | AW34: =SUM(AW35:AW38) -> 0 | BT34: =SUM(BT35:BT38) -> 0 | CQ34: =SUM(CQ35:CQ38) -> 0
A35: Ø 50mm < Ledningsnet ≤ Ø110 mm | B35: meter | C35: =Genanskaffelsespriser!E25 -> 75 | D35: 0 | E35: 0 | F35: 0 | G35: 0 | H35: 0 | I35: 0 | J35: 0 | K35: 0 | L35: 0 | M35: 0 | N35: 0 | O35: 0 | P35: 0 | Q35: 0 | R35: 0 | S35: 0 | T35: 0 | U35: 0 | V35: 0 | W35: 0 | X35: 0 | Y35: 0 | AA35: =IF((D35*Genanskaffelsespriser!$D25-(2009-D$3)/$C35*Genanskaffelsespriser!$D25*D35)<0,0,(D35*Genanskaffelsespriser!$D25-(2009-D$3)/$C35*Genanskaffelsespriser!$D25*D35)) -> 0 | AB35: =IF((E35*Genanskaffelsespriser!$D25-(2009-E$3)/$C35*Genanskaffelsespriser!$D25*E35)<0,0,(E35*Genanskaffelsespriser!$D25-(2009-E$3)/$C35*Genanskaffelsespriser!$D25*E35)) -> 0 | AC35: =IF((F35*Genanskaffelsespriser!$D25-(2009-F$3)/$C35*Genanskaffelsespriser!$D25*F35)<0,0,(F35*Genanskaffelsespriser!$D25-(2009-F$3)/$C35*Genanskaffelsespriser!$D25*F35)) -> 0 | AD35: =IF((G35*Genanskaffelsespriser!$D25-(2009-G$3)/$C35*Genanskaffelsespriser!$D25*G35)<0,0,(G35*Genanskaffelsespriser!$D25-(2009-G$3)/$C35*Genanskaffelsespriser!$D25*G35)) -> 0 | AE35: =IF((H35*Genanskaffelsespriser!$D25-(2009-H$3)/$C35*Genanskaffelsespriser!$D25*H35)<0,0,(H35*Genanskaffelsespriser!$D25-(2009-H$3)/$C35*Genanskaffelsespriser!$D25*H35)) -> 0 | AF35: =IF((I35*Genanskaffelsespriser!$D25-(2009-I$3)/$C35*Genanskaffelsespriser!$D25*I35)<0,0,(I35*Genanskaffelsespriser!$D25-(2009-I$3)/$C35*Genanskaffelsespriser!$D25*I35)) -> 0 | AG35: =IF((J35*Genanskaffelsespriser!$D25-(2009-J$3)/$C35*Genanskaffelsespriser!$D25*J35)<0,0,(J35*Genanskaffelsespriser!$D25-(2009-J$3)/$C35*Genanskaffelsespriser!$D25*J35)) -> 0 | AH35: =IF((K35*Genanskaffelsespriser!$D25-(2009-K$3)/$C35*Genanskaffelsespriser!$D25*K35)<0,0,(K35*Genanskaffelsespriser!$D25-(2009-K$3)/$C35*Genanskaffelsespriser!$D25*K35)) -> 0 | AI35: =IF((L35*Genanskaffelsespriser!$D25-(2009-L$3)/$C35*Genanskaffelsespriser!$D25*L35)<0,0,(L35*Genanskaffelsespriser!$D25-(2009-L$3)/$C35*Genanskaffelsespriser!$D25*L35)) -> 0 | AJ35: =IF((M35*Genanskaffelsespriser!$D25-(2009-M$3)/$C35*Genanskaffelsespriser!$D25*M35)<0,0,(M35*Genanskaffelsespriser!$D25-(2009-M$3)/$C35*Genanskaffelsespriser!$D25*M35)) -> 0 | AK35: =IF((N35*Genanskaffelsespriser!$D25-(2009-N$3)/$C35*Genanskaffelsespriser!$D25*N35)<0,0,(N35*Genanskaffelsespriser!$D25-(2009-N$3)/$C35*Genanskaffelsespriser!$D25*N35)) -> 0 | AL35: =IF((O35*Genanskaffelsespriser!$D25-(2009-O$3)/$C35*Genanskaffelsespriser!$D25*O35)<0,0,(O35*Genanskaffelsespriser!$D25-(2009-O$3)/$C35*Genanskaffelsespriser!$D25*O35)) -> 0 | AM35: =IF((P35*Genanskaffelsespriser!$D25-(2009-P$3)/$C35*Genanskaffelsespriser!$D25*P35)<0,0,(P35*Genanskaffelsespriser!$D25-(2009-P$3)/$C35*Genanskaffelsespriser!$D25*P35)) -> 0 | AN35: =IF((Q35*Genanskaffelsespriser!$D25-(2009-Q$3)/$C35*Genanskaffelsespriser!$D25*Q35)<0,0,(Q35*Genanskaffelsespriser!$D25-(2009-Q$3)/$C35*Genanskaffelsespriser!$D25*Q35)) -> 0 | AO35: =IF((R35*Genanskaffelsespriser!$D25-(2009-R$3)/$C35*Genanskaffelsespriser!$D25*R35)<0,0,(R35*Genanskaffelsespriser!$D25-(2009-R$3)/$C35*Genanskaffelsespriser!$D25*R35)) -> 0 | AP35: =IF((S35*Genanskaffelsespriser!$D25-(2009-S$3)/$C35*Genanskaffelsespriser!$D25*S35)<0,0,(S35*Genanskaffelsespriser!$D25-(2009-S$3)/$C35*Genanskaffelsespriser!$D25*S35)) -> 0 | AQ35: =IF((T35*Genanskaffelsespriser!$D25-(2009-T$3)/$C35*Genanskaffelsespriser!$D25*T35)<0,0,(T35*Genanskaffelsespriser!$D25-(2009-T$3)/$C35*Genanskaffelsespriser!$D25*T35)) -> 0 | AR35: =IF((U35*Genanskaffelsespriser!$D25-(2009-U$3)/$C35*Genanskaffelsespriser!$D25*U35)<0,0,(U35*Genanskaffelsespriser!$D25-(2009-U$3)/$C35*Genanskaffelsespriser!$D25*U35)) -> 0 | AS35: =IF((V35*Genanskaffelsespriser!$D25-(2009-V$3)/$C35*Genanskaffelsespriser!$D25*V35)<0,0,(V35*Genanskaffelsespriser!$D25-(2009-V$3)/$C35*Genanskaffelsespriser!$D25*V35)) -> 0 | AT35: =IF((W35*Genanskaffelsespriser!$D25-(2009-W$3)/$C35*Genanskaffelsespriser!$D25*W35)<0,0,(W35*Genanskaffelsespriser!$D25-(2009-W$3)/$C35*Genanskaffelsespriser!$D25*W35)) -> 0 | AU35: =IF((X35*Genanskaffelsespriser!$D25-(2009-X$3)/$C35*Genanskaffelsespriser!$D25*X35)<0,0,(X35*Genanskaffelsespriser!$D25-(2009-X$3)/$C35*Genanskaffelsespriser!$D25*X35)) -> 0 | AV35: =IF((Y35*Genanskaffelsespriser!$D25-(2009-Y$3)/$C35*Genanskaffelsespriser!$D25*Y35)<0,0,(Y35*Genanskaffelsespriser!$D25-(2009-Y$3)/$C35*Genanskaffelsespriser!$D25*Y35)) -> 0 | AW35: =+SUM(AA35:AV35) -> 0 | AX35: =VLOOKUP(D$3,Prisindeks!$A$1:$B$111,2,FALSE)/100*AA35 -> 0 | AY35: =VLOOKUP(E$3,Prisindeks!$A$1:$B$111,2,FALSE)/100*AB35 -> 0 | AZ35: =VLOOKUP(F$3,Prisindeks!$A$1:$B$111,2,FALSE)/100*AC35 -> 0 | BA35: =VLOOKUP(G$3,Prisindeks!$A$1:$B$111,2,FALSE)/100*AD35 -> 0 | BB35: =VLOOKUP(H$3,Prisindeks!$A$1:$B$111,2,FALSE)/100*AE35 -> 0 | BC35: =VLOOKUP(I$3,Prisindeks!$A$1:$B$111,2,FALSE)/100*AF35 -> 0 | BD35: =VLOOKUP(J$3,Prisindeks!$A$1:$B$111,2,FALSE)/100*AG35 -> 0 | BE35: =VLOOKUP(K$3,Prisindeks!$A$1:$B$111,2,FALSE)/100*AH35 -> 0 | BF35: =VLOOKUP(L$3,Prisindeks!$A$1:$B$111,2,FALSE)/100*AI35 -> 0 | BG35: =VLOOKUP(M$3,Prisindeks!$A$1:$B$111,2,FALSE)/100*AJ35 -> 0 | BH35: =VLOOKUP(N$3,Prisindeks!$A$1:$B$111,2,FALSE)/100*AK35 -> 0 | BI35: =VLOOKUP(O$3,Prisindeks!$A$1:$B$111,2,FALSE)/100*AL35 -> 0 | BJ35: =VLOOKUP(P$3,Prisindeks!$A$1:$B$111,2,FALSE)/100*AM35 -> 0 | BK35: =VLOOKUP(Q$3,Prisindeks!$A$1:$B$111,2,FALSE)/100*AN35 -> 0 | BL35: =VLOOKUP(R$3,Prisindeks!$A$1:$B$111,2,FALSE)/100*AO35 -> 0 | BM35: =VLOOKUP(S$3,Prisindeks!$A$1:$B$111,2,FALSE)/100*AP35 -> 0 | BN35: =VLOOKUP(T$3,Prisindeks!$A$1:$B$111,2,FALSE)/100*AQ35 -> 0 | BO35: =VLOOKUP(U$3,Prisindeks!$A$1:$B$111,2,FALSE)/100*AR35 -> 0 | BP35: =VLOOKUP(V$3,Prisindeks!$A$1:$B$111,2,FALSE)/100*AS35 -> 0 | BQ35: =VLOOKUP(W$3,Prisindeks!$A$1:$B$111,2,FALSE)/100*AT35 -> 0 | BR35: =VLOOKUP(X$3,Prisindeks!$A$1:$B$111,2,FALSE)/100*AU35 -> 0 | BS35: =VLOOKUP(Y$3,Prisindeks!$A$1:$B$111,2,FALSE)/100*AV35 -> 0 | BT35: =+SUM(AX35:BS35) -> 0 | BU35: =(AA35+AX35)/2 -> 0 | BV35: 0 | BW35: 0 | BX35: 0 | BY35: 0 | BZ35: 0 | CA35: 0 | CB35: 0 | CC35: 0 | CD35: 0 | CE35: =(AK35+BH35)/2 -> 0 | CF35: 0 | CG35: 0 | CH35: 0 | CI35: 0 | CJ35: 0 | CK35: 0 | CL35: 0 | CM35: 0 | CN35: 0 | CO35: =(AU35+BR35)/2 -> 0 | CP35: 0 | CQ35: 0 | CR35: 0
A36: Ø110 mm < Ledningsnet ≤ Ø 250 mm | B36: meter | C36: =Genanskaffelsespriser!E26 -> 75 | D36: 0 | E36: 0 | F36: 0 | G36: 0 | H36: 0 | I36: 0 | J36: 0 | K36: 0 | L36: 0 | M36: 0 | N36: 0 | O36: 0 | P36: 0 | Q36: 0 | R36: 0 | S36: 0 | T36: 0 | U36: 0 | V36: 0 | W36: 0 | X36: 0 | Y36: 0 | AA36: =IF((D36*Genanskaffelsespriser!$D26-(2009-D$3)/$C36*Genanskaffelsespriser!$D26*D36)<0,0,(D36*Genanskaffelsespriser!$D26-(2009-D$3)/$C36*Genanskaffelsespriser!$D26*D36)) -> 0 | AB36: =IF((E36*Genanskaffelsespriser!$D26-(2009-E$3)/$C36*Genanskaffelsespriser!$D26*E36)<0,0,(E36*Genanskaffelsespriser!$D26-(2009-E$3)/$C36*Genanskaffelsespriser!$D26*E36)) -> 0 | AC36: =IF((F36*Genanskaffelsespriser!$D26-(2009-F$3)/$C36*Genanskaffelsespriser!$D26*F36)<0,0,(F36*Genanskaffelsespriser!$D26-(2009-F$3)/$C36*Genanskaffelsespriser!$D26*F36)) -> 0 | AD36: =IF((G36*Genanskaffelsespriser!$D26-(2009-G$3)/$C36*Genanskaffelsespriser!$D26*G36)<0,0,(G36*Genanskaffelsespriser!$D26-(2009-G$3)/$C36*Genanskaffelsespriser!$D26*G36)) -> 0 | AE36: =IF((H36*Genanskaffelsespriser!$D26-(2009-H$3)/$C36*Genanskaffelsespriser!$D26*H36)<0,0,(H36*Genanskaffelsespriser!$D26-(2009-H$3)/$C36*Genanskaffelsespriser!$D26*H36)) -> 0 | AF36: =IF((I36*Genanskaffelsespriser!$D26-(2009-I$3)/$C36*Genanskaffelsespriser!$D26*I36)<0,0,(I36*Genanskaffelsespriser!$D26-(2009-I$3)/$C36*Genanskaffelsespriser!$D26*I36)) -> 0 | AG36: =IF((J36*Genanskaffelsespriser!$D26-(2009-J$3)/$C36*Genanskaffelsespriser!$D26*J36)<0,0,(J36*Genanskaffelsespriser!$D26-(2009-J$3)/$C36*Genanskaffelsespriser!$D26*J36)) -> 0 | AH36: =IF((K36*Genanskaffelsespriser!$D26-(2009-K$3)/$C36*Genanskaffelsespriser!$D26*K36)<0,0,(K36*Genanskaffelsespriser!$D26-(2009-K$3)/$C36*Genanskaffelsespriser!$D26*K36)) -> 0 | AI36: =IF((L36*Genanskaffelsespriser!$D26-(2009-L$3)/$C36*Genanskaffelsespriser!$D26*L36)<0,0,(L36*Genanskaffelsespriser!$D26-(2009-L$3)/$C36*Genanskaffelsespriser!$D26*L36)) -> 0 | AJ36: =IF((M36*Genanskaffelsespriser!$D26-(2009-M$3)/$C36*Genanskaffelsespriser!$D26*M36)<0,0,(M36*Genanskaffelsespriser!$D26-(2009-M$3)/$C36*Genanskaffelsespriser!$D26*M36)) -> 0 | AK36: =IF((N36*Genanskaffelsespriser!$D26-(2009-N$3)/$C36*Genanskaffelsespriser!$D26*N36)<0,0,(N36*Genanskaffelsespriser!$D26-(2009-N$3)/$C36*Genanskaffelsespriser!$D26*N36)) -> 0 | AL36: =IF((O36*Genanskaffelsespriser!$D26-(2009-O$3)/$C36*Genanskaffelsespriser!$D26*O36)<0,0,(O36*Genanskaffelsespriser!$D26-(2009-O$3)/$C36*Genanskaffelsespriser!$D26*O36)) -> 0 | AM36: =IF((P36*Genanskaffelsespriser!$D26-(2009-P$3)/$C36*Genanskaffelsespriser!$D26*P36)<0,0,(P36*Genanskaffelsespriser!$D26-(2009-P$3)/$C36*Genanskaffelsespriser!$D26*P36)) -> 0 | AN36: =IF((Q36*Genanskaffelsespriser!$D26-(2009-Q$3)/$C36*Genanskaffelsespriser!$D26*Q36)<0,0,(Q36*Genanskaffelsespriser!$D26-(2009-Q$3)/$C36*Genanskaffelsespriser!$D26*Q36)) -> 0 | AO36: =IF((R36*Genanskaffelsespriser!$D26-(2009-R$3)/$C36*Genanskaffelsespriser!$D26*R36)<0,0,(R36*Genanskaffelsespriser!$D26-(2009-R$3)/$C36*Genanskaffelsespriser!$D26*R36)) -> 0 | AP36: =IF((S36*Genanskaffelsespriser!$D26-(2009-S$3)/$C36*Genanskaffelsespriser!$D26*S36)<0,0,(S36*Genanskaffelsespriser!$D26-(2009-S$3)/$C36*Genanskaffelsespriser!$D26*S36)) -> 0 | AQ36: =IF((T36*Genanskaffelsespriser!$D26-(2009-T$3)/$C36*Genanskaffelsespriser!$D26*T36)<0,0,(T36*Genanskaffelsespriser!$D26-(2009-T$3)/$C36*Genanskaffelsespriser!$D26*T36)) -> 0 | AR36: =IF((U36*Genanskaffelsespriser!$D26-(2009-U$3)/$C36*Genanskaffelsespriser!$D26*U36)<0,0,(U36*Genanskaffelsespriser!$D26-(2009-U$3)/$C36*Genanskaffelsespriser!$D26*U36)) -> 0 | AS36: =IF((V36*Genanskaffelsespriser!$D26-(2009-V$3)/$C36*Genanskaffelsespriser!$D26*V36)<0,0,(V36*Genanskaffelsespriser!$D26-(2009-V$3)/$C36*Genanskaffelsespriser!$D26*V36)) -> 0 | AT36: =IF((W36*Genanskaffelsespriser!$D26-(2009-W$3)/$C36*Genanskaffelsespriser!$D26*W36)<0,0,(W36*Genanskaffelsespriser!$D26-(2009-W$3)/$C36*Genanskaffelsespriser!$D26*W36)) -> 0 | AU36: =IF((X36*Genanskaffelsespriser!$D26-(2009-X$3)/$C36*Genanskaffelsespriser!$D26*X36)<0,0,(X36*Genanskaffelsespriser!$D26-(2009-X$3)/$C36*Genanskaffelsespriser!$D26*X36)) -> 0 | AV36: =IF((Y36*Genanskaffelsespriser!$D26-(2009-Y$3)/$C36*Genanskaffelsespriser!$D26*Y36)<0,0,(Y36*Genanskaffelsespriser!$D26-(2009-Y$3)/$C36*Genanskaffelsespriser!$D26*Y36)) -> 0 | AW36: =+SUM(AA36:AV36) -> 0 | AX36: =VLOOKUP(D$3,Prisindeks!$A$1:$B$111,2,FALSE)/100*AA36 -> 0 | AY36: =VLOOKUP(E$3,Prisindeks!$A$1:$B$111,2,FALSE)/100*AB36 -> 0 | AZ36: =VLOOKUP(F$3,Prisindeks!$A$1:$B$111,2,FALSE)/100*AC36 -> 0 | BA36: =VLOOKUP(G$3,Prisindeks!$A$1:$B$111,2,FALSE)/100*AD36 -> 0 | BB36: =VLOOKUP(H$3,Prisindeks!$A$1:$B$111,2,FALSE)/100*AE36 -> 0 | BC36: =VLOOKUP(I$3,Prisindeks!$A$1:$B$111,2,FALSE)/100*AF36 -> 0 | BD36: =VLOOKUP(J$3,Prisindeks!$A$1:$B$111,2,FALSE)/100*AG36 -> 0 | BE36: =VLOOKUP(K$3,Prisindeks!$A$1:$B$111,2,FALSE)/100*AH36 -> 0 | BF36: =VLOOKUP(L$3,Prisindeks!$A$1:$B$111,2,FALSE)/100*AI36 -> 0 | BG36: =VLOOKUP(M$3,Prisindeks!$A$1:$B$111,2,FALSE)/100*AJ36 -> 0 | BH36: =VLOOKUP(N$3,Prisindeks!$A$1:$B$111,2,FALSE)/100*AK36 -> 0 | BI36: =VLOOKUP(O$3,Prisindeks!$A$1:$B$111,2,FALSE)/100*AL36 -> 0 | BJ36: =VLOOKUP(P$3,Prisindeks!$A$1:$B$111,2,FALSE)/100*AM36 -> 0 | BK36: =VLOOKUP(Q$3,Prisindeks!$A$1:$B$111,2,FALSE)/100*AN36 -> 0 | BL36: =VLOOKUP(R$3,Prisindeks!$A$1:$B$111,2,FALSE)/100*AO36 -> 0 | BM36: =VLOOKUP(S$3,Prisindeks!$A$1:$B$111,2,FALSE)/100*AP36 -> 0 | BN36: =VLOOKUP(T$3,Prisindeks!$A$1:$B$111,2,FALSE)/100*AQ36 -> 0 | BO36: =VLOOKUP(U$3,Prisindeks!$A$1:$B$111,2,FALSE)/100*AR36 -> 0 | BP36: =VLOOKUP(V$3,Prisindeks!$A$1:$B$111,2,FALSE)/100*AS36 -> 0 | BQ36: =VLOOKUP(W$3,Prisindeks!$A$1:$B$111,2,FALSE)/100*AT36 -> 0 | BR36: =VLOOKUP(X$3,Prisindeks!$A$1:$B$111,2,FALSE)/100*AU36 -> 0 | BS36: =VLOOKUP(Y$3,Prisindeks!$A$1:$B$111,2,FALSE)/100*AV36 -> 0 | BT36: =+SUM(AX36:BS36) -> 0 | BU36: 0 | BV36: 0 | BW36: 0 | BX36: 0 | BY36: 0 | BZ36: 0 | CA36: 0 | CB36: 0 | CC36: 0 | CD36: 0 | CE36: 0 | CF36: 0 | CG36: 0 | CH36: 0 | CI36: 0 | CJ36: 0 | CK36: 0 | CL36: 0 | CM36: 0 | CN36: 0 | CO36: 0 | CP36: 0 | CQ36: 0 | CR36: 0
A37: Ø 250 mm < Ledningsnet ≤ Ø 500mm | B37: meter | C37: =Genanskaffelsespriser!E27 -> 75 | D37: 0 | E37: 0 | F37: 0 | G37: 0 | H37: 0 | I37: 0 | J37: 0 | K37: 0 | L37: 0 | M37: 0 | N37: 0 | O37: 0 | P37: 0 | Q37: 0 | R37: 0 | S37: 0 | T37: 0 | U37: 0 | V37: 0 | W37: 0 | X37: 0 | Y37: 0 | AA37: =IF((D37*Genanskaffelsespriser!$D27-(2009-D$3)/$C37*Genanskaffelsespriser!$D27*D37)<0,0,(D37*Genanskaffelsespriser!$D27-(2009-D$3)/$C37*Genanskaffelsespriser!$D27*D37)) -> 0 | AB37: =IF((E37*Genanskaffelsespriser!$D27-(2009-E$3)/$C37*Genanskaffelsespriser!$D27*E37)<0,0,(E37*Genanskaffelsespriser!$D27-(2009-E$3)/$C37*Genanskaffelsespriser!$D27*E37)) -> 0 | AC37: =IF((F37*Genanskaffelsespriser!$D27-(2009-F$3)/$C37*Genanskaffelsespriser!$D27*F37)<0,0,(F37*Genanskaffelsespriser!$D27-(2009-F$3)/$C37*Genanskaffelsespriser!$D27*F37)) -> 0 | AD37: =IF((G37*Genanskaffelsespriser!$D27-(2009-G$3)/$C37*Genanskaffelsespriser!$D27*G37)<0,0,(G37*Genanskaffelsespriser!$D27-(2009-G$3)/$C37*Genanskaffelsespriser!$D27*G37)) -> 0 | AE37: =IF((H37*Genanskaffelsespriser!$D27-(2009-H$3)/$C37*Genanskaffelsespriser!$D27*H37)<0,0,(H37*Genanskaffelsespriser!$D27-(2009-H$3)/$C37*Genanskaffelsespriser!$D27*H37)) -> 0 | AF37: =IF((I37*Genanskaffelsespriser!$D27-(2009-I$3)/$C37*Genanskaffelsespriser!$D27*I37)<0,0,(I37*Genanskaffelsespriser!$D27-(2009-I$3)/$C37*Genanskaffelsespriser!$D27*I37)) -> 0 | AG37: =IF((J37*Genanskaffelsespriser!$D27-(2009-J$3)/$C37*Genanskaffelsespriser!$D27*J37)<0,0,(J37*Genanskaffelsespriser!$D27-(2009-J$3)/$C37*Genanskaffelsespriser!$D27*J37)) -> 0 | AH37: =IF((K37*Genanskaffelsespriser!$D27-(2009-K$3)/$C37*Genanskaffelsespriser!$D27*K37)<0,0,(K37*Genanskaffelsespriser!$D27-(2009-K$3)/$C37*Genanskaffelsespriser!$D27*K37)) -> 0 | AI37: =IF((L37*Genanskaffelsespriser!$D27-(2009-L$3)/$C37*Genanskaffelsespriser!$D27*L37)<0,0,(L37*Genanskaffelsespriser!$D27-(2009-L$3)/$C37*Genanskaffelsespriser!$D27*L37)) -> 0 | AJ37: =IF((M37*Genanskaffelsespriser!$D27-(2009-M$3)/$C37*Genanskaffelsespriser!$D27*M37)<0,0,(M37*Genanskaffelsespriser!$D27-(2009-M$3)/$C37*Genanskaffelsespriser!$D27*M37)) -> 0 | AK37: =IF((N37*Genanskaffelsespriser!$D27-(2009-N$3)/$C37*Genanskaffelsespriser!$D27*N37)<0,0,(N37*Genanskaffelsespriser!$D27-(2009-N$3)/$C37*Genanskaffelsespriser!$D27*N37)) -> 0 | AL37: =IF((O37*Genanskaffelsespriser!$D27-(2009-O$3)/$C37*Genanskaffelsespriser!$D27*O37)<0,0,(O37*Genanskaffelsespriser!$D27-(2009-O$3)/$C37*Genanskaffelsespriser!$D27*O37)) -> 0 | AM37: =IF((P37*Genanskaffelsespriser!$D27-(2009-P$3)/$C37*Genanskaffelsespriser!$D27*P37)<0,0,(P37*Genanskaffelsespriser!$D27-(2009-P$3)/$C37*Genanskaffelsespriser!$D27*P37)) -> 0 | AN37: =IF((Q37*Genanskaffelsespriser!$D27-(2009-Q$3)/$C37*Genanskaffelsespriser!$D27*Q37)<0,0,(Q37*Genanskaffelsespriser!$D27-(2009-Q$3)/$C37*Genanskaffelsespriser!$D27*Q37)) -> 0 | AO37: =IF((R37*Genanskaffelsespriser!$D27-(2009-R$3)/$C37*Genanskaffelsespriser!$D27*R37)<0,0,(R37*Genanskaffelsespriser!$D27-(2009-R$3)/$C37*Genanskaffelsespriser!$D27*R37)) -> 0 | AP37: =IF((S37*Genanskaffelsespriser!$D27-(2009-S$3)/$C37*Genanskaffelsespriser!$D27*S37)<0,0,(S37*Genanskaffelsespriser!$D27-(2009-S$3)/$C37*Genanskaffelsespriser!$D27*S37)) -> 0 | AQ37: =IF((T37*Genanskaffelsespriser!$D27-(2009-T$3)/$C37*Genanskaffelsespriser!$D27*T37)<0,0,(T37*Genanskaffelsespriser!$D27-(2009-T$3)/$C37*Genanskaffelsespriser!$D27*T37)) -> 0 | AR37: =IF((U37*Genanskaffelsespriser!$D27-(2009-U$3)/$C37*Genanskaffelsespriser!$D27*U37)<0,0,(U37*Genanskaffelsespriser!$D27-(2009-U$3)/$C37*Genanskaffelsespriser!$D27*U37)) -> 0 | AS37: =IF((V37*Genanskaffelsespriser!$D27-(2009-V$3)/$C37*Genanskaffelsespriser!$D27*V37)<0,0,(V37*Genanskaffelsespriser!$D27-(2009-V$3)/$C37*Genanskaffelsespriser!$D27*V37)) -> 0 | AT37: =IF((W37*Genanskaffelsespriser!$D27-(2009-W$3)/$C37*Genanskaffelsespriser!$D27*W37)<0,0,(W37*Genanskaffelsespriser!$D27-(2009-W$3)/$C37*Genanskaffelsespriser!$D27*W37)) -> 0 | AU37: =IF((X37*Genanskaffelsespriser!$D27-(2009-X$3)/$C37*Genanskaffelsespriser!$D27*X37)<0,0,(X37*Genanskaffelsespriser!$D27-(2009-X$3)/$C37*Genanskaffelsespriser!$D27*X37)) -> 0 | AV37: =IF((Y37*Genanskaffelsespriser!$D27-(2009-Y$3)/$C37*Genanskaffelsespriser!$D27*Y37)<0,0,(Y37*Genanskaffelsespriser!$D27-(2009-Y$3)/$C37*Genanskaffelsespriser!$D27*Y37)) -> 0 | AW37: =+SUM(AA37:AV37) -> 0 | AX37: =VLOOKUP(D$3,Prisindeks!$A$1:$B$111,2,FALSE)/100*AA37 -> 0 | AY37: =VLOOKUP(E$3,Prisindeks!$A$1:$B$111,2,FALSE)/100*AB37 -> 0 | AZ37: =VLOOKUP(F$3,Prisindeks!$A$1:$B$111,2,FALSE)/100*AC37 -> 0 | BA37: =VLOOKUP(G$3,Prisindeks!$A$1:$B$111,2,FALSE)/100*AD37 -> 0 | BB37: =VLOOKUP(H$3,Prisindeks!$A$1:$B$111,2,FALSE)/100*AE37 -> 0 | BC37: =VLOOKUP(I$3,Prisindeks!$A$1:$B$111,2,FALSE)/100*AF37 -> 0 | BD37: =VLOOKUP(J$3,Prisindeks!$A$1:$B$111,2,FALSE)/100*AG37 -> 0 | BE37: =VLOOKUP(K$3,Prisindeks!$A$1:$B$111,2,FALSE)/100*AH37 -> 0 | BF37: =VLOOKUP(L$3,Prisindeks!$A$1:$B$111,2,FALSE)/100*AI37 -> 0 | BG37: =VLOOKUP(M$3,Prisindeks!$A$1:$B$111,2,FALSE)/100*AJ37 -> 0 | BH37: =VLOOKUP(N$3,Prisindeks!$A$1:$B$111,2,FALSE)/100*AK37 -> 0 | BI37: =VLOOKUP(O$3,Prisindeks!$A$1:$B$111,2,FALSE)/100*AL37 -> 0 | BJ37: =VLOOKUP(P$3,Prisindeks!$A$1:$B$111,2,FALSE)/100*AM37 -> 0 | BK37: =VLOOKUP(Q$3,Prisindeks!$A$1:$B$111,2,FALSE)/100*AN37 -> 0 | BL37: =VLOOKUP(R$3,Prisindeks!$A$1:$B$111,2,FALSE)/100*AO37 -> 0 | BM37: =VLOOKUP(S$3,Prisindeks!$A$1:$B$111,2,FALSE)/100*AP37 -> 0 | BN37: =VLOOKUP(T$3,Prisindeks!$A$1:$B$111,2,FALSE)/100*AQ37 -> 0 | BO37: =VLOOKUP(U$3,Prisindeks!$A$1:$B$111,2,FALSE)/100*AR37 -> 0 | BP37: =VLOOKUP(V$3,Prisindeks!$A$1:$B$111,2,FALSE)/100*AS37 -> 0 | BQ37: =VLOOKUP(W$3,Prisindeks!$A$1:$B$111,2,FALSE)/100*AT37 -> 0 | BR37: =VLOOKUP(X$3,Prisindeks!$A$1:$B$111,2,FALSE)/100*AU37 -> 0 | BS37: =VLOOKUP(Y$3,Prisindeks!$A$1:$B$111,2,FALSE)/100*AV37 -> 0 | BT37: =+SUM(AX37:BS37) -> 0 | BU37: 0 | BV37: 0 | BW37: 0 | BX37: 0 | BY37: 0 | BZ37: 0 | CA37: 0 | CB37: 0 | CC37: 0 | CD37: 0 | CE37: 0 | CF37: 0 | CG37: 0 | CH37: 0 | CI37: 0 | CJ37: 0 | CK37: 0 | CL37: 0 | CM37: 0 | CN37: 0 | CO37: 0 | CP37: 0 | CQ37: 0 | CR37: 0
A38: Ledningsnet > Ø 500 mm | B38: meter | C38: =Genanskaffelsespriser!E28 -> 75 | D38: 0 | E38: 0 | F38: 0 | G38: 0 | H38: 0 | I38: 0 | J38: 0 | K38: 0 | L38: 0 | M38: 0 | N38: 0 | O38: 0 | P38: 0 | Q38: 0 | R38: 0 | S38: 0 | T38: 0 | U38: 0 | V38: 0 | W38: 0 | X38: 0 | Y38: 0 | AA38: =IF((D38*Genanskaffelsespriser!$D28-(2009-D$3)/$C38*Genanskaffelsespriser!$D28*D38)<0,0,(D38*Genanskaffelsespriser!$D28-(2009-D$3)/$C38*Genanskaffelsespriser!$D28*D38)) -> 0 | AB38: =IF((E38*Genanskaffelsespriser!$D28-(2009-E$3)/$C38*Genanskaffelsespriser!$D28*E38)<0,0,(E38*Genanskaffelsespriser!$D28-(2009-E$3)/$C38*Genanskaffelsespriser!$D28*E38)) -> 0 | AC38: =IF((F38*Genanskaffelsespriser!$D28-(2009-F$3)/$C38*Genanskaffelsespriser!$D28*F38)<0,0,(F38*Genanskaffelsespriser!$D28-(2009-F$3)/$C38*Genanskaffelsespriser!$D28*F38)) -> 0 | AD38: =IF((G38*Genanskaffelsespriser!$D28-(2009-G$3)/$C38*Genanskaffelsespriser!$D28*G38)<0,0,(G38*Genanskaffelsespriser!$D28-(2009-G$3)/$C38*Genanskaffelsespriser!$D28*G38)) -> 0 | AE38: =IF((H38*Genanskaffelsespriser!$D28-(2009-H$3)/$C38*Genanskaffelsespriser!$D28*H38)<0,0,(H38*Genanskaffelsespriser!$D28-(2009-H$3)/$C38*Genanskaffelsespriser!$D28*H38)) -> 0 | AF38: =IF((I38*Genanskaffelsespriser!$D28-(2009-I$3)/$C38*Genanskaffelsespriser!$D28*I38)<0,0,(I38*Genanskaffelsespriser!$D28-(2009-I$3)/$C38*Genanskaffelsespriser!$D28*I38)) -> 0 | AG38: =IF((J38*Genanskaffelsespriser!$D28-(2009-J$3)/$C38*Genanskaffelsespriser!$D28*J38)<0,0,(J38*Genanskaffelsespriser!$D28-(2009-J$3)/$C38*Genanskaffelsespriser!$D28*J38)) -> 0 | AH38: =IF((K38*Genanskaffelsespriser!$D28-(2009-K$3)/$C38*Genanskaffelsespriser!$D28*K38)<0,0,(K38*Genanskaffelsespriser!$D28-(2009-K$3)/$C38*Genanskaffelsespriser!$D28*K38)) -> 0 | AI38: =IF((L38*Genanskaffelsespriser!$D28-(2009-L$3)/$C38*Genanskaffelsespriser!$D28*L38)<0,0,(L38*Genanskaffelsespriser!$D28-(2009-L$3)/$C38*Genanskaffelsespriser!$D28*L38)) -> 0 | AJ38: =IF((M38*Genanskaffelsespriser!$D28-(2009-M$3)/$C38*Genanskaffelsespriser!$D28*M38)<0,0,(M38*Genanskaffelsespriser!$D28-(2009-M$3)/$C38*Genanskaffelsespriser!$D28*M38)) -> 0 | AK38: =IF((N38*Genanskaffelsespriser!$D28-(2009-N$3)/$C38*Genanskaffelsespriser!$D28*N38)<0,0,(N38*Genanskaffelsespriser!$D28-(2009-N$3)/$C38*Genanskaffelsespriser!$D28*N38)) -> 0 | AL38: =IF((O38*Genanskaffelsespriser!$D28-(2009-O$3)/$C38*Genanskaffelsespriser!$D28*O38)<0,0,(O38*Genanskaffelsespriser!$D28-(2009-O$3)/$C38*Genanskaffelsespriser!$D28*O38)) -> 0 | AM38: =IF((P38*Genanskaffelsespriser!$D28-(2009-P$3)/$C38*Genanskaffelsespriser!$D28*P38)<0,0,(P38*Genanskaffelsespriser!$D28-(2009-P$3)/$C38*Genanskaffelsespriser!$D28*P38)) -> 0 | AN38: =IF((Q38*Genanskaffelsespriser!$D28-(2009-Q$3)/$C38*Genanskaffelsespriser!$D28*Q38)<0,0,(Q38*Genanskaffelsespriser!$D28-(2009-Q$3)/$C38*Genanskaffelsespriser!$D28*Q38)) -> 0 | AO38: =IF((R38*Genanskaffelsespriser!$D28-(2009-R$3)/$C38*Genanskaffelsespriser!$D28*R38)<0,0,(R38*Genanskaffelsespriser!$D28-(2009-R$3)/$C38*Genanskaffelsespriser!$D28*R38)) -> 0 | AP38: =IF((S38*Genanskaffelsespriser!$D28-(2009-S$3)/$C38*Genanskaffelsespriser!$D28*S38)<0,0,(S38*Genanskaffelsespriser!$D28-(2009-S$3)/$C38*Genanskaffelsespriser!$D28*S38)) -> 0 | AQ38: =IF((T38*Genanskaffelsespriser!$D28-(2009-T$3)/$C38*Genanskaffelsespriser!$D28*T38)<0,0,(T38*Genanskaffelsespriser!$D28-(2009-T$3)/$C38*Genanskaffelsespriser!$D28*T38)) -> 0 | AR38: =IF((U38*Genanskaffelsespriser!$D28-(2009-U$3)/$C38*Genanskaffelsespriser!$D28*U38)<0,0,(U38*Genanskaffelsespriser!$D28-(2009-U$3)/$C38*Genanskaffelsespriser!$D28*U38)) -> 0 | AS38: =IF((V38*Genanskaffelsespriser!$D28-(2009-V$3)/$C38*Genanskaffelsespriser!$D28*V38)<0,0,(V38*Genanskaffelsespriser!$D28-(2009-V$3)/$C38*Genanskaffelsespriser!$D28*V38)) -> 0 | AT38: =IF((W38*Genanskaffelsespriser!$D28-(2009-W$3)/$C38*Genanskaffelsespriser!$D28*W38)<0,0,(W38*Genanskaffelsespriser!$D28-(2009-W$3)/$C38*Genanskaffelsespriser!$D28*W38)) -> 0 | AU38: =IF((X38*Genanskaffelsespriser!$D28-(2009-X$3)/$C38*Genanskaffelsespriser!$D28*X38)<0,0,(X38*Genanskaffelsespriser!$D28-(2009-X$3)/$C38*Genanskaffelsespriser!$D28*X38)) -> 0 | AV38: =IF((Y38*Genanskaffelsespriser!$D28-(2009-Y$3)/$C38*Genanskaffelsespriser!$D28*Y38)<0,0,(Y38*Genanskaffelsespriser!$D28-(2009-Y$3)/$C38*Genanskaffelsespriser!$D28*Y38)) -> 0 | AW38: =+SUM(AA38:AV38) -> 0 | AX38: =VLOOKUP(D$3,Prisindeks!$A$1:$B$111,2,FALSE)/100*AA38 -> 0 | AY38: =VLOOKUP(E$3,Prisindeks!$A$1:$B$111,2,FALSE)/100*AB38 -> 0 | AZ38: =VLOOKUP(F$3,Prisindeks!$A$1:$B$111,2,FALSE)/100*AC38 -> 0 | BA38: =VLOOKUP(G$3,Prisindeks!$A$1:$B$111,2,FALSE)/100*AD38 -> 0 | BB38: =VLOOKUP(H$3,Prisindeks!$A$1:$B$111,2,FALSE)/100*AE38 -> 0 | BC38: =VLOOKUP(I$3,Prisindeks!$A$1:$B$111,2,FALSE)/100*AF38 -> 0 | BD38: =VLOOKUP(J$3,Prisindeks!$A$1:$B$111,2,FALSE)/100*AG38 -> 0 | BE38: =VLOOKUP(K$3,Prisindeks!$A$1:$B$111,2,FALSE)/100*AH38 -> 0 | BF38: =VLOOKUP(L$3,Prisindeks!$A$1:$B$111,2,FALSE)/100*AI38 -> 0 | BG38: =VLOOKUP(M$3,Prisindeks!$A$1:$B$111,2,FALSE)/100*AJ38 -> 0 | BH38: =VLOOKUP(N$3,Prisindeks!$A$1:$B$111,2,FALSE)/100*AK38 -> 0 | BI38: =VLOOKUP(O$3,Prisindeks!$A$1:$B$111,2,FALSE)/100*AL38 -> 0 | BJ38: =VLOOKUP(P$3,Prisindeks!$A$1:$B$111,2,FALSE)/100*AM38 -> 0 | BK38: =VLOOKUP(Q$3,Prisindeks!$A$1:$B$111,2,FALSE)/100*AN38 -> 0 | BL38: =VLOOKUP(R$3,Prisindeks!$A$1:$B$111,2,FALSE)/100*AO38 -> 0 | BM38: =VLOOKUP(S$3,Prisindeks!$A$1:$B$111,2,FALSE)/100*AP38 -> 0 | BN38: =VLOOKUP(T$3,Prisindeks!$A$1:$B$111,2,FALSE)/100*AQ38 -> 0 | BO38: =VLOOKUP(U$3,Prisindeks!$A$1:$B$111,2,FALSE)/100*AR38 -> 0 | BP38: =VLOOKUP(V$3,Prisindeks!$A$1:$B$111,2,FALSE)/100*AS38 -> 0 | BQ38: =VLOOKUP(W$3,Prisindeks!$A$1:$B$111,2,FALSE)/100*AT38 -> 0 | BR38: =VLOOKUP(X$3,Prisindeks!$A$1:$B$111,2,FALSE)/100*AU38 -> 0 | BS38: =VLOOKUP(Y$3,Prisindeks!$A$1:$B$111,2,FALSE)/100*AV38 -> 0 | BT38: =+SUM(AX38:BS38) -> 0 | BU38: 0 | BV38: 0 | BW38: 0 | BX38: 0 | BY38: 0 | BZ38: 0 | CA38: 0 | CB38: 0 | CC38: 0 | CD38: 0 | CE38: 0 | CF38: 0 | CG38: 0 | CH38: 0 | CI38: 0 | CJ38: 0 | CK38: 0 | CL38: 0 | CM38: 0 | CN38: 0 | CO38: 0 | CP38: 0 | CQ38: 0 | CR38: 0
A39: Vandværk 1 | AW39: =SUM(AW40:AW81) -> 492456.4122 | BT39: =SUM(BT40:BT81) -> 492456.4122 | CQ39: =SUM(CQ40:CQ81) -> 492456.4122
A40: Beluftningsanlæg, iltningstrappe, Konstruktioner | B40: m³/h | C40: =Genanskaffelsespriser!$E$30 -> 50 | D40: 0 | E40: 0 | F40: 0 | G40: 0 | H40: 0 | I40: 0 | J40: 0 | K40: 0 | L40: 0 | M40: 0 | N40: 0 | O40: 0 | P40: 0 | Q40: 0 | R40: 0 | S40: 0 | T40: 0 | U40: 0 | V40: 0 | W40: 0 | X40: 0 | Y40: 0 | Z40: =IF(COUNTIF(D40:Y40,"<>0")<=1,IF((SUM(D40:Y40))>0,(+HLOOKUP((SUM(D40:Y40)),Priser!$E$96:$J$108,2)+((SUM(D40:Y40))-HLOOKUP((SUM(D40:Y40)),Priser!$E$96:$J$108,1))*HLOOKUP((SUM(D40:Y40)),Priser!$E$96:$J$108,3))/(SUM(D40:Y40)),0)*Priser!$Q$97*(1+Genanskaffelsespriser!$D$196),$A$1359) -> 0 | AA40: =IF((D40*$Z40-(2009-D$3)/($C40+D41)*$Z40*D40)<0,0,(D40*$Z40-(2009-D$3)/($C40+D41)*$Z40*D40)) -> 0 | AB40: =IF((E40*$Z40-(2009-E$3)/($C40+E41)*$Z40*E40)<0,0,(E40*$Z40-(2009-E$3)/($C40+E41)*$Z40*E40)) -> 0 | AC40: 0 | AD40: 0 | AE40: 0 | AF40: 0 | AG40: 0 | AH40: 0 | AI40: 0 | AJ40: 0 | AK40: 0 | AL40: 0 | AM40: 0 | AN40: 0 | AO40: 0 | AP40: 0 | AQ40: 0 | AR40: 0 | AS40: 0 | AT40: 0 | AU40: 0 | AV40: 0 | AW40: =+SUM(AA40:AV40) -> 0 | AX40: =VLOOKUP(D$3,Prisindeks!$A$1:$B$111,2,FALSE)/100*AA40 -> 0 | AY40: =VLOOKUP(E$3,Prisindeks!$A$1:$B$111,2,FALSE)/100*AB40 -> 0 | AZ40: =VLOOKUP(F$3,Prisindeks!$A$1:$B$111,2,FALSE)/100*AC40 -> 0 | BA40: =VLOOKUP(G$3,Prisindeks!$A$1:$B$111,2,FALSE)/100*AD40 -> 0 | BB40: =VLOOKUP(H$3,Prisindeks!$A$1:$B$111,2,FALSE)/100*AE40 -> 0 | BC40: =VLOOKUP(I$3,Prisindeks!$A$1:$B$111,2,FALSE)/100*AF40 -> 0 | BD40: =VLOOKUP(J$3,Prisindeks!$A$1:$B$111,2,FALSE)/100*AG40 -> 0 | BE40: =VLOOKUP(K$3,Prisindeks!$A$1:$B$111,2,FALSE)/100*AH40 -> 0 | BF40: =VLOOKUP(L$3,Prisindeks!$A$1:$B$111,2,FALSE)/100*AI40 -> 0 | BG40: =VLOOKUP(M$3,Prisindeks!$A$1:$B$111,2,FALSE)/100*AJ40 -> 0 | BH40: =VLOOKUP(N$3,Prisindeks!$A$1:$B$111,2,FALSE)/100*AK40 -> 0 | BI40: =VLOOKUP(O$3,Prisindeks!$A$1:$B$111,2,FALSE)/100*AL40 -> 0 | BJ40: =VLOOKUP(P$3,Prisindeks!$A$1:$B$111,2,FALSE)/100*AM40 -> 0 | BK40: =VLOOKUP(Q$3,Prisindeks!$A$1:$B$111,2,FALSE)/100*AN40 -> 0 | BL40: =VLOOKUP(R$3,Prisindeks!$A$1:$B$111,2,FALSE)/100*AO40 -> 0 | BM40: =VLOOKUP(S$3,Prisindeks!$A$1:$B$111,2,FALSE)/100*AP40 -> 0 | BN40: =VLOOKUP(T$3,Prisindeks!$A$1:$B$111,2,FALSE)/100*AQ40 -> 0 | BO40: =VLOOKUP(U$3,Prisindeks!$A$1:$B$111,2,FALSE)/100*AR40 -> 0 | BP40: =VLOOKUP(V$3,Prisindeks!$A$1:$B$111,2,FALSE)/100*AS40 -> 0 | BQ40: =VLOOKUP(W$3,Prisindeks!$A$1:$B$111,2,FALSE)/100*AT40 -> 0 | BR40: =VLOOKUP(X$3,Prisindeks!$A$1:$B$111,2,FALSE)/100*AU40 -> 0 | BS40: =VLOOKUP(Y$3,Prisindeks!$A$1:$B$111,2,FALSE)/100*AV40 -> 0 | BT40: =+SUM(AX40:BS40) -> 0 | BU40: =(AA40+AX40)/2 -> 0 | BV40: =(AB40+AY40)/2 -> 0 | BW40: =(AC40+AZ40)/2 -> 0 | BX40: =(AD40+BA40)/2 -> 0 | BY40: =(AE40+BB40)/2 -> 0 | BZ40: =(AF40+BC40)/2 -> 0 | CA40: =(AG40+BD40)/2 -> 0 | CB40: =(AH40+BE40)/2 -> 0 | CC40: =(AI40+BF40)/2 -> 0 | CD40: =(AJ40+BG40)/2 -> 0 | CE40: =(AK40+BH40)/2 -> 0 | CF40: =(AL40+BI40)/2 -> 0 | CG40: =(AM40+BJ40)/2 -> 0 | CH40: =(AN40+BK40)/2 -> 0 | CI40: =(AO40+BL40)/2 -> 0 | CJ40: =(AP40+BM40)/2 -> 0 | CK40: =(AQ40+BN40)/2 -> 0 | CL40: =(AR40+BO40)/2 -> 0 | CM40: =(AS40+BP40)/2 -> 0 | CN40: =(AT40+BQ40)/2 -> 0 | CO40: =(AU40+BR40)/2 -> 0 | CP40: =(AV40+BS40)/2 -> 0 | CQ40: 0 | CR40: 0
A41: Levetidsforlængelse | B41: år | C41: - | D41: 0 | E41: 0 | F41: 0 | G41: 0 | H41: 0 | I41: 0 | J41: 0 | K41: 0 | L41: 0 | M41: 0 | N41: 0 | O41: 0 | P41: 0 | Q41: 0 | R41: 0 | S41: 0 | T41: 0 | U41: 0 | V41: 0 | W41: 0 | X41: 0 | Y41: 0
A42: Beluftningsanlæg, iltningstrappe, Mek./EL | B42: m³/h | C42: =Genanskaffelsespriser!$E$31 -> 25 | D42: 0 | E42: 0 | F42: 0 | G42: 0 | H42: 0 | I42: 0 | J42: 0 | K42: 0 | L42: 0 | M42: 0 | N42: 0 | O42: 0 | P42: 0 | Q42: 0 | R42: 0 | S42: 0 | T42: 0 | U42: 0 | V42: 0 | W42: 0 | X42: 0 | Y42: 0 | Z42: =IF(COUNTIF(D42:Y42,"<>0")<=1,IF((SUM(D42:Y42))>0,(+HLOOKUP((SUM(D42:Y42)),Priser!$E$96:$J$108,2)+((SUM(D42:Y42))-HLOOKUP((SUM(D42:Y42)),Priser!$E$96:$J$108,1))*HLOOKUP((SUM(D42:Y42)),Priser!$E$96:$J$108,3))/(SUM(D42:Y42)),0)*Priser!$R$97*(1+Genanskaffelsespriser!$D$196),$A$1359) -> 0 | AA42: =IF((D42*$Z42-(2009-D$3)/$C42*$Z42*D42)<0,0,(D42*$Z42-(2009-D$3)/$C42*$Z42*D42)) -> 0 | AB42: =IF((E42*$Z42-(2009-E$3)/$C42*$Z42*E42)<0,0,(E42*$Z42-(2009-E$3)/$C42*$Z42*E42)) -> 0 | AC42: =IF((F42*$Z42-(2009-F$3)/$C42*$Z42*F42)<0,0,(F42*$Z42-(2009-F$3)/$C42*$Z42*F42)) -> 0 | AD42: =IF((G42*$Z42-(2009-G$3)/$C42*$Z42*G42)<0,0,(G42*$Z42-(2009-G$3)/$C42*$Z42*G42)) -> 0 | AE42: =IF((H42*$Z42-(2009-H$3)/$C42*$Z42*H42)<0,0,(H42*$Z42-(2009-H$3)/$C42*$Z42*H42)) -> 0 | AF42: =IF((I42*$Z42-(2009-I$3)/$C42*$Z42*I42)<0,0,(I42*$Z42-(2009-I$3)/$C42*$Z42*I42)) -> 0 | AG42: =IF((J42*$Z42-(2009-J$3)/$C42*$Z42*J42)<0,0,(J42*$Z42-(2009-J$3)/$C42*$Z42*J42)) -> 0 | AH42: =IF((K42*$Z42-(2009-K$3)/$C42*$Z42*K42)<0,0,(K42*$Z42-(2009-K$3)/$C42*$Z42*K42)) -> 0 | AI42: =IF((L42*$Z42-(2009-L$3)/$C42*$Z42*L42)<0,0,(L42*$Z42-(2009-L$3)/$C42*$Z42*L42)) -> 0 | AJ42: =IF((M42*$Z42-(2009-M$3)/$C42*$Z42*M42)<0,0,(M42*$Z42-(2009-M$3)/$C42*$Z42*M42)) -> 0 | AK42: =IF((N42*$Z42-(2009-N$3)/$C42*$Z42*N42)<0,0,(N42*$Z42-(2009-N$3)/$C42*$Z42*N42)) -> 0 | AL42: =IF((O42*$Z42-(2009-O$3)/$C42*$Z42*O42)<0,0,(O42*$Z42-(2009-O$3)/$C42*$Z42*O42)) -> 0 | AM42: =IF((P42*$Z42-(2009-P$3)/$C42*$Z42*P42)<0,0,(P42*$Z42-(2009-P$3)/$C42*$Z42*P42)) -> 0 | AN42: =IF((Q42*$Z42-(2009-Q$3)/$C42*$Z42*Q42)<0,0,(Q42*$Z42-(2009-Q$3)/$C42*$Z42*Q42)) -> 0 | AO42: =IF((R42*$Z42-(2009-R$3)/$C42*$Z42*R42)<0,0,(R42*$Z42-(2009-R$3)/$C42*$Z42*R42)) -> 0 | AP42: =IF((S42*$Z42-(2009-S$3)/$C42*$Z42*S42)<0,0,(S42*$Z42-(2009-S$3)/$C42*$Z42*S42)) -> 0 | AQ42: =IF((T42*$Z42-(2009-T$3)/$C42*$Z42*T42)<0,0,(T42*$Z42-(2009-T$3)/$C42*$Z42*T42)) -> 0 | AR42: =IF((U42*$Z42-(2009-U$3)/$C42*$Z42*U42)<0,0,(U42*$Z42-(2009-U$3)/$C42*$Z42*U42)) -> 0 | AS42: =IF((V42*$Z42-(2009-V$3)/$C42*$Z42*V42)<0,0,(V42*$Z42-(2009-V$3)/$C42*$Z42*V42)) -> 0 | AT42: =IF((W42*$Z42-(2009-W$3)/$C42*$Z42*W42)<0,0,(W42*$Z42-(2009-W$3)/$C42*$Z42*W42)) -> 0 | AU42: =IF((X42*$Z42-(2009-X$3)/$C42*$Z42*X42)<0,0,(X42*$Z42-(2009-X$3)/$C42*$Z42*X42)) -> 0 | AV42: =IF((Y42*$Z42-(2009-Y$3)/$C42*$Z42*Y42)<0,0,(Y42*$Z42-(2009-Y$3)/$C42*$Z42*Y42)) -> 0 | AW42: 0 | AX42: =VLOOKUP(D$3,Prisindeks!$A$1:$B$111,2,FALSE)/100*AA42 -> 0 | AY42: =VLOOKUP(E$3,Prisindeks!$A$1:$B$111,2,FALSE)/100*AB42 -> 0 | AZ42: =VLOOKUP(F$3,Prisindeks!$A$1:$B$111,2,FALSE)/100*AC42 -> 0 | BA42: =VLOOKUP(G$3,Prisindeks!$A$1:$B$111,2,FALSE)/100*AD42 -> 0 | BB42: =VLOOKUP(H$3,Prisindeks!$A$1:$B$111,2,FALSE)/100*AE42 -> 0 | BC42: =VLOOKUP(I$3,Prisindeks!$A$1:$B$111,2,FALSE)/100*AF42 -> 0 | BD42: =VLOOKUP(J$3,Prisindeks!$A$1:$B$111,2,FALSE)/100*AG42 -> 0 | BE42: =VLOOKUP(K$3,Prisindeks!$A$1:$B$111,2,FALSE)/100*AH42 -> 0 | BF42: =VLOOKUP(L$3,Prisindeks!$A$1:$B$111,2,FALSE)/100*AI42 -> 0 | BG42: =VLOOKUP(M$3,Prisindeks!$A$1:$B$111,2,FALSE)/100*AJ42 -> 0 | BH42: =VLOOKUP(N$3,Prisindeks!$A$1:$B$111,2,FALSE)/100*AK42 -> 0 | BI42: =VLOOKUP(O$3,Prisindeks!$A$1:$B$111,2,FALSE)/100*AL42 -> 0 | BJ42: =VLOOKUP(P$3,Prisindeks!$A$1:$B$111,2,FALSE)/100*AM42 -> 0 | BK42: =VLOOKUP(Q$3,Prisindeks!$A$1:$B$111,2,FALSE)/100*AN42 -> 0 | BL42: =VLOOKUP(R$3,Prisindeks!$A$1:$B$111,2,FALSE)/100*AO42 -> 0 | BM42: =VLOOKUP(S$3,Prisindeks!$A$1:$B$111,2,FALSE)/100*AP42 -> 0 | BN42: =VLOOKUP(T$3,Prisindeks!$A$1:$B$111,2,FALSE)/100*AQ42 -> 0 | BO42: =VLOOKUP(U$3,Prisindeks!$A$1:$B$111,2,FALSE)/100*AR42 -> 0 | BP42: =VLOOKUP(V$3,Prisindeks!$A$1:$B$111,2,FALSE)/100*AS42 -> 0 | BQ42: =VLOOKUP(W$3,Prisindeks!$A$1:$B$111,2,FALSE)/100*AT42 -> 0 | BR42: =VLOOKUP(X$3,Prisindeks!$A$1:$B$111,2,FALSE)/100*AU42 -> 0 | BS42: =VLOOKUP(Y$3,Prisindeks!$A$1:$B$111,2,FALSE)/100*AV42 -> 0 | BT42: 0 | BU42: 0 | BV42: 0 | BW42: 0 | BX42: 0 | BY42: 0 | BZ42: 0 | CA42: 0 | CB42: 0 | CC42: 0 | CD42: 0 | CE42: 0 | CF42: 0 | CG42: 0 | CH42: 0 | CI42: 0 | CJ42: 0 | CK42: 0 | CL42: 0 | CM42: 0 | CN42: 0 | CO42: 0 | CP42: 0 | CQ42: 0 | CR42: 0
A43: Beluftningsanlæg, ika-beluftning, Konstruktioner | B43: m³/h | C43: =Genanskaffelsespriser!$E$32 -> 50 | D43: 0 | E43: 0 | F43: 0 | G43: 0 | H43: 0 | I43: 0 | J43: 0 | K43: 0 | L43: 0 | M43: 0 | N43: 0 | O43: 0 | P43: 0 | Q43: 0 | R43: 0 | S43: 0 | T43: 0 | U43: 0 | V43: 0 | W43: 0 | X43: 0 | Y43: 0 | Z43: =IF(COUNTIF(D43:Y43,"<>0")<=1,IF((SUM(D43:Y43))>0,(+HLOOKUP((SUM(D43:Y43)),Priser!$E$96:$J$108,4)+((SUM(D43:Y43))-HLOOKUP((SUM(D43:Y43)),Priser!$E$96:$J$108,1))*HLOOKUP((SUM(D43:Y43)),Priser!$E$96:$J$108,5))/(SUM(D43:Y43)),0)*Priser!$Q$99*(1+Genanskaffelsespriser!$D$196),$A$1359) -> 0 | AA43: =IF((D43*$Z43-(2009-D$3)/($C43+D44)*$Z43*D43)<0,0,(D43*$Z43-(2009-D$3)/($C43+D44)*$Z43*D43)) -> 0 | AB43: =IF((E43*$Z43-(2009-E$3)/($C43+E44)*$Z43*E43)<0,0,(E43*$Z43-(2009-E$3)/($C43+E44)*$Z43*E43)) -> 0 | AC43: 0 | AD43: 0 | AE43: 0 | AF43: 0 | AG43: 0 | AH43: 0 | AI43: 0 | AJ43: 0 | AK43: 0 | AL43: 0 | AM43: 0 | AN43: 0 | AO43: 0 | AP43: 0 | AQ43: 0 | AR43: 0 | AS43: 0 | AT43: 0 | AU43: 0 | AV43: 0 | AW43: 0 | AX43: =VLOOKUP(D$3,Prisindeks!$A$1:$B$111,2,FALSE)/100*AA43 -> 0 | AY43: =VLOOKUP(E$3,Prisindeks!$A$1:$B$111,2,FALSE)/100*AB43 -> 0 | AZ43: =VLOOKUP(F$3,Prisindeks!$A$1:$B$111,2,FALSE)/100*AC43 -> 0 | BA43: =VLOOKUP(G$3,Prisindeks!$A$1:$B$111,2,FALSE)/100*AD43 -> 0 | BB43: =VLOOKUP(H$3,Prisindeks!$A$1:$B$111,2,FALSE)/100*AE43 -> 0 | BC43: =VLOOKUP(I$3,Prisindeks!$A$1:$B$111,2,FALSE)/100*AF43 -> 0 | BD43: =VLOOKUP(J$3,Prisindeks!$A$1:$B$111,2,FALSE)/100*AG43 -> 0 | BE43: =VLOOKUP(K$3,Prisindeks!$A$1:$B$111,2,FALSE)/100*AH43 -> 0 | BF43: =VLOOKUP(L$3,Prisindeks!$A$1:$B$111,2,FALSE)/100*AI43 -> 0 | BG43: =VLOOKUP(M$3,Prisindeks!$A$1:$B$111,2,FALSE)/100*AJ43 -> 0 | BH43: =VLOOKUP(N$3,Prisindeks!$A$1:$B$111,2,FALSE)/100*AK43 -> 0 | BI43: =VLOOKUP(O$3,Prisindeks!$A$1:$B$111,2,FALSE)/100*AL43 -> 0 | BJ43: =VLOOKUP(P$3,Prisindeks!$A$1:$B$111,2,FALSE)/100*AM43 -> 0 | BK43: =VLOOKUP(Q$3,Prisindeks!$A$1:$B$111,2,FALSE)/100*AN43 -> 0 | BL43: =VLOOKUP(R$3,Prisindeks!$A$1:$B$111,2,FALSE)/100*AO43 -> 0 | BM43: =VLOOKUP(S$3,Prisindeks!$A$1:$B$111,2,FALSE)/100*AP43 -> 0 | BN43: =VLOOKUP(T$3,Prisindeks!$A$1:$B$111,2,FALSE)/100*AQ43 -> 0 | BO43: =VLOOKUP(U$3,Prisindeks!$A$1:$B$111,2,FALSE)/100*AR43 -> 0 | BP43: =VLOOKUP(V$3,Prisindeks!$A$1:$B$111,2,FALSE)/100*AS43 -> 0 | BQ43: =VLOOKUP(W$3,Prisindeks!$A$1:$B$111,2,FALSE)/100*AT43 -> 0 | BR43: =VLOOKUP(X$3,Prisindeks!$A$1:$B$111,2,FALSE)/100*AU43 -> 0 | BS43: =VLOOKUP(Y$3,Prisindeks!$A$1:$B$111,2,FALSE)/100*AV43 -> 0 | BT43: 0 | BU43: 0 | BV43: 0 | BW43: 0 | BX43: 0 | BY43: 0 | BZ43: 0 | CA43: 0 | CB43: 0 | CC43: 0 | CD43: 0 | CE43: 0 | CF43: 0 | CG43: 0 | CH43: 0 | CI43: 0 | CJ43: 0 | CK43: 0 | CL43: 0 | CM43: 0 | CN43: 0 | CO43: 0 | CP43: 0 | CQ43: 0 | CR43: 0
A44: Levetidsforlængelse | B44: år | C44: - | D44: 0 | E44: 0 | F44: 0 | G44: 0 | H44: 0 | I44: 0 | J44: 0 | K44: 0 | L44: 0 | M44: 0 | N44: 0 | O44: 0 | P44: 0 | Q44: 0 | R44: 0 | S44: 0 | T44: 0 | U44: 0 | V44: 0 | W44: 0 | X44: 0 | Y44: 0
A45: Beluftningsanlæg, ika-beluftning, Mek./EL | B45: m³/h | C45: =Genanskaffelsespriser!$E$33 -> 25 | D45: 0 | E45: 0 | F45: 0 | G45: 0 | H45: 0 | I45: 0 | J45: 0 | K45: 0 | L45: 0 | M45: 0 | N45: 0 | O45: 0 | P45: 0 | Q45: 0 | R45: 0 | S45: 0 | T45: 0 | U45: 0 | V45: 0 | W45: 0 | X45: 0 | Y45: 0 | Z45: =IF(COUNTIF(D45:Y45,"<>0")<=1,IF((SUM(D45:Y45))>0,(+HLOOKUP((SUM(D45:Y45)),Priser!$E$96:$J$108,4)+((SUM(D45:Y45))-HLOOKUP((SUM(D45:Y45)),Priser!$E$96:$J$108,1))*HLOOKUP((SUM(D45:Y45)),Priser!$E$96:$J$108,5))/(SUM(D45:Y45)),0)*Priser!$R$99*(1+Genanskaffelsespriser!$D$196),$A$1359) -> 0 | AA45: =IF((D45*$Z45-(2009-D$3)/$C45*$Z45*D45)<0,0,(D45*$Z45-(2009-D$3)/$C45*$Z45*D45)) -> 0 | AB45: =IF((E45*$Z45-(2009-E$3)/$C45*$Z45*E45)<0,0,(E45*$Z45-(2009-E$3)/$C45*$Z45*E45)) -> 0 | AC45: 0 | AD45: 0 | AE45: 0 | AF45: 0 | AG45: 0 | AH45: 0 | AI45: 0 | AJ45: 0 | AK45: 0 | AL45: 0 | AM45: 0 | AN45: 0 | AO45: 0 | AP45: 0 | AQ45: 0 | AR45: 0 | AS45: 0 | AT45: 0 | AU45: 0 | AV45: 0 | AW45: 0 | AX45: =VLOOKUP(D$3,Prisindeks!$A$1:$B$111,2,FALSE)/100*AA45 -> 0 | AY45: =VLOOKUP(E$3,Prisindeks!$A$1:$B$111,2,FALSE)/100*AB45 -> 0 | AZ45: =VLOOKUP(F$3,Prisindeks!$A$1:$B$111,2,FALSE)/100*AC45 -> 0 | BA45: =VLOOKUP(G$3,Prisindeks!$A$1:$B$111,2,FALSE)/100*AD45 -> 0 | BB45: =VLOOKUP(H$3,Prisindeks!$A$1:$B$111,2,FALSE)/100*AE45 -> 0 | BC45: =VLOOKUP(I$3,Prisindeks!$A$1:$B$111,2,FALSE)/100*AF45 -> 0 | BD45: =VLOOKUP(J$3,Prisindeks!$A$1:$B$111,2,FALSE)/100*AG45 -> 0 | BE45: =VLOOKUP(K$3,Prisindeks!$A$1:$B$111,2,FALSE)/100*AH45 -> 0 | BF45: =VLOOKUP(L$3,Prisindeks!$A$1:$B$111,2,FALSE)/100*AI45 -> 0 | BG45: =VLOOKUP(M$3,Prisindeks!$A$1:$B$111,2,FALSE)/100*AJ45 -> 0 | BH45: =VLOOKUP(N$3,Prisindeks!$A$1:$B$111,2,FALSE)/100*AK45 -> 0 | BI45: =VLOOKUP(O$3,Prisindeks!$A$1:$B$111,2,FALSE)/100*AL45 -> 0 | BJ45: =VLOOKUP(P$3,Prisindeks!$A$1:$B$111,2,FALSE)/100*AM45 -> 0 | BK45: =VLOOKUP(Q$3,Prisindeks!$A$1:$B$111,2,FALSE)/100*AN45 -> 0 | BL45: =VLOOKUP(R$3,Prisindeks!$A$1:$B$111,2,FALSE)/100*AO45 -> 0 | BM45: =VLOOKUP(S$3,Prisindeks!$A$1:$B$111,2,FALSE)/100*AP45 -> 0 | BN45: =VLOOKUP(T$3,Prisindeks!$A$1:$B$111,2,FALSE)/100*AQ45 -> 0 | BO45: =VLOOKUP(U$3,Prisindeks!$A$1:$B$111,2,FALSE)/100*AR45 -> 0 | BP45: =VLOOKUP(V$3,Prisindeks!$A$1:$B$111,2,FALSE)/100*AS45 -> 0 | BQ45: =VLOOKUP(W$3,Prisindeks!$A$1:$B$111,2,FALSE)/100*AT45 -> 0 | BR45: =VLOOKUP(X$3,Prisindeks!$A$1:$B$111,2,FALSE)/100*AU45 -> 0 | BS45: =VLOOKUP(Y$3,Prisindeks!$A$1:$B$111,2,FALSE)/100*AV45 -> 0 | BT45: 0 | BU45: 0 | BV45: 0 | BW45: 0 | BX45: 0 | BY45: 0 | BZ45: 0 | CA45: 0 | CB45: 0 | CC45: 0 | CD45: 0 | CE45: 0 | CF45: 0 | CG45: 0 | CH45: 0 | CI45: 0 | CJ45: 0 | CK45: 0 | CL45: 0 | CM45: 0 | CN45: 0 | CO45: 0 | CP45: 0 | CQ45: 0 | CR45: 0
A46: Beluftningsanlæg, bundbeluftbning, Konstruktioner | B46: m³/h | C46: =Genanskaffelsespriser!$E$34 -> 50 | D46: 0 | E46: 0 | F46: 0 | G46: 0 | H46: 0 | I46: 0 | J46: 0 | K46: 0 | L46: 0 | M46: 0 | N46: 0 | O46: 0 | P46: 0 | Q46: 0 | R46: 0 | S46: 0 | T46: 0 | U46: 0 | V46: 0 | W46: 0 | X46: 0 | Y46: 34.4 | Z46: =IF(COUNTIF(D46:Y46,"<>0")<=1,IF((SUM(D46:Y46))>0,(+HLOOKUP((SUM(D46:Y46)),Priser!$E$96:$J$108,8)+((SUM(D46:Y46))-HLOOKUP((SUM(D46:Y46)),Priser!$E$96:$J$108,1))*HLOOKUP((SUM(D46:Y46)),Priser!$E$96:$J$108,9))/(SUM(D46:Y46)),0)*Priser!$Q$103*(1+Genanskaffelsespriser!$D$196),$A$1359) -> 3518.04692 | AA46: =IF((D46*$Z46-(2009-D$3)/($C46+D47)*$Z46*D46)<0,0,(D46*$Z46-(2009-D$3)/($C46+D47)*$Z46*D46)) -> 0 | AB46: =IF((E46*$Z46-(2009-E$3)/($C46+E47)*$Z46*E46)<0,0,(E46*$Z46-(2009-E$3)/($C46+E47)*$Z46*E46)) -> 0 | AC46: 0 | AD46: 0 | AE46: 0 | AF46: 0 | AG46: 0 | AH46: 0 | AI46: 0 | AJ46: 0 | AK46: 0 | AL46: 0 | AM46: 0 | AN46: 0 | AO46: 0 | AP46: 0 | AQ46: 0 | AR46: 0 | AS46: 0 | AT46: 0 | AU46: 0 | AV46: 121020.8141 | AW46: 121020.8141 | AX46: =VLOOKUP(D$3,Prisindeks!$A$1:$B$111,2,FALSE)/100*AA46 -> 0 | AY46: =VLOOKUP(E$3,Prisindeks!$A$1:$B$111,2,FALSE)/100*AB46 -> 0 | AZ46: =VLOOKUP(F$3,Prisindeks!$A$1:$B$111,2,FALSE)/100*AC46 -> 0 | BA46: =VLOOKUP(G$3,Prisindeks!$A$1:$B$111,2,FALSE)/100*AD46 -> 0 | BB46: =VLOOKUP(H$3,Prisindeks!$A$1:$B$111,2,FALSE)/100*AE46 -> 0 | BC46: =VLOOKUP(I$3,Prisindeks!$A$1:$B$111,2,FALSE)/100*AF46 -> 0 | BD46: =VLOOKUP(J$3,Prisindeks!$A$1:$B$111,2,FALSE)/100*AG46 -> 0 | BE46: =VLOOKUP(K$3,Prisindeks!$A$1:$B$111,2,FALSE)/100*AH46 -> 0 | BF46: =VLOOKUP(L$3,Prisindeks!$A$1:$B$111,2,FALSE)/100*AI46 -> 0 | BG46: =VLOOKUP(M$3,Prisindeks!$A$1:$B$111,2,FALSE)/100*AJ46 -> 0 | BH46: =VLOOKUP(N$3,Prisindeks!$A$1:$B$111,2,FALSE)/100*AK46 -> 0 | BI46: =VLOOKUP(O$3,Prisindeks!$A$1:$B$111,2,FALSE)/100*AL46 -> 0 | BJ46: =VLOOKUP(P$3,Prisindeks!$A$1:$B$111,2,FALSE)/100*AM46 -> 0 | BK46: =VLOOKUP(Q$3,Prisindeks!$A$1:$B$111,2,FALSE)/100*AN46 -> 0 | BL46: =VLOOKUP(R$3,Prisindeks!$A$1:$B$111,2,FALSE)/100*AO46 -> 0 | BM46: =VLOOKUP(S$3,Prisindeks!$A$1:$B$111,2,FALSE)/100*AP46 -> 0 | BN46: =VLOOKUP(T$3,Prisindeks!$A$1:$B$111,2,FALSE)/100*AQ46 -> 0 | BO46: =VLOOKUP(U$3,Prisindeks!$A$1:$B$111,2,FALSE)/100*AR46 -> 0 | BP46: =VLOOKUP(V$3,Prisindeks!$A$1:$B$111,2,FALSE)/100*AS46 -> 0 | BQ46: =VLOOKUP(W$3,Prisindeks!$A$1:$B$111,2,FALSE)/100*AT46 -> 0 | BR46: =VLOOKUP(X$3,Prisindeks!$A$1:$B$111,2,FALSE)/100*AU46 -> 0 | BS46: =VLOOKUP(Y$3,Prisindeks!$A$1:$B$111,2,FALSE)/100*AV46 -> 121020.8141 | BT46: 121020.8141 | BU46: 0 | BV46: 0 | BW46: 0 | BX46: 0 | BY46: 0 | BZ46: 0 | CA46: 0 | CB46: 0 | CC46: 0 | CD46: 0 | CE46: 0 | CF46: 0 | CG46: 0 | CH46: 0 | CI46: 0 | CJ46: 0 | CK46: 0 | CL46: 0 | CM46: 0 | CN46: 0 | CO46: 0 | CP46: 121020.8141 | CQ46: 121020.8141 | CR46: 34.4
A47: Levetidsforlængelse | B47: år | C47: - | D47: 0 | E47: 0 | F47: 0 | G47: 0 | H47: 0 | I47: 0 | J47: 0 | K47: 0 | L47: 0 | M47: 0 | N47: 0 | O47: 0 | P47: 0 | Q47: 0 | R47: 0 | S47: 0 | T47: 0 | U47: 0 | V47: 0 | W47: 0 | X47: 0 | Y47: 0
A48: Beluftningsanlæg, bundbeluftbning, Mek./EL | B48: m³/h | C48: =Genanskaffelsespriser!$E$35 -> 25 | D48: 0 | E48: 0 | F48: 0 | G48: 0 | H48: 0 | I48: 0 | J48: 0 | K48: 0 | L48: 0 | M48: 0 | N48: 0 | O48: 0 | P48: 0 | Q48: 0 | R48: 0 | S48: 0 | T48: 0 | U48: 0 | V48: 0 | W48: 0 | X48: 0 | Y48: 0 | Z48: =IF(COUNTIF(D48:Y48,"<>0")<=1,IF((SUM(D48:Y48))>0,(+HLOOKUP((SUM(D48:Y48)),Priser!$E$96:$J$108,8)+((SUM(D48:Y48))-HLOOKUP((SUM(D48:Y48)),Priser!$E$96:$J$108,1))*HLOOKUP((SUM(D48:Y48)),Priser!$E$96:$J$108,9))/(SUM(D48:Y48)),0)*Priser!$R$103*(1+Genanskaffelsespriser!$D$196),$A$1359) -> 0 | AA48: =IF((D48*$Z48-(2009-D$3)/$C48*$Z48*D48)<0,0,(D48*$Z48-(2009-D$3)/$C48*$Z48*D48)) -> 0 | AB48: 0 | AC48: 0 | AD48: 0 | AE48: 0 | AF48: 0 | AG48: 0 | AH48: 0 | AI48: 0 | AJ48: 0 | AK48: 0 | AL48: 0 | AM48: 0 | AN48: 0 | AO48: 0 | AP48: 0 | AQ48: 0 | AR48: 0 | AS48: 0 | AT48: 0 | AU48: 0 | AV48: 0 | AW48: 0 | AX48: =VLOOKUP(D$3,Prisindeks!$A$1:$B$111,2,FALSE)/100*AA48 -> 0 | AY48: =VLOOKUP(E$3,Prisindeks!$A$1:$B$111,2,FALSE)/100*AB48 -> 0 | AZ48: =VLOOKUP(F$3,Prisindeks!$A$1:$B$111,2,FALSE)/100*AC48 -> 0 | BA48: =VLOOKUP(G$3,Prisindeks!$A$1:$B$111,2,FALSE)/100*AD48 -> 0 | BB48: =VLOOKUP(H$3,Prisindeks!$A$1:$B$111,2,FALSE)/100*AE48 -> 0 | BC48: =VLOOKUP(I$3,Prisindeks!$A$1:$B$111,2,FALSE)/100*AF48 -> 0 | BD48: =VLOOKUP(J$3,Prisindeks!$A$1:$B$111,2,FALSE)/100*AG48 -> 0 | BE48: =VLOOKUP(K$3,Prisindeks!$A$1:$B$111,2,FALSE)/100*AH48 -> 0 | BF48: =VLOOKUP(L$3,Prisindeks!$A$1:$B$111,2,FALSE)/100*AI48 -> 0 | BG48: =VLOOKUP(M$3,Prisindeks!$A$1:$B$111,2,FALSE)/100*AJ48 -> 0 | BH48: =VLOOKUP(N$3,Prisindeks!$A$1:$B$111,2,FALSE)/100*AK48 -> 0 | BI48: =VLOOKUP(O$3,Prisindeks!$A$1:$B$111,2,FALSE)/100*AL48 -> 0 | BJ48: =VLOOKUP(P$3,Prisindeks!$A$1:$B$111,2,FALSE)/100*AM48 -> 0 | BK48: =VLOOKUP(Q$3,Prisindeks!$A$1:$B$111,2,FALSE)/100*AN48 -> 0 | BL48: =VLOOKUP(R$3,Prisindeks!$A$1:$B$111,2,FALSE)/100*AO48 -> 0 | BM48: =VLOOKUP(S$3,Prisindeks!$A$1:$B$111,2,FALSE)/100*AP48 -> 0 | BN48: =VLOOKUP(T$3,Prisindeks!$A$1:$B$111,2,FALSE)/100*AQ48 -> 0 | BO48: =VLOOKUP(U$3,Prisindeks!$A$1:$B$111,2,FALSE)/100*AR48 -> 0 | BP48: =VLOOKUP(V$3,Prisindeks!$A$1:$B$111,2,FALSE)/100*AS48 -> 0 | BQ48: =VLOOKUP(W$3,Prisindeks!$A$1:$B$111,2,FALSE)/100*AT48 -> 0 | BR48: =VLOOKUP(X$3,Prisindeks!$A$1:$B$111,2,FALSE)/100*AU48 -> 0 | BS48: =VLOOKUP(Y$3,Prisindeks!$A$1:$B$111,2,FALSE)/100*AV48 -> 0 | BT48: 0 | BU48: 0 | BV48: 0 | BW48: 0 | BX48: 0 | BY48: 0 | BZ48: 0 | CA48: 0 | CB48: 0 | CC48: 0 | CD48: 0 | CE48: 0 | CF48: 0 | CG48: 0 | CH48: 0 | CI48: 0 | CJ48: 0 | CK48: 0 | CL48: 0 | CM48: 0 | CN48: 0 | CO48: 0 | CP48: 0 | CQ48: 0 | CR48: 0
A49: Beluftningsanlæg, rislebakke, Konstruktioner | B49: m³/h | C49: =Genanskaffelsespriser!$E$36 -> 50 | D49: 0 | E49: 0 | F49: 0 | G49: 0 | H49: 0 | I49: 0 | J49: 0 | K49: 0 | L49: 0 | M49: 0 | N49: 0 | O49: 0 | P49: 0 | Q49: 0 | R49: 0 | S49: 0 | T49: 0 | U49: 0 | V49: 0 | W49: 0 | X49: 0 | Y49: 0 | Z49: =IF(COUNTIF(D49:Y49,"<>0")<=1,IF((SUM(D49:Y49))>0,(+HLOOKUP((SUM(D49:Y49)),Priser!$E$96:$J$108,6)+((SUM(D49:Y49))-HLOOKUP((SUM(D49:Y49)),Priser!$E$96:$J$108,1))*HLOOKUP((SUM(D49:Y49)),Priser!$E$96:$J$108,7))/(SUM(D49:Y49)),0)*Priser!$Q$103*(1+Genanskaffelsespriser!$D$196),$A$1359) -> 0 | AA49: =IF((D49*$Z49-(2009-D$3)/($C49+D50)*$Z49*D49)<0,0,(D49*$Z49-(2009-D$3)/($C49+D50)*$Z49*D49)) -> 0 | AB49: =IF((E49*$Z49-(2009-E$3)/($C49+E50)*$Z49*E49)<0,0,(E49*$Z49-(2009-E$3)/($C49+E50)*$Z49*E49)) -> 0 | AC49: 0 | AD49: 0 | AE49: 0 | AF49: 0 | AG49: 0 | AH49: 0 | AI49: 0 | AJ49: 0 | AK49: 0 | AL49: 0 | AM49: 0 | AN49: 0 | AO49: 0 | AP49: 0 | AQ49: 0 | AR49: 0 | AS49: 0 | AT49: 0 | AU49: 0 | AV49: 0 | AW49: 0 | AX49: =VLOOKUP(D$3,Prisindeks!$A$1:$B$111,2,FALSE)/100*AA49 -> 0 | AY49: =VLOOKUP(E$3,Prisindeks!$A$1:$B$111,2,FALSE)/100*AB49 -> 0 | AZ49: =VLOOKUP(F$3,Prisindeks!$A$1:$B$111,2,FALSE)/100*AC49 -> 0 | BA49: =VLOOKUP(G$3,Prisindeks!$A$1:$B$111,2,FALSE)/100*AD49 -> 0 | BB49: =VLOOKUP(H$3,Prisindeks!$A$1:$B$111,2,FALSE)/100*AE49 -> 0 | BC49: =VLOOKUP(I$3,Prisindeks!$A$1:$B$111,2,FALSE)/100*AF49 -> 0 | BD49: =VLOOKUP(J$3,Prisindeks!$A$1:$B$111,2,FALSE)/100*AG49 -> 0 | BE49: =VLOOKUP(K$3,Prisindeks!$A$1:$B$111,2,FALSE)/100*AH49 -> 0 | BF49: =VLOOKUP(L$3,Prisindeks!$A$1:$B$111,2,FALSE)/100*AI49 -> 0 | BG49: =VLOOKUP(M$3,Prisindeks!$A$1:$B$111,2,FALSE)/100*AJ49 -> 0 | BH49: =VLOOKUP(N$3,Prisindeks!$A$1:$B$111,2,FALSE)/100*AK49 -> 0 | BI49: =VLOOKUP(O$3,Prisindeks!$A$1:$B$111,2,FALSE)/100*AL49 -> 0 | BJ49: =VLOOKUP(P$3,Prisindeks!$A$1:$B$111,2,FALSE)/100*AM49 -> 0 | BK49: =VLOOKUP(Q$3,Prisindeks!$A$1:$B$111,2,FALSE)/100*AN49 -> 0 | BL49: =VLOOKUP(R$3,Prisindeks!$A$1:$B$111,2,FALSE)/100*AO49 -> 0 | BM49: =VLOOKUP(S$3,Prisindeks!$A$1:$B$111,2,FALSE)/100*AP49 -> 0 | BN49: =VLOOKUP(T$3,Prisindeks!$A$1:$B$111,2,FALSE)/100*AQ49 -> 0 | BO49: =VLOOKUP(U$3,Prisindeks!$A$1:$B$111,2,FALSE)/100*AR49 -> 0 | BP49: =VLOOKUP(V$3,Prisindeks!$A$1:$B$111,2,FALSE)/100*AS49 -> 0 | BQ49: =VLOOKUP(W$3,Prisindeks!$A$1:$B$111,2,FALSE)/100*AT49 -> 0 | BR49: =VLOOKUP(X$3,Prisindeks!$A$1:$B$111,2,FALSE)/100*AU49 -> 0 | BS49: =VLOOKUP(Y$3,Prisindeks!$A$1:$B$111,2,FALSE)/100*AV49 -> 0 | BT49: 0 | BU49: 0 | BV49: 0 | BW49: 0 | BX49: 0 | BY49: 0 | BZ49: 0 | CA49: 0 | CB49: 0 | CC49: 0 | CD49: 0 | CE49: 0 | CF49: 0 | CG49: 0 | CH49: 0 | CI49: 0 | CJ49: 0 | CK49: 0 | CL49: 0 | CM49: 0 | CN49: 0 | CO49: 0 | CP49: 0 | CQ49: 0 | CR49: 0
A50: Levetidsforlængelse | B50: år | C50: - | D50: 0 | E50: 0 | F50: 0 | G50: 0 | H50: 0 | I50: 0 | J50: 0 | K50: 0 | L50: 0 | M50: 0 | N50: 0 | O50: 0 | P50: 0 | Q50: 0 | R50: 0 | S50: 0 | T50: 0 | U50: 0 | V50: 0 | W50: 0 | X50: 0 | Y50: 0
A51: Beluftningsanlæg, rislebakke, Mek./EL | B51: m³/h | C51: =Genanskaffelsespriser!$E$37 -> 25 | D51: 0 | E51: 0 | F51: 0 | G51: 0 | H51: 0 | I51: 0 | J51: 0 | K51: 0 | L51: 0 | M51: 0 | N51: 0 | O51: 0 | P51: 0 | Q51: 0 | R51: 0 | S51: 0 | T51: 0 | U51: 0 | V51: 0 | W51: 0 | X51: 0 | Y51: 0 | Z51: =IF(COUNTIF(D51:Y51,"<>0")<=1,IF((SUM(D51:Y51))>0,(+HLOOKUP((SUM(D51:Y51)),Priser!$E$96:$J$108,6)+((SUM(D51:Y51))-HLOOKUP((SUM(D51:Y51)),Priser!$E$96:$J$108,1))*HLOOKUP((SUM(D51:Y51)),Priser!$E$96:$J$108,7))/(SUM(D51:Y51)),0)*Priser!$R$103*(1+Genanskaffelsespriser!$D$196),$A$1359) -> 0 | AA51: =IF((D51*$Z51-(2009-D$3)/$C51*$Z51*D51)<0,0,(D51*$Z51-(2009-D$3)/$C51*$Z51*D51)) -> 0 | AB51: 0 | AC51: 0 | AD51: 0 | AE51: 0 | AF51: 0 | AG51: 0 | AH51: 0 | AI51: 0 | AJ51: 0 | AK51: 0 | AL51: 0 | AM51: 0 | AN51: 0 | AO51: 0 | AP51: 0 | AQ51: 0 | AR51: 0 | AS51: 0 | AT51: 0 | AU51: 0 | AV51: 0 | AW51: 0 | AX51: =VLOOKUP(D$3,Prisindeks!$A$1:$B$111,2,FALSE)/100*AA51 -> 0 | AY51: =VLOOKUP(E$3,Prisindeks!$A$1:$B$111,2,FALSE)/100*AB51 -> 0 | AZ51: =VLOOKUP(F$3,Prisindeks!$A$1:$B$111,2,FALSE)/100*AC51 -> 0 | BA51: =VLOOKUP(G$3,Prisindeks!$A$1:$B$111,2,FALSE)/100*AD51 -> 0 | BB51: =VLOOKUP(H$3,Prisindeks!$A$1:$B$111,2,FALSE)/100*AE51 -> 0 | BC51: =VLOOKUP(I$3,Prisindeks!$A$1:$B$111,2,FALSE)/100*AF51 -> 0 | BD51: =VLOOKUP(J$3,Prisindeks!$A$1:$B$111,2,FALSE)/100*AG51 -> 0 | BE51: =VLOOKUP(K$3,Prisindeks!$A$1:$B$111,2,FALSE)/100*AH51 -> 0 | BF51: =VLOOKUP(L$3,Prisindeks!$A$1:$B$111,2,FALSE)/100*AI51 -> 0 | BG51: =VLOOKUP(M$3,Prisindeks!$A$1:$B$111,2,FALSE)/100*AJ51 -> 0 | BH51: =VLOOKUP(N$3,Prisindeks!$A$1:$B$111,2,FALSE)/100*AK51 -> 0 | BI51: =VLOOKUP(O$3,Prisindeks!$A$1:$B$111,2,FALSE)/100*AL51 -> 0 | BJ51: =VLOOKUP(P$3,Prisindeks!$A$1:$B$111,2,FALSE)/100*AM51 -> 0 | BK51: =VLOOKUP(Q$3,Prisindeks!$A$1:$B$111,2,FALSE)/100*AN51 -> 0 | BL51: =VLOOKUP(R$3,Prisindeks!$A$1:$B$111,2,FALSE)/100*AO51 -> 0 | BM51: =VLOOKUP(S$3,Prisindeks!$A$1:$B$111,2,FALSE)/100*AP51 -> 0 | BN51: =VLOOKUP(T$3,Prisindeks!$A$1:$B$111,2,FALSE)/100*AQ51 -> 0 | BO51: =VLOOKUP(U$3,Prisindeks!$A$1:$B$111,2,FALSE)/100*AR51 -> 0 | BP51: =VLOOKUP(V$3,Prisindeks!$A$1:$B$111,2,FALSE)/100*AS51 -> 0 | BQ51: =VLOOKUP(W$3,Prisindeks!$A$1:$B$111,2,FALSE)/100*AT51 -> 0 | BR51: =VLOOKUP(X$3,Prisindeks!$A$1:$B$111,2,FALSE)/100*AU51 -> 0 | BS51: =VLOOKUP(Y$3,Prisindeks!$A$1:$B$111,2,FALSE)/100*AV51 -> 0 | BT51: 0 | BU51: 0 | BV51: 0 | BW51: 0 | BX51: 0 | BY51: 0 | BZ51: 0 | CA51: 0 | CB51: 0 | CC51: 0 | CD51: 0 | CE51: 0 | CF51: 0 | CG51: 0 | CH51: 0 | CI51: 0 | CJ51: 0 | CK51: 0 | CL51: 0 | CM51: 0 | CN51: 0 | CO51: 0 | CP51: 0 | CQ51: 0 | CR51: 0
A52: Beluftningsanlæg, kompressorbeluftning | B52: m³/h | C52: =Genanskaffelsespriser!$E$38 -> 25 | D52: 0 | E52: 0 | F52: 0 | G52: 0 | H52: 0 | I52: 0 | J52: 0 | K52: =200-200 -> 0 | L52: 0 | M52: 0 | N52: 0 | O52: 0 | P52: 0 | Q52: 0 | R52: 0 | S52: 0 | T52: 0 | U52: 0 | V52: 0 | W52: 0 | X52: 0 | Y52: 0 | Z52: =IF(COUNTIF(D52:Y52,"<>0")<=1,IF((SUM(D52:Y52))>0,(+HLOOKUP((SUM(D52:Y52)),Priser!$E$96:$J$108,10)+((SUM(D52:Y52))-HLOOKUP((SUM(D52:Y52)),Priser!$E$96:$J$108,1))*HLOOKUP((SUM(D52:Y52)),Priser!$E$96:$J$108,11))/(SUM(D52:Y52)),0)*(1+Genanskaffelsespriser!$D$196),$A$1359) -> 0 | AA52: =IF((D52*$Z52-(2009-D$3)/$C52*$Z52*D52)<0,0,(D52*$Z52-(2009-D$3)/$C52*$Z52*D52)) -> 0 | AB52: 0 | AC52: 0 | AD52: 0 | AE52: 0 | AF52: 0 | AG52: 0 | AH52: 0 | AI52: 0 | AJ52: 0 | AK52: 0 | AL52: 0 | AM52: 0 | AN52: 0 | AO52: 0 | AP52: 0 | AQ52: 0 | AR52: 0 | AS52: 0 | AT52: 0 | AU52: 0 | AV52: 0 | AW52: 0 | AX52: =VLOOKUP(D$3,Prisindeks!$A$1:$B$111,2,FALSE)/100*AA52 -> 0 | AY52: =VLOOKUP(E$3,Prisindeks!$A$1:$B$111,2,FALSE)/100*AB52 -> 0 | AZ52: =VLOOKUP(F$3,Prisindeks!$A$1:$B$111,2,FALSE)/100*AC52 -> 0 | BA52: =VLOOKUP(G$3,Prisindeks!$A$1:$B$111,2,FALSE)/100*AD52 -> 0 | BB52: =VLOOKUP(H$3,Prisindeks!$A$1:$B$111,2,FALSE)/100*AE52 -> 0 | BC52: =VLOOKUP(I$3,Prisindeks!$A$1:$B$111,2,FALSE)/100*AF52 -> 0 | BD52: =VLOOKUP(J$3,Prisindeks!$A$1:$B$111,2,FALSE)/100*AG52 -> 0 | BE52: =VLOOKUP(K$3,Prisindeks!$A$1:$B$111,2,FALSE)/100*AH52 -> 0 | BF52: =VLOOKUP(L$3,Prisindeks!$A$1:$B$111,2,FALSE)/100*AI52 -> 0 | BG52: =VLOOKUP(M$3,Prisindeks!$A$1:$B$111,2,FALSE)/100*AJ52 -> 0 | BH52: =VLOOKUP(N$3,Prisindeks!$A$1:$B$111,2,FALSE)/100*AK52 -> 0 | BI52: =VLOOKUP(O$3,Prisindeks!$A$1:$B$111,2,FALSE)/100*AL52 -> 0 | BJ52: =VLOOKUP(P$3,Prisindeks!$A$1:$B$111,2,FALSE)/100*AM52 -> 0 | BK52: =VLOOKUP(Q$3,Prisindeks!$A$1:$B$111,2,FALSE)/100*AN52 -> 0 | BL52: =VLOOKUP(R$3,Prisindeks!$A$1:$B$111,2,FALSE)/100*AO52 -> 0 | BM52: =VLOOKUP(S$3,Prisindeks!$A$1:$B$111,2,FALSE)/100*AP52 -> 0 | BN52: =VLOOKUP(T$3,Prisindeks!$A$1:$B$111,2,FALSE)/100*AQ52 -> 0 | BO52: =VLOOKUP(U$3,Prisindeks!$A$1:$B$111,2,FALSE)/100*AR52 -> 0 | BP52: =VLOOKUP(V$3,Prisindeks!$A$1:$B$111,2,FALSE)/100*AS52 -> 0 | BQ52: =VLOOKUP(W$3,Prisindeks!$A$1:$B$111,2,FALSE)/100*AT52 -> 0 | BR52: =VLOOKUP(X$3,Prisindeks!$A$1:$B$111,2,FALSE)/100*AU52 -> 0 | BS52: =VLOOKUP(Y$3,Prisindeks!$A$1:$B$111,2,FALSE)/100*AV52 -> 0 | BT52: 0 | BU52: 0 | BV52: 0 | BW52: 0 | BX52: 0 | BY52: 0 | BZ52: 0 | CA52: 0 | CB52: 0 | CC52: 0 | CD52: 0 | CE52: 0 | CF52: 0 | CG52: 0 | CH52: 0 | CI52: 0 | CJ52: 0 | CK52: 0 | CL52: 0 | CM52: 0 | CN52: 0 | CO52: 0 | CP52: 0 | CQ52: 0 | CR52: 0
A53: Beluftningsanlæg, ren ilt | B53: m³/h | C53: =Genanskaffelsespriser!$E$39 -> 25 | D53: 0 | E53: 0 | F53: 0 | G53: 0 | H53: 0 | I53: 0 | J53: 0 | K53: 0 | L53: 0 | M53: 0 | N53: 0 | O53: 0 | P53: 0 | Q53: 0 | R53: 0 | S53: 0 | T53: 0 | U53: 0 | V53: 0 | W53: 0 | X53: 0 | Y53: 0 | Z53: =IF(COUNTIF(D53:Y53,"<>0")<=1,IF((SUM(D53:Y53))>0,(+HLOOKUP((SUM(D53:Y53)),Priser!$E$96:$J$108,12)+((SUM(D53:Y53))-HLOOKUP((SUM(D53:Y53)),Priser!$E$96:$J$108,1))*HLOOKUP((SUM(D53:Y53)),Priser!$E$96:$J$108,13))/(SUM(D53:Y53)),0)*(1+Genanskaffelsespriser!$D$196),$A$1359) -> 0 | AA53: =IF((D53*$Z53-(2009-D$3)/$C53*$Z53*D53)<0,0,(D53*$Z53-(2009-D$3)/$C53*$Z53*D53)) -> 0 | AB53: 0 | AC53: 0 | AD53: 0 | AE53: 0 | AF53: 0 | AG53: 0 | AH53: 0 | AI53: 0 | AJ53: 0 | AK53: 0 | AL53: 0 | AM53: 0 | AN53: 0 | AO53: 0 | AP53: 0 | AQ53: 0 | AR53: 0 | AS53: 0 | AT53: 0 | AU53: 0 | AV53: 0 | AW53: 0 | AX53: =VLOOKUP(D$3,Prisindeks!$A$1:$B$111,2,FALSE)/100*AA53 -> 0 | AY53: =VLOOKUP(E$3,Prisindeks!$A$1:$B$111,2,FALSE)/100*AB53 -> 0 | AZ53: =VLOOKUP(F$3,Prisindeks!$A$1:$B$111,2,FALSE)/100*AC53 -> 0 | BA53: =VLOOKUP(G$3,Prisindeks!$A$1:$B$111,2,FALSE)/100*AD53 -> 0 | BB53: =VLOOKUP(H$3,Prisindeks!$A$1:$B$111,2,FALSE)/100*AE53 -> 0 | BC53: =VLOOKUP(I$3,Prisindeks!$A$1:$B$111,2,FALSE)/100*AF53 -> 0 | BD53: =VLOOKUP(J$3,Prisindeks!$A$1:$B$111,2,FALSE)/100*AG53 -> 0 | BE53: =VLOOKUP(K$3,Prisindeks!$A$1:$B$111,2,FALSE)/100*AH53 -> 0 | BF53: =VLOOKUP(L$3,Prisindeks!$A$1:$B$111,2,FALSE)/100*AI53 -> 0 | BG53: =VLOOKUP(M$3,Prisindeks!$A$1:$B$111,2,FALSE)/100*AJ53 -> 0 | BH53: =VLOOKUP(N$3,Prisindeks!$A$1:$B$111,2,FALSE)/100*AK53 -> 0 | BI53: =VLOOKUP(O$3,Prisindeks!$A$1:$B$111,2,FALSE)/100*AL53 -> 0 | BJ53: =VLOOKUP(P$3,Prisindeks!$A$1:$B$111,2,FALSE)/100*AM53 -> 0 | BK53: =VLOOKUP(Q$3,Prisindeks!$A$1:$B$111,2,FALSE)/100*AN53 -> 0 | BL53: =VLOOKUP(R$3,Prisindeks!$A$1:$B$111,2,FALSE)/100*AO53 -> 0 | BM53: =VLOOKUP(S$3,Prisindeks!$A$1:$B$111,2,FALSE)/100*AP53 -> 0 | BN53: =VLOOKUP(T$3,Prisindeks!$A$1:$B$111,2,FALSE)/100*AQ53 -> 0 | BO53: =VLOOKUP(U$3,Prisindeks!$A$1:$B$111,2,FALSE)/100*AR53 -> 0 | BP53: =VLOOKUP(V$3,Prisindeks!$A$1:$B$111,2,FALSE)/100*AS53 -> 0 | BQ53: =VLOOKUP(W$3,Prisindeks!$A$1:$B$111,2,FALSE)/100*AT53 -> 0 | BR53: =VLOOKUP(X$3,Prisindeks!$A$1:$B$111,2,FALSE)/100*AU53 -> 0 | BS53: =VLOOKUP(Y$3,Prisindeks!$A$1:$B$111,2,FALSE)/100*AV53 -> 0 | BT53: 0 | BU53: 0 | BV53: 0 | BW53: 0 | BX53: 0 | BY53: 0 | BZ53: 0 | CA53: 0 | CB53: 0 | CC53: 0 | CD53: 0 | CE53: 0 | CF53: 0 | CG53: 0 | CH53: 0 | CI53: 0 | CJ53: 0 | CK53: 0 | CL53: 0 | CM53: 0 | CN53: 0 | CO53: 0 | CP53: 0 | CQ53: 0 | CR53: 0
A54: Behandlingsanlæg, kalk anlæg | B54: m³/h | C54: =Genanskaffelsespriser!$E$40 -> 25 | D54: 0 | E54: 0 | F54: 0 | G54: 0 | H54: 0 | I54: 0 | J54: 0 | K54: 0 | L54: 0 | M54: 0 | N54: 0 | O54: 0 | P54: 0 | Q54: 0 | R54: 0 | S54: 0 | T54: 0 | U54: 0 | V54: 0 | W54: 0 | X54: 0 | Y54: 0 | Z54: =IF(COUNTIF(D54:Y54,"<>0")<=1,IF((SUM(D54:Y54))>0,(+HLOOKUP((SUM(D54:Y54)),Priser!$E$118:$I$123,3)+((SUM(D54:Y54))-HLOOKUP((SUM(D54:Y54)),Priser!$E$118:$I$123,1))*HLOOKUP((SUM(D54:Y54)),Priser!$E$118:$I$123,4))/(SUM(D54:Y54)),0)*(1+Genanskaffelsespriser!$D$196),$A$1359) -> 0 | AA54: =IF((D54*$Z54-(2009-D$3)/$C54*$Z54*D54)<0,0,(D54*$Z54-(2009-D$3)/$C54*$Z54*D54)) -> 0 | AB54: 0 | AC54: 0 | AD54: 0 | AE54: 0 | AF54: 0 | AG54: 0 | AH54: 0 | AI54: 0 | AJ54: 0 | AK54: 0 | AL54: 0 | AM54: 0 | AN54: 0 | AO54: 0 | AP54: 0 | AQ54: 0 | AR54: 0 | AS54: 0 | AT54: 0 | AU54: 0 | AV54: 0 | AW54: 0 | AX54: =VLOOKUP(D$3,Prisindeks!$A$1:$B$111,2,FALSE)/100*AA54 -> 0 | AY54: =VLOOKUP(E$3,Prisindeks!$A$1:$B$111,2,FALSE)/100*AB54 -> 0 | AZ54: =VLOOKUP(F$3,Prisindeks!$A$1:$B$111,2,FALSE)/100*AC54 -> 0 | BA54: =VLOOKUP(G$3,Prisindeks!$A$1:$B$111,2,FALSE)/100*AD54 -> 0 | BB54: =VLOOKUP(H$3,Prisindeks!$A$1:$B$111,2,FALSE)/100*AE54 -> 0 | BC54: =VLOOKUP(I$3,Prisindeks!$A$1:$B$111,2,FALSE)/100*AF54 -> 0 | BD54: =VLOOKUP(J$3,Prisindeks!$A$1:$B$111,2,FALSE)/100*AG54 -> 0 | BE54: =VLOOKUP(K$3,Prisindeks!$A$1:$B$111,2,FALSE)/100*AH54 -> 0 | BF54: =VLOOKUP(L$3,Prisindeks!$A$1:$B$111,2,FALSE)/100*AI54 -> 0 | BG54: =VLOOKUP(M$3,Prisindeks!$A$1:$B$111,2,FALSE)/100*AJ54 -> 0 | BH54: =VLOOKUP(N$3,Prisindeks!$A$1:$B$111,2,FALSE)/100*AK54 -> 0 | BI54: =VLOOKUP(O$3,Prisindeks!$A$1:$B$111,2,FALSE)/100*AL54 -> 0 | BJ54: =VLOOKUP(P$3,Prisindeks!$A$1:$B$111,2,FALSE)/100*AM54 -> 0 | BK54: =VLOOKUP(Q$3,Prisindeks!$A$1:$B$111,2,FALSE)/100*AN54 -> 0 | BL54: =VLOOKUP(R$3,Prisindeks!$A$1:$B$111,2,FALSE)/100*AO54 -> 0 | BM54: =VLOOKUP(S$3,Prisindeks!$A$1:$B$111,2,FALSE)/100*AP54 -> 0 | BN54: =VLOOKUP(T$3,Prisindeks!$A$1:$B$111,2,FALSE)/100*AQ54 -> 0 | BO54: =VLOOKUP(U$3,Prisindeks!$A$1:$B$111,2,FALSE)/100*AR54 -> 0 | BP54: =VLOOKUP(V$3,Prisindeks!$A$1:$B$111,2,FALSE)/100*AS54 -> 0 | BQ54: =VLOOKUP(W$3,Prisindeks!$A$1:$B$111,2,FALSE)/100*AT54 -> 0 | BR54: =VLOOKUP(X$3,Prisindeks!$A$1:$B$111,2,FALSE)/100*AU54 -> 0 | BS54: =VLOOKUP(Y$3,Prisindeks!$A$1:$B$111,2,FALSE)/100*AV54 -> 0 | BT54: 0 | BU54: 0 | BV54: 0 | BW54: 0 | BX54: 0 | BY54: 0 | BZ54: 0 | CA54: 0 | CB54: 0 | CC54: 0 | CD54: 0 | CE54: 0 | CF54: 0 | CG54: 0 | CH54: 0 | CI54: 0 | CJ54: 0 | CK54: 0 | CL54: 0 | CM54: 0 | CN54: 0 | CO54: 0 | CP54: 0 | CQ54: 0 | CR54: 0
A55: Behandlingsanlæg, luddosering | B55: m³/h | C55: =Genanskaffelsespriser!$E$41 -> 25 | D55: 0 | E55: 0 | F55: 0 | G55: 0 | H55: 0 | I55: 0 | J55: 0 | K55: 0 | L55: 0 | M55: 0 | N55: 0 | O55: 0 | P55: 0 | Q55: 0 | R55: 0 | S55: 0 | T55: 0 | U55: 0 | V55: 0 | W55: 0 | X55: 0 | Y55: 0 | Z55: =IF(COUNTIF(D55:Y55,"<>0")<=1,IF((SUM(D55:Y55))>0,(+HLOOKUP((SUM(D55:Y55)),Priser!$E$118:$I$123,5)+((SUM(D55:Y55))-HLOOKUP((SUM(D55:Y55)),Priser!$E$118:$I$123,1))*HLOOKUP((SUM(D55:Y55)),Priser!$E$118:$I$123,6))/(SUM(D55:Y55)),0)*(1+Genanskaffelsespriser!$D$196),$A$1359) -> 0 | AA55: =IF((D55*$Z55-(2009-D$3)/$C55*$Z55*D55)<0,0,(D55*$Z55-(2009-D$3)/$C55*$Z55*D55)) -> 0 | AB55: 0 | AC55: 0 | AD55: 0 | AE55: 0 | AF55: 0 | AG55: 0 | AH55: 0 | AI55: 0 | AJ55: 0 | AK55: 0 | AL55: 0 | AM55: 0 | AN55: 0 | AO55: 0 | AP55: 0 | AQ55: 0 | AR55: 0 | AS55: 0 | AT55: 0 | AU55: 0 | AV55: 0 | AW55: 0 | AX55: =VLOOKUP(D$3,Prisindeks!$A$1:$B$111,2,FALSE)/100*AA55 -> 0 | AY55: =VLOOKUP(E$3,Prisindeks!$A$1:$B$111,2,FALSE)/100*AB55 -> 0 | AZ55: =VLOOKUP(F$3,Prisindeks!$A$1:$B$111,2,FALSE)/100*AC55 -> 0 | BA55: =VLOOKUP(G$3,Prisindeks!$A$1:$B$111,2,FALSE)/100*AD55 -> 0 | BB55: =VLOOKUP(H$3,Prisindeks!$A$1:$B$111,2,FALSE)/100*AE55 -> 0 | BC55: =VLOOKUP(I$3,Prisindeks!$A$1:$B$111,2,FALSE)/100*AF55 -> 0 | BD55: =VLOOKUP(J$3,Prisindeks!$A$1:$B$111,2,FALSE)/100*AG55 -> 0 | BE55: =VLOOKUP(K$3,Prisindeks!$A$1:$B$111,2,FALSE)/100*AH55 -> 0 | BF55: =VLOOKUP(L$3,Prisindeks!$A$1:$B$111,2,FALSE)/100*AI55 -> 0 | BG55: =VLOOKUP(M$3,Prisindeks!$A$1:$B$111,2,FALSE)/100*AJ55 -> 0 | BH55: =VLOOKUP(N$3,Prisindeks!$A$1:$B$111,2,FALSE)/100*AK55 -> 0 | BI55: =VLOOKUP(O$3,Prisindeks!$A$1:$B$111,2,FALSE)/100*AL55 -> 0 | BJ55: =VLOOKUP(P$3,Prisindeks!$A$1:$B$111,2,FALSE)/100*AM55 -> 0 | BK55: =VLOOKUP(Q$3,Prisindeks!$A$1:$B$111,2,FALSE)/100*AN55 -> 0 | BL55: =VLOOKUP(R$3,Prisindeks!$A$1:$B$111,2,FALSE)/100*AO55 -> 0 | BM55: =VLOOKUP(S$3,Prisindeks!$A$1:$B$111,2,FALSE)/100*AP55 -> 0 | BN55: =VLOOKUP(T$3,Prisindeks!$A$1:$B$111,2,FALSE)/100*AQ55 -> 0 | BO55: =VLOOKUP(U$3,Prisindeks!$A$1:$B$111,2,FALSE)/100*AR55 -> 0 | BP55: =VLOOKUP(V$3,Prisindeks!$A$1:$B$111,2,FALSE)/100*AS55 -> 0 | BQ55: =VLOOKUP(W$3,Prisindeks!$A$1:$B$111,2,FALSE)/100*AT55 -> 0 | BR55: =VLOOKUP(X$3,Prisindeks!$A$1:$B$111,2,FALSE)/100*AU55 -> 0 | BS55: =VLOOKUP(Y$3,Prisindeks!$A$1:$B$111,2,FALSE)/100*AV55 -> 0 | BT55: 0 | BU55: 0 | BV55: 0 | BW55: 0 | BX55: 0 | BY55: 0 | BZ55: 0 | CA55: 0 | CB55: 0 | CC55: 0 | CD55: 0 | CE55: 0 | CF55: 0 | CG55: 0 | CH55: 0 | CI55: 0 | CJ55: 0 | CK55: 0 | CL55: 0 | CM55: 0 | CN55: 0 | CO55: 0 | CP55: 0 | CQ55: 0 | CR55: 0
A56: Filteranlæg, åbne filtre, enkelt filtrering, Konstruktioner | B56: m³/h | C56: =Genanskaffelsespriser!$E$42 -> 50 | D56: 0 | E56: 0 | F56: 0 | G56: 0 | H56: 0 | I56: 0 | J56: 0 | K56: 0 | L56: 0 | M56: 0 | N56: 0 | O56: 0 | P56: 0 | Q56: 0 | R56: 0 | S56: 0 | T56: 0 | U56: 0 | V56: 0 | W56: 0 | X56: 0 | Y56: 0 | Z56: =IF(COUNTIF(D56:Y56,"<>0")<=1,IF((SUM(D56:Y56))>0,(+HLOOKUP((SUM(D56:Y56)),Priser!$E$132:$I$141,9)+((SUM(D56:Y56))-HLOOKUP((SUM(D56:Y56)),Priser!$E$132:$I$141,1))*HLOOKUP((SUM(D56:Y56)),Priser!$E$132:$I$141,10))/(SUM(D56:Y56)),0)*Priser!$Q$140*(1+Genanskaffelsespriser!$D$196),$A$1359) -> 0 | AA56: =IF((D56*$Z56-(2009-D$3)/($C56+D57)*$Z56*D56)<0,0,(D56*$Z56-(2009-D$3)/($C56+D57)*$Z56*D56)) -> 0 | AB56: =IF((E56*$Z56-(2009-E$3)/($C56+E57)*$Z56*E56)<0,0,(E56*$Z56-(2009-E$3)/($C56+E57)*$Z56*E56)) -> 0 | AC56: 0 | AD56: 0 | AE56: 0 | AF56: 0 | AG56: 0 | AH56: 0 | AI56: 0 | AJ56: 0 | AK56: 0 | AL56: 0 | AM56: 0 | AN56: 0 | AO56: 0 | AP56: 0 | AQ56: 0 | AR56: 0 | AS56: 0 | AT56: 0 | AU56: 0 | AV56: 0 | AW56: 0 | AX56: =VLOOKUP(D$3,Prisindeks!$A$1:$B$111,2,FALSE)/100*AA56 -> 0 | AY56: =VLOOKUP(E$3,Prisindeks!$A$1:$B$111,2,FALSE)/100*AB56 -> 0 | AZ56: =VLOOKUP(F$3,Prisindeks!$A$1:$B$111,2,FALSE)/100*AC56 -> 0 | BA56: =VLOOKUP(G$3,Prisindeks!$A$1:$B$111,2,FALSE)/100*AD56 -> 0 | BB56: =VLOOKUP(H$3,Prisindeks!$A$1:$B$111,2,FALSE)/100*AE56 -> 0 | BC56: =VLOOKUP(I$3,Prisindeks!$A$1:$B$111,2,FALSE)/100*AF56 -> 0 | BD56: =VLOOKUP(J$3,Prisindeks!$A$1:$B$111,2,FALSE)/100*AG56 -> 0 | BE56: =VLOOKUP(K$3,Prisindeks!$A$1:$B$111,2,FALSE)/100*AH56 -> 0 | BF56: =VLOOKUP(L$3,Prisindeks!$A$1:$B$111,2,FALSE)/100*AI56 -> 0 | BG56: =VLOOKUP(M$3,Prisindeks!$A$1:$B$111,2,FALSE)/100*AJ56 -> 0 | BH56: =VLOOKUP(N$3,Prisindeks!$A$1:$B$111,2,FALSE)/100*AK56 -> 0 | BI56: =VLOOKUP(O$3,Prisindeks!$A$1:$B$111,2,FALSE)/100*AL56 -> 0 | BJ56: =VLOOKUP(P$3,Prisindeks!$A$1:$B$111,2,FALSE)/100*AM56 -> 0 | BK56: =VLOOKUP(Q$3,Prisindeks!$A$1:$B$111,2,FALSE)/100*AN56 -> 0 | BL56: =VLOOKUP(R$3,Prisindeks!$A$1:$B$111,2,FALSE)/100*AO56 -> 0 | BM56: =VLOOKUP(S$3,Prisindeks!$A$1:$B$111,2,FALSE)/100*AP56 -> 0 | BN56: =VLOOKUP(T$3,Prisindeks!$A$1:$B$111,2,FALSE)/100*AQ56 -> 0 | BO56: =VLOOKUP(U$3,Prisindeks!$A$1:$B$111,2,FALSE)/100*AR56 -> 0 | BP56: =VLOOKUP(V$3,Prisindeks!$A$1:$B$111,2,FALSE)/100*AS56 -> 0 | BQ56: =VLOOKUP(W$3,Prisindeks!$A$1:$B$111,2,FALSE)/100*AT56 -> 0 | BR56: =VLOOKUP(X$3,Prisindeks!$A$1:$B$111,2,FALSE)/100*AU56 -> 0 | BS56: =VLOOKUP(Y$3,Prisindeks!$A$1:$B$111,2,FALSE)/100*AV56 -> 0 | BT56: 0 | BU56: 0 | BV56: 0 | BW56: 0 | BX56: 0 | BY56: 0 | BZ56: 0 | CA56: 0 | CB56: 0 | CC56: 0 | CD56: 0 | CE56: 0 | CF56: 0 | CG56: 0 | CH56: 0 | CI56: 0 | CJ56: 0 | CK56: 0 | CL56: 0 | CM56: 0 | CN56: 0 | CO56: 0 | CP56: 0 | CQ56: 0 | CR56: 0
A57: Levetidsforlængelse | B57: år | C57: - | D57: 0 | E57: 0 | F57: 0 | G57: 0 | H57: 0 | I57: 0 | J57: 0 | K57: 0 | L57: 0 | M57: 0 | N57: 0 | O57: 0 | P57: 0 | Q57: 0 | R57: 0 | S57: 0 | T57: 0 | U57: 0 | V57: 0 | W57: 0 | X57: 0 | Y57: 0
A58: Filteranlæg, åbne filtre, enkelt filtrering, Mek./EL | B58: m³/h | C58: =Genanskaffelsespriser!$E$43 -> 25 | D58: 0 | E58: 0 | F58: 0 | G58: 0 | H58: 0 | I58: 0 | J58: 0 | K58: 0 | L58: 0 | M58: 0 | N58: 0 | O58: 0 | P58: 0 | Q58: 0 | R58: 0 | S58: 0 | T58: 0 | U58: 0 | V58: 0 | W58: 0 | X58: 0 | Y58: 0 | Z58: =IF(COUNTIF(D58:Y58,"<>0")<=1,IF((SUM(D58:Y58))>0,(+HLOOKUP((SUM(D58:Y58)),Priser!$E$132:$I$141,9)+((SUM(D58:Y58))-HLOOKUP((SUM(D58:Y58)),Priser!$E$132:$I$141,1))*HLOOKUP((SUM(D58:Y58)),Priser!$E$132:$I$141,10))/(SUM(D58:Y58)),0)*Priser!$R$140*(1+Genanskaffelsespriser!$D$196),$A$1359) -> 0 | AA58: =IF((D58*$Z58-(2009-D$3)/$C58*$Z58*D58)<0,0,(D58*$Z58-(2009-D$3)/$C58*$Z58*D58)) -> 0 | AB58: 0 | AC58: 0 | AD58: 0 | AE58: 0 | AF58: 0 | AG58: 0 | AH58: 0 | AI58: 0 | AJ58: 0 | AK58: 0 | AL58: 0 | AM58: 0 | AN58: 0 | AO58: 0 | AP58: 0 | AQ58: 0 | AR58: 0 | AS58: 0 | AT58: 0 | AU58: 0 | AV58: 0 | AW58: 0 | AX58: =VLOOKUP(D$3,Prisindeks!$A$1:$B$111,2,FALSE)/100*AA58 -> 0 | AY58: =VLOOKUP(E$3,Prisindeks!$A$1:$B$111,2,FALSE)/100*AB58 -> 0 | AZ58: =VLOOKUP(F$3,Prisindeks!$A$1:$B$111,2,FALSE)/100*AC58 -> 0 | BA58: =VLOOKUP(G$3,Prisindeks!$A$1:$B$111,2,FALSE)/100*AD58 -> 0 | BB58: =VLOOKUP(H$3,Prisindeks!$A$1:$B$111,2,FALSE)/100*AE58 -> 0 | BC58: =VLOOKUP(I$3,Prisindeks!$A$1:$B$111,2,FALSE)/100*AF58 -> 0 | BD58: =VLOOKUP(J$3,Prisindeks!$A$1:$B$111,2,FALSE)/100*AG58 -> 0 | BE58: =VLOOKUP(K$3,Prisindeks!$A$1:$B$111,2,FALSE)/100*AH58 -> 0 | BF58: =VLOOKUP(L$3,Prisindeks!$A$1:$B$111,2,FALSE)/100*AI58 -> 0 | BG58: =VLOOKUP(M$3,Prisindeks!$A$1:$B$111,2,FALSE)/100*AJ58 -> 0 | BH58: =VLOOKUP(N$3,Prisindeks!$A$1:$B$111,2,FALSE)/100*AK58 -> 0 | BI58: =VLOOKUP(O$3,Prisindeks!$A$1:$B$111,2,FALSE)/100*AL58 -> 0 | BJ58: =VLOOKUP(P$3,Prisindeks!$A$1:$B$111,2,FALSE)/100*AM58 -> 0 | BK58: =VLOOKUP(Q$3,Prisindeks!$A$1:$B$111,2,FALSE)/100*AN58 -> 0 | BL58: =VLOOKUP(R$3,Prisindeks!$A$1:$B$111,2,FALSE)/100*AO58 -> 0 | BM58: =VLOOKUP(S$3,Prisindeks!$A$1:$B$111,2,FALSE)/100*AP58 -> 0 | BN58: =VLOOKUP(T$3,Prisindeks!$A$1:$B$111,2,FALSE)/100*AQ58 -> 0 | BO58: =VLOOKUP(U$3,Prisindeks!$A$1:$B$111,2,FALSE)/100*AR58 -> 0 | BP58: =VLOOKUP(V$3,Prisindeks!$A$1:$B$111,2,FALSE)/100*AS58 -> 0 | BQ58: =VLOOKUP(W$3,Prisindeks!$A$1:$B$111,2,FALSE)/100*AT58 -> 0 | BR58: =VLOOKUP(X$3,Prisindeks!$A$1:$B$111,2,FALSE)/100*AU58 -> 0 | BS58: =VLOOKUP(Y$3,Prisindeks!$A$1:$B$111,2,FALSE)/100*AV58 -> 0 | BT58: 0 | BU58: 0 | BV58: 0 | BW58: 0 | BX58: 0 | BY58: 0 | BZ58: 0 | CA58: 0 | CB58: 0 | CC58: 0 | CD58: 0 | CE58: 0 | CF58: 0 | CG58: 0 | CH58: 0 | CI58: 0 | CJ58: 0 | CK58: 0 | CL58: 0 | CM58: 0 | CN58: 0 | CO58: 0 | CP58: 0 | CQ58: 0 | CR58: 0
A59: Filteranlæg, åbne filtre, dobbelt filtrering, Konstruktioner | B59: m³/h | C59: =Genanskaffelsespriser!$E$44 -> 50 | D59: 0 | E59: 0 | F59: 0 | G59: 0 | H59: 0 | I59: 0 | J59: 0 | K59: =200-200 -> 0 | L59: 0 | M59: 0 | N59: 0 | O59: 0 | P59: 0 | Q59: 0 | R59: 0 | S59: 0 | T59: 0 | U59: 0 | V59: 0 | W59: 0 | X59: 0 | Y59: 0 | Z59: =IF(COUNTIF(D59:Y59,"<>0")<=1,IF((SUM(D59:Y59))>0,(+HLOOKUP((SUM(D59:Y59)),Priser!$E$132:$I$141,6)+((SUM(D59:Y59))-HLOOKUP((SUM(D59:Y59)),Priser!$E$132:$I$141,1))*HLOOKUP((SUM(D59:Y59)),Priser!$E$132:$I$141,7))/(SUM(D59:Y59)),0)*Priser!$Q$138*(1+Genanskaffelsespriser!$D$196),$A$1359) -> 0 | AA59: =IF((D59*$Z59-(2009-D$3)/($C59+D60)*$Z59*D59)<0,0,(D59*$Z59-(2009-D$3)/($C59+D60)*$Z59*D59)) -> 0 | AB59: =IF((E59*$Z59-(2009-E$3)/($C59+E60)*$Z59*E59)<0,0,(E59*$Z59-(2009-E$3)/($C59+E60)*$Z59*E59)) -> 0 | AC59: 0 | AD59: 0 | AE59: 0 | AF59: 0 | AG59: 0 | AH59: 0 | AI59: 0 | AJ59: 0 | AK59: 0 | AL59: 0 | AM59: 0 | AN59: 0 | AO59: 0 | AP59: 0 | AQ59: 0 | AR59: 0 | AS59: 0 | AT59: 0 | AU59: 0 | AV59: 0 | AW59: 0 | AX59: =VLOOKUP(D$3,Prisindeks!$A$1:$B$111,2,FALSE)/100*AA59 -> 0 | AY59: =VLOOKUP(E$3,Prisindeks!$A$1:$B$111,2,FALSE)/100*AB59 -> 0 | AZ59: =VLOOKUP(F$3,Prisindeks!$A$1:$B$111,2,FALSE)/100*AC59 -> 0 | BA59: =VLOOKUP(G$3,Prisindeks!$A$1:$B$111,2,FALSE)/100*AD59 -> 0 | BB59: =VLOOKUP(H$3,Prisindeks!$A$1:$B$111,2,FALSE)/100*AE59 -> 0 | BC59: =VLOOKUP(I$3,Prisindeks!$A$1:$B$111,2,FALSE)/100*AF59 -> 0 | BD59: =VLOOKUP(J$3,Prisindeks!$A$1:$B$111,2,FALSE)/100*AG59 -> 0 | BE59: =VLOOKUP(K$3,Prisindeks!$A$1:$B$111,2,FALSE)/100*AH59 -> 0 | BF59: =VLOOKUP(L$3,Prisindeks!$A$1:$B$111,2,FALSE)/100*AI59 -> 0 | BG59: =VLOOKUP(M$3,Prisindeks!$A$1:$B$111,2,FALSE)/100*AJ59 -> 0 | BH59: =VLOOKUP(N$3,Prisindeks!$A$1:$B$111,2,FALSE)/100*AK59 -> 0 | BI59: =VLOOKUP(O$3,Prisindeks!$A$1:$B$111,2,FALSE)/100*AL59 -> 0 | BJ59: =VLOOKUP(P$3,Prisindeks!$A$1:$B$111,2,FALSE)/100*AM59 -> 0 | BK59: =VLOOKUP(Q$3,Prisindeks!$A$1:$B$111,2,FALSE)/100*AN59 -> 0 | BL59: =VLOOKUP(R$3,Prisindeks!$A$1:$B$111,2,FALSE)/100*AO59 -> 0 | BM59: =VLOOKUP(S$3,Prisindeks!$A$1:$B$111,2,FALSE)/100*AP59 -> 0 | BN59: =VLOOKUP(T$3,Prisindeks!$A$1:$B$111,2,FALSE)/100*AQ59 -> 0 | BO59: =VLOOKUP(U$3,Prisindeks!$A$1:$B$111,2,FALSE)/100*AR59 -> 0 | BP59: =VLOOKUP(V$3,Prisindeks!$A$1:$B$111,2,FALSE)/100*AS59 -> 0 | BQ59: =VLOOKUP(W$3,Prisindeks!$A$1:$B$111,2,FALSE)/100*AT59 -> 0 | BR59: =VLOOKUP(X$3,Prisindeks!$A$1:$B$111,2,FALSE)/100*AU59 -> 0 | BS59: =VLOOKUP(Y$3,Prisindeks!$A$1:$B$111,2,FALSE)/100*AV59 -> 0 | BT59: 0 | BU59: 0 | BV59: 0 | BW59: 0 | BX59: 0 | BY59: 0 | BZ59: 0 | CA59: 0 | CB59: 0 | CC59: 0 | CD59: 0 | CE59: 0 | CF59: 0 | CG59: 0 | CH59: 0 | CI59: 0 | CJ59: 0 | CK59: 0 | CL59: 0 | CM59: 0 | CN59: 0 | CO59: 0 | CP59: 0 | CQ59: 0 | CR59: 0
A60: Levetidsforlængelse | B60: år | C60: - | D60: 0 | E60: 0 | F60: 0 | G60: 0 | H60: 0 | I60: 0 | J60: 0 | K60: 0 | L60: 0 | M60: 0 | N60: 0 | O60: 0 | P60: 0 | Q60: 0 | R60: 0 | S60: 0 | T60: 0 | U60: 0 | V60: 0 | W60: 0 | X60: 0 | Y60: 0
A61: Filteranlæg, åbne filtre, dobbelt filtrering, Mek./EL | B61: m³/h | C61: =Genanskaffelsespriser!$E$45 -> 25 | D61: 0 | E61: 0 | F61: 0 | G61: 0 | H61: 0 | I61: 0 | J61: 0 | K61: =200-200 -> 0 | L61: 0 | M61: 0 | N61: 0 | O61: 0 | P61: 0 | Q61: 0 | R61: 0 | S61: 0 | T61: 0 | U61: 0 | V61: 0 | W61: 0 | X61: 0 | Y61: 0 | Z61: =IF(COUNTIF(D61:Y61,"<>0")<=1,IF((SUM(D61:Y61))>0,(+HLOOKUP((SUM(D61:Y61)),Priser!$E$132:$I$141,6)+((SUM(D61:Y61))-HLOOKUP((SUM(D61:Y61)),Priser!$E$132:$I$141,1))*HLOOKUP((SUM(D61:Y61)),Priser!$E$132:$I$141,7))/(SUM(D61:Y61)),0)*Priser!$R$138*(1+Genanskaffelsespriser!$D$196),$A$1359) -> 0 | AA61: =IF((D61*$Z61-(2009-D$3)/$C61*$Z61*D61)<0,0,(D61*$Z61-(2009-D$3)/$C61*$Z61*D61)) -> 0 | AB61: 0 | AC61: 0 | AD61: 0 | AE61: 0 | AF61: 0 | AG61: 0 | AH61: 0 | AI61: 0 | AJ61: 0 | AK61: 0 | AL61: 0 | AM61: 0 | AN61: 0 | AO61: 0 | AP61: 0 | AQ61: 0 | AR61: 0 | AS61: 0 | AT61: 0 | AU61: 0 | AV61: 0 | AW61: 0 | AX61: =VLOOKUP(D$3,Prisindeks!$A$1:$B$111,2,FALSE)/100*AA61 -> 0 | AY61: =VLOOKUP(E$3,Prisindeks!$A$1:$B$111,2,FALSE)/100*AB61 -> 0 | AZ61: =VLOOKUP(F$3,Prisindeks!$A$1:$B$111,2,FALSE)/100*AC61 -> 0 | BA61: =VLOOKUP(G$3,Prisindeks!$A$1:$B$111,2,FALSE)/100*AD61 -> 0 | BB61: =VLOOKUP(H$3,Prisindeks!$A$1:$B$111,2,FALSE)/100*AE61 -> 0 | BC61: =VLOOKUP(I$3,Prisindeks!$A$1:$B$111,2,FALSE)/100*AF61 -> 0 | BD61: =VLOOKUP(J$3,Prisindeks!$A$1:$B$111,2,FALSE)/100*AG61 -> 0 | BE61: =VLOOKUP(K$3,Prisindeks!$A$1:$B$111,2,FALSE)/100*AH61 -> 0 | BF61: =VLOOKUP(L$3,Prisindeks!$A$1:$B$111,2,FALSE)/100*AI61 -> 0 | BG61: =VLOOKUP(M$3,Prisindeks!$A$1:$B$111,2,FALSE)/100*AJ61 -> 0 | BH61: =VLOOKUP(N$3,Prisindeks!$A$1:$B$111,2,FALSE)/100*AK61 -> 0 | BI61: =VLOOKUP(O$3,Prisindeks!$A$1:$B$111,2,FALSE)/100*AL61 -> 0 | BJ61: =VLOOKUP(P$3,Prisindeks!$A$1:$B$111,2,FALSE)/100*AM61 -> 0 | BK61: =VLOOKUP(Q$3,Prisindeks!$A$1:$B$111,2,FALSE)/100*AN61 -> 0 | BL61: =VLOOKUP(R$3,Prisindeks!$A$1:$B$111,2,FALSE)/100*AO61 -> 0 | BM61: =VLOOKUP(S$3,Prisindeks!$A$1:$B$111,2,FALSE)/100*AP61 -> 0 | BN61: =VLOOKUP(T$3,Prisindeks!$A$1:$B$111,2,FALSE)/100*AQ61 -> 0 | BO61: =VLOOKUP(U$3,Prisindeks!$A$1:$B$111,2,FALSE)/100*AR61 -> 0 | BP61: =VLOOKUP(V$3,Prisindeks!$A$1:$B$111,2,FALSE)/100*AS61 -> 0 | BQ61: =VLOOKUP(W$3,Prisindeks!$A$1:$B$111,2,FALSE)/100*AT61 -> 0 | BR61: =VLOOKUP(X$3,Prisindeks!$A$1:$B$111,2,FALSE)/100*AU61 -> 0 | BS61: =VLOOKUP(Y$3,Prisindeks!$A$1:$B$111,2,FALSE)/100*AV61 -> 0 | BT61: 0 | BU61: 0 | BV61: 0 | BW61: 0 | BX61: 0 | BY61: 0 | BZ61: 0 | CA61: 0 | CB61: 0 | CC61: 0 | CD61: 0 | CE61: 0 | CF61: 0 | CG61: 0 | CH61: 0 | CI61: 0 | CJ61: 0 | CK61: 0 | CL61: 0 | CM61: 0 | CN61: 0 | CO61: 0 | CP61: 0 | CQ61: 0 | CR61: 0
A62: Filteranlæg, trykfiltre, enkelt filtrering | B62: m³/h | C62: =Genanskaffelsespriser!$E$46 -> 25 | D62: 0 | E62: 0 | F62: 0 | G62: 0 | H62: 0 | I62: 0 | J62: 0 | K62: 0 | L62: 0 | M62: 0 | N62: 0 | O62: 0 | P62: 0 | Q62: 0 | R62: 0 | S62: 0 | T62: 0 | U62: 0 | V62: 0 | W62: 0 | X62: 0 | Y62: 0 | Z62: =IF(COUNTIF(D62:Y62,"<>0")<=1,IF((SUM(D62:Y62))>0,(+HLOOKUP((SUM(D62:Y62)),Priser!$E$150:$J$152,2)+((SUM(D62:Y62))-HLOOKUP((SUM(D62:Y62)),Priser!$E$150:$J$152,1))*HLOOKUP((SUM(D62:Y62)),Priser!$E$150:$J$152,3))/(SUM(D62:Y62)),0)*(1+Genanskaffelsespriser!$D$196),$A$1359) -> 0 | AA62: =IF((D62*$Z62-(2009-D$3)/$C62*$Z62*D62)<0,0,(D62*$Z62-(2009-D$3)/$C62*$Z62*D62)) -> 0 | AB62: 0 | AC62: 0 | AD62: 0 | AE62: 0 | AF62: 0 | AG62: 0 | AH62: 0 | AI62: 0 | AJ62: 0 | AK62: 0 | AL62: 0 | AM62: 0 | AN62: 0 | AO62: 0 | AP62: 0 | AQ62: 0 | AR62: 0 | AS62: 0 | AT62: 0 | AU62: 0 | AV62: 0 | AW62: 0 | AX62: =VLOOKUP(D$3,Prisindeks!$A$1:$B$111,2,FALSE)/100*AA62 -> 0 | AY62: =VLOOKUP(E$3,Prisindeks!$A$1:$B$111,2,FALSE)/100*AB62 -> 0 | AZ62: =VLOOKUP(F$3,Prisindeks!$A$1:$B$111,2,FALSE)/100*AC62 -> 0 | BA62: =VLOOKUP(G$3,Prisindeks!$A$1:$B$111,2,FALSE)/100*AD62 -> 0 | BB62: =VLOOKUP(H$3,Prisindeks!$A$1:$B$111,2,FALSE)/100*AE62 -> 0 | BC62: =VLOOKUP(I$3,Prisindeks!$A$1:$B$111,2,FALSE)/100*AF62 -> 0 | BD62: =VLOOKUP(J$3,Prisindeks!$A$1:$B$111,2,FALSE)/100*AG62 -> 0 | BE62: =VLOOKUP(K$3,Prisindeks!$A$1:$B$111,2,FALSE)/100*AH62 -> 0 | BF62: =VLOOKUP(L$3,Prisindeks!$A$1:$B$111,2,FALSE)/100*AI62 -> 0 | BG62: =VLOOKUP(M$3,Prisindeks!$A$1:$B$111,2,FALSE)/100*AJ62 -> 0 | BH62: =VLOOKUP(N$3,Prisindeks!$A$1:$B$111,2,FALSE)/100*AK62 -> 0 | BI62: =VLOOKUP(O$3,Prisindeks!$A$1:$B$111,2,FALSE)/100*AL62 -> 0 | BJ62: =VLOOKUP(P$3,Prisindeks!$A$1:$B$111,2,FALSE)/100*AM62 -> 0 | BK62: =VLOOKUP(Q$3,Prisindeks!$A$1:$B$111,2,FALSE)/100*AN62 -> 0 | BL62: =VLOOKUP(R$3,Prisindeks!$A$1:$B$111,2,FALSE)/100*AO62 -> 0 | BM62: =VLOOKUP(S$3,Prisindeks!$A$1:$B$111,2,FALSE)/100*AP62 -> 0 | BN62: =VLOOKUP(T$3,Prisindeks!$A$1:$B$111,2,FALSE)/100*AQ62 -> 0 | BO62: =VLOOKUP(U$3,Prisindeks!$A$1:$B$111,2,FALSE)/100*AR62 -> 0 | BP62: =VLOOKUP(V$3,Prisindeks!$A$1:$B$111,2,FALSE)/100*AS62 -> 0 | BQ62: =VLOOKUP(W$3,Prisindeks!$A$1:$B$111,2,FALSE)/100*AT62 -> 0 | BR62: =VLOOKUP(X$3,Prisindeks!$A$1:$B$111,2,FALSE)/100*AU62 -> 0 | BS62: =VLOOKUP(Y$3,Prisindeks!$A$1:$B$111,2,FALSE)/100*AV62 -> 0 | BT62: 0 | BU62: 0 | BV62: 0 | BW62: 0 | BX62: 0 | BY62: 0 | BZ62: 0 | CA62: 0 | CB62: 0 | CC62: 0 | CD62: 0 | CE62: 0 | CF62: 0 | CG62: 0 | CH62: 0 | CI62: 0 | CJ62: 0 | CK62: 0 | CL62: 0 | CM62: 0 | CN62: 0 | CO62: 0 | CP62: 0 | CQ62: 0 | CR62: 0
A63: Filteranlæg, trykfiltre, dobbelt filtrering | B63: m³/h | C63: =Genanskaffelsespriser!$E$47 -> 25 | D63: 0 | E63: 0 | F63: 0 | G63: 0 | H63: 0 | I63: 0 | J63: 0 | K63: 0 | L63: 0 | M63: 0 | N63: 0 | O63: 0 | P63: 0 | Q63: 0 | R63: 0 | S63: 0 | T63: 0 | U63: 0 | V63: 0 | W63: 0 | X63: 0 | Y63: 0 | Z63: =IF(COUNTIF(D63:Y63,"<>0")<=1,IF((SUM(D63:Y63))>0,(+HLOOKUP((SUM(D63:Y63)),Priser!$E$154:$J$156,2)+((SUM(D63:Y63))-HLOOKUP((SUM(D63:Y63)),Priser!$E$154:$J$156,1))*HLOOKUP((SUM(D63:Y63)),Priser!$E$154:$J$156,3))/(SUM(D63:Y63)),0)*Priser!$R$138*(1+Genanskaffelsespriser!$D$196),$A$1359) -> 0 | AA63: =IF((D63*$Z63-(2009-D$3)/$C63*$Z63*D63)<0,0,(D63*$Z63-(2009-D$3)/$C63*$Z63*D63)) -> 0 | AB63: 0 | AC63: 0 | AD63: 0 | AE63: 0 | AF63: 0 | AG63: 0 | AH63: 0 | AI63: 0 | AJ63: 0 | AK63: 0 | AL63: 0 | AM63: 0 | AN63: 0 | AO63: 0 | AP63: 0 | AQ63: 0 | AR63: 0 | AS63: 0 | AT63: 0 | AU63: 0 | AV63: 0 | AW63: 0 | AX63: =VLOOKUP(D$3,Prisindeks!$A$1:$B$111,2,FALSE)/100*AA63 -> 0 | AY63: =VLOOKUP(E$3,Prisindeks!$A$1:$B$111,2,FALSE)/100*AB63 -> 0 | AZ63: =VLOOKUP(F$3,Prisindeks!$A$1:$B$111,2,FALSE)/100*AC63 -> 0 | BA63: =VLOOKUP(G$3,Prisindeks!$A$1:$B$111,2,FALSE)/100*AD63 -> 0 | BB63: =VLOOKUP(H$3,Prisindeks!$A$1:$B$111,2,FALSE)/100*AE63 -> 0 | BC63: =VLOOKUP(I$3,Prisindeks!$A$1:$B$111,2,FALSE)/100*AF63 -> 0 | BD63: =VLOOKUP(J$3,Prisindeks!$A$1:$B$111,2,FALSE)/100*AG63 -> 0 | BE63: =VLOOKUP(K$3,Prisindeks!$A$1:$B$111,2,FALSE)/100*AH63 -> 0 | BF63: =VLOOKUP(L$3,Prisindeks!$A$1:$B$111,2,FALSE)/100*AI63 -> 0 | BG63: =VLOOKUP(M$3,Prisindeks!$A$1:$B$111,2,FALSE)/100*AJ63 -> 0 | BH63: =VLOOKUP(N$3,Prisindeks!$A$1:$B$111,2,FALSE)/100*AK63 -> 0 | BI63: =VLOOKUP(O$3,Prisindeks!$A$1:$B$111,2,FALSE)/100*AL63 -> 0 | BJ63: =VLOOKUP(P$3,Prisindeks!$A$1:$B$111,2,FALSE)/100*AM63 -> 0 | BK63: =VLOOKUP(Q$3,Prisindeks!$A$1:$B$111,2,FALSE)/100*AN63 -> 0 | BL63: =VLOOKUP(R$3,Prisindeks!$A$1:$B$111,2,FALSE)/100*AO63 -> 0 | BM63: =VLOOKUP(S$3,Prisindeks!$A$1:$B$111,2,FALSE)/100*AP63 -> 0 | BN63: =VLOOKUP(T$3,Prisindeks!$A$1:$B$111,2,FALSE)/100*AQ63 -> 0 | BO63: =VLOOKUP(U$3,Prisindeks!$A$1:$B$111,2,FALSE)/100*AR63 -> 0 | BP63: =VLOOKUP(V$3,Prisindeks!$A$1:$B$111,2,FALSE)/100*AS63 -> 0 | BQ63: =VLOOKUP(W$3,Prisindeks!$A$1:$B$111,2,FALSE)/100*AT63 -> 0 | BR63: =VLOOKUP(X$3,Prisindeks!$A$1:$B$111,2,FALSE)/100*AU63 -> 0 | BS63: =VLOOKUP(Y$3,Prisindeks!$A$1:$B$111,2,FALSE)/100*AV63 -> 0 | BT63: 0 | BU63: 0 | BV63: 0 | BW63: 0 | BX63: 0 | BY63: 0 | BZ63: 0 | CA63: 0 | CB63: 0 | CC63: 0 | CD63: 0 | CE63: 0 | CF63: 0 | CG63: 0 | CH63: 0 | CI63: 0 | CJ63: 0 | CK63: 0 | CL63: 0 | CM63: 0 | CN63: 0 | CO63: 0 | CP63: 0 | CQ63: 0 | CR63: 0
A64: Rentvandsbeholder insitu støbt | B64: m³ | C64: =Genanskaffelsespriser!$E$48 -> 50 | D64: 0 | E64: 0 | F64: 0 | G64: 0 | H64: 0 | I64: 0 | J64: 0 | K64: =1200-1200 -> 0 | L64: 0 | M64: 0 | N64: 0 | O64: 0 | P64: 0 | Q64: 0 | R64: 0 | S64: 0 | T64: 0 | U64: 0 | V64: 0 | W64: 0 | X64: 0 | Y64: 0 | Z64: =IF(COUNTIF(D64:Y64,"<>0")<=1,IF((SUM(D64:Y64))>0,(+HLOOKUP((SUM(D64:Y64)),Priser!$E$168:$J$170,2)+((SUM(D64:Y64))-HLOOKUP((SUM(D64:Y64)),Priser!$E$168:$J$170,1))*HLOOKUP((SUM(D64:Y64)),Priser!$E$168:$J$170,3))/(SUM(D64:Y64)),0)*(1+Genanskaffelsespriser!$D$196),$A$1359) -> 0 | AA64: =IF((D64*$Z64-(2009-D$3)/($C64+D65)*$Z64*D64)<0,0,(D64*$Z64-(2009-D$3)/($C64+D65)*$Z64*D64)) -> 0 | AB64: =IF((E64*$Z64-(2009-E$3)/($C64+E65)*$Z64*E64)<0,0,(E64*$Z64-(2009-E$3)/($C64+E65)*$Z64*E64)) -> 0 | AC64: 0 | AD64: 0 | AE64: 0 | AF64: 0 | AG64: 0 | AH64: 0 | AI64: 0 | AJ64: 0 | AK64: 0 | AL64: 0 | AM64: 0 | AN64: 0 | AO64: 0 | AP64: 0 | AQ64: 0 | AR64: 0 | AS64: 0 | AT64: 0 | AU64: 0 | AV64: 0 | AW64: 0 | AX64: =VLOOKUP(D$3,Prisindeks!$A$1:$B$111,2,FALSE)/100*AA64 -> 0 | AY64: =VLOOKUP(E$3,Prisindeks!$A$1:$B$111,2,FALSE)/100*AB64 -> 0 | AZ64: =VLOOKUP(F$3,Prisindeks!$A$1:$B$111,2,FALSE)/100*AC64 -> 0 | BA64: =VLOOKUP(G$3,Prisindeks!$A$1:$B$111,2,FALSE)/100*AD64 -> 0 | BB64: =VLOOKUP(H$3,Prisindeks!$A$1:$B$111,2,FALSE)/100*AE64 -> 0 | BC64: =VLOOKUP(I$3,Prisindeks!$A$1:$B$111,2,FALSE)/100*AF64 -> 0 | BD64: =VLOOKUP(J$3,Prisindeks!$A$1:$B$111,2,FALSE)/100*AG64 -> 0 | BE64: =VLOOKUP(K$3,Prisindeks!$A$1:$B$111,2,FALSE)/100*AH64 -> 0 | BF64: =VLOOKUP(L$3,Prisindeks!$A$1:$B$111,2,FALSE)/100*AI64 -> 0 | BG64: =VLOOKUP(M$3,Prisindeks!$A$1:$B$111,2,FALSE)/100*AJ64 -> 0 | BH64: =VLOOKUP(N$3,Prisindeks!$A$1:$B$111,2,FALSE)/100*AK64 -> 0 | BI64: =VLOOKUP(O$3,Prisindeks!$A$1:$B$111,2,FALSE)/100*AL64 -> 0 | BJ64: =VLOOKUP(P$3,Prisindeks!$A$1:$B$111,2,FALSE)/100*AM64 -> 0 | BK64: =VLOOKUP(Q$3,Prisindeks!$A$1:$B$111,2,FALSE)/100*AN64 -> 0 | BL64: =VLOOKUP(R$3,Prisindeks!$A$1:$B$111,2,FALSE)/100*AO64 -> 0 | BM64: =VLOOKUP(S$3,Prisindeks!$A$1:$B$111,2,FALSE)/100*AP64 -> 0 | BN64: =VLOOKUP(T$3,Prisindeks!$A$1:$B$111,2,FALSE)/100*AQ64 -> 0 | BO64: =VLOOKUP(U$3,Prisindeks!$A$1:$B$111,2,FALSE)/100*AR64 -> 0 | BP64: =VLOOKUP(V$3,Prisindeks!$A$1:$B$111,2,FALSE)/100*AS64 -> 0 | BQ64: =VLOOKUP(W$3,Prisindeks!$A$1:$B$111,2,FALSE)/100*AT64 -> 0 | BR64: =VLOOKUP(X$3,Prisindeks!$A$1:$B$111,2,FALSE)/100*AU64 -> 0 | BS64: =VLOOKUP(Y$3,Prisindeks!$A$1:$B$111,2,FALSE)/100*AV64 -> 0 | BT64: 0 | BU64: 0 | BV64: 0 | BW64: 0 | BX64: 0 | BY64: 0 | BZ64: 0 | CA64: 0 | CB64: 0 | CC64: 0 | CD64: 0 | CE64: 0 | CF64: 0 | CG64: 0 | CH64: 0 | CI64: 0 | CJ64: 0 | CK64: 0 | CL64: 0 | CM64: 0 | CN64: 0 | CO64: 0 | CP64: 0 | CQ64: 0 | CR64: 0
A65: Levetidsforlængelse | B65: år | C65: - | D65: 0 | E65: 0 | F65: 0 | G65: 0 | H65: 0 | I65: 0 | J65: 0 | K65: 0 | L65: 0 | M65: 0 | N65: 0 | O65: 0 | P65: 0 | Q65: 0 | R65: 0 | S65: 0 | T65: 0 | U65: 0 | V65: 0 | W65: 0 | X65: 0 | Y65: 0
A66: Rentvandsbeholder element | B66: m³ | C66: =Genanskaffelsespriser!$E$49 -> 50 | D66: 0 | E66: 0 | F66: 0 | G66: 0 | H66: 0 | I66: 0 | J66: 0 | K66: 0 | L66: 0 | M66: 0 | N66: 0 | O66: 0 | P66: 0 | Q66: 0 | R66: 0 | S66: 0 | T66: 0 | U66: 0 | V66: 0 | W66: 0 | X66: 0 | Y66: 0 | Z66: =IF(COUNTIF(D66:Y66,"<>0")<=1,IF((SUM(D66:Y66))>0,(+HLOOKUP(SUM(D66:Y66),Priser!$E$175:$J$177,2)+((SUM(D66:Y66))-HLOOKUP((SUM(D66:Y66)),Priser!$E$175:$J$177,1))*HLOOKUP((SUM(D66:Y66)),Priser!$E$175:$J$177,3))/(SUM(D66:Y66)),0)*(1+Genanskaffelsespriser!$D$196),$A$1359) -> 0 | AA66: =IF((D66*$Z66-(2009-D$3)/($C66+D67)*$Z66*D66)<0,0,(D66*$Z66-(2009-D$3)/($C66+D67)*$Z66*D66)) -> 0 | AB66: =IF((E66*$Z66-(2009-E$3)/($C66+E67)*$Z66*E66)<0,0,(E66*$Z66-(2009-E$3)/($C66+E67)*$Z66*E66)) -> 0 | AC66: 0 | AD66: 0 | AE66: 0 | AF66: 0 | AG66: 0 | AH66: 0 | AI66: 0 | AJ66: 0 | AK66: 0 | AL66: 0 | AM66: 0 | AN66: 0 | AO66: 0 | AP66: 0 | AQ66: 0 | AR66: 0 | AS66: 0 | AT66: 0 | AU66: 0 | AV66: 0 | AW66: 0 | AX66: =VLOOKUP(D$3,Prisindeks!$A$1:$B$111,2,FALSE)/100*AA66 -> 0 | AY66: =VLOOKUP(E$3,Prisindeks!$A$1:$B$111,2,FALSE)/100*AB66 -> 0 | AZ66: =VLOOKUP(F$3,Prisindeks!$A$1:$B$111,2,FALSE)/100*AC66 -> 0 | BA66: =VLOOKUP(G$3,Prisindeks!$A$1:$B$111,2,FALSE)/100*AD66 -> 0 | BB66: =VLOOKUP(H$3,Prisindeks!$A$1:$B$111,2,FALSE)/100*AE66 -> 0 | BC66: =VLOOKUP(I$3,Prisindeks!$A$1:$B$111,2,FALSE)/100*AF66 -> 0 | BD66: =VLOOKUP(J$3,Prisindeks!$A$1:$B$111,2,FALSE)/100*AG66 -> 0 | BE66: =VLOOKUP(K$3,Prisindeks!$A$1:$B$111,2,FALSE)/100*AH66 -> 0 | BF66: =VLOOKUP(L$3,Prisindeks!$A$1:$B$111,2,FALSE)/100*AI66 -> 0 | BG66: =VLOOKUP(M$3,Prisindeks!$A$1:$B$111,2,FALSE)/100*AJ66 -> 0 | BH66: =VLOOKUP(N$3,Prisindeks!$A$1:$B$111,2,FALSE)/100*AK66 -> 0 | BI66: =VLOOKUP(O$3,Prisindeks!$A$1:$B$111,2,FALSE)/100*AL66 -> 0 | BJ66: =VLOOKUP(P$3,Prisindeks!$A$1:$B$111,2,FALSE)/100*AM66 -> 0 | BK66: =VLOOKUP(Q$3,Prisindeks!$A$1:$B$111,2,FALSE)/100*AN66 -> 0 | BL66: =VLOOKUP(R$3,Prisindeks!$A$1:$B$111,2,FALSE)/100*AO66 -> 0 | BM66: =VLOOKUP(S$3,Prisindeks!$A$1:$B$111,2,FALSE)/100*AP66 -> 0 | BN66: =VLOOKUP(T$3,Prisindeks!$A$1:$B$111,2,FALSE)/100*AQ66 -> 0 | BO66: =VLOOKUP(U$3,Prisindeks!$A$1:$B$111,2,FALSE)/100*AR66 -> 0 | BP66: =VLOOKUP(V$3,Prisindeks!$A$1:$B$111,2,FALSE)/100*AS66 -> 0 | BQ66: =VLOOKUP(W$3,Prisindeks!$A$1:$B$111,2,FALSE)/100*AT66 -> 0 | BR66: =VLOOKUP(X$3,Prisindeks!$A$1:$B$111,2,FALSE)/100*AU66 -> 0 | BS66: =VLOOKUP(Y$3,Prisindeks!$A$1:$B$111,2,FALSE)/100*AV66 -> 0 | BT66: 0 | BU66: 0 | BV66: 0 | BW66: 0 | BX66: 0 | BY66: 0 | BZ66: 0 | CA66: 0 | CB66: 0 | CC66: 0 | CD66: 0 | CE66: 0 | CF66: 0 | CG66: 0 | CH66: 0 | CI66: 0 | CJ66: 0 | CK66: 0 | CL66: 0 | CM66: 0 | CN66: 0 | CO66: 0 | CP66: 0 | CQ66: 0 | CR66: 0
A67: Levetidsforlængelse | B67: år | C67: - | D67: 0 | E67: 0 | F67: 0 | G67: 0 | H67: 0 | I67: 0 | J67: 0 | K67: 0 | L67: 0 | M67: 0 | N67: 0 | O67: 0 | P67: 0 | Q67: 0 | R67: 0 | S67: 0 | T67: 0 | U67: 0 | V67: 0 | W67: 0 | X67: 0 | Y67: 0
A68: Udpumpningsanlæg, rentvandspumper på vandværk | B68: m³/h | C68: =Genanskaffelsespriser!$E$50 -> 25 | D68: 0 | E68: 0 | F68: 0 | G68: 0 | H68: 0 | I68: 0 | J68: 0 | K68: 0 | L68: 0 | M68: 0 | N68: 0 | O68: 0 | P68: 0 | Q68: 0 | R68: 0 | S68: 0 | T68: 0 | U68: 0 | V68: 0 | W68: 0 | X68: 0 | Y68: 350 | Z68: =IF(COUNTIF(D68:Y68,"<>0")<=1,IF((SUM(D68:Y68))>0,(+HLOOKUP((SUM(D68:Y68)),Priser!$E$236:$J$238,2)+((SUM(D68:Y68))-HLOOKUP((SUM(D68:Y68)),Priser!$E$236:$J$238,1))*HLOOKUP((SUM(D68:Y68)),Priser!$E$236:$J$238,3))/(SUM(D68:Y68)),0)*(1+Genanskaffelsespriser!$D$196),$A$1359) -> 1061.244566 | AA68: =IF((D68*$Z68-(2009-D$3)/$C68*$Z68*D68)<0,0,(D68*$Z68-(2009-D$3)/$C68*$Z68*D68)) -> 0 | AB68: 0 | AC68: 0 | AD68: 0 | AE68: 0 | AF68: 0 | AG68: 0 | AH68: 0 | AI68: 0 | AJ68: 0 | AK68: 0 | AL68: 0 | AM68: 0 | AN68: 0 | AO68: 0 | AP68: 0 | AQ68: 0 | AR68: 0 | AS68: 0 | AT68: 0 | AU68: 0 | AV68: 371435.5982 | AW68: 371435.5982 | AX68: =VLOOKUP(D$3,Prisindeks!$A$1:$B$111,2,FALSE)/100*AA68 -> 0 | AY68: =VLOOKUP(E$3,Prisindeks!$A$1:$B$111,2,FALSE)/100*AB68 -> 0 | AZ68: =VLOOKUP(F$3,Prisindeks!$A$1:$B$111,2,FALSE)/100*AC68 -> 0 | BA68: =VLOOKUP(G$3,Prisindeks!$A$1:$B$111,2,FALSE)/100*AD68 -> 0 | BB68: =VLOOKUP(H$3,Prisindeks!$A$1:$B$111,2,FALSE)/100*AE68 -> 0 | BC68: =VLOOKUP(I$3,Prisindeks!$A$1:$B$111,2,FALSE)/100*AF68 -> 0 | BD68: =VLOOKUP(J$3,Prisindeks!$A$1:$B$111,2,FALSE)/100*AG68 -> 0 | BE68: =VLOOKUP(K$3,Prisindeks!$A$1:$B$111,2,FALSE)/100*AH68 -> 0 | BF68: =VLOOKUP(L$3,Prisindeks!$A$1:$B$111,2,FALSE)/100*AI68 -> 0 | BG68: =VLOOKUP(M$3,Prisindeks!$A$1:$B$111,2,FALSE)/100*AJ68 -> 0 | BH68: =VLOOKUP(N$3,Prisindeks!$A$1:$B$111,2,FALSE)/100*AK68 -> 0 | BI68: =VLOOKUP(O$3,Prisindeks!$A$1:$B$111,2,FALSE)/100*AL68 -> 0 | BJ68: =VLOOKUP(P$3,Prisindeks!$A$1:$B$111,2,FALSE)/100*AM68 -> 0 | BK68: =VLOOKUP(Q$3,Prisindeks!$A$1:$B$111,2,FALSE)/100*AN68 -> 0 | BL68: =VLOOKUP(R$3,Prisindeks!$A$1:$B$111,2,FALSE)/100*AO68 -> 0 | BM68: =VLOOKUP(S$3,Prisindeks!$A$1:$B$111,2,FALSE)/100*AP68 -> 0 | BN68: =VLOOKUP(T$3,Prisindeks!$A$1:$B$111,2,FALSE)/100*AQ68 -> 0 | BO68: =VLOOKUP(U$3,Prisindeks!$A$1:$B$111,2,FALSE)/100*AR68 -> 0 | BP68: =VLOOKUP(V$3,Prisindeks!$A$1:$B$111,2,FALSE)/100*AS68 -> 0 | BQ68: =VLOOKUP(W$3,Prisindeks!$A$1:$B$111,2,FALSE)/100*AT68 -> 0 | BR68: =VLOOKUP(X$3,Prisindeks!$A$1:$B$111,2,FALSE)/100*AU68 -> 0 | BS68: =VLOOKUP(Y$3,Prisindeks!$A$1:$B$111,2,FALSE)/100*AV68 -> 371435.5982 | BT68: 371435.5982 | BU68: 0 | BV68: 0 | BW68: 0 | BX68: 0 | BY68: 0 | BZ68: 0 | CA68: 0 | CB68: 0 | CC68: 0 | CD68: 0 | CE68: 0 | CF68: 0 | CG68: 0 | CH68: 0 | CI68: 0 | CJ68: 0 | CK68: 0 | CL68: 0 | CM68: 0 | CN68: 0 | CO68: 0 | CP68: 371435.5982 | CQ68: 371435.5982 | CR68: 350
A69: Udpumpningsanlæg, frekvensomformer | B69: kW | C69: =Genanskaffelsespriser!$E$51 -> 25 | D69: 0 | E69: 0 | F69: 0 | G69: 0 | H69: 0 | I69: 0 | J69: 0 | K69: 0 | L69: 0 | M69: 0 | N69: 0 | O69: 0 | P69: 0 | Q69: 0 | R69: 0 | S69: 0 | T69: 0 | U69: 0 | V69: 0 | W69: 0 | X69: 0 | Y69: 0 | Z69: =IF(COUNTIF(D69:Y69,"<>0")<=1,IF((SUM(D69:Y69))>0,(+HLOOKUP((SUM(D69:Y69)),Priser!$E$255:$J$257,2)+((SUM(D69:Y69))-HLOOKUP((SUM(D69:Y69)),Priser!$E$255:$J$257,1))*HLOOKUP((SUM(D69:Y69)),Priser!$E$255:$J$257,3))/(SUM(D69:Y69)),0)*(1+Genanskaffelsespriser!$D$196),$A$1359) -> 0 | AA69: =IF((D69*$Z69-(2009-D$3)/$C69*$Z69*D69)<0,0,(D69*$Z69-(2009-D$3)/$C69*$Z69*D69)) -> 0 | AB69: 0 | AC69: 0 | AD69: 0 | AE69: 0 | AF69: 0 | AG69: 0 | AH69: 0 | AI69: 0 | AJ69: 0 | AK69: 0 | AL69: 0 | AM69: 0 | AN69: 0 | AO69: 0 | AP69: 0 | AQ69: 0 | AR69: 0 | AS69: 0 | AT69: 0 | AU69: 0 | AV69: 0 | AW69: 0 | AX69: =VLOOKUP(D$3,Prisindeks!$A$1:$B$111,2,FALSE)/100*AA69 -> 0 | AY69: =VLOOKUP(E$3,Prisindeks!$A$1:$B$111,2,FALSE)/100*AB69 -> 0 | AZ69: =VLOOKUP(F$3,Prisindeks!$A$1:$B$111,2,FALSE)/100*AC69 -> 0 | BA69: =VLOOKUP(G$3,Prisindeks!$A$1:$B$111,2,FALSE)/100*AD69 -> 0 | BB69: =VLOOKUP(H$3,Prisindeks!$A$1:$B$111,2,FALSE)/100*AE69 -> 0 | BC69: =VLOOKUP(I$3,Prisindeks!$A$1:$B$111,2,FALSE)/100*AF69 -> 0 | BD69: =VLOOKUP(J$3,Prisindeks!$A$1:$B$111,2,FALSE)/100*AG69 -> 0 | BE69: =VLOOKUP(K$3,Prisindeks!$A$1:$B$111,2,FALSE)/100*AH69 -> 0 | BF69: =VLOOKUP(L$3,Prisindeks!$A$1:$B$111,2,FALSE)/100*AI69 -> 0 | BG69: =VLOOKUP(M$3,Prisindeks!$A$1:$B$111,2,FALSE)/100*AJ69 -> 0 | BH69: =VLOOKUP(N$3,Prisindeks!$A$1:$B$111,2,FALSE)/100*AK69 -> 0 | BI69: =VLOOKUP(O$3,Prisindeks!$A$1:$B$111,2,FALSE)/100*AL69 -> 0 | BJ69: =VLOOKUP(P$3,Prisindeks!$A$1:$B$111,2,FALSE)/100*AM69 -> 0 | BK69: =VLOOKUP(Q$3,Prisindeks!$A$1:$B$111,2,FALSE)/100*AN69 -> 0 | BL69: =VLOOKUP(R$3,Prisindeks!$A$1:$B$111,2,FALSE)/100*AO69 -> 0 | BM69: =VLOOKUP(S$3,Prisindeks!$A$1:$B$111,2,FALSE)/100*AP69 -> 0 | BN69: =VLOOKUP(T$3,Prisindeks!$A$1:$B$111,2,FALSE)/100*AQ69 -> 0 | BO69: =VLOOKUP(U$3,Prisindeks!$A$1:$B$111,2,FALSE)/100*AR69 -> 0 | BP69: =VLOOKUP(V$3,Prisindeks!$A$1:$B$111,2,FALSE)/100*AS69 -> 0 | BQ69: =VLOOKUP(W$3,Prisindeks!$A$1:$B$111,2,FALSE)/100*AT69 -> 0 | BR69: =VLOOKUP(X$3,Prisindeks!$A$1:$B$111,2,FALSE)/100*AU69 -> 0 | BS69: =VLOOKUP(Y$3,Prisindeks!$A$1:$B$111,2,FALSE)/100*AV69 -> 0 | BT69: 0 | BU69: 0 | BV69: 0 | BW69: 0 | BX69: 0 | BY69: 0 | BZ69: 0 | CA69: 0 | CB69: 0 | CC69: 0 | CD69: 0 | CE69: 0 | CF69: 0 | CG69: 0 | CH69: 0 | CI69: 0 | CJ69: 0 | CK69: 0 | CL69: 0 | CM69: 0 | CN69: 0 | CO69: 0 | CP69: 0 | CQ69: 0 | CR69: 0
A70: Udpumpningsanlæg, Hydrofor | B70: liter | C70: =Genanskaffelsespriser!$E$52 -> 25 | D70: 0 | E70: 0 | F70: 0 | G70: 0 | H70: 0 | I70: 0 | J70: 0 | K70: 0 | L70: 0 | M70: 0 | N70: 0 | O70: 0 | P70: 0 | Q70: 0 | R70: 0 | S70: 0 | T70: 0 | U70: 0 | V70: 0 | W70: 0 | X70: 0 | Y70: 0 | Z70: =IF(COUNTIF(D70:Y70,"<>0")<=1,IF((SUM(D70:Y70))>0,(+HLOOKUP((SUM(D70:Y70)),Priser!$E$275:$J$277,2)+((SUM(D70:Y70))-HLOOKUP((SUM(D70:Y70)),Priser!$E$275:$J$277,1))*HLOOKUP((SUM(D70:Y70)),Priser!$E$275:$J$277,3))/(SUM(D70:Y70)),0)*(1+Genanskaffelsespriser!$D$196),$A$1359) -> 0 | AA70: =IF((D70*$Z70-(2009-D$3)/$C70*$Z70*D70)<0,0,(D70*$Z70-(2009-D$3)/$C70*$Z70*D70)) -> 0 | AB70: 0 | AC70: 0 | AD70: 0 | AE70: 0 | AF70: 0 | AG70: 0 | AH70: 0 | AI70: 0 | AJ70: 0 | AK70: 0 | AL70: 0 | AM70: 0 | AN70: 0 | AO70: 0 | AP70: 0 | AQ70: 0 | AR70: 0 | AS70: 0 | AT70: 0 | AU70: 0 | AV70: 0 | AW70: 0 | AX70: =VLOOKUP(D$3,Prisindeks!$A$1:$B$111,2,FALSE)/100*AA70 -> 0 | AY70: =VLOOKUP(E$3,Prisindeks!$A$1:$B$111,2,FALSE)/100*AB70 -> 0 | AZ70: =VLOOKUP(F$3,Prisindeks!$A$1:$B$111,2,FALSE)/100*AC70 -> 0 | BA70: =VLOOKUP(G$3,Prisindeks!$A$1:$B$111,2,FALSE)/100*AD70 -> 0 | BB70: =VLOOKUP(H$3,Prisindeks!$A$1:$B$111,2,FALSE)/100*AE70 -> 0 | BC70: =VLOOKUP(I$3,Prisindeks!$A$1:$B$111,2,FALSE)/100*AF70 -> 0 | BD70: =VLOOKUP(J$3,Prisindeks!$A$1:$B$111,2,FALSE)/100*AG70 -> 0 | BE70: =VLOOKUP(K$3,Prisindeks!$A$1:$B$111,2,FALSE)/100*AH70 -> 0 | BF70: =VLOOKUP(L$3,Prisindeks!$A$1:$B$111,2,FALSE)/100*AI70 -> 0 | BG70: =VLOOKUP(M$3,Prisindeks!$A$1:$B$111,2,FALSE)/100*AJ70 -> 0 | BH70: =VLOOKUP(N$3,Prisindeks!$A$1:$B$111,2,FALSE)/100*AK70 -> 0 | BI70: =VLOOKUP(O$3,Prisindeks!$A$1:$B$111,2,FALSE)/100*AL70 -> 0 | BJ70: =VLOOKUP(P$3,Prisindeks!$A$1:$B$111,2,FALSE)/100*AM70 -> 0 | BK70: =VLOOKUP(Q$3,Prisindeks!$A$1:$B$111,2,FALSE)/100*AN70 -> 0 | BL70: =VLOOKUP(R$3,Prisindeks!$A$1:$B$111,2,FALSE)/100*AO70 -> 0 | BM70: =VLOOKUP(S$3,Prisindeks!$A$1:$B$111,2,FALSE)/100*AP70 -> 0 | BN70: =VLOOKUP(T$3,Prisindeks!$A$1:$B$111,2,FALSE)/100*AQ70 -> 0 | BO70: =VLOOKUP(U$3,Prisindeks!$A$1:$B$111,2,FALSE)/100*AR70 -> 0 | BP70: =VLOOKUP(V$3,Prisindeks!$A$1:$B$111,2,FALSE)/100*AS70 -> 0 | BQ70: =VLOOKUP(W$3,Prisindeks!$A$1:$B$111,2,FALSE)/100*AT70 -> 0 | BR70: =VLOOKUP(X$3,Prisindeks!$A$1:$B$111,2,FALSE)/100*AU70 -> 0 | BS70: =VLOOKUP(Y$3,Prisindeks!$A$1:$B$111,2,FALSE)/100*AV70 -> 0 | BT70: 0 | BU70: 0 | BV70: 0 | BW70: 0 | BX70: 0 | BY70: 0 | BZ70: 0 | CA70: 0 | CB70: 0 | CC70: 0 | CD70: 0 | CE70: 0 | CF70: 0 | CG70: 0 | CH70: 0 | CI70: 0 | CJ70: 0 | CK70: 0 | CL70: 0 | CM70: 0 | CN70: 0 | CO70: 0 | CP70: 0 | CQ70: 0 | CR70: 0
A71: Skyllevand-/slamhåndteringsanlæg - lukkede betonbeholdere | B71: m³ | C71: =Genanskaffelsespriser!$E$53 -> 50 | D71: 0 | E71: 0 | F71: 0 | G71: 0 | H71: 0 | I71: 0 | J71: 0 | K71: 0 | L71: 0 | M71: 0 | N71: 0 | O71: 0 | P71: 0 | Q71: 0 | R71: 0 | S71: 0 | T71: 0 | U71: 0 | V71: 0 | W71: 0 | X71: 0 | Y71: 0 | Z71: =IF(COUNTIF(D71:Y71,"<>0")<=1,IF((SUM(D71:Y71))>0,(+HLOOKUP((SUM(D71:Y71)),Priser!$E$207:$J$209,2)+((SUM(D71:Y71))-HLOOKUP((SUM(D71:Y71)),Priser!$E$207:$J$209,1))*HLOOKUP((SUM(D71:Y71)),Priser!$E$207:$J$209,3))/(SUM(D71:Y71)),0)*(1+Genanskaffelsespriser!$D$196),$A$1359) -> 0 | AA71: =IF((D71*$Z71-(2009-D$3)/($C71+D72)*$Z71*D71)<0,0,(D71*$Z71-(2009-D$3)/($C71+D72)*$Z71*D71)) -> 0 | AB71: =IF((E71*$Z71-(2009-E$3)/($C71+E72)*$Z71*E71)<0,0,(E71*$Z71-(2009-E$3)/($C71+E72)*$Z71*E71)) -> 0 | AC71: 0 | AD71: 0 | AE71: 0 | AF71: 0 | AG71: 0 | AH71: 0 | AI71: 0 | AJ71: 0 | AK71: 0 | AL71: 0 | AM71: 0 | AN71: 0 | AO71: 0 | AP71: 0 | AQ71: 0 | AR71: 0 | AS71: 0 | AT71: 0 | AU71: 0 | AV71: 0 | AW71: 0 | AX71: =VLOOKUP(D$3,Prisindeks!$A$1:$B$111,2,FALSE)/100*AA71 -> 0 | AY71: =VLOOKUP(E$3,Prisindeks!$A$1:$B$111,2,FALSE)/100*AB71 -> 0 | AZ71: =VLOOKUP(F$3,Prisindeks!$A$1:$B$111,2,FALSE)/100*AC71 -> 0 | BA71: =VLOOKUP(G$3,Prisindeks!$A$1:$B$111,2,FALSE)/100*AD71 -> 0 | BB71: =VLOOKUP(H$3,Prisindeks!$A$1:$B$111,2,FALSE)/100*AE71 -> 0 | BC71: =VLOOKUP(I$3,Prisindeks!$A$1:$B$111,2,FALSE)/100*AF71 -> 0 | BD71: =VLOOKUP(J$3,Prisindeks!$A$1:$B$111,2,FALSE)/100*AG71 -> 0 | BE71: =VLOOKUP(K$3,Prisindeks!$A$1:$B$111,2,FALSE)/100*AH71 -> 0 | BF71: =VLOOKUP(L$3,Prisindeks!$A$1:$B$111,2,FALSE)/100*AI71 -> 0 | BG71: =VLOOKUP(M$3,Prisindeks!$A$1:$B$111,2,FALSE)/100*AJ71 -> 0 | BH71: =VLOOKUP(N$3,Prisindeks!$A$1:$B$111,2,FALSE)/100*AK71 -> 0 | BI71: =VLOOKUP(O$3,Prisindeks!$A$1:$B$111,2,FALSE)/100*AL71 -> 0 | BJ71: =VLOOKUP(P$3,Prisindeks!$A$1:$B$111,2,FALSE)/100*AM71 -> 0 | BK71: =VLOOKUP(Q$3,Prisindeks!$A$1:$B$111,2,FALSE)/100*AN71 -> 0 | BL71: =VLOOKUP(R$3,Prisindeks!$A$1:$B$111,2,FALSE)/100*AO71 -> 0 | BM71: =VLOOKUP(S$3,Prisindeks!$A$1:$B$111,2,FALSE)/100*AP71 -> 0 | BN71: =VLOOKUP(T$3,Prisindeks!$A$1:$B$111,2,FALSE)/100*AQ71 -> 0 | BO71: =VLOOKUP(U$3,Prisindeks!$A$1:$B$111,2,FALSE)/100*AR71 -> 0 | BP71: =VLOOKUP(V$3,Prisindeks!$A$1:$B$111,2,FALSE)/100*AS71 -> 0 | BQ71: =VLOOKUP(W$3,Prisindeks!$A$1:$B$111,2,FALSE)/100*AT71 -> 0 | BR71: =VLOOKUP(X$3,Prisindeks!$A$1:$B$111,2,FALSE)/100*AU71 -> 0 | BS71: =VLOOKUP(Y$3,Prisindeks!$A$1:$B$111,2,FALSE)/100*AV71 -> 0 | BT71: 0 | BU71: 0 | BV71: 0 | BW71: 0 | BX71: 0 | BY71: 0 | BZ71: 0 | CA71: 0 | CB71: 0 | CC71: 0 | CD71: 0 | CE71: 0 | CF71: 0 | CG71: 0 | CH71: 0 | CI71: 0 | CJ71: 0 | CK71: 0 | CL71: 0 | CM71: 0 | CN71: 0 | CO71: 0 | CP71: 0 | CQ71: 0 | CR71: 0
A72: Levetidsforlængelse | B72: år | C72: - | D72: 0 | E72: 0 | F72: 0 | G72: 0 | H72: 0 | I72: 0 | J72: 0 | K72: 0 | L72: 0 | M72: 0 | N72: 0 | O72: 0 | P72: 0 | Q72: 0 | R72: 0 | S72: 0 | T72: 0 | U72: 0 | V72: 0 | W72: 0 | X72: 0 | Y72: 0
A73: Skyllevand-/slamhåndteringsanl. - åbne med faste sider/bund | B73: m³ | C73: =Genanskaffelsespriser!$E$54 -> 50 | D73: 0 | E73: 0 | F73: 0 | G73: 0 | H73: 0 | I73: 0 | J73: 0 | K73: 0 | L73: 0 | M73: 0 | N73: 0 | O73: 0 | P73: 0 | Q73: 0 | R73: 0 | S73: 0 | T73: 0 | U73: 0 | V73: 0 | W73: 0 | X73: 0 | Y73: 0 | Z73: =IF(COUNTIF(D73:Y73,"<>0")<=1,IF((SUM(D73:Y73))>0,(+HLOOKUP((SUM(D73:Y73)),Priser!$E$207:$J$212,5)+((SUM(D73:Y73))-HLOOKUP((SUM(D73:Y73)),Priser!$E$207:$J$212,1))*HLOOKUP((SUM(D73:Y73)),Priser!$E$207:$J$212,6))/(SUM(D73:Y73)),0)*(1+Genanskaffelsespriser!$D$196),$A$1359) -> 0 | AA73: =IF((D73*$Z73-(2009-D$3)/($C73+D74)*$Z73*D73)<0,0,(D73*$Z73-(2009-D$3)/($C73+D74)*$Z73*D73)) -> 0 | AB73: =IF((E73*$Z73-(2009-E$3)/($C73+E74)*$Z73*E73)<0,0,(E73*$Z73-(2009-E$3)/($C73+E74)*$Z73*E73)) -> 0 | AC73: 0 | AD73: 0 | AE73: 0 | AF73: 0 | AG73: 0 | AH73: 0 | AI73: 0 | AJ73: 0 | AK73: 0 | AL73: 0 | AM73: 0 | AN73: 0 | AO73: 0 | AP73: 0 | AQ73: 0 | AR73: 0 | AS73: 0 | AT73: 0 | AU73: 0 | AV73: 0 | AW73: 0 | AX73: =VLOOKUP(D$3,Prisindeks!$A$1:$B$111,2,FALSE)/100*AA73 -> 0 | AY73: =VLOOKUP(E$3,Prisindeks!$A$1:$B$111,2,FALSE)/100*AB73 -> 0 | AZ73: =VLOOKUP(F$3,Prisindeks!$A$1:$B$111,2,FALSE)/100*AC73 -> 0 | BA73: =VLOOKUP(G$3,Prisindeks!$A$1:$B$111,2,FALSE)/100*AD73 -> 0 | BB73: =VLOOKUP(H$3,Prisindeks!$A$1:$B$111,2,FALSE)/100*AE73 -> 0 | BC73: =VLOOKUP(I$3,Prisindeks!$A$1:$B$111,2,FALSE)/100*AF73 -> 0 | BD73: =VLOOKUP(J$3,Prisindeks!$A$1:$B$111,2,FALSE)/100*AG73 -> 0 | BE73: =VLOOKUP(K$3,Prisindeks!$A$1:$B$111,2,FALSE)/100*AH73 -> 0 | BF73: =VLOOKUP(L$3,Prisindeks!$A$1:$B$111,2,FALSE)/100*AI73 -> 0 | BG73: =VLOOKUP(M$3,Prisindeks!$A$1:$B$111,2,FALSE)/100*AJ73 -> 0 | BH73: =VLOOKUP(N$3,Prisindeks!$A$1:$B$111,2,FALSE)/100*AK73 -> 0 | BI73: =VLOOKUP(O$3,Prisindeks!$A$1:$B$111,2,FALSE)/100*AL73 -> 0 | BJ73: =VLOOKUP(P$3,Prisindeks!$A$1:$B$111,2,FALSE)/100*AM73 -> 0 | BK73: =VLOOKUP(Q$3,Prisindeks!$A$1:$B$111,2,FALSE)/100*AN73 -> 0 | BL73: =VLOOKUP(R$3,Prisindeks!$A$1:$B$111,2,FALSE)/100*AO73 -> 0 | BM73: =VLOOKUP(S$3,Prisindeks!$A$1:$B$111,2,FALSE)/100*AP73 -> 0 | BN73: =VLOOKUP(T$3,Prisindeks!$A$1:$B$111,2,FALSE)/100*AQ73 -> 0 | BO73: =VLOOKUP(U$3,Prisindeks!$A$1:$B$111,2,FALSE)/100*AR73 -> 0 | BP73: =VLOOKUP(V$3,Prisindeks!$A$1:$B$111,2,FALSE)/100*AS73 -> 0 | BQ73: =VLOOKUP(W$3,Prisindeks!$A$1:$B$111,2,FALSE)/100*AT73 -> 0 | BR73: =VLOOKUP(X$3,Prisindeks!$A$1:$B$111,2,FALSE)/100*AU73 -> 0 | BS73: =VLOOKUP(Y$3,Prisindeks!$A$1:$B$111,2,FALSE)/100*AV73 -> 0 | BT73: 0 | BU73: 0 | BV73: 0 | BW73: 0 | BX73: 0 | BY73: 0 | BZ73: 0 | CA73: 0 | CB73: 0 | CC73: 0 | CD73: 0 | CE73: 0 | CF73: 0 | CG73: 0 | CH73: 0 | CI73: 0 | CJ73: 0 | CK73: 0 | CL73: 0 | CM73: 0 | CN73: 0 | CO73: 0 | CP73: 0 | CQ73: 0 | CR73: 0
A74: Levetidsforlængelse | B74: år | C74: - | D74: 0 | E74: 0 | F74: 0 | G74: 0 | H74: 0 | I74: 0 | J74: 0 | K74: 0 | L74: 0 | M74: 0 | N74: 0 | O74: 0 | P74: 0 | Q74: 0 | R74: 0 | S74: 0 | T74: 0 | U74: 0 | V74: 0 | W74: 0 | X74: 0 | Y74: 0
A75: Skyllevand-/slamhåndteringsanlæg - jordbassiner | B75: m³ | C75: =Genanskaffelsespriser!$E$55 -> 50 | D75: 0 | E75: 0 | F75: 0 | G75: 0 | H75: 0 | I75: 0 | J75: 0 | K75: 0 | L75: 0 | M75: 0 | N75: 0 | O75: 0 | P75: 0 | Q75: 0 | R75: 0 | S75: 0 | T75: 0 | U75: 0 | V75: 0 | W75: 0 | X75: 0 | Y75: 0 | Z75: =IF(COUNTIF(D75:Y75,"<>0")<=1,IF((SUM(D75:Y75))>0,(+HLOOKUP((SUM(D75:Y75)),Priser!$E$207:$J$215,8)+((SUM(D75:Y75))-HLOOKUP((SUM(D75:Y75)),Priser!$E$207:$J$215,1))*HLOOKUP((SUM(D75:Y75)),Priser!$E$207:$J$215,9))/(SUM(D75:Y75)),0)*(1+Genanskaffelsespriser!$D$196),$A$1359) -> 0 | AA75: =IF((D75*$Z75-(2009-D$3)/($C75+D76)*$Z75*D75)<0,0,(D75*$Z75-(2009-D$3)/($C75+D76)*$Z75*D75)) -> 0 | AB75: =IF((E75*$Z75-(2009-E$3)/($C75+E76)*$Z75*E75)<0,0,(E75*$Z75-(2009-E$3)/($C75+E76)*$Z75*E75)) -> 0 | AC75: 0 | AD75: 0 | AE75: 0 | AF75: 0 | AG75: 0 | AH75: 0 | AI75: 0 | AJ75: 0 | AK75: 0 | AL75: 0 | AM75: 0 | AN75: 0 | AO75: 0 | AP75: 0 | AQ75: 0 | AR75: 0 | AS75: 0 | AT75: 0 | AU75: 0 | AV75: 0 | AW75: 0 | AX75: =VLOOKUP(D$3,Prisindeks!$A$1:$B$111,2,FALSE)/100*AA75 -> 0 | AY75: =VLOOKUP(E$3,Prisindeks!$A$1:$B$111,2,FALSE)/100*AB75 -> 0 | AZ75: =VLOOKUP(F$3,Prisindeks!$A$1:$B$111,2,FALSE)/100*AC75 -> 0 | BA75: =VLOOKUP(G$3,Prisindeks!$A$1:$B$111,2,FALSE)/100*AD75 -> 0 | BB75: =VLOOKUP(H$3,Prisindeks!$A$1:$B$111,2,FALSE)/100*AE75 -> 0 | BC75: =VLOOKUP(I$3,Prisindeks!$A$1:$B$111,2,FALSE)/100*AF75 -> 0 | BD75: =VLOOKUP(J$3,Prisindeks!$A$1:$B$111,2,FALSE)/100*AG75 -> 0 | BE75: =VLOOKUP(K$3,Prisindeks!$A$1:$B$111,2,FALSE)/100*AH75 -> 0 | BF75: =VLOOKUP(L$3,Prisindeks!$A$1:$B$111,2,FALSE)/100*AI75 -> 0 | BG75: =VLOOKUP(M$3,Prisindeks!$A$1:$B$111,2,FALSE)/100*AJ75 -> 0 | BH75: =VLOOKUP(N$3,Prisindeks!$A$1:$B$111,2,FALSE)/100*AK75 -> 0 | BI75: =VLOOKUP(O$3,Prisindeks!$A$1:$B$111,2,FALSE)/100*AL75 -> 0 | BJ75: =VLOOKUP(P$3,Prisindeks!$A$1:$B$111,2,FALSE)/100*AM75 -> 0 | BK75: =VLOOKUP(Q$3,Prisindeks!$A$1:$B$111,2,FALSE)/100*AN75 -> 0 | BL75: =VLOOKUP(R$3,Prisindeks!$A$1:$B$111,2,FALSE)/100*AO75 -> 0 | BM75: =VLOOKUP(S$3,Prisindeks!$A$1:$B$111,2,FALSE)/100*AP75 -> 0 | BN75: =VLOOKUP(T$3,Prisindeks!$A$1:$B$111,2,FALSE)/100*AQ75 -> 0 | BO75: =VLOOKUP(U$3,Prisindeks!$A$1:$B$111,2,FALSE)/100*AR75 -> 0 | BP75: =VLOOKUP(V$3,Prisindeks!$A$1:$B$111,2,FALSE)/100*AS75 -> 0 | BQ75: =VLOOKUP(W$3,Prisindeks!$A$1:$B$111,2,FALSE)/100*AT75 -> 0 | BR75: =VLOOKUP(X$3,Prisindeks!$A$1:$B$111,2,FALSE)/100*AU75 -> 0 | BS75: =VLOOKUP(Y$3,Prisindeks!$A$1:$B$111,2,FALSE)/100*AV75 -> 0 | BT75: 0 | BU75: 0 | BV75: 0 | BW75: 0 | BX75: 0 | BY75: 0 | BZ75: 0 | CA75: 0 | CB75: 0 | CC75: 0 | CD75: 0 | CE75: 0 | CF75: 0 | CG75: 0 | CH75: 0 | CI75: 0 | CJ75: 0 | CK75: 0 | CL75: 0 | CM75: 0 | CN75: 0 | CO75: 0 | CP75: 0 | CQ75: 0 | CR75: 0
A76: Levetidsforlængelse | B76: år | C76: - | D76: 0 | E76: 0 | F76: 0 | G76: 0 | H76: 0 | I76: 0 | J76: 0 | K76: 0 | L76: 0 | M76: 0 | N76: 0 | O76: 0 | P76: 0 | Q76: 0 | R76: 0 | S76: 0 | T76: 0 | U76: 0 | V76: 0 | W76: 0 | X76: 0 | Y76: 0
A77: Skyllevandsbehandling, inkl. UV-filter mv., Mek./EL | B77: m³/h. | C77: =Genanskaffelsespriser!$E$56 -> 25 | D77: 0 | E77: 0 | F77: 0 | G77: 0 | H77: 0 | I77: 0 | J77: 0 | K77: 0 | L77: 0 | M77: 0 | N77: 0 | O77: 0 | P77: 0 | Q77: 0 | R77: 0 | S77: 0 | T77: 0 | U77: 0 | V77: 0 | W77: 0 | X77: 0 | Y77: 0 | Z77: =IF(COUNTIF(D77:Y77,"<>0")<=1,IF((SUM(D77:Y77))>0,(+HLOOKUP((SUM(D77:Y77)),Priser!$F$374:$H$376,2)+((SUM(D77:Y77))-HLOOKUP((SUM(D77:Y77)),Priser!$F$374:$H$376,1))*HLOOKUP((SUM(D77:Y77)),Priser!$F$374:$H$376,3))/(SUM(D77:Y77)),0)*Priser!$Q$376*(1+Genanskaffelsespriser!$D$196),$A$1359) -> 0 | AA77: =IF((D77*$Z77-(2009-D$3)/$C77*$Z77*D77)<0,0,(D77*$Z77-(2009-D$3)/$C77*$Z77*D77)) -> 0 | AB77: 0 | AC77: 0 | AD77: 0 | AE77: 0 | AF77: 0 | AG77: 0 | AH77: 0 | AI77: 0 | AJ77: 0 | AK77: 0 | AL77: 0 | AM77: 0 | AN77: 0 | AO77: 0 | AP77: 0 | AQ77: 0 | AR77: 0 | AS77: 0 | AT77: 0 | AU77: 0 | AV77: 0 | AW77: 0 | AX77: =VLOOKUP(D$3,Prisindeks!$A$1:$B$111,2,FALSE)/100*AA77 -> 0 | AY77: =VLOOKUP(E$3,Prisindeks!$A$1:$B$111,2,FALSE)/100*AB77 -> 0 | AZ77: =VLOOKUP(F$3,Prisindeks!$A$1:$B$111,2,FALSE)/100*AC77 -> 0 | BA77: =VLOOKUP(G$3,Prisindeks!$A$1:$B$111,2,FALSE)/100*AD77 -> 0 | BB77: =VLOOKUP(H$3,Prisindeks!$A$1:$B$111,2,FALSE)/100*AE77 -> 0 | BC77: =VLOOKUP(I$3,Prisindeks!$A$1:$B$111,2,FALSE)/100*AF77 -> 0 | BD77: =VLOOKUP(J$3,Prisindeks!$A$1:$B$111,2,FALSE)/100*AG77 -> 0 | BE77: =VLOOKUP(K$3,Prisindeks!$A$1:$B$111,2,FALSE)/100*AH77 -> 0 | BF77: =VLOOKUP(L$3,Prisindeks!$A$1:$B$111,2,FALSE)/100*AI77 -> 0 | BG77: =VLOOKUP(M$3,Prisindeks!$A$1:$B$111,2,FALSE)/100*AJ77 -> 0 | BH77: =VLOOKUP(N$3,Prisindeks!$A$1:$B$111,2,FALSE)/100*AK77 -> 0 | BI77: =VLOOKUP(O$3,Prisindeks!$A$1:$B$111,2,FALSE)/100*AL77 -> 0 | BJ77: =VLOOKUP(P$3,Prisindeks!$A$1:$B$111,2,FALSE)/100*AM77 -> 0 | BK77: =VLOOKUP(Q$3,Prisindeks!$A$1:$B$111,2,FALSE)/100*AN77 -> 0 | BL77: =VLOOKUP(R$3,Prisindeks!$A$1:$B$111,2,FALSE)/100*AO77 -> 0 | BM77: =VLOOKUP(S$3,Prisindeks!$A$1:$B$111,2,FALSE)/100*AP77 -> 0 | BN77: =VLOOKUP(T$3,Prisindeks!$A$1:$B$111,2,FALSE)/100*AQ77 -> 0 | BO77: =VLOOKUP(U$3,Prisindeks!$A$1:$B$111,2,FALSE)/100*AR77 -> 0 | BP77: =VLOOKUP(V$3,Prisindeks!$A$1:$B$111,2,FALSE)/100*AS77 -> 0 | BQ77: =VLOOKUP(W$3,Prisindeks!$A$1:$B$111,2,FALSE)/100*AT77 -> 0 | BR77: =VLOOKUP(X$3,Prisindeks!$A$1:$B$111,2,FALSE)/100*AU77 -> 0 | BS77: =VLOOKUP(Y$3,Prisindeks!$A$1:$B$111,2,FALSE)/100*AV77 -> 0 | BT77: 0 | BU77: 0 | BV77: 0 | BW77: 0 | BX77: 0 | BY77: 0 | BZ77: 0 | CA77: 0 | CB77: 0 | CC77: 0 | CD77: 0 | CE77: 0 | CF77: 0 | CG77: 0 | CH77: 0 | CI77: 0 | CJ77: 0 | CK77: 0 | CL77: 0 | CM77: 0 | CN77: 0 | CO77: 0 | CP77: 0 | CQ77: 0 | CR77: 0
A78: Skyllevandsbehandling, inkl. UV-filter mv., SRO | B78: m³/h. | C78: =Genanskaffelsespriser!$E$57 -> 10 | D78: 0 | E78: 0 | F78: 0 | G78: 0 | H78: 0 | I78: 0 | J78: 0 | K78: 0 | L78: 0 | M78: 0 | N78: 0 | O78: 0 | P78: 0 | Q78: 0 | R78: 0 | S78: 0 | T78: 0 | U78: 0 | V78: 0 | W78: 0 | X78: 0 | Y78: 0 | Z78: =IF(COUNTIF(D78:Y78,"<>0")<=1,IF((SUM(D78:Y78))>0,(+HLOOKUP((SUM(D78:Y78)),Priser!$F$374:$H$376,2)+((SUM(D78:Y78))-HLOOKUP((SUM(D78:Y78)),Priser!$F$374:$H$376,1))*HLOOKUP((SUM(D78:Y78)),Priser!$F$374:$H$376,3))/(SUM(D78:Y78)),0)*Priser!$R$376*(1+Genanskaffelsespriser!$D$196),$A$1359) -> 0 | AA78: =IF((D78*$Z78-(2009-D$3)/$C78*$Z78*D78)<0,0,(D78*$Z78-(2009-D$3)/$C78*$Z78*D78)) -> 0 | AB78: 0 | AC78: 0 | AD78: 0 | AE78: 0 | AF78: 0 | AG78: 0 | AH78: 0 | AI78: 0 | AJ78: 0 | AK78: 0 | AL78: 0 | AM78: 0 | AN78: 0 | AO78: 0 | AP78: 0 | AQ78: 0 | AR78: 0 | AS78: 0 | AT78: 0 | AU78: 0 | AV78: 0 | AW78: 0 | AX78: =VLOOKUP(D$3,Prisindeks!$A$1:$B$111,2,FALSE)/100*AA78 -> 0 | AY78: =VLOOKUP(E$3,Prisindeks!$A$1:$B$111,2,FALSE)/100*AB78 -> 0 | AZ78: =VLOOKUP(F$3,Prisindeks!$A$1:$B$111,2,FALSE)/100*AC78 -> 0 | BA78: =VLOOKUP(G$3,Prisindeks!$A$1:$B$111,2,FALSE)/100*AD78 -> 0 | BB78: =VLOOKUP(H$3,Prisindeks!$A$1:$B$111,2,FALSE)/100*AE78 -> 0 | BC78: =VLOOKUP(I$3,Prisindeks!$A$1:$B$111,2,FALSE)/100*AF78 -> 0 | BD78: =VLOOKUP(J$3,Prisindeks!$A$1:$B$111,2,FALSE)/100*AG78 -> 0 | BE78: =VLOOKUP(K$3,Prisindeks!$A$1:$B$111,2,FALSE)/100*AH78 -> 0 | BF78: =VLOOKUP(L$3,Prisindeks!$A$1:$B$111,2,FALSE)/100*AI78 -> 0 | BG78: =VLOOKUP(M$3,Prisindeks!$A$1:$B$111,2,FALSE)/100*AJ78 -> 0 | BH78: =VLOOKUP(N$3,Prisindeks!$A$1:$B$111,2,FALSE)/100*AK78 -> 0 | BI78: =VLOOKUP(O$3,Prisindeks!$A$1:$B$111,2,FALSE)/100*AL78 -> 0 | BJ78: =VLOOKUP(P$3,Prisindeks!$A$1:$B$111,2,FALSE)/100*AM78 -> 0 | BK78: =VLOOKUP(Q$3,Prisindeks!$A$1:$B$111,2,FALSE)/100*AN78 -> 0 | BL78: =VLOOKUP(R$3,Prisindeks!$A$1:$B$111,2,FALSE)/100*AO78 -> 0 | BM78: =VLOOKUP(S$3,Prisindeks!$A$1:$B$111,2,FALSE)/100*AP78 -> 0 | BN78: =VLOOKUP(T$3,Prisindeks!$A$1:$B$111,2,FALSE)/100*AQ78 -> 0 | BO78: =VLOOKUP(U$3,Prisindeks!$A$1:$B$111,2,FALSE)/100*AR78 -> 0 | BP78: =VLOOKUP(V$3,Prisindeks!$A$1:$B$111,2,FALSE)/100*AS78 -> 0 | BQ78: =VLOOKUP(W$3,Prisindeks!$A$1:$B$111,2,FALSE)/100*AT78 -> 0 | BR78: =VLOOKUP(X$3,Prisindeks!$A$1:$B$111,2,FALSE)/100*AU78 -> 0 | BS78: =VLOOKUP(Y$3,Prisindeks!$A$1:$B$111,2,FALSE)/100*AV78 -> 0 | BT78: 0 | BU78: 0 | BV78: 0 | BW78: 0 | BX78: 0 | BY78: 0 | BZ78: 0 | CA78: 0 | CB78: 0 | CC78: 0 | CD78: 0 | CE78: 0 | CF78: 0 | CG78: 0 | CH78: 0 | CI78: 0 | CJ78: 0 | CK78: 0 | CL78: 0 | CM78: 0 | CN78: 0 | CO78: 0 | CP78: 0 | CQ78: 0 | CR78: 0
A79: Nødstrømsanlæg på vandværk | B79: kW | C79: =Genanskaffelsespriser!$E$58 -> 25 | D79: 0 | E79: 0 | F79: 0 | G79: 0 | H79: 0 | I79: 0 | J79: 0 | K79: 0 | L79: 0 | M79: 0 | N79: 0 | O79: 0 | P79: 0 | Q79: 0 | R79: 0 | S79: 0 | T79: 0 | U79: 0 | V79: 0 | W79: 0 | X79: 0 | Y79: 0 | Z79: =IF(COUNTIF(D79:Y79,"<>0")<=1,IF((SUM(D79:Y79))>0,(+HLOOKUP((SUM(D79:Y79)),Priser!$E$294:$J$296,2)+((SUM(D79:Y79))-HLOOKUP((SUM(D79:Y79)),Priser!$E$294:$J$296,1))*HLOOKUP((SUM(D79:Y79)),Priser!$E$294:$J$296,3))/(SUM(D79:Y79)),0)*(1+Genanskaffelsespriser!$D$196),$A$1359) -> 0 | AA79: =IF((D79*$Z79-(2009-D$3)/$C79*$Z79*D79)<0,0,(D79*$Z79-(2009-D$3)/$C79*$Z79*D79)) -> 0 | AB79: 0 | AC79: 0 | AD79: 0 | AE79: 0 | AF79: 0 | AG79: 0 | AH79: 0 | AI79: 0 | AJ79: 0 | AK79: 0 | AL79: 0 | AM79: 0 | AN79: 0 | AO79: 0 | AP79: 0 | AQ79: 0 | AR79: 0 | AS79: 0 | AT79: 0 | AU79: 0 | AV79: 0 | AW79: 0 | AX79: =VLOOKUP(D$3,Prisindeks!$A$1:$B$111,2,FALSE)/100*AA79 -> 0 | AY79: =VLOOKUP(E$3,Prisindeks!$A$1:$B$111,2,FALSE)/100*AB79 -> 0 | AZ79: =VLOOKUP(F$3,Prisindeks!$A$1:$B$111,2,FALSE)/100*AC79 -> 0 | BA79: =VLOOKUP(G$3,Prisindeks!$A$1:$B$111,2,FALSE)/100*AD79 -> 0 | BB79: =VLOOKUP(H$3,Prisindeks!$A$1:$B$111,2,FALSE)/100*AE79 -> 0 | BC79: =VLOOKUP(I$3,Prisindeks!$A$1:$B$111,2,FALSE)/100*AF79 -> 0 | BD79: =VLOOKUP(J$3,Prisindeks!$A$1:$B$111,2,FALSE)/100*AG79 -> 0 | BE79: =VLOOKUP(K$3,Prisindeks!$A$1:$B$111,2,FALSE)/100*AH79 -> 0 | BF79: =VLOOKUP(L$3,Prisindeks!$A$1:$B$111,2,FALSE)/100*AI79 -> 0 | BG79: =VLOOKUP(M$3,Prisindeks!$A$1:$B$111,2,FALSE)/100*AJ79 -> 0 | BH79: =VLOOKUP(N$3,Prisindeks!$A$1:$B$111,2,FALSE)/100*AK79 -> 0 | BI79: =VLOOKUP(O$3,Prisindeks!$A$1:$B$111,2,FALSE)/100*AL79 -> 0 | BJ79: =VLOOKUP(P$3,Prisindeks!$A$1:$B$111,2,FALSE)/100*AM79 -> 0 | BK79: =VLOOKUP(Q$3,Prisindeks!$A$1:$B$111,2,FALSE)/100*AN79 -> 0 | BL79: =VLOOKUP(R$3,Prisindeks!$A$1:$B$111,2,FALSE)/100*AO79 -> 0 | BM79: =VLOOKUP(S$3,Prisindeks!$A$1:$B$111,2,FALSE)/100*AP79 -> 0 | BN79: =VLOOKUP(T$3,Prisindeks!$A$1:$B$111,2,FALSE)/100*AQ79 -> 0 | BO79: =VLOOKUP(U$3,Prisindeks!$A$1:$B$111,2,FALSE)/100*AR79 -> 0 | BP79: =VLOOKUP(V$3,Prisindeks!$A$1:$B$111,2,FALSE)/100*AS79 -> 0 | BQ79: =VLOOKUP(W$3,Prisindeks!$A$1:$B$111,2,FALSE)/100*AT79 -> 0 | BR79: =VLOOKUP(X$3,Prisindeks!$A$1:$B$111,2,FALSE)/100*AU79 -> 0 | BS79: =VLOOKUP(Y$3,Prisindeks!$A$1:$B$111,2,FALSE)/100*AV79 -> 0 | BT79: 0 | BU79: 0 | BV79: 0 | BW79: 0 | BX79: 0 | BY79: 0 | BZ79: 0 | CA79: 0 | CB79: 0 | CC79: 0 | CD79: 0 | CE79: 0 | CF79: 0 | CG79: 0 | CH79: 0 | CI79: 0 | CJ79: 0 | CK79: 0 | CL79: 0 | CM79: 0 | CN79: 0 | CO79: 0 | CP79: 0 | CQ79: 0 | CR79: 0
A80: Elanlæg og SRO-anlæg - vandværk, Elanlæg | B80: m³/h. | C80: =Genanskaffelsespriser!$E$59 -> 25 | D80: 0 | E80: 0 | F80: 0 | G80: 0 | H80: 0 | I80: 0 | J80: 0 | K80: =200-200 -> 0 | L80: 0 | M80: 0 | N80: 0 | O80: 0 | P80: 0 | Q80: 0 | R80: 0 | S80: 0 | T80: 0 | U80: 0 | V80: 0 | W80: 0 | X80: 0 | Y80: 0 | Z80: =IF(COUNTIF(D80:Y80,"<>0")<=1,IF((SUM(D80:Y80))>0,((+HLOOKUP((SUM(D80:Y80)),Priser!$E$311:$J$315,4)+((SUM(D80:Y80))-HLOOKUP((SUM(D80:Y80)),Priser!$E$311:$J$315,1))*HLOOKUP((SUM(D80:Y80)),Priser!$E$311:$J$315,5))/(SUM(D80:Y80))),0)*(1+Genanskaffelsespriser!$D$196),$A$1359) -> 0 | AA80: =IF((D80*$Z80-(2009-D$3)/$C80*$Z80*D80)<0,0,(D80*$Z80-(2009-D$3)/$C80*$Z80*D80)) -> 0 | AB80: 0 | AC80: 0 | AD80: 0 | AE80: 0 | AF80: 0 | AG80: 0 | AH80: 0 | AI80: 0 | AJ80: 0 | AK80: 0 | AL80: 0 | AM80: 0 | AN80: 0 | AO80: 0 | AP80: 0 | AQ80: 0 | AR80: 0 | AS80: 0 | AT80: 0 | AU80: 0 | AV80: 0 | AW80: 0 | AX80: =VLOOKUP(D$3,Prisindeks!$A$1:$B$111,2,FALSE)/100*AA80 -> 0 | AY80: =VLOOKUP(E$3,Prisindeks!$A$1:$B$111,2,FALSE)/100*AB80 -> 0 | AZ80: =VLOOKUP(F$3,Prisindeks!$A$1:$B$111,2,FALSE)/100*AC80 -> 0 | BA80: =VLOOKUP(G$3,Prisindeks!$A$1:$B$111,2,FALSE)/100*AD80 -> 0 | BB80: =VLOOKUP(H$3,Prisindeks!$A$1:$B$111,2,FALSE)/100*AE80 -> 0 | BC80: =VLOOKUP(I$3,Prisindeks!$A$1:$B$111,2,FALSE)/100*AF80 -> 0 | BD80: =VLOOKUP(J$3,Prisindeks!$A$1:$B$111,2,FALSE)/100*AG80 -> 0 | BE80: =VLOOKUP(K$3,Prisindeks!$A$1:$B$111,2,FALSE)/100*AH80 -> 0 | BF80: =VLOOKUP(L$3,Prisindeks!$A$1:$B$111,2,FALSE)/100*AI80 -> 0 | BG80: =VLOOKUP(M$3,Prisindeks!$A$1:$B$111,2,FALSE)/100*AJ80 -> 0 | BH80: =VLOOKUP(N$3,Prisindeks!$A$1:$B$111,2,FALSE)/100*AK80 -> 0 | BI80: =VLOOKUP(O$3,Prisindeks!$A$1:$B$111,2,FALSE)/100*AL80 -> 0 | BJ80: =VLOOKUP(P$3,Prisindeks!$A$1:$B$111,2,FALSE)/100*AM80 -> 0 | BK80: =VLOOKUP(Q$3,Prisindeks!$A$1:$B$111,2,FALSE)/100*AN80 -> 0 | BL80: =VLOOKUP(R$3,Prisindeks!$A$1:$B$111,2,FALSE)/100*AO80 -> 0 | BM80: =VLOOKUP(S$3,Prisindeks!$A$1:$B$111,2,FALSE)/100*AP80 -> 0 | BN80: =VLOOKUP(T$3,Prisindeks!$A$1:$B$111,2,FALSE)/100*AQ80 -> 0 | BO80: =VLOOKUP(U$3,Prisindeks!$A$1:$B$111,2,FALSE)/100*AR80 -> 0 | BP80: =VLOOKUP(V$3,Prisindeks!$A$1:$B$111,2,FALSE)/100*AS80 -> 0 | BQ80: =VLOOKUP(W$3,Prisindeks!$A$1:$B$111,2,FALSE)/100*AT80 -> 0 | BR80: =VLOOKUP(X$3,Prisindeks!$A$1:$B$111,2,FALSE)/100*AU80 -> 0 | BS80: =VLOOKUP(Y$3,Prisindeks!$A$1:$B$111,2,FALSE)/100*AV80 -> 0 | BT80: 0 | BU80: 0 | BV80: 0 | BW80: 0 | BX80: 0 | BY80: 0 | BZ80: 0 | CA80: 0 | CB80: 0 | CC80: 0 | CD80: 0 | CE80: 0 | CF80: 0 | CG80: 0 | CH80: 0 | CI80: 0 | CJ80: 0 | CK80: 0 | CL80: 0 | CM80: 0 | CN80: 0 | CO80: 0 | CP80: 0 | CQ80: 0 | CR80: 0
A81: Elanlæg og SRO-anlæg - vandværk, SRO | B81: m³/h. | C81: =Genanskaffelsespriser!$E$60 -> 10 | D81: 0 | E81: 0 | F81: 0 | G81: 0 | H81: 0 | I81: 0 | J81: 0 | K81: =200-200 -> 0 | L81: 0 | M81: 0 | N81: 0 | O81: 0 | P81: 0 | Q81: 0 | R81: 0 | S81: 0 | T81: 0 | U81: 0 | V81: 0 | W81: 0 | X81: 0 | Y81: 0 | Z81: =IF(COUNTIF(D81:Y81,"<>0")<=1,IF((SUM(D81:Y81))>0,(+HLOOKUP((SUM(D81:Y81)),Priser!$E$311:$J$318,7)+((SUM(D81:Y81))-HLOOKUP((SUM(D81:Y81)),Priser!$E$311:$J$318,1))*HLOOKUP((SUM(D81:Y81)),Priser!$E$311:$J$318,8))/(SUM(D81:Y81)),0)*(1+Genanskaffelsespriser!$D$196),$A$1359) -> 0 | AA81: =IF((D81*$Z81-(2009-D$3)/$C81*$Z81*D81)<0,0,(D81*$Z81-(2009-D$3)/$C81*$Z81*D81)) -> 0 | AB81: 0 | AC81: 0 | AD81: 0 | AE81: 0 | AF81: 0 | AG81: 0 | AH81: 0 | AI81: 0 | AJ81: 0 | AK81: 0 | AL81: 0 | AM81: 0 | AN81: 0 | AO81: 0 | AP81: 0 | AQ81: 0 | AR81: 0 | AS81: 0 | AT81: 0 | AU81: 0 | AV81: 0 | AW81: 0 | AX81: =VLOOKUP(D$3,Prisindeks!$A$1:$B$111,2,FALSE)/100*AA81 -> 0 | AY81: =VLOOKUP(E$3,Prisindeks!$A$1:$B$111,2,FALSE)/100*AB81 -> 0 | AZ81: =VLOOKUP(F$3,Prisindeks!$A$1:$B$111,2,FALSE)/100*AC81 -> 0 | BA81: =VLOOKUP(G$3,Prisindeks!$A$1:$B$111,2,FALSE)/100*AD81 -> 0 | BB81: =VLOOKUP(H$3,Prisindeks!$A$1:$B$111,2,FALSE)/100*AE81 -> 0 | BC81: =VLOOKUP(I$3,Prisindeks!$A$1:$B$111,2,FALSE)/100*AF81 -> 0 | BD81: =VLOOKUP(J$3,Prisindeks!$A$1:$B$111,2,FALSE)/100*AG81 -> 0 | BE81: =VLOOKUP(K$3,Prisindeks!$A$1:$B$111,2,FALSE)/100*AH81 -> 0 | BF81: =VLOOKUP(L$3,Prisindeks!$A$1:$B$111,2,FALSE)/100*AI81 -> 0 | BG81: =VLOOKUP(M$3,Prisindeks!$A$1:$B$111,2,FALSE)/100*AJ81 -> 0 | BH81: =VLOOKUP(N$3,Prisindeks!$A$1:$B$111,2,FALSE)/100*AK81 -> 0 | BI81: =VLOOKUP(O$3,Prisindeks!$A$1:$B$111,2,FALSE)/100*AL81 -> 0 | BJ81: =VLOOKUP(P$3,Prisindeks!$A$1:$B$111,2,FALSE)/100*AM81 -> 0 | BK81: =VLOOKUP(Q$3,Prisindeks!$A$1:$B$111,2,FALSE)/100*AN81 -> 0 | BL81: =VLOOKUP(R$3,Prisindeks!$A$1:$B$111,2,FALSE)/100*AO81 -> 0 | BM81: =VLOOKUP(S$3,Prisindeks!$A$1:$B$111,2,FALSE)/100*AP81 -> 0 | BN81: =VLOOKUP(T$3,Prisindeks!$A$1:$B$111,2,FALSE)/100*AQ81 -> 0 | BO81: =VLOOKUP(U$3,Prisindeks!$A$1:$B$111,2,FALSE)/100*AR81 -> 0 | BP81: =VLOOKUP(V$3,Prisindeks!$A$1:$B$111,2,FALSE)/100*AS81 -> 0 | BQ81: =VLOOKUP(W$3,Prisindeks!$A$1:$B$111,2,FALSE)/100*AT81 -> 0 | BR81: =VLOOKUP(X$3,Prisindeks!$A$1:$B$111,2,FALSE)/100*AU81 -> 0 | BS81: =VLOOKUP(Y$3,Prisindeks!$A$1:$B$111,2,FALSE)/100*AV81 -> 0 | BT81: 0 | BU81: 0 | BV81: 0 | BW81: 0 | BX81: 0 | BY81: 0 | BZ81: 0 | CA81: 0 | CB81: 0 | CC81: 0 | CD81: 0 | CE81: 0 | CF81: 0 | CG81: 0 | CH81: 0 | CI81: 0 | CJ81: 0 | CK81: 0 | CL81: 0 | CM81: 0 | CN81: 0 | CO81: 0 | CP81: 0 | CQ81: =+AVERAGE(AW81,BT81) -> 0 | CR81: 0
A82: Vandværk 2 | AW82: =SUM(AW83:AW124) -> 259211.9048 | BT82: =SUM(BT83:BT124) -> 56390.81393 | CQ82: =SUM(CQ83:CQ124) -> 157801.3594
A83: Beluftningsanlæg, iltningstrappe, Konstruktioner | B83: m³/h | C83: =Genanskaffelsespriser!$E$30 -> 50 | D83: 0 | E83: 0 | F83: 0 | G83: 0 | H83: 0 | I83: 0 | J83: 0 | K83: 0 | L83: 0 | M83: 0 | N83: 0 | O83: 0 | P83: 0 | Q83: 0 | R83: 0 | S83: 0 | T83: 0 | U83: 0 | V83: 0 | W83: 0 | X83: 0 | Y83: 0 | Z83: =IF(COUNTIF(D83:Y83,"<>0")<=1,IF((SUM(D83:Y83))>0,(+HLOOKUP((SUM(D83:Y83)),Priser!$E$96:$J$108,2)+((SUM(D83:Y83))-HLOOKUP((SUM(D83:Y83)),Priser!$E$96:$J$108,1))*HLOOKUP((SUM(D83:Y83)),Priser!$E$96:$J$108,3))/(SUM(D83:Y83)),0)*Priser!$Q$97*(1+Genanskaffelsespriser!$D$196),$A$1359) -> 0 | AA83: =IF((D83*$Z83-(2009-D$3)/($C83+D84)*$Z83*D83)<0,0,(D83*$Z83-(2009-D$3)/($C83+D84)*$Z83*D83)) -> 0 | AB83: 0 | AC83: 0 | AD83: 0 | AE83: 0 | AF83: 0 | AG83: 0 | AH83: 0 | AI83: 0 | AJ83: 0 | AK83: 0 | AL83: 0 | AM83: 0 | AN83: 0 | AO83: 0 | AP83: 0 | AQ83: 0 | AR83: 0 | AS83: 0 | AT83: 0 | AU83: 0 | AV83: 0 | AW83: =+SUM(AA83:AV83) -> 0 | AX83: =VLOOKUP(D$3,Prisindeks!$A$1:$B$111,2,FALSE)/100*AA83 -> 0 | AY83: =VLOOKUP(E$3,Prisindeks!$A$1:$B$111,2,FALSE)/100*AB83 -> 0 | AZ83: =VLOOKUP(F$3,Prisindeks!$A$1:$B$111,2,FALSE)/100*AC83 -> 0 | BA83: =VLOOKUP(G$3,Prisindeks!$A$1:$B$111,2,FALSE)/100*AD83 -> 0 | BB83: =VLOOKUP(H$3,Prisindeks!$A$1:$B$111,2,FALSE)/100*AE83 -> 0 | BC83: =VLOOKUP(I$3,Prisindeks!$A$1:$B$111,2,FALSE)/100*AF83 -> 0 | BD83: =VLOOKUP(J$3,Prisindeks!$A$1:$B$111,2,FALSE)/100*AG83 -> 0 | BE83: =VLOOKUP(K$3,Prisindeks!$A$1:$B$111,2,FALSE)/100*AH83 -> 0 | BF83: =VLOOKUP(L$3,Prisindeks!$A$1:$B$111,2,FALSE)/100*AI83 -> 0 | BG83: =VLOOKUP(M$3,Prisindeks!$A$1:$B$111,2,FALSE)/100*AJ83 -> 0 | BH83: =VLOOKUP(N$3,Prisindeks!$A$1:$B$111,2,FALSE)/100*AK83 -> 0 | BI83: =VLOOKUP(O$3,Prisindeks!$A$1:$B$111,2,FALSE)/100*AL83 -> 0 | BJ83: =VLOOKUP(P$3,Prisindeks!$A$1:$B$111,2,FALSE)/100*AM83 -> 0 | BK83: =VLOOKUP(Q$3,Prisindeks!$A$1:$B$111,2,FALSE)/100*AN83 -> 0 | BL83: =VLOOKUP(R$3,Prisindeks!$A$1:$B$111,2,FALSE)/100*AO83 -> 0 | BM83: =VLOOKUP(S$3,Prisindeks!$A$1:$B$111,2,FALSE)/100*AP83 -> 0 | BN83: =VLOOKUP(T$3,Prisindeks!$A$1:$B$111,2,FALSE)/100*AQ83 -> 0 | BO83: =VLOOKUP(U$3,Prisindeks!$A$1:$B$111,2,FALSE)/100*AR83 -> 0 | BP83: =VLOOKUP(V$3,Prisindeks!$A$1:$B$111,2,FALSE)/100*AS83 -> 0 | BQ83: =VLOOKUP(W$3,Prisindeks!$A$1:$B$111,2,FALSE)/100*AT83 -> 0 | BR83: =VLOOKUP(X$3,Prisindeks!$A$1:$B$111,2,FALSE)/100*AU83 -> 0 | BS83: =VLOOKUP(Y$3,Prisindeks!$A$1:$B$111,2,FALSE)/100*AV83 -> 0 | BT83: =+SUM(AX83:BS83) -> 0 | BU83: =(AA83+AX83)/2 -> 0 | BV83: 0 | BW83: 0 | BX83: 0 | BY83: 0 | BZ83: 0 | CA83: 0 | CB83: 0 | CC83: 0 | CD83: 0 | CE83: 0 | CF83: 0 | CG83: 0 | CH83: 0 | CI83: 0 | CJ83: 0 | CK83: 0 | CL83: 0 | CM83: 0 | CN83: 0 | CO83: 0 | CP83: 0 | CQ83: =+AVERAGE(AW83,BT83) -> 0 | CR83: =SUM(D83:Y83) -> 0
A84: Levetidsforlængelse | B84: år | C84: - | D84: 0 | E84: 0 | F84: 0 | G84: 0 | H84: 0 | I84: 0 | J84: 0 | K84: 0 | L84: 0 | M84: 0 | N84: 0 | O84: 0 | P84: 0 | Q84: 0 | R84: 0 | S84: 0 | T84: 0 | U84: 0 | V84: 0 | W84: 0 | X84: 0 | Y84: 0
A85: Beluftningsanlæg, iltningstrappe, Mek./EL | B85: m³/h | C85: =Genanskaffelsespriser!$E$31 -> 25 | D85: 0 | E85: 0 | F85: 0 | G85: 0 | H85: 0 | I85: 0 | J85: 0 | K85: 0 | L85: 0 | M85: 0 | N85: 0 | O85: 0 | P85: 0 | Q85: 0 | R85: 0 | S85: 0 | T85: 0 | U85: 0 | V85: 0 | W85: 0 | X85: 0 | Y85: 0 | Z85: =IF(COUNTIF(D85:Y85,"<>0")<=1,IF((SUM(D85:Y85))>0,(+HLOOKUP((SUM(D85:Y85)),Priser!$E$96:$J$108,2)+((SUM(D85:Y85))-HLOOKUP((SUM(D85:Y85)),Priser!$E$96:$J$108,1))*HLOOKUP((SUM(D85:Y85)),Priser!$E$96:$J$108,3))/(SUM(D85:Y85)),0)*Priser!$R$97*(1+Genanskaffelsespriser!$D$196),$A$1359) -> 0 | AA85: =IF((D85*$Z85-(2009-D$3)/$C85*$Z85*D85)<0,0,(D85*$Z85-(2009-D$3)/$C85*$Z85*D85)) -> 0 | AB85: 0 | AC85: 0 | AD85: 0 | AE85: 0 | AF85: 0 | AG85: 0 | AH85: 0 | AI85: 0 | AJ85: 0 | AK85: 0 | AL85: 0 | AM85: 0 | AN85: 0 | AO85: 0 | AP85: 0 | AQ85: 0 | AR85: 0 | AS85: 0 | AT85: 0 | AU85: 0 | AV85: 0 | AW85: =+SUM(AA85:AV85) -> 0 | AX85: =VLOOKUP(D$3,Prisindeks!$A$1:$B$111,2,FALSE)/100*AA85 -> 0 | AY85: =VLOOKUP(E$3,Prisindeks!$A$1:$B$111,2,FALSE)/100*AB85 -> 0 | AZ85: =VLOOKUP(F$3,Prisindeks!$A$1:$B$111,2,FALSE)/100*AC85 -> 0 | BA85: =VLOOKUP(G$3,Prisindeks!$A$1:$B$111,2,FALSE)/100*AD85 -> 0 | BB85: =VLOOKUP(H$3,Prisindeks!$A$1:$B$111,2,FALSE)/100*AE85 -> 0 | BC85: =VLOOKUP(I$3,Prisindeks!$A$1:$B$111,2,FALSE)/100*AF85 -> 0 | BD85: =VLOOKUP(J$3,Prisindeks!$A$1:$B$111,2,FALSE)/100*AG85 -> 0 | BE85: =VLOOKUP(K$3,Prisindeks!$A$1:$B$111,2,FALSE)/100*AH85 -> 0 | BF85: =VLOOKUP(L$3,Prisindeks!$A$1:$B$111,2,FALSE)/100*AI85 -> 0 | BG85: =VLOOKUP(M$3,Prisindeks!$A$1:$B$111,2,FALSE)/100*AJ85 -> 0 | BH85: =VLOOKUP(N$3,Prisindeks!$A$1:$B$111,2,FALSE)/100*AK85 -> 0 | BI85: =VLOOKUP(O$3,Prisindeks!$A$1:$B$111,2,FALSE)/100*AL85 -> 0 | BJ85: =VLOOKUP(P$3,Prisindeks!$A$1:$B$111,2,FALSE)/100*AM85 -> 0 | BK85: =VLOOKUP(Q$3,Prisindeks!$A$1:$B$111,2,FALSE)/100*AN85 -> 0 | BL85: =VLOOKUP(R$3,Prisindeks!$A$1:$B$111,2,FALSE)/100*AO85 -> 0 | BM85: =VLOOKUP(S$3,Prisindeks!$A$1:$B$111,2,FALSE)/100*AP85 -> 0 | BN85: =VLOOKUP(T$3,Prisindeks!$A$1:$B$111,2,FALSE)/100*AQ85 -> 0 | BO85: =VLOOKUP(U$3,Prisindeks!$A$1:$B$111,2,FALSE)/100*AR85 -> 0 | BP85: =VLOOKUP(V$3,Prisindeks!$A$1:$B$111,2,FALSE)/100*AS85 -> 0 | BQ85: =VLOOKUP(W$3,Prisindeks!$A$1:$B$111,2,FALSE)/100*AT85 -> 0 | BR85: =VLOOKUP(X$3,Prisindeks!$A$1:$B$111,2,FALSE)/100*AU85 -> 0 | BS85: =VLOOKUP(Y$3,Prisindeks!$A$1:$B$111,2,FALSE)/100*AV85 -> 0 | BT85: =+SUM(AX85:BS85) -> 0 | BU85: =(AA85+AX85)/2 -> 0 | BV85: 0 | BW85: 0 | BX85: 0 | BY85: 0 | BZ85: 0 | CA85: 0 | CB85: 0 | CC85: 0 | CD85: 0 | CE85: =(AK85+BH85)/2 -> 0 | CF85: 0 | CG85: 0 | CH85: 0 | CI85: 0 | CJ85: 0 | CK85: 0 | CL85: 0 | CM85: 0 | CN85: 0 | CO85: =(AU85+BR85)/2 -> 0 | CP85: =(AV85+BS85)/2 -> 0 | CQ85: =+AVERAGE(AW85,BT85) -> 0 | CR85: =SUM(D85:Y85) -> 0
A86: Beluftningsanlæg, ika-beluftning, Konstruktioner | B86: m³/h | C86: =Genanskaffelsespriser!$E$32 -> 50 | D86: 0 | E86: 0 | F86: 0 | G86: 0 | H86: 0 | I86: 0 | J86: 0 | K86: 0 | L86: 0 | M86: 0 | N86: 0 | O86: 0 | P86: 0 | Q86: 0 | R86: 0 | S86: 0 | T86: 0 | U86: 0 | V86: 0 | W86: 0 | X86: 0 | Y86: 0 | Z86: =IF(COUNTIF(D86:Y86,"<>0")<=1,IF((SUM(D86:Y86))>0,(+HLOOKUP((SUM(D86:Y86)),Priser!$E$96:$J$108,4)+((SUM(D86:Y86))-HLOOKUP((SUM(D86:Y86)),Priser!$E$96:$J$108,1))*HLOOKUP((SUM(D86:Y86)),Priser!$E$96:$J$108,5))/(SUM(D86:Y86)),0)*Priser!$Q$99*(1+Genanskaffelsespriser!$D$196),$A$1359) -> 0 | AA86: =IF((D86*$Z86-(2009-D$3)/($C86+D87)*$Z86*D86)<0,0,(D86*$Z86-(2009-D$3)/($C86+D87)*$Z86*D86)) -> 0 | AB86: 0 | AC86: 0 | AD86: 0 | AE86: 0 | AF86: 0 | AG86: 0 | AH86: 0 | AI86: 0 | AJ86: 0 | AK86: 0 | AL86: 0 | AM86: 0 | AN86: 0 | AO86: 0 | AP86: 0 | AQ86: 0 | AR86: 0 | AS86: 0 | AT86: 0 | AU86: 0 | AV86: 0 | AW86: =+SUM(AA86:AV86) -> 0 | AX86: =VLOOKUP(D$3,Prisindeks!$A$1:$B$111,2,FALSE)/100*AA86 -> 0 | AY86: =VLOOKUP(E$3,Prisindeks!$A$1:$B$111,2,FALSE)/100*AB86 -> 0 | AZ86: =VLOOKUP(F$3,Prisindeks!$A$1:$B$111,2,FALSE)/100*AC86 -> 0 | BA86: =VLOOKUP(G$3,Prisindeks!$A$1:$B$111,2,FALSE)/100*AD86 -> 0 | BB86: =VLOOKUP(H$3,Prisindeks!$A$1:$B$111,2,FALSE)/100*AE86 -> 0 | BC86: =VLOOKUP(I$3,Prisindeks!$A$1:$B$111,2,FALSE)/100*AF86 -> 0 | BD86: =VLOOKUP(J$3,Prisindeks!$A$1:$B$111,2,FALSE)/100*AG86 -> 0 | BE86: =VLOOKUP(K$3,Prisindeks!$A$1:$B$111,2,FALSE)/100*AH86 -> 0 | BF86: =VLOOKUP(L$3,Prisindeks!$A$1:$B$111,2,FALSE)/100*AI86 -> 0 | BG86: =VLOOKUP(M$3,Prisindeks!$A$1:$B$111,2,FALSE)/100*AJ86 -> 0 | BH86: =VLOOKUP(N$3,Prisindeks!$A$1:$B$111,2,FALSE)/100*AK86 -> 0 | BI86: =VLOOKUP(O$3,Prisindeks!$A$1:$B$111,2,FALSE)/100*AL86 -> 0 | BJ86: =VLOOKUP(P$3,Prisindeks!$A$1:$B$111,2,FALSE)/100*AM86 -> 0 | BK86: =VLOOKUP(Q$3,Prisindeks!$A$1:$B$111,2,FALSE)/100*AN86 -> 0 | BL86: =VLOOKUP(R$3,Prisindeks!$A$1:$B$111,2,FALSE)/100*AO86 -> 0 | BM86: =VLOOKUP(S$3,Prisindeks!$A$1:$B$111,2,FALSE)/100*AP86 -> 0 | BN86: =VLOOKUP(T$3,Prisindeks!$A$1:$B$111,2,FALSE)/100*AQ86 -> 0 | BO86: =VLOOKUP(U$3,Prisindeks!$A$1:$B$111,2,FALSE)/100*AR86 -> 0 | BP86: =VLOOKUP(V$3,Prisindeks!$A$1:$B$111,2,FALSE)/100*AS86 -> 0 | BQ86: =VLOOKUP(W$3,Prisindeks!$A$1:$B$111,2,FALSE)/100*AT86 -> 0 | BR86: =VLOOKUP(X$3,Prisindeks!$A$1:$B$111,2,FALSE)/100*AU86 -> 0 | BS86: =VLOOKUP(Y$3,Prisindeks!$A$1:$B$111,2,FALSE)/100*AV86 -> 0 | BT86: =+SUM(AX86:BS86) -> 0 | BU86: 0 | BV86: 0 | BW86: 0 | BX86: 0 | BY86: 0 | BZ86: 0 | CA86: 0 | CB86: 0 | CC86: 0 | CD86: 0 | CE86: 0 | CF86: 0 | CG86: 0 | CH86: 0 | CI86: 0 | CJ86: 0 | CK86: 0 | CL86: 0 | CM86: 0 | CN86: 0 | CO86: =(AU86+BR86)/2 -> 0 | CP86: =(AV86+BS86)/2 -> 0 | CQ86: =+AVERAGE(AW86,BT86) -> 0 | CR86: =SUM(D86:Y86) -> 0
A87: Levetidsforlængelse | B87: år | C87: - | D87: 0 | E87: 0 | F87: 0 | G87: 0 | H87: 0 | I87: 0 | J87: 0 | K87: 0 | L87: 0 | M87: 0 | N87: 0 | O87: 0 | P87: 0 | Q87: 0 | R87: 0 | S87: 0 | T87: 0 | U87: 0 | V87: 0 | W87: 0 | X87: 0 | Y87: 0
A88: Beluftningsanlæg, ika-beluftning, Mek./EL | B88: m³/h | C88: =Genanskaffelsespriser!$E$33 -> 25 | D88: 0 | E88: 0 | F88: 0 | G88: 0 | H88: 0 | I88: 0 | J88: 0 | K88: 0 | L88: 0 | M88: 0 | N88: 0 | O88: 0 | P88: 0 | Q88: 0 | R88: 0 | S88: 0 | T88: 0 | U88: 0 | V88: 0 | W88: 0 | X88: 0 | Y88: 0 | Z88: =IF(COUNTIF(D88:Y88,"<>0")<=1,IF((SUM(D88:Y88))>0,(+HLOOKUP((SUM(D88:Y88)),Priser!$E$96:$J$108,4)+((SUM(D88:Y88))-HLOOKUP((SUM(D88:Y88)),Priser!$E$96:$J$108,1))*HLOOKUP((SUM(D88:Y88)),Priser!$E$96:$J$108,5))/(SUM(D88:Y88)),0)*Priser!$R$99*(1+Genanskaffelsespriser!$D$196),$A$1359) -> 0 | AA88: =IF((D88*$Z88-(2009-D$3)/$C88*$Z88*D88)<0,0,(D88*$Z88-(2009-D$3)/$C88*$Z88*D88)) -> 0 | AB88: 0 | AC88: 0 | AD88: 0 | AE88: 0 | AF88: 0 | AG88: 0 | AH88: 0 | AI88: 0 | AJ88: 0 | AK88: 0 | AL88: 0 | AM88: 0 | AN88: 0 | AO88: 0 | AP88: 0 | AQ88: 0 | AR88: 0 | AS88: 0 | AT88: 0 | AU88: 0 | AV88: 0 | AW88: =+SUM(AA88:AV88) -> 0 | AX88: =VLOOKUP(D$3,Prisindeks!$A$1:$B$111,2,FALSE)/100*AA88 -> 0 | AY88: =VLOOKUP(E$3,Prisindeks!$A$1:$B$111,2,FALSE)/100*AB88 -> 0 | AZ88: =VLOOKUP(F$3,Prisindeks!$A$1:$B$111,2,FALSE)/100*AC88 -> 0 | BA88: =VLOOKUP(G$3,Prisindeks!$A$1:$B$111,2,FALSE)/100*AD88 -> 0 | BB88: =VLOOKUP(H$3,Prisindeks!$A$1:$B$111,2,FALSE)/100*AE88 -> 0 | BC88: =VLOOKUP(I$3,Prisindeks!$A$1:$B$111,2,FALSE)/100*AF88 -> 0 | BD88: =VLOOKUP(J$3,Prisindeks!$A$1:$B$111,2,FALSE)/100*AG88 -> 0 | BE88: =VLOOKUP(K$3,Prisindeks!$A$1:$B$111,2,FALSE)/100*AH88 -> 0 | BF88: =VLOOKUP(L$3,Prisindeks!$A$1:$B$111,2,FALSE)/100*AI88 -> 0 | BG88: =VLOOKUP(M$3,Prisindeks!$A$1:$B$111,2,FALSE)/100*AJ88 -> 0 | BH88: =VLOOKUP(N$3,Prisindeks!$A$1:$B$111,2,FALSE)/100*AK88 -> 0 | BI88: =VLOOKUP(O$3,Prisindeks!$A$1:$B$111,2,FALSE)/100*AL88 -> 0 | BJ88: =VLOOKUP(P$3,Prisindeks!$A$1:$B$111,2,FALSE)/100*AM88 -> 0 | BK88: =VLOOKUP(Q$3,Prisindeks!$A$1:$B$111,2,FALSE)/100*AN88 -> 0 | BL88: =VLOOKUP(R$3,Prisindeks!$A$1:$B$111,2,FALSE)/100*AO88 -> 0 | BM88: =VLOOKUP(S$3,Prisindeks!$A$1:$B$111,2,FALSE)/100*AP88 -> 0 | BN88: =VLOOKUP(T$3,Prisindeks!$A$1:$B$111,2,FALSE)/100*AQ88 -> 0 | BO88: =VLOOKUP(U$3,Prisindeks!$A$1:$B$111,2,FALSE)/100*AR88 -> 0 | BP88: =VLOOKUP(V$3,Prisindeks!$A$1:$B$111,2,FALSE)/100*AS88 -> 0 | BQ88: =VLOOKUP(W$3,Prisindeks!$A$1:$B$111,2,FALSE)/100*AT88 -> 0 | BR88: =VLOOKUP(X$3,Prisindeks!$A$1:$B$111,2,FALSE)/100*AU88 -> 0 | BS88: =VLOOKUP(Y$3,Prisindeks!$A$1:$B$111,2,FALSE)/100*AV88 -> 0 | BT88: =+SUM(AX88:BS88) -> 0 | BU88: =(AA88+AX88)/2 -> 0 | BV88: 0 | BW88: 0 | BX88: 0 | BY88: 0 | BZ88: 0 | CA88: 0 | CB88: 0 | CC88: 0 | CD88: 0 | CE88: =(AK88+BH88)/2 -> 0 | CF88: 0 | CG88: 0 | CH88: 0 | CI88: 0 | CJ88: 0 | CK88: 0 | CL88: 0 | CM88: 0 | CN88: 0 | CO88: =(AU88+BR88)/2 -> 0 | CP88: =(AV88+BS88)/2 -> 0 | CQ88: =+AVERAGE(AW88,BT88) -> 0 | CR88: =SUM(D88:Y88) -> 0
A89: Beluftningsanlæg, bundbeluftbning, Konstruktioner | B89: m³/h | C89: =Genanskaffelsespriser!$E$34 -> 50 | D89: 0 | E89: 0 | F89: 0 | G89: 0 | H89: 0 | I89: 0 | J89: 0 | K89: 0 | L89: 0 | M89: 0 | N89: 0 | O89: 0 | P89: 0 | Q89: 0 | R89: 0 | S89: 0 | T89: 0 | U89: 0 | V89: 0 | W89: 0 | X89: 0 | Y89: 0 | Z89: =IF(COUNTIF(D89:Y89,"<>0")<=1,IF((SUM(D89:Y89))>0,(+HLOOKUP((SUM(D89:Y89)),Priser!$E$96:$J$108,8)+((SUM(D89:Y89))-HLOOKUP((SUM(D89:Y89)),Priser!$E$96:$J$108,1))*HLOOKUP((SUM(D89:Y89)),Priser!$E$96:$J$108,9))/(SUM(D89:Y89)),0)*Priser!$Q$103*(1+Genanskaffelsespriser!$D$196),$A$1359) -> 0 | AA89: =IF((D89*$Z89-(2009-D$3)/($C89+D90)*$Z89*D89)<0,0,(D89*$Z89-(2009-D$3)/($C89+D90)*$Z89*D89)) -> 0 | AB89: 0 | AC89: 0 | AD89: 0 | AE89: 0 | AF89: 0 | AG89: 0 | AH89: 0 | AI89: 0 | AJ89: 0 | AK89: 0 | AL89: 0 | AM89: 0 | AN89: 0 | AO89: 0 | AP89: 0 | AQ89: 0 | AR89: 0 | AS89: 0 | AT89: 0 | AU89: 0 | AV89: 0 | AW89: =+SUM(AA89:AV89) -> 0 | AX89: =VLOOKUP(D$3,Prisindeks!$A$1:$B$111,2,FALSE)/100*AA89 -> 0 | AY89: =VLOOKUP(E$3,Prisindeks!$A$1:$B$111,2,FALSE)/100*AB89 -> 0 | AZ89: =VLOOKUP(F$3,Prisindeks!$A$1:$B$111,2,FALSE)/100*AC89 -> 0 | BA89: =VLOOKUP(G$3,Prisindeks!$A$1:$B$111,2,FALSE)/100*AD89 -> 0 | BB89: =VLOOKUP(H$3,Prisindeks!$A$1:$B$111,2,FALSE)/100*AE89 -> 0 | BC89: =VLOOKUP(I$3,Prisindeks!$A$1:$B$111,2,FALSE)/100*AF89 -> 0 | BD89: =VLOOKUP(J$3,Prisindeks!$A$1:$B$111,2,FALSE)/100*AG89 -> 0 | BE89: =VLOOKUP(K$3,Prisindeks!$A$1:$B$111,2,FALSE)/100*AH89 -> 0 | BF89: =VLOOKUP(L$3,Prisindeks!$A$1:$B$111,2,FALSE)/100*AI89 -> 0 | BG89: =VLOOKUP(M$3,Prisindeks!$A$1:$B$111,2,FALSE)/100*AJ89 -> 0 | BH89: =VLOOKUP(N$3,Prisindeks!$A$1:$B$111,2,FALSE)/100*AK89 -> 0 | BI89: =VLOOKUP(O$3,Prisindeks!$A$1:$B$111,2,FALSE)/100*AL89 -> 0 | BJ89: =VLOOKUP(P$3,Prisindeks!$A$1:$B$111,2,FALSE)/100*AM89 -> 0 | BK89: =VLOOKUP(Q$3,Prisindeks!$A$1:$B$111,2,FALSE)/100*AN89 -> 0 | BL89: =VLOOKUP(R$3,Prisindeks!$A$1:$B$111,2,FALSE)/100*AO89 -> 0 | BM89: =VLOOKUP(S$3,Prisindeks!$A$1:$B$111,2,FALSE)/100*AP89 -> 0 | BN89: =VLOOKUP(T$3,Prisindeks!$A$1:$B$111,2,FALSE)/100*AQ89 -> 0 | BO89: =VLOOKUP(U$3,Prisindeks!$A$1:$B$111,2,FALSE)/100*AR89 -> 0 | BP89: =VLOOKUP(V$3,Prisindeks!$A$1:$B$111,2,FALSE)/100*AS89 -> 0 | BQ89: =VLOOKUP(W$3,Prisindeks!$A$1:$B$111,2,FALSE)/100*AT89 -> 0 | BR89: =VLOOKUP(X$3,Prisindeks!$A$1:$B$111,2,FALSE)/100*AU89 -> 0 | BS89: =VLOOKUP(Y$3,Prisindeks!$A$1:$B$111,2,FALSE)/100*AV89 -> 0 | BT89: =+SUM(AX89:BS89) -> 0 | BU89: 0 | BV89: 0 | BW89: 0 | BX89: 0 | BY89: 0 | BZ89: 0 | CA89: 0 | CB89: 0 | CC89: 0 | CD89: 0 | CE89: 0 | CF89: 0 | CG89: 0 | CH89: 0 | CI89: 0 | CJ89: 0 | CK89: 0 | CL89: 0 | CM89: 0 | CN89: 0 | CO89: =(AU89+BR89)/2 -> 0 | CP89: =(AV89+BS89)/2 -> 0 | CQ89: =+AVERAGE(AW89,BT89) -> 0 | CR89: =SUM(D89:Y89) -> 0
A90: Levetidsforlængelse | B90: år | C90: - | D90: 0 | E90: 0 | F90: 0 | G90: 0 | H90: 0 | I90: 0 | J90: 0 | K90: 0 | L90: 0 | M90: 0 | N90: 0 | O90: 0 | P90: 0 | Q90: 0 | R90: 0 | S90: 0 | T90: 0 | U90: 0 | V90: 0 | W90: 0 | X90: 0 | Y90: 0
A91: Beluftningsanlæg, bundbeluftbning, Mek./EL | B91: m³/h | C91: =Genanskaffelsespriser!$E$35 -> 25 | D91: 0 | E91: 0 | F91: 0 | G91: 0 | H91: 0 | I91: 0 | J91: 0 | K91: 0 | L91: 0 | M91: 0 | N91: 0 | O91: 0 | P91: 0 | Q91: 0 | R91: 0 | S91: 0 | T91: 0 | U91: 0 | V91: 0 | W91: 0 | X91: 0 | Y91: 0 | Z91: =IF(COUNTIF(D91:Y91,"<>0")<=1,IF((SUM(D91:Y91))>0,(+HLOOKUP((SUM(D91:Y91)),Priser!$E$96:$J$108,8)+((SUM(D91:Y91))-HLOOKUP((SUM(D91:Y91)),Priser!$E$96:$J$108,1))*HLOOKUP((SUM(D91:Y91)),Priser!$E$96:$J$108,9))/(SUM(D91:Y91)),0)*Priser!$R$103*(1+Genanskaffelsespriser!$D$196),$A$1359) -> 0 | AA91: =IF((D91*$Z91-(2009-D$3)/$C91*$Z91*D91)<0,0,(D91*$Z91-(2009-D$3)/$C91*$Z91*D91)) -> 0 | AB91: 0 | AC91: 0 | AD91: 0 | AE91: 0 | AF91: 0 | AG91: 0 | AH91: 0 | AI91: 0 | AJ91: 0 | AK91: 0 | AL91: 0 | AM91: 0 | AN91: 0 | AO91: 0 | AP91: 0 | AQ91: 0 | AR91: 0 | AS91: 0 | AT91: 0 | AU91: 0 | AV91: 0 | AW91: =+SUM(AA91:AV91) -> 0 | AX91: =VLOOKUP(D$3,Prisindeks!$A$1:$B$111,2,FALSE)/100*AA91 -> 0 | AY91: =VLOOKUP(E$3,Prisindeks!$A$1:$B$111,2,FALSE)/100*AB91 -> 0 | AZ91: =VLOOKUP(F$3,Prisindeks!$A$1:$B$111,2,FALSE)/100*AC91 -> 0 | BA91: =VLOOKUP(G$3,Prisindeks!$A$1:$B$111,2,FALSE)/100*AD91 -> 0 | BB91: =VLOOKUP(H$3,Prisindeks!$A$1:$B$111,2,FALSE)/100*AE91 -> 0 | BC91: =VLOOKUP(I$3,Prisindeks!$A$1:$B$111,2,FALSE)/100*AF91 -> 0 | BD91: =VLOOKUP(J$3,Prisindeks!$A$1:$B$111,2,FALSE)/100*AG91 -> 0 | BE91: =VLOOKUP(K$3,Prisindeks!$A$1:$B$111,2,FALSE)/100*AH91 -> 0 | BF91: =VLOOKUP(L$3,Prisindeks!$A$1:$B$111,2,FALSE)/100*AI91 -> 0 | BG91: =VLOOKUP(M$3,Prisindeks!$A$1:$B$111,2,FALSE)/100*AJ91 -> 0 | BH91: =VLOOKUP(N$3,Prisindeks!$A$1:$B$111,2,FALSE)/100*AK91 -> 0 | BI91: =VLOOKUP(O$3,Prisindeks!$A$1:$B$111,2,FALSE)/100*AL91 -> 0 | BJ91: =VLOOKUP(P$3,Prisindeks!$A$1:$B$111,2,FALSE)/100*AM91 -> 0 | BK91: =VLOOKUP(Q$3,Prisindeks!$A$1:$B$111,2,FALSE)/100*AN91 -> 0 | BL91: =VLOOKUP(R$3,Prisindeks!$A$1:$B$111,2,FALSE)/100*AO91 -> 0 | BM91: =VLOOKUP(S$3,Prisindeks!$A$1:$B$111,2,FALSE)/100*AP91 -> 0 | BN91: =VLOOKUP(T$3,Prisindeks!$A$1:$B$111,2,FALSE)/100*AQ91 -> 0 | BO91: =VLOOKUP(U$3,Prisindeks!$A$1:$B$111,2,FALSE)/100*AR91 -> 0 | BP91: =VLOOKUP(V$3,Prisindeks!$A$1:$B$111,2,FALSE)/100*AS91 -> 0 | BQ91: =VLOOKUP(W$3,Prisindeks!$A$1:$B$111,2,FALSE)/100*AT91 -> 0 | BR91: =VLOOKUP(X$3,Prisindeks!$A$1:$B$111,2,FALSE)/100*AU91 -> 0 | BS91: =VLOOKUP(Y$3,Prisindeks!$A$1:$B$111,2,FALSE)/100*AV91 -> 0 | BT91: =+SUM(AX91:BS91) -> 0 | BU91: =(AA91+AX91)/2 -> 0 | BV91: 0 | BW91: 0 | BX91: 0 | BY91: 0 | BZ91: 0 | CA91: 0 | CB91: 0 | CC91: 0 | CD91: 0 | CE91: =(AK91+BH91)/2 -> 0 | CF91: 0 | CG91: 0 | CH91: 0 | CI91: 0 | CJ91: 0 | CK91: 0 | CL91: 0 | CM91: 0 | CN91: 0 | CO91: =(AU91+BR91)/2 -> 0 | CP91: =(AV91+BS91)/2 -> 0 | CQ91: =+AVERAGE(AW91,BT91) -> 0 | CR91: =SUM(D91:Y91) -> 0
A92: Beluftningsanlæg, rislebakke, Konstruktioner | B92: m³/h | C92: =Genanskaffelsespriser!$E$36 -> 50 | D92: 0 | E92: 0 | F92: 0 | G92: 0 | H92: 0 | I92: 0 | J92: 0 | K92: 0 | L92: 0 | M92: 0 | N92: 0 | O92: 0 | P92: 0 | Q92: 0 | R92: 0 | S92: 0 | T92: 0 | U92: 0 | V92: 0 | W92: 0 | X92: 0 | Y92: 0 | Z92: =IF(COUNTIF(D92:Y92,"<>0")<=1,IF((SUM(D92:Y92))>0,(+HLOOKUP((SUM(D92:Y92)),Priser!$E$96:$J$108,6)+((SUM(D92:Y92))-HLOOKUP((SUM(D92:Y92)),Priser!$E$96:$J$108,1))*HLOOKUP((SUM(D92:Y92)),Priser!$E$96:$J$108,7))/(SUM(D92:Y92)),0)*Priser!$Q$103*(1+Genanskaffelsespriser!$D$196),$A$1359) -> 0 | AA92: =IF((D92*$Z92-(2009-D$3)/($C92+D93)*$Z92*D92)<0,0,(D92*$Z92-(2009-D$3)/($C92+D93)*$Z92*D92)) -> 0 | AB92: 0 | AC92: 0 | AD92: 0 | AE92: 0 | AF92: 0 | AG92: 0 | AH92: 0 | AI92: 0 | AJ92: 0 | AK92: 0 | AL92: 0 | AM92: 0 | AN92: 0 | AO92: 0 | AP92: 0 | AQ92: 0 | AR92: 0 | AS92: 0 | AT92: 0 | AU92: 0 | AV92: 0 | AW92: =+SUM(AA92:AV92) -> 0 | AX92: =VLOOKUP(D$3,Prisindeks!$A$1:$B$111,2,FALSE)/100*AA92 -> 0 | AY92: =VLOOKUP(E$3,Prisindeks!$A$1:$B$111,2,FALSE)/100*AB92 -> 0 | AZ92: =VLOOKUP(F$3,Prisindeks!$A$1:$B$111,2,FALSE)/100*AC92 -> 0 | BA92: =VLOOKUP(G$3,Prisindeks!$A$1:$B$111,2,FALSE)/100*AD92 -> 0 | BB92: =VLOOKUP(H$3,Prisindeks!$A$1:$B$111,2,FALSE)/100*AE92 -> 0 | BC92: =VLOOKUP(I$3,Prisindeks!$A$1:$B$111,2,FALSE)/100*AF92 -> 0 | BD92: =VLOOKUP(J$3,Prisindeks!$A$1:$B$111,2,FALSE)/100*AG92 -> 0 | BE92: =VLOOKUP(K$3,Prisindeks!$A$1:$B$111,2,FALSE)/100*AH92 -> 0 | BF92: =VLOOKUP(L$3,Prisindeks!$A$1:$B$111,2,FALSE)/100*AI92 -> 0 | BG92: =VLOOKUP(M$3,Prisindeks!$A$1:$B$111,2,FALSE)/100*AJ92 -> 0 | BH92: =VLOOKUP(N$3,Prisindeks!$A$1:$B$111,2,FALSE)/100*AK92 -> 0 | BI92: =VLOOKUP(O$3,Prisindeks!$A$1:$B$111,2,FALSE)/100*AL92 -> 0 | BJ92: =VLOOKUP(P$3,Prisindeks!$A$1:$B$111,2,FALSE)/100*AM92 -> 0 | BK92: =VLOOKUP(Q$3,Prisindeks!$A$1:$B$111,2,FALSE)/100*AN92 -> 0 | BL92: =VLOOKUP(R$3,Prisindeks!$A$1:$B$111,2,FALSE)/100*AO92 -> 0 | BM92: =VLOOKUP(S$3,Prisindeks!$A$1:$B$111,2,FALSE)/100*AP92 -> 0 | BN92: =VLOOKUP(T$3,Prisindeks!$A$1:$B$111,2,FALSE)/100*AQ92 -> 0 | BO92: =VLOOKUP(U$3,Prisindeks!$A$1:$B$111,2,FALSE)/100*AR92 -> 0 | BP92: =VLOOKUP(V$3,Prisindeks!$A$1:$B$111,2,FALSE)/100*AS92 -> 0 | BQ92: =VLOOKUP(W$3,Prisindeks!$A$1:$B$111,2,FALSE)/100*AT92 -> 0 | BR92: =VLOOKUP(X$3,Prisindeks!$A$1:$B$111,2,FALSE)/100*AU92 -> 0 | BS92: =VLOOKUP(Y$3,Prisindeks!$A$1:$B$111,2,FALSE)/100*AV92 -> 0 | BT92: =+SUM(AX92:BS92) -> 0 | BU92: 0 | BV92: 0 | BW92: 0 | BX92: 0 | BY92: 0 | BZ92: 0 | CA92: 0 | CB92: 0 | CC92: 0 | CD92: 0 | CE92: 0 | CF92: 0 | CG92: 0 | CH92: 0 | CI92: 0 | CJ92: 0 | CK92: 0 | CL92: 0 | CM92: 0 | CN92: 0 | CO92: =(AU92+BR92)/2 -> 0 | CP92: =(AV92+BS92)/2 -> 0 | CQ92: =+AVERAGE(AW92,BT92) -> 0 | CR92: =SUM(D92:Y92) -> 0
A93: Levetidsforlængelse | B93: år | C93: - | D93: 0 | E93: 0 | F93: 0 | G93: 0 | H93: 0 | I93: 0 | J93: 0 | K93: 0 | L93: 0 | M93: 0 | N93: 0 | O93: 0 | P93: 0 | Q93: 0 | R93: 0 | S93: 0 | T93: 0 | U93: 0 | V93: 0 | W93: 0 | X93: 0 | Y93: 0
A94: Beluftningsanlæg, rislebakke, Mek./EL | B94: m³/h | C94: =Genanskaffelsespriser!$E$37 -> 25 | D94: 0 | E94: 0 | F94: 0 | G94: 0 | H94: 0 | I94: 0 | J94: 0 | K94: 0 | L94: 0 | M94: 0 | N94: 0 | O94: 0 | P94: 0 | Q94: 0 | R94: 0 | S94: 0 | T94: 0 | U94: 0 | V94: 0 | W94: 0 | X94: 0 | Y94: 0 | Z94: =IF(COUNTIF(D94:Y94,"<>0")<=1,IF((SUM(D94:Y94))>0,(+HLOOKUP((SUM(D94:Y94)),Priser!$E$96:$J$108,6)+((SUM(D94:Y94))-HLOOKUP((SUM(D94:Y94)),Priser!$E$96:$J$108,1))*HLOOKUP((SUM(D94:Y94)),Priser!$E$96:$J$108,7))/(SUM(D94:Y94)),0)*Priser!$R$103*(1+Genanskaffelsespriser!$D$196),$A$1359) -> 0 | AA94: =IF((D94*$Z94-(2009-D$3)/$C94*$Z94*D94)<0,0,(D94*$Z94-(2009-D$3)/$C94*$Z94*D94)) -> 0 | AB94: 0 | AC94: 0 | AD94: 0 | AE94: 0 | AF94: 0 | AG94: 0 | AH94: 0 | AI94: 0 | AJ94: 0 | AK94: =IF((N94*$Z94-(2009-N$3)/$C94*$Z94*N94)<0,0,(N94*$Z94-(2009-N$3)/$C94*$Z94*N94)) -> 0 | AL94: 0 | AM94: 0 | AN94: 0 | AO94: 0 | AP94: 0 | AQ94: 0 | AR94: 0 | AS94: 0 | AT94: 0 | AU94: =IF((X94*$Z94-(2009-X$3)/$C94*$Z94*X94)<0,0,(X94*$Z94-(2009-X$3)/$C94*$Z94*X94)) -> 0 | AV94: 0 | AW94: =+SUM(AA94:AV94) -> 0 | AX94: =VLOOKUP(D$3,Prisindeks!$A$1:$B$111,2,FALSE)/100*AA94 -> 0 | AY94: =VLOOKUP(E$3,Prisindeks!$A$1:$B$111,2,FALSE)/100*AB94 -> 0 | AZ94: =VLOOKUP(F$3,Prisindeks!$A$1:$B$111,2,FALSE)/100*AC94 -> 0 | BA94: =VLOOKUP(G$3,Prisindeks!$A$1:$B$111,2,FALSE)/100*AD94 -> 0 | BB94: =VLOOKUP(H$3,Prisindeks!$A$1:$B$111,2,FALSE)/100*AE94 -> 0 | BC94: =VLOOKUP(I$3,Prisindeks!$A$1:$B$111,2,FALSE)/100*AF94 -> 0 | BD94: =VLOOKUP(J$3,Prisindeks!$A$1:$B$111,2,FALSE)/100*AG94 -> 0 | BE94: =VLOOKUP(K$3,Prisindeks!$A$1:$B$111,2,FALSE)/100*AH94 -> 0 | BF94: =VLOOKUP(L$3,Prisindeks!$A$1:$B$111,2,FALSE)/100*AI94 -> 0 | BG94: =VLOOKUP(M$3,Prisindeks!$A$1:$B$111,2,FALSE)/100*AJ94 -> 0 | BH94: =VLOOKUP(N$3,Prisindeks!$A$1:$B$111,2,FALSE)/100*AK94 -> 0 | BI94: =VLOOKUP(O$3,Prisindeks!$A$1:$B$111,2,FALSE)/100*AL94 -> 0 | BJ94: =VLOOKUP(P$3,Prisindeks!$A$1:$B$111,2,FALSE)/100*AM94 -> 0 | BK94: =VLOOKUP(Q$3,Prisindeks!$A$1:$B$111,2,FALSE)/100*AN94 -> 0 | BL94: =VLOOKUP(R$3,Prisindeks!$A$1:$B$111,2,FALSE)/100*AO94 -> 0 | BM94: =VLOOKUP(S$3,Prisindeks!$A$1:$B$111,2,FALSE)/100*AP94 -> 0 | BN94: =VLOOKUP(T$3,Prisindeks!$A$1:$B$111,2,FALSE)/100*AQ94 -> 0 | BO94: =VLOOKUP(U$3,Prisindeks!$A$1:$B$111,2,FALSE)/100*AR94 -> 0 | BP94: =VLOOKUP(V$3,Prisindeks!$A$1:$B$111,2,FALSE)/100*AS94 -> 0 | BQ94: =VLOOKUP(W$3,Prisindeks!$A$1:$B$111,2,FALSE)/100*AT94 -> 0 | BR94: =VLOOKUP(X$3,Prisindeks!$A$1:$B$111,2,FALSE)/100*AU94 -> 0 | BS94: =VLOOKUP(Y$3,Prisindeks!$A$1:$B$111,2,FALSE)/100*AV94 -> 0 | BT94: =+SUM(AX94:BS94) -> 0 | BU94: =(AA94+AX94)/2 -> 0 | BV94: 0 | BW94: 0 | BX94: 0 | BY94: 0 | BZ94: 0 | CA94: 0 | CB94: 0 | CC94: 0 | CD94: 0 | CE94: =(AK94+BH94)/2 -> 0 | CF94: 0 | CG94: 0 | CH94: 0 | CI94: 0 | CJ94: 0 | CK94: 0 | CL94: 0 | CM94: 0 | CN94: 0 | CO94: =(AU94+BR94)/2 -> 0 | CP94: 0 | CQ94: =+AVERAGE(AW94,BT94) -> 0 | CR94: =SUM(D94:Y94) -> 0
A95: Beluftningsanlæg, kompressorbeluftning | B95: m³/h | C95: =Genanskaffelsespriser!$E$38 -> 25 | D95: 0 | E95: 0 | F95: 0 | G95: 0 | H95: 0 | I95: 0 | J95: 0 | K95: 100 | L95: 0 | M95: 0 | N95: 0 | O95: 0 | P95: 0 | Q95: 0 | R95: 0 | S95: 0 | T95: 0 | U95: 0 | V95: 0 | W95: 0 | X95: 0 | Y95: 0 | Z95: =IF(COUNTIF(D95:Y95,"<>0")<=1,IF((SUM(D95:Y95))>0,(+HLOOKUP((SUM(D95:Y95)),Priser!$E$96:$J$108,10)+((SUM(D95:Y95))-HLOOKUP((SUM(D95:Y95)),Priser!$E$96:$J$108,1))*HLOOKUP((SUM(D95:Y95)),Priser!$E$96:$J$108,11))/(SUM(D95:Y95)),0)*(1+Genanskaffelsespriser!$D$196),$A$1359) -> 911.0643142 | AA95: 0 | AB95: 0 | AC95: 0 | AD95: 0 | AE95: 0 | AF95: 0 | AG95: 0 | AH95: 0 | AI95: 0 | AJ95: 0 | AK95: 0 | AL95: 0 | AM95: 0 | AN95: 0 | AO95: 0 | AP95: 0 | AQ95: 0 | AR95: 0 | AS95: 0 | AT95: 0 | AU95: 0 | AV95: 0 | AW95: 0 | AX95: =VLOOKUP(D$3,Prisindeks!$A$1:$B$111,2,FALSE)/100*AA95 -> 0 | AY95: =VLOOKUP(E$3,Prisindeks!$A$1:$B$111,2,FALSE)/100*AB95 -> 0 | AZ95: =VLOOKUP(F$3,Prisindeks!$A$1:$B$111,2,FALSE)/100*AC95 -> 0 | BA95: =VLOOKUP(G$3,Prisindeks!$A$1:$B$111,2,FALSE)/100*AD95 -> 0 | BB95: =VLOOKUP(H$3,Prisindeks!$A$1:$B$111,2,FALSE)/100*AE95 -> 0 | BC95: =VLOOKUP(I$3,Prisindeks!$A$1:$B$111,2,FALSE)/100*AF95 -> 0 | BD95: =VLOOKUP(J$3,Prisindeks!$A$1:$B$111,2,FALSE)/100*AG95 -> 0 | BE95: =VLOOKUP(K$3,Prisindeks!$A$1:$B$111,2,FALSE)/100*AH95 -> 0 | BF95: =VLOOKUP(L$3,Prisindeks!$A$1:$B$111,2,FALSE)/100*AI95 -> 0 | BG95: =VLOOKUP(M$3,Prisindeks!$A$1:$B$111,2,FALSE)/100*AJ95 -> 0 | BH95: =VLOOKUP(N$3,Prisindeks!$A$1:$B$111,2,FALSE)/100*AK95 -> 0 | BI95: =VLOOKUP(O$3,Prisindeks!$A$1:$B$111,2,FALSE)/100*AL95 -> 0 | BJ95: =VLOOKUP(P$3,Prisindeks!$A$1:$B$111,2,FALSE)/100*AM95 -> 0 | BK95: =VLOOKUP(Q$3,Prisindeks!$A$1:$B$111,2,FALSE)/100*AN95 -> 0 | BL95: =VLOOKUP(R$3,Prisindeks!$A$1:$B$111,2,FALSE)/100*AO95 -> 0 | BM95: =VLOOKUP(S$3,Prisindeks!$A$1:$B$111,2,FALSE)/100*AP95 -> 0 | BN95: =VLOOKUP(T$3,Prisindeks!$A$1:$B$111,2,FALSE)/100*AQ95 -> 0 | BO95: =VLOOKUP(U$3,Prisindeks!$A$1:$B$111,2,FALSE)/100*AR95 -> 0 | BP95: =VLOOKUP(V$3,Prisindeks!$A$1:$B$111,2,FALSE)/100*AS95 -> 0 | BQ95: =VLOOKUP(W$3,Prisindeks!$A$1:$B$111,2,FALSE)/100*AT95 -> 0 | BR95: =VLOOKUP(X$3,Prisindeks!$A$1:$B$111,2,FALSE)/100*AU95 -> 0 | BS95: =VLOOKUP(Y$3,Prisindeks!$A$1:$B$111,2,FALSE)/100*AV95 -> 0 | BT95: 0 | BU95: 0 | BV95: 0 | BW95: 0 | BX95: 0 | BY95: 0 | BZ95: 0 | CA95: 0 | CB95: 0 | CC95: 0 | CD95: 0 | CE95: 0 | CF95: 0 | CG95: 0 | CH95: 0 | CI95: 0 | CJ95: 0 | CK95: 0 | CL95: 0 | CM95: 0 | CN95: 0 | CO95: 0 | CP95: 0 | CQ95: 0 | CR95: 100
A96: Beluftningsanlæg, ren ilt | B96: m³/h | C96: =Genanskaffelsespriser!$E$39 -> 25 | D96: 0 | E96: 0 | F96: 0 | G96: 0 | H96: 0 | I96: 0 | J96: 0 | K96: 0 | L96: 0 | M96: 0 | N96: 0 | O96: 0 | P96: 0 | Q96: 0 | R96: 0 | S96: 0 | T96: 0 | U96: 0 | V96: 0 | W96: 0 | X96: 0 | Y96: 0 | Z96: =IF(COUNTIF(D96:Y96,"<>0")<=1,IF((SUM(D96:Y96))>0,(+HLOOKUP((SUM(D96:Y96)),Priser!$E$96:$J$108,12)+((SUM(D96:Y96))-HLOOKUP((SUM(D96:Y96)),Priser!$E$96:$J$108,1))*HLOOKUP((SUM(D96:Y96)),Priser!$E$96:$J$108,13))/(SUM(D96:Y96)),0)*(1+Genanskaffelsespriser!$D$196),$A$1359) -> 0 | AA96: 0 | AB96: 0 | AC96: 0 | AD96: 0 | AE96: 0 | AF96: 0 | AG96: 0 | AH96: 0 | AI96: 0 | AJ96: 0 | AK96: 0 | AL96: 0 | AM96: 0 | AN96: 0 | AO96: 0 | AP96: 0 | AQ96: 0 | AR96: 0 | AS96: 0 | AT96: 0 | AU96: 0 | AV96: 0 | AW96: 0 | AX96: =VLOOKUP(D$3,Prisindeks!$A$1:$B$111,2,FALSE)/100*AA96 -> 0 | AY96: =VLOOKUP(E$3,Prisindeks!$A$1:$B$111,2,FALSE)/100*AB96 -> 0 | AZ96: =VLOOKUP(F$3,Prisindeks!$A$1:$B$111,2,FALSE)/100*AC96 -> 0 | BA96: =VLOOKUP(G$3,Prisindeks!$A$1:$B$111,2,FALSE)/100*AD96 -> 0 | BB96: =VLOOKUP(H$3,Prisindeks!$A$1:$B$111,2,FALSE)/100*AE96 -> 0 | BC96: =VLOOKUP(I$3,Prisindeks!$A$1:$B$111,2,FALSE)/100*AF96 -> 0 | BD96: =VLOOKUP(J$3,Prisindeks!$A$1:$B$111,2,FALSE)/100*AG96 -> 0 | BE96: =VLOOKUP(K$3,Prisindeks!$A$1:$B$111,2,FALSE)/100*AH96 -> 0 | BF96: =VLOOKUP(L$3,Prisindeks!$A$1:$B$111,2,FALSE)/100*AI96 -> 0 | BG96: =VLOOKUP(M$3,Prisindeks!$A$1:$B$111,2,FALSE)/100*AJ96 -> 0 | BH96: =VLOOKUP(N$3,Prisindeks!$A$1:$B$111,2,FALSE)/100*AK96 -> 0 | BI96: =VLOOKUP(O$3,Prisindeks!$A$1:$B$111,2,FALSE)/100*AL96 -> 0 | BJ96: =VLOOKUP(P$3,Prisindeks!$A$1:$B$111,2,FALSE)/100*AM96 -> 0 | BK96: =VLOOKUP(Q$3,Prisindeks!$A$1:$B$111,2,FALSE)/100*AN96 -> 0 | BL96: =VLOOKUP(R$3,Prisindeks!$A$1:$B$111,2,FALSE)/100*AO96 -> 0 | BM96: =VLOOKUP(S$3,Prisindeks!$A$1:$B$111,2,FALSE)/100*AP96 -> 0 | BN96: =VLOOKUP(T$3,Prisindeks!$A$1:$B$111,2,FALSE)/100*AQ96 -> 0 | BO96: =VLOOKUP(U$3,Prisindeks!$A$1:$B$111,2,FALSE)/100*AR96 -> 0 | BP96: =VLOOKUP(V$3,Prisindeks!$A$1:$B$111,2,FALSE)/100*AS96 -> 0 | BQ96: =VLOOKUP(W$3,Prisindeks!$A$1:$B$111,2,FALSE)/100*AT96 -> 0 | BR96: =VLOOKUP(X$3,Prisindeks!$A$1:$B$111,2,FALSE)/100*AU96 -> 0 | BS96: =VLOOKUP(Y$3,Prisindeks!$A$1:$B$111,2,FALSE)/100*AV96 -> 0 | BT96: 0 | BU96: 0 | BV96: 0 | BW96: 0 | BX96: 0 | BY96: 0 | BZ96: 0 | CA96: 0 | CB96: 0 | CC96: 0 | CD96: 0 | CE96: 0 | CF96: 0 | CG96: 0 | CH96: 0 | CI96: 0 | CJ96: 0 | CK96: 0 | CL96: 0 | CM96: 0 | CN96: 0 | CO96: 0 | CP96: 0 | CQ96: 0 | CR96: 0
A97: Behandlingsanlæg, kalk anlæg | B97: m³/h | C97: =Genanskaffelsespriser!$E$40 -> 25 | D97: 0 | E97: 0 | F97: 0 | G97: 0 | H97: 0 | I97: 0 | J97: 0 | K97: 0 | L97: 0 | M97: 0 | N97: 0 | O97: 0 | P97: 0 | Q97: 0 | R97: 0 | S97: 0 | T97: 0 | U97: 0 | V97: 0 | W97: 0 | X97: 0 | Y97: 0 | Z97: =IF(COUNTIF(D97:Y97,"<>0")<=1,IF((SUM(D97:Y97))>0,(+HLOOKUP((SUM(D97:Y97)),Priser!$E$118:$I$123,3)+((SUM(D97:Y97))-HLOOKUP((SUM(D97:Y97)),Priser!$E$118:$I$123,1))*HLOOKUP((SUM(D97:Y97)),Priser!$E$118:$I$123,4))/(SUM(D97:Y97)),0)*(1+Genanskaffelsespriser!$D$196),$A$1359) -> 0 | AA97: 0 | AB97: 0 | AC97: 0 | AD97: 0 | AE97: 0 | AF97: 0 | AG97: 0 | AH97: 0 | AI97: 0 | AJ97: 0 | AK97: 0 | AL97: 0 | AM97: 0 | AN97: 0 | AO97: 0 | AP97: 0 | AQ97: 0 | AR97: 0 | AS97: 0 | AT97: 0 | AU97: 0 | AV97: 0 | AW97: 0 | AX97: =VLOOKUP(D$3,Prisindeks!$A$1:$B$111,2,FALSE)/100*AA97 -> 0 | AY97: =VLOOKUP(E$3,Prisindeks!$A$1:$B$111,2,FALSE)/100*AB97 -> 0 | AZ97: =VLOOKUP(F$3,Prisindeks!$A$1:$B$111,2,FALSE)/100*AC97 -> 0 | BA97: =VLOOKUP(G$3,Prisindeks!$A$1:$B$111,2,FALSE)/100*AD97 -> 0 | BB97: =VLOOKUP(H$3,Prisindeks!$A$1:$B$111,2,FALSE)/100*AE97 -> 0 | BC97: =VLOOKUP(I$3,Prisindeks!$A$1:$B$111,2,FALSE)/100*AF97 -> 0 | BD97: =VLOOKUP(J$3,Prisindeks!$A$1:$B$111,2,FALSE)/100*AG97 -> 0 | BE97: =VLOOKUP(K$3,Prisindeks!$A$1:$B$111,2,FALSE)/100*AH97 -> 0 | BF97: =VLOOKUP(L$3,Prisindeks!$A$1:$B$111,2,FALSE)/100*AI97 -> 0 | BG97: =VLOOKUP(M$3,Prisindeks!$A$1:$B$111,2,FALSE)/100*AJ97 -> 0 | BH97: =VLOOKUP(N$3,Prisindeks!$A$1:$B$111,2,FALSE)/100*AK97 -> 0 | BI97: =VLOOKUP(O$3,Prisindeks!$A$1:$B$111,2,FALSE)/100*AL97 -> 0 | BJ97: =VLOOKUP(P$3,Prisindeks!$A$1:$B$111,2,FALSE)/100*AM97 -> 0 | BK97: =VLOOKUP(Q$3,Prisindeks!$A$1:$B$111,2,FALSE)/100*AN97 -> 0 | BL97: =VLOOKUP(R$3,Prisindeks!$A$1:$B$111,2,FALSE)/100*AO97 -> 0 | BM97: =VLOOKUP(S$3,Prisindeks!$A$1:$B$111,2,FALSE)/100*AP97 -> 0 | BN97: =VLOOKUP(T$3,Prisindeks!$A$1:$B$111,2,FALSE)/100*AQ97 -> 0 | BO97: =VLOOKUP(U$3,Prisindeks!$A$1:$B$111,2,FALSE)/100*AR97 -> 0 | BP97: =VLOOKUP(V$3,Prisindeks!$A$1:$B$111,2,FALSE)/100*AS97 -> 0 | BQ97: =VLOOKUP(W$3,Prisindeks!$A$1:$B$111,2,FALSE)/100*AT97 -> 0 | BR97: =VLOOKUP(X$3,Prisindeks!$A$1:$B$111,2,FALSE)/100*AU97 -> 0 | BS97: =VLOOKUP(Y$3,Prisindeks!$A$1:$B$111,2,FALSE)/100*AV97 -> 0 | BT97: 0 | BU97: 0 | BV97: 0 | BW97: 0 | BX97: 0 | BY97: 0 | BZ97: 0 | CA97: 0 | CB97: 0 | CC97: 0 | CD97: 0 | CE97: 0 | CF97: 0 | CG97: 0 | CH97: 0 | CI97: 0 | CJ97: 0 | CK97: 0 | CL97: 0 | CM97: 0 | CN97: 0 | CO97: 0 | CP97: 0 | CQ97: 0 | CR97: 0
A98: Behandlingsanlæg, luddosering | B98: m³/h | C98: =Genanskaffelsespriser!$E$41 -> 25 | D98: 0 | E98: 0 | F98: 0 | G98: 0 | H98: 0 | I98: 0 | J98: 0 | K98: 0 | L98: 0 | M98: 0 | N98: 0 | O98: 0 | P98: 0 | Q98: 0 | R98: 0 | S98: 0 | T98: 0 | U98: 0 | V98: 0 | W98: 0 | X98: 0 | Y98: 0 | Z98: =IF(COUNTIF(D98:Y98,"<>0")<=1,IF((SUM(D98:Y98))>0,(+HLOOKUP((SUM(D98:Y98)),Priser!$E$118:$I$123,5)+((SUM(D98:Y98))-HLOOKUP((SUM(D98:Y98)),Priser!$E$118:$I$123,1))*HLOOKUP((SUM(D98:Y98)),Priser!$E$118:$I$123,6))/(SUM(D98:Y98)),0)*(1+Genanskaffelsespriser!$D$196),$A$1359) -> 0 | AA98: 0 | AB98: 0 | AC98: 0 | AD98: 0 | AE98: 0 | AF98: 0 | AG98: 0 | AH98: 0 | AI98: 0 | AJ98: 0 | AK98: 0 | AL98: 0 | AM98: 0 | AN98: 0 | AO98: 0 | AP98: 0 | AQ98: 0 | AR98: 0 | AS98: 0 | AT98: 0 | AU98: 0 | AV98: 0 | AW98: 0 | AX98: =VLOOKUP(D$3,Prisindeks!$A$1:$B$111,2,FALSE)/100*AA98 -> 0 | AY98: =VLOOKUP(E$3,Prisindeks!$A$1:$B$111,2,FALSE)/100*AB98 -> 0 | AZ98: =VLOOKUP(F$3,Prisindeks!$A$1:$B$111,2,FALSE)/100*AC98 -> 0 | BA98: =VLOOKUP(G$3,Prisindeks!$A$1:$B$111,2,FALSE)/100*AD98 -> 0 | BB98: =VLOOKUP(H$3,Prisindeks!$A$1:$B$111,2,FALSE)/100*AE98 -> 0 | BC98: =VLOOKUP(I$3,Prisindeks!$A$1:$B$111,2,FALSE)/100*AF98 -> 0 | BD98: =VLOOKUP(J$3,Prisindeks!$A$1:$B$111,2,FALSE)/100*AG98 -> 0 | BE98: =VLOOKUP(K$3,Prisindeks!$A$1:$B$111,2,FALSE)/100*AH98 -> 0 | BF98: =VLOOKUP(L$3,Prisindeks!$A$1:$B$111,2,FALSE)/100*AI98 -> 0 | BG98: =VLOOKUP(M$3,Prisindeks!$A$1:$B$111,2,FALSE)/100*AJ98 -> 0 | BH98: =VLOOKUP(N$3,Prisindeks!$A$1:$B$111,2,FALSE)/100*AK98 -> 0 | BI98: =VLOOKUP(O$3,Prisindeks!$A$1:$B$111,2,FALSE)/100*AL98 -> 0 | BJ98: =VLOOKUP(P$3,Prisindeks!$A$1:$B$111,2,FALSE)/100*AM98 -> 0 | BK98: =VLOOKUP(Q$3,Prisindeks!$A$1:$B$111,2,FALSE)/100*AN98 -> 0 | BL98: =VLOOKUP(R$3,Prisindeks!$A$1:$B$111,2,FALSE)/100*AO98 -> 0 | BM98: =VLOOKUP(S$3,Prisindeks!$A$1:$B$111,2,FALSE)/100*AP98 -> 0 | BN98: =VLOOKUP(T$3,Prisindeks!$A$1:$B$111,2,FALSE)/100*AQ98 -> 0 | BO98: =VLOOKUP(U$3,Prisindeks!$A$1:$B$111,2,FALSE)/100*AR98 -> 0 | BP98: =VLOOKUP(V$3,Prisindeks!$A$1:$B$111,2,FALSE)/100*AS98 -> 0 | BQ98: =VLOOKUP(W$3,Prisindeks!$A$1:$B$111,2,FALSE)/100*AT98 -> 0 | BR98: =VLOOKUP(X$3,Prisindeks!$A$1:$B$111,2,FALSE)/100*AU98 -> 0 | BS98: =VLOOKUP(Y$3,Prisindeks!$A$1:$B$111,2,FALSE)/100*AV98 -> 0 | BT98: 0 | BU98: 0 | BV98: 0 | BW98: 0 | BX98: 0 | BY98: 0 | BZ98: 0 | CA98: 0 | CB98: 0 | CC98: 0 | CD98: 0 | CE98: 0 | CF98: 0 | CG98: 0 | CH98: 0 | CI98: 0 | CJ98: 0 | CK98: 0 | CL98: 0 | CM98: 0 | CN98: 0 | CO98: 0 | CP98: 0 | CQ98: 0 | CR98: 0
A99: Filteranlæg, åbne filtre, enkelt filtrering, Konstruktioner | B99: m³/h | C99: =Genanskaffelsespriser!$E$42 -> 50 | D99: 0 | E99: 0 | F99: 0 | G99: 0 | H99: 0 | I99: 0 | J99: 0 | K99: 0 | L99: 0 | M99: 0 | N99: 0 | O99: 0 | P99: 0 | Q99: 0 | R99: 0 | S99: 0 | T99: 0 | U99: 0 | V99: 0 | W99: 0 | X99: 0 | Y99: 0 | Z99: =IF(COUNTIF(D99:Y99,"<>0")<=1,IF((SUM(D99:Y99))>0,(+HLOOKUP((SUM(D99:Y99)),Priser!$E$132:$I$141,9)+((SUM(D99:Y99))-HLOOKUP((SUM(D99:Y99)),Priser!$E$132:$I$141,1))*HLOOKUP((SUM(D99:Y99)),Priser!$E$132:$I$141,10))/(SUM(D99:Y99)),0)*Priser!$Q$140*(1+Genanskaffelsespriser!$D$196),$A$1359) -> 0 | AA99: =IF((D99*$Z99-(2009-D$3)/($C99+D100)*$Z99*D99)<0,0,(D99*$Z99-(2009-D$3)/($C99+D100)*$Z99*D99)) -> 0 | AB99: 0 | AC99: 0 | AD99: 0 | AE99: 0 | AF99: 0 | AG99: 0 | AH99: 0 | AI99: 0 | AJ99: 0 | AK99: 0 | AL99: 0 | AM99: 0 | AN99: 0 | AO99: 0 | AP99: 0 | AQ99: 0 | AR99: 0 | AS99: 0 | AT99: 0 | AU99: 0 | AV99: 0 | AW99: 0 | AX99: =VLOOKUP(D$3,Prisindeks!$A$1:$B$111,2,FALSE)/100*AA99 -> 0 | AY99: =VLOOKUP(E$3,Prisindeks!$A$1:$B$111,2,FALSE)/100*AB99 -> 0 | AZ99: =VLOOKUP(F$3,Prisindeks!$A$1:$B$111,2,FALSE)/100*AC99 -> 0 | BA99: =VLOOKUP(G$3,Prisindeks!$A$1:$B$111,2,FALSE)/100*AD99 -> 0 | BB99: =VLOOKUP(H$3,Prisindeks!$A$1:$B$111,2,FALSE)/100*AE99 -> 0 | BC99: =VLOOKUP(I$3,Prisindeks!$A$1:$B$111,2,FALSE)/100*AF99 -> 0 | BD99: =VLOOKUP(J$3,Prisindeks!$A$1:$B$111,2,FALSE)/100*AG99 -> 0 | BE99: =VLOOKUP(K$3,Prisindeks!$A$1:$B$111,2,FALSE)/100*AH99 -> 0 | BF99: =VLOOKUP(L$3,Prisindeks!$A$1:$B$111,2,FALSE)/100*AI99 -> 0 | BG99: =VLOOKUP(M$3,Prisindeks!$A$1:$B$111,2,FALSE)/100*AJ99 -> 0 | BH99: =VLOOKUP(N$3,Prisindeks!$A$1:$B$111,2,FALSE)/100*AK99 -> 0 | BI99: =VLOOKUP(O$3,Prisindeks!$A$1:$B$111,2,FALSE)/100*AL99 -> 0 | BJ99: =VLOOKUP(P$3,Prisindeks!$A$1:$B$111,2,FALSE)/100*AM99 -> 0 | BK99: =VLOOKUP(Q$3,Prisindeks!$A$1:$B$111,2,FALSE)/100*AN99 -> 0 | BL99: =VLOOKUP(R$3,Prisindeks!$A$1:$B$111,2,FALSE)/100*AO99 -> 0 | BM99: =VLOOKUP(S$3,Prisindeks!$A$1:$B$111,2,FALSE)/100*AP99 -> 0 | BN99: =VLOOKUP(T$3,Prisindeks!$A$1:$B$111,2,FALSE)/100*AQ99 -> 0 | BO99: =VLOOKUP(U$3,Prisindeks!$A$1:$B$111,2,FALSE)/100*AR99 -> 0 | BP99: =VLOOKUP(V$3,Prisindeks!$A$1:$B$111,2,FALSE)/100*AS99 -> 0 | BQ99: =VLOOKUP(W$3,Prisindeks!$A$1:$B$111,2,FALSE)/100*AT99 -> 0 | BR99: =VLOOKUP(X$3,Prisindeks!$A$1:$B$111,2,FALSE)/100*AU99 -> 0 | BS99: =VLOOKUP(Y$3,Prisindeks!$A$1:$B$111,2,FALSE)/100*AV99 -> 0 | BT99: 0 | BU99: 0 | BV99: 0 | BW99: 0 | BX99: 0 | BY99: 0 | BZ99: 0 | CA99: 0 | CB99: 0 | CC99: 0 | CD99: 0 | CE99: 0 | CF99: 0 | CG99: 0 | CH99: 0 | CI99: 0 | CJ99: 0 | CK99: 0 | CL99: 0 | CM99: 0 | CN99: 0 | CO99: 0 | CP99: 0 | CQ99: 0 | CR99: 0
A100: Levetidsforlængelse | B100: år | C100: - | D100: 0 | E100: 0 | F100: 0 | G100: 0 | H100: 0 | I100: 0 | J100: 0 | K100: 0 | L100: 0 | M100: 0 | N100: 0 | O100: 0 | P100: 0 | Q100: 0 | R100: 0 | S100: 0 | T100: 0 | U100: 0 | V100: 0 | W100: 0 | X100: 0 | Y100: 0
A101: Filteranlæg, åbne filtre, enkelt filtrering, Mek./EL | B101: m³/h | C101: =Genanskaffelsespriser!$E$43 -> 25 | D101: 0 | E101: 0 | F101: 0 | G101: 0 | H101: 0 | I101: 0 | J101: 0 | K101: 0 | L101: 0 | M101: 0 | N101: 0 | O101: 0 | P101: 0 | Q101: 0 | R101: 0 | S101: 0 | T101: 0 | U101: 0 | V101: 0 | W101: 0 | X101: 0 | Y101: 0 | Z101: =IF(COUNTIF(D101:Y101,"<>0")<=1,IF((SUM(D101:Y101))>0,(+HLOOKUP((SUM(D101:Y101)),Priser!$E$132:$I$141,9)+((SUM(D101:Y101))-HLOOKUP((SUM(D101:Y101)),Priser!$E$132:$I$141,1))*HLOOKUP((SUM(D101:Y101)),Priser!$E$132:$I$141,10))/(SUM(D101:Y101)),0)*Priser!$R$140*(1+Genanskaffelsespriser!$D$196),$A$1359) -> 0 | AA101: =IF((D101*$Z101-(2009-D$3)/$C101*$Z101*D101)<0,0,(D101*$Z101-(2009-D$3)/$C101*$Z101*D101)) -> 0 | AB101: 0 | AC101: 0 | AD101: 0 | AE101: 0 | AF101: 0 | AG101: 0 | AH101: 0 | AI101: 0 | AJ101: 0 | AK101: 0 | AL101: 0 | AM101: 0 | AN101: 0 | AO101: 0 | AP101: 0 | AQ101: 0 | AR101: 0 | AS101: 0 | AT101: 0 | AU101: 0 | AV101: 0 | AW101: =+SUM(AA101:AV101) -> 0 | AX101: =VLOOKUP(D$3,Prisindeks!$A$1:$B$111,2,FALSE)/100*AA101 -> 0 | AY101: =VLOOKUP(E$3,Prisindeks!$A$1:$B$111,2,FALSE)/100*AB101 -> 0 | AZ101: =VLOOKUP(F$3,Prisindeks!$A$1:$B$111,2,FALSE)/100*AC101 -> 0 | BA101: =VLOOKUP(G$3,Prisindeks!$A$1:$B$111,2,FALSE)/100*AD101 -> 0 | BB101: =VLOOKUP(H$3,Prisindeks!$A$1:$B$111,2,FALSE)/100*AE101 -> 0 | BC101: =VLOOKUP(I$3,Prisindeks!$A$1:$B$111,2,FALSE)/100*AF101 -> 0 | BD101: =VLOOKUP(J$3,Prisindeks!$A$1:$B$111,2,FALSE)/100*AG101 -> 0 | BE101: =VLOOKUP(K$3,Prisindeks!$A$1:$B$111,2,FALSE)/100*AH101 -> 0 | BF101: =VLOOKUP(L$3,Prisindeks!$A$1:$B$111,2,FALSE)/100*AI101 -> 0 | BG101: =VLOOKUP(M$3,Prisindeks!$A$1:$B$111,2,FALSE)/100*AJ101 -> 0 | BH101: =VLOOKUP(N$3,Prisindeks!$A$1:$B$111,2,FALSE)/100*AK101 -> 0 | BI101: =VLOOKUP(O$3,Prisindeks!$A$1:$B$111,2,FALSE)/100*AL101 -> 0 | BJ101: =VLOOKUP(P$3,Prisindeks!$A$1:$B$111,2,FALSE)/100*AM101 -> 0 | BK101: =VLOOKUP(Q$3,Prisindeks!$A$1:$B$111,2,FALSE)/100*AN101 -> 0 | BL101: =VLOOKUP(R$3,Prisindeks!$A$1:$B$111,2,FALSE)/100*AO101 -> 0 | BM101: =VLOOKUP(S$3,Prisindeks!$A$1:$B$111,2,FALSE)/100*AP101 -> 0 | BN101: =VLOOKUP(T$3,Prisindeks!$A$1:$B$111,2,FALSE)/100*AQ101 -> 0 | BO101: =VLOOKUP(U$3,Prisindeks!$A$1:$B$111,2,FALSE)/100*AR101 -> 0 | BP101: =VLOOKUP(V$3,Prisindeks!$A$1:$B$111,2,FALSE)/100*AS101 -> 0 | BQ101: =VLOOKUP(W$3,Prisindeks!$A$1:$B$111,2,FALSE)/100*AT101 -> 0 | BR101: =VLOOKUP(X$3,Prisindeks!$A$1:$B$111,2,FALSE)/100*AU101 -> 0 | BS101: =VLOOKUP(Y$3,Prisindeks!$A$1:$B$111,2,FALSE)/100*AV101 -> 0 | BT101: =+SUM(AX101:BS101) -> 0 | BU101: =(AA101+AX101)/2 -> 0 | BV101: 0 | BW101: 0 | BX101: 0 | BY101: 0 | BZ101: 0 | CA101: 0 | CB101: 0 | CC101: 0 | CD101: 0 | CE101: =(AK101+BH101)/2 -> 0 | CF101: 0 | CG101: 0 | CH101: 0 | CI101: 0 | CJ101: 0 | CK101: 0 | CL101: 0 | CM101: 0 | CN101: 0 | CO101: =(AU101+BR101)/2 -> 0 | CP101: =(AV101+BS101)/2 -> 0 | CQ101: =+AVERAGE(AW101,BT101) -> 0 | CR101: =SUM(D101:Y101) -> 0
A102: Filteranlæg, åbne filtre, dobbelt filtrering, Konstruktioner | B102: m³/h | C102: =Genanskaffelsespriser!$E$44 -> 50 | D102: 0 | E102: 0 | F102: 0 | G102: 0 | H102: 0 | I102: 0 | J102: 0 | K102: 0 | L102: 0 | M102: 0 | N102: 0 | O102: 0 | P102: 0 | Q102: 0 | R102: 0 | S102: 0 | T102: 0 | U102: 0 | V102: 0 | W102: 0 | X102: 0 | Y102: 0 | Z102: =IF(COUNTIF(D102:Y102,"<>0")<=1,IF((SUM(D102:Y102))>0,(+HLOOKUP((SUM(D102:Y102)),Priser!$E$132:$I$141,6)+((SUM(D102:Y102))-HLOOKUP((SUM(D102:Y102)),Priser!$E$132:$I$141,1))*HLOOKUP((SUM(D102:Y102)),Priser!$E$132:$I$141,7))/(SUM(D102:Y102)),0)*Priser!$Q$138*(1+Genanskaffelsespriser!$D$196),$A$1359) -> 0 | AA102: =IF((D102*$Z102-(2009-D$3)/($C102+D103)*$Z102*D102)<0,0,(D102*$Z102-(2009-D$3)/($C102+D103)*$Z102*D102)) -> 0 | AB102: 0 | AC102: 0 | AD102: 0 | AE102: 0 | AF102: 0 | AG102: 0 | AH102: 0 | AI102: 0 | AJ102: 0 | AK102: 0 | AL102: 0 | AM102: 0 | AN102: 0 | AO102: 0 | AP102: 0 | AQ102: 0 | AR102: 0 | AS102: 0 | AT102: 0 | AU102: 0 | AV102: 0 | AW102: =+SUM(AA102:AV102) -> 0 | AX102: =VLOOKUP(D$3,Prisindeks!$A$1:$B$111,2,FALSE)/100*AA102 -> 0 | AY102: =VLOOKUP(E$3,Prisindeks!$A$1:$B$111,2,FALSE)/100*AB102 -> 0 | AZ102: =VLOOKUP(F$3,Prisindeks!$A$1:$B$111,2,FALSE)/100*AC102 -> 0 | BA102: =VLOOKUP(G$3,Prisindeks!$A$1:$B$111,2,FALSE)/100*AD102 -> 0 | BB102: =VLOOKUP(H$3,Prisindeks!$A$1:$B$111,2,FALSE)/100*AE102 -> 0 | BC102: =VLOOKUP(I$3,Prisindeks!$A$1:$B$111,2,FALSE)/100*AF102 -> 0 | BD102: =VLOOKUP(J$3,Prisindeks!$A$1:$B$111,2,FALSE)/100*AG102 -> 0 | BE102: =VLOOKUP(K$3,Prisindeks!$A$1:$B$111,2,FALSE)/100*AH102 -> 0 | BF102: =VLOOKUP(L$3,Prisindeks!$A$1:$B$111,2,FALSE)/100*AI102 -> 0 | BG102: =VLOOKUP(M$3,Prisindeks!$A$1:$B$111,2,FALSE)/100*AJ102 -> 0 | BH102: =VLOOKUP(N$3,Prisindeks!$A$1:$B$111,2,FALSE)/100*AK102 -> 0 | BI102: =VLOOKUP(O$3,Prisindeks!$A$1:$B$111,2,FALSE)/100*AL102 -> 0 | BJ102: =VLOOKUP(P$3,Prisindeks!$A$1:$B$111,2,FALSE)/100*AM102 -> 0 | BK102: =VLOOKUP(Q$3,Prisindeks!$A$1:$B$111,2,FALSE)/100*AN102 -> 0 | BL102: =VLOOKUP(R$3,Prisindeks!$A$1:$B$111,2,FALSE)/100*AO102 -> 0 | BM102: =VLOOKUP(S$3,Prisindeks!$A$1:$B$111,2,FALSE)/100*AP102 -> 0 | BN102: =VLOOKUP(T$3,Prisindeks!$A$1:$B$111,2,FALSE)/100*AQ102 -> 0 | BO102: =VLOOKUP(U$3,Prisindeks!$A$1:$B$111,2,FALSE)/100*AR102 -> 0 | BP102: =VLOOKUP(V$3,Prisindeks!$A$1:$B$111,2,FALSE)/100*AS102 -> 0 | BQ102: =VLOOKUP(W$3,Prisindeks!$A$1:$B$111,2,FALSE)/100*AT102 -> 0 | BR102: =VLOOKUP(X$3,Prisindeks!$A$1:$B$111,2,FALSE)/100*AU102 -> 0 | BS102: =VLOOKUP(Y$3,Prisindeks!$A$1:$B$111,2,FALSE)/100*AV102 -> 0 | BT102: =+SUM(AX102:BS102) -> 0 | BU102: 0 | BV102: 0 | BW102: 0 | BX102: 0 | BY102: 0 | BZ102: 0 | CA102: 0 | CB102: 0 | CC102: 0 | CD102: 0 | CE102: 0 | CF102: 0 | CG102: 0 | CH102: 0 | CI102: 0 | CJ102: 0 | CK102: 0 | CL102: 0 | CM102: 0 | CN102: 0 | CO102: =(AU102+BR102)/2 -> 0 | CP102: =(AV102+BS102)/2 -> 0 | CQ102: =+AVERAGE(AW102,BT102) -> 0 | CR102: =SUM(D102:Y102) -> 0
A103: Levetidsforlængelse | B103: år | C103: - | D103: 0 | E103: 0 | F103: 0 | G103: 0 | H103: 0 | I103: 0 | J103: 0 | K103: 0 | L103: 0 | M103: 0 | N103: 0 | O103: 0 | P103: 0 | Q103: 0 | R103: 0 | S103: 0 | T103: 0 | U103: 0 | V103: 0 | W103: 0 | X103: 0 | Y103: 0
A104: Filteranlæg, åbne filtre, dobbelt filtrering, Mek./EL | B104: m³/h | C104: =Genanskaffelsespriser!$E$45 -> 25 | D104: 0 | E104: 0 | F104: 0 | G104: 0 | H104: 0 | I104: 0 | J104: 0 | K104: 0 | L104: 0 | M104: 0 | N104: 0 | O104: 0 | P104: 0 | Q104: 0 | R104: 0 | S104: 0 | T104: 0 | U104: 0 | V104: 0 | W104: 0 | X104: 0 | Y104: 0 | Z104: =IF(COUNTIF(D104:Y104,"<>0")<=1,IF((SUM(D104:Y104))>0,(+HLOOKUP((SUM(D104:Y104)),Priser!$E$132:$I$141,6)+((SUM(D104:Y104))-HLOOKUP((SUM(D104:Y104)),Priser!$E$132:$I$141,1))*HLOOKUP((SUM(D104:Y104)),Priser!$E$132:$I$141,7))/(SUM(D104:Y104)),0)*Priser!$R$138*(1+Genanskaffelsespriser!$D$196),$A$1359) -> 0 | AA104: =IF((D104*$Z104-(2009-D$3)/$C104*$Z104*D104)<0,0,(D104*$Z104-(2009-D$3)/$C104*$Z104*D104)) -> 0 | AB104: 0 | AC104: 0 | AD104: 0 | AE104: 0 | AF104: 0 | AG104: 0 | AH104: 0 | AI104: 0 | AJ104: 0 | AK104: =IF((N104*$Z104-(2009-N$3)/$C104*$Z104*N104)<0,0,(N104*$Z104-(2009-N$3)/$C104*$Z104*N104)) -> 0 | AL104: 0 | AM104: 0 | AN104: 0 | AO104: 0 | AP104: 0 | AQ104: 0 | AR104: 0 | AS104: 0 | AT104: 0 | AU104: =IF((X104*$Z104-(2009-X$3)/$C104*$Z104*X104)<0,0,(X104*$Z104-(2009-X$3)/$C104*$Z104*X104)) -> 0 | AV104: 0 | AW104: =+SUM(AA104:AV104) -> 0 | AX104: =VLOOKUP(D$3,Prisindeks!$A$1:$B$111,2,FALSE)/100*AA104 -> 0 | AY104: =VLOOKUP(E$3,Prisindeks!$A$1:$B$111,2,FALSE)/100*AB104 -> 0 | AZ104: =VLOOKUP(F$3,Prisindeks!$A$1:$B$111,2,FALSE)/100*AC104 -> 0 | BA104: =VLOOKUP(G$3,Prisindeks!$A$1:$B$111,2,FALSE)/100*AD104 -> 0 | BB104: =VLOOKUP(H$3,Prisindeks!$A$1:$B$111,2,FALSE)/100*AE104 -> 0 | BC104: =VLOOKUP(I$3,Prisindeks!$A$1:$B$111,2,FALSE)/100*AF104 -> 0 | BD104: =VLOOKUP(J$3,Prisindeks!$A$1:$B$111,2,FALSE)/100*AG104 -> 0 | BE104: =VLOOKUP(K$3,Prisindeks!$A$1:$B$111,2,FALSE)/100*AH104 -> 0 | BF104: =VLOOKUP(L$3,Prisindeks!$A$1:$B$111,2,FALSE)/100*AI104 -> 0 | BG104: =VLOOKUP(M$3,Prisindeks!$A$1:$B$111,2,FALSE)/100*AJ104 -> 0 | BH104: =VLOOKUP(N$3,Prisindeks!$A$1:$B$111,2,FALSE)/100*AK104 -> 0 | BI104: =VLOOKUP(O$3,Prisindeks!$A$1:$B$111,2,FALSE)/100*AL104 -> 0 | BJ104: =VLOOKUP(P$3,Prisindeks!$A$1:$B$111,2,FALSE)/100*AM104 -> 0 | BK104: =VLOOKUP(Q$3,Prisindeks!$A$1:$B$111,2,FALSE)/100*AN104 -> 0 | BL104: =VLOOKUP(R$3,Prisindeks!$A$1:$B$111,2,FALSE)/100*AO104 -> 0 | BM104: =VLOOKUP(S$3,Prisindeks!$A$1:$B$111,2,FALSE)/100*AP104 -> 0 | BN104: =VLOOKUP(T$3,Prisindeks!$A$1:$B$111,2,FALSE)/100*AQ104 -> 0 | BO104: =VLOOKUP(U$3,Prisindeks!$A$1:$B$111,2,FALSE)/100*AR104 -> 0 | BP104: =VLOOKUP(V$3,Prisindeks!$A$1:$B$111,2,FALSE)/100*AS104 -> 0 | BQ104: =VLOOKUP(W$3,Prisindeks!$A$1:$B$111,2,FALSE)/100*AT104 -> 0 | BR104: =VLOOKUP(X$3,Prisindeks!$A$1:$B$111,2,FALSE)/100*AU104 -> 0 | BS104: =VLOOKUP(Y$3,Prisindeks!$A$1:$B$111,2,FALSE)/100*AV104 -> 0 | BT104: =+SUM(AX104:BS104) -> 0 | BU104: =(AA104+AX104)/2 -> 0 | BV104: 0 | BW104: 0 | BX104: 0 | BY104: 0 | BZ104: 0 | CA104: 0 | CB104: 0 | CC104: 0 | CD104: 0 | CE104: =(AK104+BH104)/2 -> 0 | CF104: 0 | CG104: 0 | CH104: 0 | CI104: 0 | CJ104: 0 | CK104: 0 | CL104: 0 | CM104: 0 | CN104: 0 | CO104: =(AU104+BR104)/2 -> 0 | CP104: 0 | CQ104: =+AVERAGE(AW104,BT104) -> 0 | CR104: =SUM(D104:Y104) -> 0
A105: Filteranlæg, trykfiltre, enkelt filtrering | B105: m³/h | C105: =Genanskaffelsespriser!$E$46 -> 25 | D105: 0 | E105: 0 | F105: 0 | G105: 0 | H105: 0 | I105: 0 | J105: 0 | K105: 100 | L105: 0 | M105: 0 | N105: 0 | O105: 0 | P105: 0 | Q105: 0 | R105: 0 | S105: 0 | T105: 0 | U105: 0 | V105: 0 | W105: 0 | X105: 0 | Y105: 0 | Z105: =IF(COUNTIF(D105:Y105,"<>0")<=1,IF((SUM(D105:Y105))>0,(+HLOOKUP((SUM(D105:Y105)),Priser!$E$150:$J$152,2)+((SUM(D105:Y105))-HLOOKUP((SUM(D105:Y105)),Priser!$E$150:$J$152,1))*HLOOKUP((SUM(D105:Y105)),Priser!$E$150:$J$152,3))/(SUM(D105:Y105)),0)*(1+Genanskaffelsespriser!$D$196),$A$1359) -> 13386.85077 | AA105: 0 | AB105: 0 | AC105: 0 | AD105: 0 | AE105: 0 | AF105: 0 | AG105: 0 | AH105: 0 | AI105: 0 | AJ105: 0 | AK105: 0 | AL105: 0 | AM105: 0 | AN105: 0 | AO105: 0 | AP105: 0 | AQ105: 0 | AR105: 0 | AS105: 0 | AT105: 0 | AU105: 0 | AV105: 0 | AW105: =+SUM(AA105:AV105) -> 0 | AX105: =VLOOKUP(D$3,Prisindeks!$A$1:$B$111,2,FALSE)/100*AA105 -> 0 | AY105: =VLOOKUP(E$3,Prisindeks!$A$1:$B$111,2,FALSE)/100*AB105 -> 0 | AZ105: =VLOOKUP(F$3,Prisindeks!$A$1:$B$111,2,FALSE)/100*AC105 -> 0 | BA105: =VLOOKUP(G$3,Prisindeks!$A$1:$B$111,2,FALSE)/100*AD105 -> 0 | BB105: =VLOOKUP(H$3,Prisindeks!$A$1:$B$111,2,FALSE)/100*AE105 -> 0 | BC105: =VLOOKUP(I$3,Prisindeks!$A$1:$B$111,2,FALSE)/100*AF105 -> 0 | BD105: =VLOOKUP(J$3,Prisindeks!$A$1:$B$111,2,FALSE)/100*AG105 -> 0 | BE105: =VLOOKUP(K$3,Prisindeks!$A$1:$B$111,2,FALSE)/100*AH105 -> 0 | BF105: =VLOOKUP(L$3,Prisindeks!$A$1:$B$111,2,FALSE)/100*AI105 -> 0 | BG105: =VLOOKUP(M$3,Prisindeks!$A$1:$B$111,2,FALSE)/100*AJ105 -> 0 | BH105: =VLOOKUP(N$3,Prisindeks!$A$1:$B$111,2,FALSE)/100*AK105 -> 0 | BI105: =VLOOKUP(O$3,Prisindeks!$A$1:$B$111,2,FALSE)/100*AL105 -> 0 | BJ105: =VLOOKUP(P$3,Prisindeks!$A$1:$B$111,2,FALSE)/100*AM105 -> 0 | BK105: =VLOOKUP(Q$3,Prisindeks!$A$1:$B$111,2,FALSE)/100*AN105 -> 0 | BL105: =VLOOKUP(R$3,Prisindeks!$A$1:$B$111,2,FALSE)/100*AO105 -> 0 | BM105: =VLOOKUP(S$3,Prisindeks!$A$1:$B$111,2,FALSE)/100*AP105 -> 0 | BN105: =VLOOKUP(T$3,Prisindeks!$A$1:$B$111,2,FALSE)/100*AQ105 -> 0 | BO105: =VLOOKUP(U$3,Prisindeks!$A$1:$B$111,2,FALSE)/100*AR105 -> 0 | BP105: =VLOOKUP(V$3,Prisindeks!$A$1:$B$111,2,FALSE)/100*AS105 -> 0 | BQ105: =VLOOKUP(W$3,Prisindeks!$A$1:$B$111,2,FALSE)/100*AT105 -> 0 | BR105: =VLOOKUP(X$3,Prisindeks!$A$1:$B$111,2,FALSE)/100*AU105 -> 0 | BS105: =VLOOKUP(Y$3,Prisindeks!$A$1:$B$111,2,FALSE)/100*AV105 -> 0 | BT105: =+SUM(AX105:BS105) -> 0 | BU105: 0 | BV105: 0 | BW105: 0 | BX105: 0 | BY105: 0 | BZ105: 0 | CA105: 0 | CB105: 0 | CC105: 0 | CD105: 0 | CE105: 0 | CF105: 0 | CG105: 0 | CH105: 0 | CI105: 0 | CJ105: 0 | CK105: 0 | CL105: 0 | CM105: 0 | CN105: 0 | CO105: 0 | CP105: 0 | CQ105: =+AVERAGE(AW105,BT105) -> 0 | CR105: =SUM(D105:Y105) -> 100
A106: Filteranlæg, trykfiltre, dobbelt filtrering | B106: m³/h | C106: =Genanskaffelsespriser!$E$47 -> 25 | D106: 0 | E106: 0 | F106: 0 | G106: 0 | H106: 0 | I106: 0 | J106: 0 | K106: 0 | L106: 0 | M106: 0 | N106: 0 | O106: 0 | P106: 0 | Q106: 0 | R106: 0 | S106: 0 | T106: 0 | U106: 0 | V106: 0 | W106: 0 | X106: 0 | Y106: 0 | Z106: =IF(COUNTIF(D106:Y106,"<>0")<=1,IF((SUM(D106:Y106))>0,(+HLOOKUP((SUM(D106:Y106)),Priser!$E$154:$J$156,2)+((SUM(D106:Y106))-HLOOKUP((SUM(D106:Y106)),Priser!$E$154:$J$156,1))*HLOOKUP((SUM(D106:Y106)),Priser!$E$154:$J$156,3))/(SUM(D106:Y106)),0)*Priser!$R$138*(1+Genanskaffelsespriser!$D$196),$A$1359) -> 0 | AA106: 0 | AB106: 0 | AC106: 0 | AD106: 0 | AE106: 0 | AF106: 0 | AG106: 0 | AH106: 0 | AI106: 0 | AJ106: 0 | AK106: 0 | AL106: 0 | AM106: 0 | AN106: 0 | AO106: 0 | AP106: 0 | AQ106: 0 | AR106: 0 | AS106: 0 | AT106: 0 | AU106: 0 | AV106: 0 | AW106: =+SUM(AA106:AV106) -> 0 | AX106: =VLOOKUP(D$3,Prisindeks!$A$1:$B$111,2,FALSE)/100*AA106 -> 0 | AY106: =VLOOKUP(E$3,Prisindeks!$A$1:$B$111,2,FALSE)/100*AB106 -> 0 | AZ106: =VLOOKUP(F$3,Prisindeks!$A$1:$B$111,2,FALSE)/100*AC106 -> 0 | BA106: =VLOOKUP(G$3,Prisindeks!$A$1:$B$111,2,FALSE)/100*AD106 -> 0 | BB106: =VLOOKUP(H$3,Prisindeks!$A$1:$B$111,2,FALSE)/100*AE106 -> 0 | BC106: =VLOOKUP(I$3,Prisindeks!$A$1:$B$111,2,FALSE)/100*AF106 -> 0 | BD106: =VLOOKUP(J$3,Prisindeks!$A$1:$B$111,2,FALSE)/100*AG106 -> 0 | BE106: =VLOOKUP(K$3,Prisindeks!$A$1:$B$111,2,FALSE)/100*AH106 -> 0 | BF106: =VLOOKUP(L$3,Prisindeks!$A$1:$B$111,2,FALSE)/100*AI106 -> 0 | BG106: =VLOOKUP(M$3,Prisindeks!$A$1:$B$111,2,FALSE)/100*AJ106 -> 0 | BH106: =VLOOKUP(N$3,Prisindeks!$A$1:$B$111,2,FALSE)/100*AK106 -> 0 | BI106: =VLOOKUP(O$3,Prisindeks!$A$1:$B$111,2,FALSE)/100*AL106 -> 0 | BJ106: =VLOOKUP(P$3,Prisindeks!$A$1:$B$111,2,FALSE)/100*AM106 -> 0 | BK106: =VLOOKUP(Q$3,Prisindeks!$A$1:$B$111,2,FALSE)/100*AN106 -> 0 | BL106: =VLOOKUP(R$3,Prisindeks!$A$1:$B$111,2,FALSE)/100*AO106 -> 0 | BM106: =VLOOKUP(S$3,Prisindeks!$A$1:$B$111,2,FALSE)/100*AP106 -> 0 | BN106: =VLOOKUP(T$3,Prisindeks!$A$1:$B$111,2,FALSE)/100*AQ106 -> 0 | BO106: =VLOOKUP(U$3,Prisindeks!$A$1:$B$111,2,FALSE)/100*AR106 -> 0 | BP106: =VLOOKUP(V$3,Prisindeks!$A$1:$B$111,2,FALSE)/100*AS106 -> 0 | BQ106: =VLOOKUP(W$3,Prisindeks!$A$1:$B$111,2,FALSE)/100*AT106 -> 0 | BR106: =VLOOKUP(X$3,Prisindeks!$A$1:$B$111,2,FALSE)/100*AU106 -> 0 | BS106: =VLOOKUP(Y$3,Prisindeks!$A$1:$B$111,2,FALSE)/100*AV106 -> 0 | BT106: =+SUM(AX106:BS106) -> 0 | BU106: 0 | BV106: 0 | BW106: 0 | BX106: 0 | BY106: 0 | BZ106: 0 | CA106: 0 | CB106: 0 | CC106: 0 | CD106: 0 | CE106: 0 | CF106: 0 | CG106: 0 | CH106: 0 | CI106: 0 | CJ106: 0 | CK106: 0 | CL106: 0 | CM106: 0 | CN106: 0 | CO106: 0 | CP106: 0 | CQ106: =+AVERAGE(AW106,BT106) -> 0 | CR106: =SUM(D106:Y106) -> 0
A107: Rentvandsbeholder insitu støbt | B107: m³ | C107: =Genanskaffelsespriser!$E$48 -> 50 | D107: 0 | E107: 0 | F107: 0 | G107: 0 | H107: 0 | I107: 0 | J107: 0 | K107: 90 | L107: 0 | M107: 0 | N107: 0 | O107: 0 | P107: 0 | Q107: 0 | R107: 0 | S107: 0 | T107: 0 | U107: 0 | V107: 0 | W107: 0 | X107: 0 | Y107: 0 | Z107: =IF(COUNTIF(D107:Y107,"<>0")<=1,IF((SUM(D107:Y107))>0,(+HLOOKUP((SUM(D107:Y107)),Priser!$E$168:$J$170,2)+((SUM(D107:Y107))-HLOOKUP((SUM(D107:Y107)),Priser!$E$168:$J$170,1))*HLOOKUP((SUM(D107:Y107)),Priser!$E$168:$J$170,3))/(SUM(D107:Y107)),0)*(1+Genanskaffelsespriser!$D$196),$A$1359) -> 5400.248016 | AA107: =IF((D107*$Z107-(2009-D$3)/($C107+D108)*$Z107*D107)<0,0,(D107*$Z107-(2009-D$3)/($C107+D108)*$Z107*D107)) -> 0 | AB107: 0 | AC107: 0 | AD107: 0 | AE107: 0 | AF107: 0 | AG107: 0 | AH107: 155527.1429 | AI107: 0 | AJ107: 0 | AK107: 0 | AL107: 0 | AM107: 0 | AN107: 0 | AO107: 0 | AP107: 0 | AQ107: 0 | AR107: 0 | AS107: 0 | AT107: 0 | AU107: 0 | AV107: 0 | AW107: =+SUM(AA107:AV107) -> 155527.1429 | AX107: =VLOOKUP(D$3,Prisindeks!$A$1:$B$111,2,FALSE)/100*AA107 -> 0 | AY107: =VLOOKUP(E$3,Prisindeks!$A$1:$B$111,2,FALSE)/100*AB107 -> 0 | AZ107: =VLOOKUP(F$3,Prisindeks!$A$1:$B$111,2,FALSE)/100*AC107 -> 0 | BA107: =VLOOKUP(G$3,Prisindeks!$A$1:$B$111,2,FALSE)/100*AD107 -> 0 | BB107: =VLOOKUP(H$3,Prisindeks!$A$1:$B$111,2,FALSE)/100*AE107 -> 0 | BC107: =VLOOKUP(I$3,Prisindeks!$A$1:$B$111,2,FALSE)/100*AF107 -> 0 | BD107: =VLOOKUP(J$3,Prisindeks!$A$1:$B$111,2,FALSE)/100*AG107 -> 0 | BE107: =VLOOKUP(K$3,Prisindeks!$A$1:$B$111,2,FALSE)/100*AH107 -> 33834.48836 | BF107: =VLOOKUP(L$3,Prisindeks!$A$1:$B$111,2,FALSE)/100*AI107 -> 0 | BG107: =VLOOKUP(M$3,Prisindeks!$A$1:$B$111,2,FALSE)/100*AJ107 -> 0 | BH107: =VLOOKUP(N$3,Prisindeks!$A$1:$B$111,2,FALSE)/100*AK107 -> 0 | BI107: =VLOOKUP(O$3,Prisindeks!$A$1:$B$111,2,FALSE)/100*AL107 -> 0 | BJ107: =VLOOKUP(P$3,Prisindeks!$A$1:$B$111,2,FALSE)/100*AM107 -> 0 | BK107: =VLOOKUP(Q$3,Prisindeks!$A$1:$B$111,2,FALSE)/100*AN107 -> 0 | BL107: =VLOOKUP(R$3,Prisindeks!$A$1:$B$111,2,FALSE)/100*AO107 -> 0 | BM107: =VLOOKUP(S$3,Prisindeks!$A$1:$B$111,2,FALSE)/100*AP107 -> 0 | BN107: =VLOOKUP(T$3,Prisindeks!$A$1:$B$111,2,FALSE)/100*AQ107 -> 0 | BO107: =VLOOKUP(U$3,Prisindeks!$A$1:$B$111,2,FALSE)/100*AR107 -> 0 | BP107: =VLOOKUP(V$3,Prisindeks!$A$1:$B$111,2,FALSE)/100*AS107 -> 0 | BQ107: =VLOOKUP(W$3,Prisindeks!$A$1:$B$111,2,FALSE)/100*AT107 -> 0 | BR107: =VLOOKUP(X$3,Prisindeks!$A$1:$B$111,2,FALSE)/100*AU107 -> 0 | BS107: =VLOOKUP(Y$3,Prisindeks!$A$1:$B$111,2,FALSE)/100*AV107 -> 0 | BT107: =+SUM(AX107:BS107) -> 33834.48836 | BU107: 0 | BV107: 0 | BW107: 0 | BX107: 0 | BY107: 0 | BZ107: 0 | CA107: 0 | CB107: 94680.81561 | CC107: 0 | CD107: 0 | CE107: 0 | CF107: 0 | CG107: 0 | CH107: 0 | CI107: 0 | CJ107: 0 | CK107: 0 | CL107: 0 | CM107: 0 | CN107: 0 | CO107: 0 | CP107: 0 | CQ107: =+AVERAGE(AW107,BT107) -> 94680.81561 | CR107: =SUM(D107:Y107) -> 90
A108: Levetidsforlængelse | B108: år | C108: - | D108: 0 | E108: 0 | F108: 0 | G108: 0 | H108: 0 | I108: 0 | J108: 0 | K108: 0 | L108: 0 | M108: 0 | N108: 0 | O108: 0 | P108: 0 | Q108: 0 | R108: 0 | S108: 0 | T108: 0 | U108: 0 | V108: 0 | W108: 0 | X108: 0 | Y108: 0
A109: Rentvandsbeholder element | B109: m³ | C109: =Genanskaffelsespriser!$E$49 -> 50 | D109: 0 | E109: 0 | F109: 0 | G109: 0 | H109: 0 | I109: 0 | J109: 0 | K109: 0 | L109: 0 | M109: 0 | N109: 0 | O109: 0 | P109: 0 | Q109: 0 | R109: 0 | S109: 0 | T109: 0 | U109: 0 | V109: 0 | W109: 0 | X109: 0 | Y109: 0 | Z109: =IF(COUNTIF(D109:Y109,"<>0")<=1,IF((SUM(D109:Y109))>0,(+HLOOKUP(SUM(D109:Y109),Priser!$E$175:$J$177,2)+((SUM(D109:Y109))-HLOOKUP((SUM(D109:Y109)),Priser!$E$175:$J$177,1))*HLOOKUP((SUM(D109:Y109)),Priser!$E$175:$J$177,3))/(SUM(D109:Y109)),0)*(1+Genanskaffelsespriser!$D$196),$A$1359) -> 0 | AA109: =IF((D109*$Z109-(2009-D$3)/($C109+D110)*$Z109*D109)<0,0,(D109*$Z109-(2009-D$3)/($C109+D110)*$Z109*D109)) -> 0 | AB109: 0 | AC109: 0 | AD109: 0 | AE109: 0 | AF109: 0 | AG109: 0 | AH109: 0 | AI109: 0 | AJ109: 0 | AK109: 0 | AL109: 0 | AM109: 0 | AN109: 0 | AO109: 0 | AP109: 0 | AQ109: 0 | AR109: 0 | AS109: 0 | AT109: 0 | AU109: 0 | AV109: 0 | AW109: =+SUM(AA109:AV109) -> 0 | AX109: =VLOOKUP(D$3,Prisindeks!$A$1:$B$111,2,FALSE)/100*AA109 -> 0 | AY109: =VLOOKUP(E$3,Prisindeks!$A$1:$B$111,2,FALSE)/100*AB109 -> 0 | AZ109: =VLOOKUP(F$3,Prisindeks!$A$1:$B$111,2,FALSE)/100*AC109 -> 0 | BA109: =VLOOKUP(G$3,Prisindeks!$A$1:$B$111,2,FALSE)/100*AD109 -> 0 | BB109: =VLOOKUP(H$3,Prisindeks!$A$1:$B$111,2,FALSE)/100*AE109 -> 0 | BC109: =VLOOKUP(I$3,Prisindeks!$A$1:$B$111,2,FALSE)/100*AF109 -> 0 | BD109: =VLOOKUP(J$3,Prisindeks!$A$1:$B$111,2,FALSE)/100*AG109 -> 0 | BE109: =VLOOKUP(K$3,Prisindeks!$A$1:$B$111,2,FALSE)/100*AH109 -> 0 | BF109: =VLOOKUP(L$3,Prisindeks!$A$1:$B$111,2,FALSE)/100*AI109 -> 0 | BG109: =VLOOKUP(M$3,Prisindeks!$A$1:$B$111,2,FALSE)/100*AJ109 -> 0 | BH109: =VLOOKUP(N$3,Prisindeks!$A$1:$B$111,2,FALSE)/100*AK109 -> 0 | BI109: =VLOOKUP(O$3,Prisindeks!$A$1:$B$111,2,FALSE)/100*AL109 -> 0 | BJ109: =VLOOKUP(P$3,Prisindeks!$A$1:$B$111,2,FALSE)/100*AM109 -> 0 | BK109: =VLOOKUP(Q$3,Prisindeks!$A$1:$B$111,2,FALSE)/100*AN109 -> 0 | BL109: =VLOOKUP(R$3,Prisindeks!$A$1:$B$111,2,FALSE)/100*AO109 -> 0 | BM109: =VLOOKUP(S$3,Prisindeks!$A$1:$B$111,2,FALSE)/100*AP109 -> 0 | BN109: =VLOOKUP(T$3,Prisindeks!$A$1:$B$111,2,FALSE)/100*AQ109 -> 0 | BO109: =VLOOKUP(U$3,Prisindeks!$A$1:$B$111,2,FALSE)/100*AR109 -> 0 | BP109: =VLOOKUP(V$3,Prisindeks!$A$1:$B$111,2,FALSE)/100*AS109 -> 0 | BQ109: =VLOOKUP(W$3,Prisindeks!$A$1:$B$111,2,FALSE)/100*AT109 -> 0 | BR109: =VLOOKUP(X$3,Prisindeks!$A$1:$B$111,2,FALSE)/100*AU109 -> 0 | BS109: =VLOOKUP(Y$3,Prisindeks!$A$1:$B$111,2,FALSE)/100*AV109 -> 0 | BT109: =+SUM(AX109:BS109) -> 0 | BU109: =(AA109+AX109)/2 -> 0 | BV109: 0 | BW109: 0 | BX109: 0 | BY109: 0 | BZ109: 0 | CA109: 0 | CB109: 0 | CC109: 0 | CD109: 0 | CE109: 0 | CF109: 0 | CG109: 0 | CH109: 0 | CI109: 0 | CJ109: 0 | CK109: 0 | CL109: 0 | CM109: 0 | CN109: 0 | CO109: 0 | CP109: 0 | CQ109: =+AVERAGE(AW109,BT109) -> 0 | CR109: =SUM(D109:Y109) -> 0
A110: Levetidsforlængelse | B110: år | C110: - | D110: 0 | E110: 0 | F110: 0 | G110: 0 | H110: 0 | I110: 0 | J110: 0 | K110: 0 | L110: 0 | M110: 0 | N110: 0 | O110: 0 | P110: 0 | Q110: 0 | R110: 0 | S110: 0 | T110: 0 | U110: 0 | V110: 0 | W110: 0 | X110: 0 | Y110: 0
A111: Udpumpningsanlæg, rentvandspumper på vandværk | B111: m³/h | C111: =Genanskaffelsespriser!$E$50 -> 25 | D111: 0 | E111: 0 | F111: 0 | G111: 0 | H111: 0 | I111: 0 | J111: 0 | K111: 125 | L111: 0 | M111: 0 | N111: 0 | O111: 0 | P111: 0 | Q111: 0 | R111: 0 | S111: 0 | T111: 0 | U111: 0 | V111: 0 | W111: 0 | X111: 0 | Y111: 0 | Z111: =IF(COUNTIF(D111:Y111,"<>0")<=1,IF((SUM(D111:Y111))>0,(+HLOOKUP((SUM(D111:Y111)),Priser!$E$236:$J$238,2)+((SUM(D111:Y111))-HLOOKUP((SUM(D111:Y111)),Priser!$E$236:$J$238,1))*HLOOKUP((SUM(D111:Y111)),Priser!$E$236:$J$238,3))/(SUM(D111:Y111)),0)*(1+Genanskaffelsespriser!$D$196),$A$1359) -> 1416.638095 | AA111: =IF((D111*$Z111-(2009-D$3)/$C111*$Z111*D111)<0,0,(D111*$Z111-(2009-D$3)/$C111*$Z111*D111)) -> 0 | AB111: 0 | AC111: 0 | AD111: 0 | AE111: 0 | AF111: 0 | AG111: 0 | AH111: 0 | AI111: 0 | AJ111: 0 | AK111: =IF((N111*$Z111-(2009-N$3)/$C111*$Z111*N111)<0,0,(N111*$Z111-(2009-N$3)/$C111*$Z111*N111)) -> 0 | AL111: 0 | AM111: 0 | AN111: 0 | AO111: 0 | AP111: 0 | AQ111: 0 | AR111: 0 | AS111: 0 | AT111: 0 | AU111: =IF((X111*$Z111-(2009-X$3)/$C111*$Z111*X111)<0,0,(X111*$Z111-(2009-X$3)/$C111*$Z111*X111)) -> 0 | AV111: 0 | AW111: =+SUM(AA111:AV111) -> 0 | AX111: =VLOOKUP(D$3,Prisindeks!$A$1:$B$111,2,FALSE)/100*AA111 -> 0 | AY111: =VLOOKUP(E$3,Prisindeks!$A$1:$B$111,2,FALSE)/100*AB111 -> 0 | AZ111: =VLOOKUP(F$3,Prisindeks!$A$1:$B$111,2,FALSE)/100*AC111 -> 0 | BA111: =VLOOKUP(G$3,Prisindeks!$A$1:$B$111,2,FALSE)/100*AD111 -> 0 | BB111: =VLOOKUP(H$3,Prisindeks!$A$1:$B$111,2,FALSE)/100*AE111 -> 0 | BC111: =VLOOKUP(I$3,Prisindeks!$A$1:$B$111,2,FALSE)/100*AF111 -> 0 | BD111: =VLOOKUP(J$3,Prisindeks!$A$1:$B$111,2,FALSE)/100*AG111 -> 0 | BE111: =VLOOKUP(K$3,Prisindeks!$A$1:$B$111,2,FALSE)/100*AH111 -> 0 | BF111: =VLOOKUP(L$3,Prisindeks!$A$1:$B$111,2,FALSE)/100*AI111 -> 0 | BG111: =VLOOKUP(M$3,Prisindeks!$A$1:$B$111,2,FALSE)/100*AJ111 -> 0 | BH111: =VLOOKUP(N$3,Prisindeks!$A$1:$B$111,2,FALSE)/100*AK111 -> 0 | BI111: =VLOOKUP(O$3,Prisindeks!$A$1:$B$111,2,FALSE)/100*AL111 -> 0 | BJ111: =VLOOKUP(P$3,Prisindeks!$A$1:$B$111,2,FALSE)/100*AM111 -> 0 | BK111: =VLOOKUP(Q$3,Prisindeks!$A$1:$B$111,2,FALSE)/100*AN111 -> 0 | BL111: =VLOOKUP(R$3,Prisindeks!$A$1:$B$111,2,FALSE)/100*AO111 -> 0 | BM111: =VLOOKUP(S$3,Prisindeks!$A$1:$B$111,2,FALSE)/100*AP111 -> 0 | BN111: =VLOOKUP(T$3,Prisindeks!$A$1:$B$111,2,FALSE)/100*AQ111 -> 0 | BO111: =VLOOKUP(U$3,Prisindeks!$A$1:$B$111,2,FALSE)/100*AR111 -> 0 | BP111: =VLOOKUP(V$3,Prisindeks!$A$1:$B$111,2,FALSE)/100*AS111 -> 0 | BQ111: =VLOOKUP(W$3,Prisindeks!$A$1:$B$111,2,FALSE)/100*AT111 -> 0 | BR111: =VLOOKUP(X$3,Prisindeks!$A$1:$B$111,2,FALSE)/100*AU111 -> 0 | BS111: =VLOOKUP(Y$3,Prisindeks!$A$1:$B$111,2,FALSE)/100*AV111 -> 0 | BT111: =+SUM(AX111:BS111) -> 0 | BU111: =(AA111+AX111)/2 -> 0 | BV111: 0 | BW111: 0 | BX111: 0 | BY111: 0 | BZ111: 0 | CA111: 0 | CB111: 0 | CC111: 0 | CD111: 0 | CE111: =(AK111+BH111)/2 -> 0 | CF111: 0 | CG111: 0 | CH111: 0 | CI111: 0 | CJ111: 0 | CK111: 0 | CL111: 0 | CM111: 0 | CN111: 0 | CO111: =(AU111+BR111)/2 -> 0 | CP111: 0 | CQ111: =+AVERAGE(AW111,BT111) -> 0 | CR111: =SUM(D111:Y111) -> 125
